Workbook

Sheet Quadro Síntese
B2: Quadro síntese do agroecossistema
B4: Família: | D4: =Agroecossistema!C4 -> Manoel Inacio/Adenice Vieira | H4: Data de Coleta: | I4: =Agroecossistema!P8 -> 2016-12-01
B6: Comunidade: | D6: =Agroecossistema!C6 -> Tanque de Pedra / Sitio Balaio | H6: Ano Referência: | I6: =Agroecossistema!P6 -> 2015-11-01 | J6: =Agroecossistema!Q6 -> 2016-11-01
B8: Município: | D8: =Agroecossistema!C11 -> Nossa Senhora do Glória | H8: Coordenadas | I8: Latitude: | J8: =CONCATENATE(Agroecossistema!D8,"⁰ ",Agroecossistema!E8,"'",Agroecossistema!F8,"""") -> ⁰ '"
I9: Longitude: | J9: =CONCATENATE(Agroecossistema!D9,"⁰ ",Agroecossistema!E9,"'",Agroecossistema!F9,"""") -> ⁰ '"
B11: Estado: | D11: =Agroecossistema!C12 -> Sergipe | H11: Área: | I11: =Agroecossistema!C14 -> 7 | J11: hectares
B13: Composição do Núcleo Social de Gestão do Agroecossistema (NSGA): | E13: =Agroecossistema!M20 -> 15 | F13: pessoas | G13: =Agroecossistema!K20 -> 8 | H13: mulher(es) | I13: =Agroecossistema!L20 -> 7 | J13: homem(s)
G14: =Agroecossistema!F20 -> 7 | H14: jovens | I14: =Agroecossistema!G20 -> 6 | J14: jovens
G15: =Agroecossistema!H20 -> 0 | H15: outras | I15: =Agroecossistema!I21 -> 0 | J15: outros
I16: =Agroecossistema!J20 -> 0 | J16: crianças
B18: Subsistemas | C18: 1- | D18: ='Indicadores I'!B17 -> Bovino | F18: 5- | G18: ='Indicadores I'!B21 -> Lavoura Milho e palma | I18: 9- | J18: ='Indicadores I'!B25 -> 0
C19: 2- | D19: ='Indicadores I'!B18 -> Suino | F19: 6- | G19: ='Indicadores I'!B22 -> Quintal - frutas e medicinais | I19: 10- | J19: ='Indicadores I'!B26 -> 0
C20: 3- | D20: ='Indicadores I'!B19 -> Ovino | F20: 7- | G20: ='Indicadores I'!B23 -> 0 | I20: 11- | J20: ='Indicadores I'!B27 -> 0
C21: 4- | D21: ='Indicadores I'!B20 -> Aves | F21: 8- | G21: ='Indicadores I'!B24 -> 0 | I21: 12- | J21: ='Indicadores I'!B28 -> 0
I22: 13- | J22: ='Indicadores I'!B29 -> 0
B25: Rendas | D25: ='Indicadores I'!B6 -> 1 - Rendas Agrícolas | F25: ='Indicadores I'!C6 -> 19850.436 | G25: ='Indicadores I'!D6 -> 0.5574331075
D26: 1.1 Monetárias | F26: ='Indicadores I'!J51 -> 12927.56933 | G26: =F26/F25 -> 0.6512486342
D27: 1.2 Não-monetárias | F27: =F25-F26 -> 6922.866667 | G27: =F27/F25 -> 0.3487513658
D28: ='Indicadores I'!B9 -> 2 - Rendas Não Agrícolas | F28: ='Indicadores I'!C9 -> 15760 | G28: ='Indicadores I'!D9 -> 0.4425668925
D29: ='Indicadores I'!B10 -> 2.1 - Pluriatividade | F29: ='Indicadores I'!C10 -> 4320 | G29: ='Indicadores I'!D10 -> 0.2741116751
D30: ='Indicadores I'!B11 -> 2.2 - Transferência de Renda | F30: ='Indicadores I'!C11 -> 11440 | G30: ='Indicadores I'!D11 -> 0.7258883249
D31: ='Indicadores I'!B12 -> 3 - Renda Familiar Total | F31: ='Indicadores I'!C12 -> 35610.436 | G31: ='Indicadores I'!D12 -> 1
D32: 4 - Renda Total per capita | F32: =F31/E13/12 -> 197.8357555
D33: 5 - Renda Monetária per capita | F33: =(F28+'Indicadores I'!J51)/E13/12 -> 159.3753852
D34: 6 - Renda Agrícola Monetária per capita | F34: ='Indicadores I'!J51/E13/12 -> 71.81982962
B36: Renda Agrícola/ha | D36: ='Indicadores I'!I51 -> 2835.776557
B38: Valor Agregado/ha | D38: ='Indicadores I'!H51 -> 3058.6337
B40: Composição Produto Bruto | D40: ='Indicadores I'!D31 -> 18656.8001 | E40: Venda
C41: + | D41: ='Indicadores I'!E31 -> 4410.2 | E41: Autoconsumo
C42: + | D42: ='Indicadores I'!F31 -> 2512.666667 | E42: Trocas e Doações
C43: + | D43: ='Indicadores I'!G31 -> 15283.55769 | E43: Estoque
D44: ='Indicadores I'!H31 -> 40863.22446
B46: Renda Bruta - Composição 1 | D46: ='Indicadores I'!D51 -> 21410.436 | E46: Valor Agregado
C47: + | D47: ='Indicadores I'!K31 -> 4169.230769 | E47: Consumos Intermediários
D48: =SUM(D46:D47) -> 25579.66677
B50: Renda Bruta - Composição 2 | D50: ='Indicadores I'!D51+'Indicadores I'!I31 -> 23730.436 | E50: Valor Agregado Territorial
C51: + | D51: ='Indicadores I'!J31 -> 1849.230769 | E51: Consumos Intermediários Fora do Território
D52: =SUM(D50:D51) -> 25579.66677
G54: Mulheres | H54: Homens | I54: Jovens
B55: Repartição do Valor Agregado por Esfera de Trabalho | D55: ='Indicadores II'!B39 -> Mercantil e Autoconsumo | G55: ='Indicadores II'!I39 -> 5951.255827 | H55: ='Indicadores II'!J39 -> 8950.43062 | I55: ='Indicadores II'!E39+'Indicadores II'!F39 -> 2084.33491
D56: ='Indicadores II'!B40 -> Doméstico e de Cuidados | G56: ='Indicadores II'!I40 -> 8912.930034 | H56: ='Indicadores II'!J40 -> 334.8889563 | I56: ='Indicadores II'!E40+'Indicadores II'!F40 -> 3819.827157
D57: ='Indicadores II'!B41 -> Participação Social | G57: ='Indicadores II'!I41 -> 20.93055977 | H57: ='Indicadores II'!J41 -> 0 | I57: ='Indicadores II'!E41+'Indicadores II'!F41 -> 0
D58: ='Indicadores II'!B42 -> Pluriatividade | G58: ='Indicadores II'!I42 -> 0 | H58: ='Indicadores II'!J42 -> 0 | I58: ='Indicadores II'!E42+'Indicadores II'!F42 -> 0
D59: ='Indicadores II'!B43 -> Total (B) | G59: ='Indicadores II'!I43 -> 14885.11642 | H59: ='Indicadores II'!J43 -> 9285.319577 | I59: ='Indicadores II'!E43+'Indicadores II'!F43 -> 5904.162068
G60: =G59/(G59+H59) -> 0.6158397979 | H60: =H59/(H59+G59) -> 0.3841602021 | I60: =I59/(G59+H59) -> 0.2442720548

Sheet Indicadores I
B2: INDICADORES ECONÔMICOS
B4: Tabela 01: Composição da renda do NSGA em valores absolutos e relativos | I4: Tabela 02: Síntese do inventário patrimonial
B5: Rendas | C5: Valor (R$) | D5: % | I5: Inventário Patrimonial (Capital Agrário) | K5: Início do Período | M5: Final do Período | O5: Variação
B6: 1 - Rendas Agrícolas | C6: =F51 -> 19850.436 | D6: =IF(C12=0,"",C6/C12) -> 0.5574331075 | I6: Capital Fundiário | K6: =Agroecossistema!G66 -> 131314 | M6: =Agroecossistema!J66 -> 131314 | O6: =Agroecossistema!L66 -> 0
B7: 1.1 Produções Vegetais e Animais | C7: =SUM(F37:F48)-(N30*D7) -> 19850.4359 | D7: =IF(E8=0,"",E7/(E7+E8)) -> 0.9999999952 | E7: =SUM(F37:F48) -> 20750.4359 | I7: Capital Fixo - Equipamentos | K7: =Agroecossistema!G81 -> 3400 | M7: =Agroecossistema!J81 -> 3400 | O7: =Agroecossistema!L81 -> 0
B8: 1.2 Extrativismo | C8: =F49-(N30*D8) -> 9.566274174e-05 | D8: =IF(E7=0,"",E8/(E8+E7)) -> 4.819175848e-09 | E8: =F49 -> 0.0001 | I8: Capital Fixo - Vivo | K8: =Agroecossistema!G102 -> 13874 | M8: =Agroecossistema!J102 -> 13074 | O8: =Agroecossistema!L102 -> -800
B9: 2 - Rendas Não Agrícolas | C9: =Agroecossistema!K45 -> 15760 | D9: =IF(C12=0,"",C9/C12) -> 0.4425668925 | I9: Total | K9: =Agroecossistema!G103 -> 148588 | M9: =Agroecossistema!J103 -> 147788 | O9: =Agroecossistema!L103 -> -800
B10: 2.1 - Pluriatividade | C10: =Agroecossistema!K33 -> 4320 | D10: =IF(C10=0,"",C10/(C11+C10)) -> 0.2741116751
B11: 2.2 - Transferência de Renda | C11: =Agroecossistema!K39 -> 11440 | D11: =IF(C11=0,"",C11/(C10+C11)) -> 0.7258883249
B12: 3 - Renda Familiar Total | C12: =C6+C9 -> 35610.436 | D12: =IF(C12=0,"",C12/C12) -> 1
B13: Tabela 03: Produto Bruto e Custos de Produção do Agroecossistema e de seus Subsistemas
B14: Subsistema | C14: Área | D14: Produto Bruto (PB) | I14: Custos de Produção (CP)
D15: Venda Renda Bruta Monetária (RBM) | E15: Autoconsumo | F15: Trocas e Doações | G15: Estoque | H15: Total | I15: Consumos Intermediários (CI) | L15: Pagamentos a Terceiros (PT) | O15: Total CP
I16: T | J16: F | K16: Total CI | L16: T | M16: F | N16: Total PT
B17: ='SUB. 1'!D6 -> Bovino | C17: ='SUB. 1'!C$8 -> 4.54 | D17: ='SUB. 1'!H37 -> 10236.8 | E17: ='SUB. 1'!J37 -> 211.2 | F17: ='SUB. 1'!L37 -> 220 | G17: ='SUB. 1'!N37 -> 7692.307692 | H17: =SUM(D17:G17) -> 18360.30769 | I17: ='SUB. 1'!H$80 -> 1800 | J17: ='SUB. 1'!H$81 -> 360 | K17: ='SUB. 1'!H$82 -> 2160 | L17: ='SUB. 1'!H$101 -> 0 | M17: ='SUB. 1'!H$102 -> 0 | N17: ='SUB. 1'!H$103 -> 0 | O17: =K17+N17 -> 2160
B18: ='SUB. 2'!D6 -> Suino | C18: ='SUB. 2'!C$8 -> 0.01 | D18: ='SUB. 2'!H37 -> 7830 | E18: ='SUB. 2'!J37 -> 900 | F18: ='SUB. 2'!L37 -> 1500 | G18: ='SUB. 2'!N37 -> 6600 | H18: 16830 | I18: ='SUB. 2'!H$80 -> 160 | J18: ='SUB. 2'!H$81 -> 960 | K18: ='SUB. 2'!H$82 -> 1120 | L18: ='SUB. 2'!H$101 -> 0 | M18: ='SUB. 2'!H$102 -> 0 | N18: ='SUB. 2'!H$103 -> 0 | O18: 1120
B19: ='SUB. 3'!D6 -> Ovino | C19: ='SUB. 3'!C$8 -> 4.54 | D19: ='SUB. 3'!H37 -> 180 | E19: ='SUB. 3'!J37 -> 0 | F19: ='SUB. 3'!L37 -> 0 | G19: ='SUB. 3'!N37 -> 225 | H19: 405 | I19: ='SUB. 3'!H$80 -> 0 | J19: ='SUB. 3'!H$81 -> 0 | K19: ='SUB. 3'!H$82 -> 0 | L19: ='SUB. 3'!H$101 -> 0 | M19: ='SUB. 3'!H$102 -> 0 | N19: ='SUB. 3'!H$103 -> 0 | O19: 0
B20: ='SUB. 4'!D6 -> Aves | C20: ='SUB. 4'!C$8 -> 4.54 | D20: ='SUB. 4'!H37 -> 210 | E20: ='SUB. 4'!J37 -> 1980 | F20: ='SUB. 4'!L37 -> 376.6666667 | G20: ='SUB. 4'!N37 -> 766.25 | H20: 3332.916667 | I20: ='SUB. 4'!H$80 -> 0 | J20: ='SUB. 4'!H$81 -> 369.2307692 | K20: ='SUB. 4'!H$82 -> 369.2307692 | L20: ='SUB. 4'!H$101 -> 0 | M20: ='SUB. 4'!H$102 -> 0 | N20: ='SUB. 4'!H$103 -> 0 | O20: 369.2307692
B21: ='SUB. 5'!D6 -> Lavoura Milho e palma | C21: ='SUB. 5'!C$8 -> 1 | D21: ='SUB. 5'!H37 -> 200 | E21: ='SUB. 5'!J37 -> 50 | F21: ='SUB. 5'!L37 -> 20 | G21: ='SUB. 5'!N37 -> 0 | H21: 270 | I21: ='SUB. 5'!H$80 -> 360 | J21: ='SUB. 5'!H$81 -> 160 | K21: ='SUB. 5'!H$82 -> 520 | L21: ='SUB. 5'!H$101 -> 0 | M21: ='SUB. 5'!H$102 -> 0 | N21: ='SUB. 5'!H$103 -> 660 | O21: 1180
B22: ='SUB. 6'!D6 -> Quintal - frutas e medicinais | C22: ='SUB. 6'!C$8 -> 0.16 | D22: ='SUB. 6'!H37 -> 0 | E22: ='SUB. 6'!J37 -> 1269 | F22: ='SUB. 6'!L37 -> 396 | G22: ='SUB. 6'!N37 -> 0 | H22: 1665 | I22: ='SUB. 6'!H$80 -> 0 | J22: ='SUB. 6'!H$81 -> 0 | K22: ='SUB. 6'!H$82 -> 0 | L22: ='SUB. 6'!H$101 -> 0 | M22: ='SUB. 6'!H$102 -> 0 | N22: ='SUB. 6'!H$103 -> 0 | O22: 0
B23: ='SUB. 7'!D6 -> 0 | C23: ='SUB. 7'!C$8 -> 0 | D23: ='SUB. 7'!H37 -> 0 | E23: ='SUB. 7'!J37 -> 0 | F23: ='SUB. 7'!L37 -> 0 | G23: ='SUB. 7'!N37 -> 0 | H23: 0 | I23: ='SUB. 7'!H$80 -> 0 | J23: ='SUB. 7'!H$81 -> 0 | K23: ='SUB. 7'!H$82 -> 0 | L23: ='SUB. 7'!H$101 -> 0 | M23: ='SUB. 7'!H$102 -> 0 | N23: ='SUB. 7'!H$103 -> 0 | O23: 0
B24: ='SUB. 8'!D6 -> 0 | C24: ='SUB. 8'!C$8 -> 0 | D24: ='SUB. 8'!H37 -> 0 | E24: ='SUB. 8'!J37 -> 0 | F24: ='SUB. 8'!L37 -> 0 | G24: ='SUB. 8'!N37 -> 0 | H24: 0 | I24: ='SUB. 8'!H$80 -> 0 | J24: ='SUB. 8'!H$81 -> 0 | K24: ='SUB. 8'!H$82 -> 0 | L24: ='SUB. 8'!H$101 -> 0 | M24: ='SUB. 8'!H$102 -> 0 | N24: ='SUB. 8'!H$103 -> 0 | O24: 0
B25: ='SUB. 9'!D6 -> 0 | C25: ='SUB. 9'!C$8 -> 0 | D25: ='SUB. 9'!H37 -> 0 | E25: ='SUB. 9'!J37 -> 0 | F25: ='SUB. 9'!L37 -> 0 | G25: ='SUB. 9'!N37 -> 0 | H25: 0 | I25: ='SUB. 9'!H$80 -> 0 | J25: ='SUB. 9'!H$81 -> 0 | K25: ='SUB. 9'!H$82 -> 0 | L25: ='SUB. 9'!H$101 -> 0 | M25: ='SUB. 9'!H$102 -> 0 | N25: ='SUB. 9'!H$103 -> 0 | O25: 0
B26: ='SUB. 10'!D6 -> 0 | C26: ='SUB. 10'!C$8 -> 0 | D26: ='SUB. 10'!H37 -> 0 | E26: ='SUB. 10'!J37 -> 0 | F26: ='SUB. 10'!L37 -> 0 | G26: ='SUB. 10'!N37 -> 0 | H26: 0 | I26: ='SUB. 10'!H$80 -> 0 | J26: ='SUB. 10'!H$81 -> 0 | K26: ='SUB. 10'!H$82 -> 0 | L26: ='SUB. 10'!H$101 -> 0 | M26: ='SUB. 10'!H$102 -> 0 | N26: ='SUB. 10'!H$103 -> 0 | O26: 0
B27: ='SUB. 11'!D6 -> 0 | C27: ='SUB. 11'!C$8 -> 0 | D27: ='SUB. 11'!H37 -> 0 | E27: ='SUB. 11'!J37 -> 0 | F27: ='SUB. 11'!L37 -> 0 | G27: ='SUB. 11'!N37 -> 0 | H27: 0 | I27: ='SUB. 11'!H$80 -> 0 | J27: ='SUB. 11'!H$81 -> 0 | K27: ='SUB. 11'!H$82 -> 0 | L27: ='SUB. 11'!H$101 -> 0 | M27: ='SUB. 11'!H$102 -> 0 | N27: ='SUB. 11'!H$103 -> 0 | O27: 0
B28: ='SUB. 12'!D6 -> 0 | C28: ='SUB. 12'!C$8 -> 0 | D28: ='SUB. 12'!H37 -> 0 | E28: ='SUB. 12'!J37 -> 0 | F28: ='SUB. 12'!L37 -> 0 | G28: ='SUB. 12'!N37 -> 0 | H28: 0 | I28: ='SUB. 12'!H$80 -> 0 | J28: ='SUB. 12'!H$81 -> 0 | K28: ='SUB. 12'!H$82 -> 0 | L28: ='SUB. 12'!H$101 -> 0 | M28: ='SUB. 12'!H$102 -> 0 | N28: ='SUB. 12'!H$103 -> 0 | O28: 0
B29: ='SUB. Extrativista'!D6 -> 0 | C29: ='SUB. Extrativista'!C$8 -> 0 | D29: ='SUB. Extrativista'!H37 -> 0.0001 | E29: ='SUB. Extrativista'!J37 -> 0 | F29: ='SUB. Extrativista'!L37 -> 0 | G29: ='SUB. Extrativista'!N37 -> 0 | H29: 0.0001 | I29: ='SUB. Extrativista'!H$80 -> 0 | J29: ='SUB. Extrativista'!H$81 -> 0 | K29: ='SUB. Extrativista'!H$82 -> 0 | L29: ='SUB. Extrativista'!H$101 -> 0 | M29: ='SUB. Extrativista'!H$102 -> 0 | N29: ='SUB. Extrativista'!H$103 -> 0 | O29: 0
B30: Custos Sistêmicos | N30: =Agroecossistema!G122 -> 900 | O30: =N30 -> 900
B31: Agroecossistema | C31: =Agroecossistema!C14 -> 7 | D31: =SUM(D17:D29) -> 18656.8001 | E31: 4410.2 | F31: 2512.666667 | G31: 15283.55769 | H31: 40863.22446 | I31: 2320 | J31: 1849.230769 | K31: 4169.230769 | L31: 0 | M31: 0 | N31: =SUM(N17:N30) -> 1560 | O31: =SUM(O17:O30) -> 5729.230769
B33: Tabela 04: Indicadores econômicos do Agroecossistema e de seus Subsistemas
B34: Subsistema | C34: Renda Bruta (RB) | D34: Valor Agregado (VA) | E34: Valor Agregado Territorial (VAT) | F34: Renda Agrícola (RA) | G34: Apropriação do Valor Agregado (RA/VAx100) | H34: Produtividade da Terra (VA/ ha) | I34: Renda Agrícola / ha. | J34: Renda Agrícola Monetária (RAM) | K34: Rentabil. Monetária (RAM/CP) | L34: Rentabil. Monetária Bruta (RBM/CP) | M34: Índice de Rentabilidade Total (VA/CI) | N34: Índice de Endogeneidade (VA/RB) | O34: Índice de Mercantilização (CP/CPT)
B37: =B17 -> Bovino | C37: =D17+E17+F17 -> 10668 | D37: =C37-K17 -> 8508 | E37: =C37-J17 -> 10308 | F37: =D37-N17 -> 8508 | G37: =IF(D37=0,"",F37/D37) -> 1 | H37: =IF(D37=0,"",D37/C17) -> 1874.008811 | I37: =IF(F37=0,"",F37/C17) -> 1874.008811 | J37: =D17-O17 -> 8076.8 | K37: =IF(O17=0,"",J37/O17) -> 3.739259259 | L37: =IF(O17=0,"",D17/O17) -> 4.739259259 | M37: =IF(O17=0,"",D37/O17) -> 3.938888889 | N37: =IF(D37=0,"",D37/C37) -> 0.7975253093 | O37: =IF('SUB. 1'!$H$82+'SUB. 1'!$H$103=0,"",('SUB. 1'!$H$82+'SUB. 1'!$H$103)/('SUB. 1'!$H$82+'SUB. 1'!$H$57+'SUB. 1'!$H$103+'SUB. 1'!$H$122)) -> 0.2181818182
B38: Suino | C38: 10230 | D38: 9110 | E38: 9270 | F38: 9110 | G38: 1 | H38: 911000 | I38: 911000 | J38: 6710 | K38: 5.991071429 | L38: =IF(O18=0,"",D18/O18) -> 6.991071429 | M38: 8.133928571 | N38: 0.8905180841 | O38: =IF('SUB. 2'!$H$82+'SUB. 2'!$H$103=0,"",('SUB. 2'!$H$82+'SUB. 2'!$H$103)/('SUB. 2'!$H$82+'SUB. 2'!$H$57+'SUB. 2'!$H$103+'SUB. 2'!$H$122)) -> 0.3803056027
B39: Ovino | C39: 180 | D39: 180 | E39: 180 | F39: 180 | G39: 1 | H39: 39.64757709 | I39: 39.64757709 | J39: 180 | N39: 1 | O39: =IF('SUB. 3'!$H$82+'SUB. 3'!$H$103=0,"",('SUB. 3'!$H$82+'SUB. 3'!$H$103)/('SUB. 3'!$H$82+'SUB. 3'!$H$57+'SUB. 3'!$H$103+'SUB. 3'!$H$122)) -> 
B40: Aves | C40: 2566.666667 | D40: 2197.435897 | E40: 2197.435897 | F40: 2197.435897 | G40: 1 | H40: 484.0167175 | I40: 484.0167175 | J40: -159.2307692 | K40: -0.43125 | L40: 0.56875 | M40: 5.951388889 | N40: 0.8561438561 | O40: =IF('SUB. 4'!$H$82+'SUB. 4'!$H$103=0,"",('SUB. 4'!$H$82+'SUB. 4'!$H$103)/('SUB. 4'!$H$82+'SUB. 4'!$H$57+'SUB. 4'!$H$103+'SUB. 4'!$H$122)) -> 1
B41: Lavoura Milho e palma | C41: 270 | D41: -250 | E41: 110 | F41: -910 | G41: 3.64 | H41: -250 | I41: -910 | J41: -980 | K41: -0.8305084746 | L41: 0.1694915254 | M41: -0.2118644068 | N41: -0.9259259259 | O41: =IF('SUB. 5'!$H$82+'SUB. 5'!$H$103=0,"",('SUB. 5'!$H$82+'SUB. 5'!$H$103)/('SUB. 5'!$H$82+'SUB. 5'!$H$57+'SUB. 5'!$H$103+'SUB. 5'!$H$122)) -> 0.9493161706
B42: Quintal - frutas e medicinais | C42: 1665 | D42: 1665 | E42: 1665 | F42: 1665 | G42: 1 | H42: 10406.25 | I42: 10406.25 | J42: 0 | N42: 1 | O42: =IF('SUB. 6'!$H$82+'SUB. 6'!$H$103=0,"",('SUB. 6'!$H$82+'SUB. 6'!$H$103)/('SUB. 6'!$H$82+'SUB. 6'!$H$57+'SUB. 6'!$H$103+'SUB. 6'!$H$122)) -> 
B43: 0 | C43: 0 | D43: 0 | E43: 0 | F43: 0 | J43: 0 | O43: =IF('SUB. 7'!$H$82+'SUB. 7'!$H$103=0,"",('SUB. 7'!$H$82+'SUB. 7'!$H$103)/('SUB. 7'!$H$82+'SUB. 7'!$H$57+'SUB. 7'!$H$103+'SUB. 7'!$H$122)) -> 
B44: 0 | C44: 0 | D44: 0 | E44: 0 | F44: 0 | J44: 0 | O44: =IF('SUB. 8'!$H$82+'SUB. 8'!$H$103=0,"",('SUB. 8'!$H$82+'SUB. 8'!$H$103)/('SUB. 8'!$H$82+'SUB. 8'!$H$57+'SUB. 8'!$H$103+'SUB. 8'!$H$122)) -> 
B45: 0 | C45: 0 | D45: 0 | E45: 0 | F45: 0 | J45: 0 | O45: =IF('SUB. 9'!$H$82+'SUB. 9'!$H$103=0,"",('SUB. 9'!$H$82+'SUB. 9'!$H$103)/('SUB. 9'!$H$82+'SUB. 9'!$H$57+'SUB. 9'!$H$103+'SUB. 9'!$H$122)) -> 
B46: 0 | C46: 0 | D46: 0 | E46: 0 | F46: 0 | J46: 0 | O46: =IF('SUB. 10'!$H$82+'SUB. 10'!$H$103=0,"",('SUB. 10'!$H$82+'SUB. 10'!$H$103)/('SUB. 10'!$H$82+'SUB. 10'!$H$57+'SUB. 10'!$H$103+'SUB. 10'!$H$122)) -> 
B47: 0 | C47: 0 | D47: 0 | E47: 0 | F47: 0 | J47: 0 | O47: =IF('SUB. 11'!$H$82+'SUB. 11'!$H$103=0,"",('SUB. 11'!$H$82+'SUB. 11'!$H$103)/('SUB. 11'!$H$82+'SUB. 11'!$H$57+'SUB. 11'!$H$103+'SUB. 11'!$H$122)) -> 
B48: 0 | C48: 0 | D48: 0 | E48: 0 | F48: 0 | J48: 0 | O48: =IF('SUB. 12'!$H$82+'SUB. 12'!$H$103=0,"",('SUB. 12'!$H$82+'SUB. 12'!$H$103)/('SUB. 12'!$H$82+'SUB. 12'!$H$57+'SUB. 12'!$H$103+'SUB. 12'!$H$122)) -> 
B49: 0 | C49: 0.0001 | D49: 0.0001 | E49: 0.0001 | F49: 0.0001 | G49: 1 | J49: 0.0001 | N49: 1 | O49: =IF('SUB. Extrativista'!$H$82+'SUB. Extrativista'!$H$103=0,"",('SUB. Extrativista'!$H$82+'SUB. Extrativista'!$H$103)/('SUB. Extrativista'!$H$82+'SUB. Extrativista'!$H$57+'SUB. Extrativista'!$H$103+'SUB. Extrativista'!$H$122)) -> 
B50: Custos Sistêmicos | F50: =-N30 -> -900 | G50: =IF(D50=0,"",D50/C50) ->  | J50: =-N30 -> -900
B51: Agroecossistema | C51: =D31+E31+F31 -> 25579.66677 | D51: =C51-K31 -> 21410.436 | E51: =C51-J31 -> 23730.436 | F51: =SUM(F37:F50) -> 19850.436 | G51: 0.9271383357 | H51: =IF(D51=0,"",(D51-D49)/C31) -> 3058.6337 | I51: =IF(Agroecossistema!C14=0,"",(F51-F49)/C31) -> 2835.776557 | J51: =SUM(J37:J50) -> 12927.56933 | K51: =IF(O31=0,"",J51/O31) -> 2.256423218 | L51: =IF(O31=0,"",D31/O31) -> 3.256423218 | M51: =IF(O31=0,"",D51/O31) -> 3.73705247 | N51: =IF(D51=0,"",D51/C51) -> 0.8370099655 | O51: ='Diagrama SÍntese'!$I$24 -> 0.3248796859
B53: Tabela 05: Número de Horas Trabalhadas no Agroecossistema e nos seus Subsistemas segundo os diferentes segmentos do NSGA
B54: Subsistema | C54: HT Total | D54: HT Mulher | E54: HT Homem | F54: HT Jovens Mulheres | G54: HT Jovens Homens | H54: HT Outras | I54: HT Outros | J54: HT Total Mulheres | K54: HT Total Homens
B57: =B37 -> Bovino | C57: ='SUB. 1'!K$14 -> 3368.25 | D57: ='SUB. 1'!C$14 -> 182.5 | E57: ='SUB. 1'!D$14 -> 2555 | F57: ='SUB. 1'!E$14 -> 342.75 | G57: ='SUB. 1'!F$14 -> 288 | H57: ='SUB. 1'!G$14 -> 0 | I57: ='SUB. 1'!H$14 -> 0 | J57: ='SUB. 1'!I$14 -> 525.25 | K57: ='SUB. 1'!J$14 -> 2843
B58: Suino | C58: ='SUB. 2'!K$14 -> 451.25 | D58: ='SUB. 2'!C$14 -> 180 | E58: ='SUB. 2'!D$14 -> 180 | F58: ='SUB. 2'!E$14 -> 91.25 | G58: ='SUB. 2'!F$14 -> 0 | H58: ='SUB. 2'!G$14 -> 0 | I58: ='SUB. 2'!H$14 -> 0 | J58: ='SUB. 2'!I$14 -> 271.25 | K58: ='SUB. 2'!J$14 -> 180
B59: Ovino | C59: ='SUB. 3'!K$14 -> 456.25 | D59: ='SUB. 3'!C$14 -> 182.5 | E59: ='SUB. 3'!D$14 -> 182.5 | F59: ='SUB. 3'!E$14 -> 91.25 | G59: ='SUB. 3'!F$14 -> 0 | H59: ='SUB. 3'!G$14 -> 0 | I59: ='SUB. 3'!H$14 -> 0 | J59: ='SUB. 3'!I$14 -> 273.75 | K59: ='SUB. 3'!J$14 -> 182.5
B60: Aves | C60: ='SUB. 4'!K$14 -> 456.25 | D60: ='SUB. 4'!C$14 -> 365 | E60: ='SUB. 4'!D$14 -> 0 | F60: ='SUB. 4'!E$14 -> 91.25 | G60: ='SUB. 4'!F$14 -> 0 | H60: ='SUB. 4'!G$14 -> 0 | I60: ='SUB. 4'!H$14 -> 0 | J60: ='SUB. 4'!I$14 -> 456.25 | K60: ='SUB. 4'!J$14 -> 0
B61: Lavoura Milho e palma | C61: ='SUB. 5'!K$14 -> 3367.5 | D61: ='SUB. 5'!C$14 -> 1230 | E61: ='SUB. 5'!D$14 -> 1920 | F61: ='SUB. 5'!E$14 -> 217.5 | G61: ='SUB. 5'!F$14 -> 0 | H61: ='SUB. 5'!G$14 -> 0 | I61: ='SUB. 5'!H$14 -> 0 | J61: ='SUB. 5'!I$14 -> 1447.5 | K61: ='SUB. 5'!J$14 -> 1920
B62: Quintal - frutas e medicinais | C62: ='SUB. 6'!K$14 -> 444 | D62: ='SUB. 6'!C$14 -> 365 | E62: ='SUB. 6'!D$14 -> 6 | F62: ='SUB. 6'!E$14 -> 73 | G62: ='SUB. 6'!F$14 -> 0 | H62: ='SUB. 6'!G$14 -> 0 | I62: ='SUB. 6'!H$14 -> 0 | J62: ='SUB. 6'!I$14 -> 438 | K62: ='SUB. 6'!J$14 -> 6
B63: 0 | C63: ='SUB. 7'!K$14 -> 0 | D63: ='SUB. 7'!C$14 -> 0 | E63: ='SUB. 7'!D$14 -> 0 | F63: ='SUB. 7'!E$14 -> 0 | G63: ='SUB. 7'!F$14 -> 0 | H63: ='SUB. 7'!G$14 -> 0 | I63: ='SUB. 7'!H$14 -> 0 | J63: ='SUB. 7'!I$14 -> 0 | K63: ='SUB. 7'!J$14 -> 0
B64: 0 | C64: ='SUB. 8'!K$14 -> 0 | D64: ='SUB. 8'!C$14 -> 0 | E64: ='SUB. 8'!D$14 -> 0 | F64: ='SUB. 8'!E$14 -> 0 | G64: ='SUB. 8'!F$14 -> 0 | H64: ='SUB. 8'!G$14 -> 0 | I64: ='SUB. 8'!H$14 -> 0 | J64: ='SUB. 8'!I$14 -> 0 | K64: ='SUB. 8'!J$14 -> 0
B65: 0 | C65: ='SUB. 9'!K$14 -> 0 | D65: ='SUB. 9'!C$14 -> 0 | E65: ='SUB. 9'!D$14 -> 0 | F65: ='SUB. 9'!E$14 -> 0 | G65: ='SUB. 9'!F$14 -> 0 | H65: ='SUB. 9'!G$14 -> 0 | I65: ='SUB. 9'!H$14 -> 0 | J65: ='SUB. 9'!I$14 -> 0 | K65: ='SUB. 9'!J$14 -> 0
B66: 0 | C66: ='SUB. 10'!K$14 -> 0 | D66: ='SUB. 10'!C$14 -> 0 | E66: ='SUB. 10'!D$14 -> 0 | F66: ='SUB. 10'!E$14 -> 0 | G66: ='SUB. 10'!F$14 -> 0 | H66: ='SUB. 10'!G$14 -> 0 | I66: ='SUB. 10'!H$14 -> 0 | J66: ='SUB. 10'!I$14 -> 0 | K66: ='SUB. 10'!J$14 -> 0
B67: 0 | C67: ='SUB. 11'!K$14 -> 0 | D67: ='SUB. 11'!C$14 -> 0 | E67: ='SUB. 11'!D$14 -> 0 | F67: ='SUB. 11'!E$14 -> 0 | G67: ='SUB. 11'!F$14 -> 0 | H67: ='SUB. 11'!G$14 -> 0 | I67: ='SUB. 11'!H$14 -> 0 | J67: ='SUB. 11'!I$14 -> 0 | K67: ='SUB. 11'!J$14 -> 0
B68: 0 | C68: ='SUB. 12'!K$14 -> 0 | D68: ='SUB. 12'!C$14 -> 0 | E68: ='SUB. 12'!D$14 -> 0 | F68: ='SUB. 12'!E$14 -> 0 | G68: ='SUB. 12'!F$14 -> 0 | H68: ='SUB. 12'!G$14 -> 0 | I68: ='SUB. 12'!H$14 -> 0 | J68: ='SUB. 12'!I$14 -> 0 | K68: ='SUB. 12'!J$14 -> 0
B69: 0 | C69: ='SUB. Extrativista'!K$14 -> 0 | D69: ='SUB. Extrativista'!C$14 -> 0 | E69: ='SUB. Extrativista'!D$14 -> 0 | F69: ='SUB. Extrativista'!E$14 -> 0 | G69: ='SUB. Extrativista'!F$14 -> 0 | H69: ='SUB. Extrativista'!G$14 -> 0 | I69: ='SUB. Extrativista'!H$14 -> 0 | J69: ='SUB. Extrativista'!I$14 -> 0 | K69: ='SUB. Extrativista'!J$14 -> 0
B70: Agroecossistema | C70: =SUM(C57:C69) -> 8543.5 | D70: 2505 | E70: 4843.5 | F70: 907 | G70: 288 | H70: 0 | I70: 0 | J70: 3412 | K70: 5131.5
B72: Tabela 06: Indicadores de Produtividade do Trabalho no Agroecossistema e nos seus Subsistemas
B73: Subsistema | C73: VA Mulher | D73: VA Homem | E73: VA Jovens | F73: VA Total Mulheres | G73: VA Total Homens | H73: VA Autoconsumo / UTF | L73: VA Mercantil / UTF | P73: Produtividade do Trabalho I (VA/HT) | Q73: Produtividade do Trabalho II (VA/UTF) | R73: Intensidade de Ocupação do trabalho por Área (Área/UTF) | S73: Renda Agrícola / HT
H75: Mulher | I75: % | J75: Homem | K75: % | L75: Mulher | M75: % | N75: Homem | O75: %
B76: =B37 -> Bovino | C76: =IF(D37=0,"",D57/C57*D37) -> 460.9841906 | D76: =IF(D37=0,"",E57/C57*D37) -> 6453.778668 | E76: =IF(D37=0,"",(F57+G57)/C57*D37) -> 1593.237141 | F76: =IF(D37=0,"",J57/C57*D37) -> 1326.75039 | G76: =IF(D37=0,"",K57/C57*D37) -> 7181.24961 | H76: =IF(E17=0,"",E17/(D17+E17)*(J57/C57)*D37/Agroecossistema!K$21) -> 10.31517561 | I76: =IF(H76=0,"",H76/(J$89+H$89)) -> 0.005510449338 | J76: =IF(E17=0,"",E17/(D17+E17)*(K57/C57)*D37/Agroecossistema!L$21) -> 72.58230847 | K76: =J76/(J$89+H$89) -> 0.03877404989 | L76: =IF(D17=0,"",D17/(D17+E17)*(J57/C57)*D37/Agroecossistema!K$21) -> 499.9734358 | M76: =L76/(N$89+L$89) ->  | N76: =IF(D17=0,"",D17/(D17+E17)*(K57/C57)*D37/Agroecossistema!L$21) -> 3518.042497 | O76: =N76/(N$89+L$89) ->  | P76: =IF(D37=0,"",D37/C57) -> 2.52594077 | Q76: =IF(D37=0,"0",D37/Agroecossistema!M$21) -> 1849.565217 | R76: =C17/Agroecossistema!M$21 -> 0.9869565217 | S76: =IF(F37=0,"",F37/C57) -> 2.52594077
B77: Suino | C77: 3633.905817 | D77: 3633.905817 | E77: 1842.188366 | F77: 5476.094183 | G77: 3633.905817 | H77: =IF(E18=0,"",E18/(D18+E18)*(J58/C58)*D38/Agroecossistema!K$21) -> 217.1329969 | I77: =IF(H77=0,"",H77/(J$89+H$89)) -> 0.1159941842 | J77: =IF(E18=0,"",E18/(D18+E18)*(K58/C58)*D38/Agroecossistema!L$21) -> 187.3147328 | K77: 0.1000650289 | L77: =IF(D18=0,"",D18/(D18+E18)*(J58/C58)*D38/Agroecossistema!K$21) -> 1889.057073 | N77: =IF(D18=0,"",D18/(D18+E18)*(K58/C58)*D38/Agroecossistema!L$21) -> 1629.638176 | P77: 20.18836565 | Q77: =IF(D38=0,"0",D38/Agroecossistema!M$21) -> 1980.434783 | R77: =C18/Agroecossistema!M$21 -> 0.002173913043 | S77: 20.18836565
B78: Ovino | C78: 72 | D78: 72 | E78: 36 | F78: 108 | G78: 72 | H78: =IF(E19=0,"",E19/(D19+E19)*(J59/C59)*D39/Agroecossistema!K$21) ->  | I78: =IF(H78=0,"",H78/(J$89+H$89)) ->  | J78: =IF(E19=0,"",E19/(D19+E19)*(K59/C59)*D39/Agroecossistema!L$21) ->  | L78: =IF(D19=0,"",D19/(D19+E19)*(J59/C59)*D39/Agroecossistema!K$21) -> 41.53846154 | N78: =IF(D19=0,"",D19/(D19+E19)*(K59/C59)*D39/Agroecossistema!L$21) -> 36 | P78: 0.3945205479 | Q78: =IF(D39=0,"0",D39/Agroecossistema!M$21) -> 39.13043478 | R78: =C19/Agroecossistema!M$21 -> 0.9869565217 | S78: 0.3945205479
B79: Aves | C79: 1757.948718 | D79: 0 | E79: 439.4871795 | F79: 2197.435897 | G79: 0 | H79: =IF(E20=0,"",E20/(D20+E20)*(J60/C60)*D40/Agroecossistema!K$21) -> 764.1241793 | I79: =IF(H79=0,"""",H79/(J$89+H$89)) -> 0.4082012501 | J79: =IF(E20=0,"",E20/(D20+E20)*(K60/C60)*D40/Agroecossistema!L$21) -> 0 | K79: 0 | L79: =IF(D20=0,"",D20/(D20+E20)*(J60/C60)*D40/Agroecossistema!K$21) -> 81.04347356 | N79: =IF(D20=0,"",D20/(D20+E20)*(K60/C60)*D40/Agroecossistema!L$21) -> 0 | P79: 4.816297857 | Q79: =IF(D40=0,"0",D40/Agroecossistema!M$21) -> 477.703456 | R79: =C20/Agroecossistema!M$21 -> 0.9869565217 | S79: 4.816297857
B80: Lavoura Milho e palma | C80: -91.31403118 | D80: -142.5389755 | E80: -16.14699332 | F80: -107.4610245 | G80: -142.5389755 | H80: =IF(E21=0,"",E21/(D21+E21)*(J61/C61)*D41/Agroecossistema!K$21) -> -8.266232654 | I80: =IF(H80=0,"",H80/(J$89+H$89)) -> -0.00441588762 | J80: =IF(E21=0,"",E21/(D21+E21)*(K61/C61)*D41/Agroecossistema!L$21) -> -14.25389755 | K80: -0.007614546113 | L80: =IF(D21=0,"",D21/(D21+E21)*(J61/C61)*D41/Agroecossistema!K$21) -> -33.06493062 | N80: =IF(D21=0,"",D21/(D21+E21)*(K61/C61)*D41/Agroecossistema!L$21) -> -57.0155902 | P80: -0.07423904974 | Q80: =IF(D41=0,"0",D41/Agroecossistema!M$21) -> -54.34782609 | R80: =C21/Agroecossistema!M$21 -> 0.2173913043 | S80: -0.2702301411
B81: Quintal - frutas e medicinais | C81: 1368.75 | D81: 22.5 | E81: 273.75 | F81: 1642.5 | G81: 22.5 | H81: =IF(E22=0,"",E22/(D22+E22)*(J62/C62)*D42/Agroecossistema!K$21) -> 631.7307692 | I81: 0.3374756312 | J81: =IF(E22=0,"",E22/(D22+E22)*(K62/C62)*D42/Agroecossistema!L$21) -> 11.25 | K81: 0.006009840008 | L81: =IF(D22=0,"",D22/(D22+E22)*(J62/C62)*D42/Agroecossistema!K$21) ->  | N81: =IF(D22=0,"",D22/(D22+E22)*(K62/C62)*D42/Agroecossistema!L$21) ->  | P81: 3.75 | Q81: =IF(D42=0,"0",D42/Agroecossistema!M$21) -> 361.9565217 | R81: =C22/Agroecossistema!M$21 -> 0.0347826087 | S81: 3.75
B82: 0 | H82: =IF(E23=0,"",E23/(D23+E23)*(J63/C63)*D43/Agroecossistema!K$21) ->  | I82: =IF(H82=0,"",H82/(J$89+H$89)) ->  | J82: =IF(E23=0,"",E23/(D23+E23)*(K63/C63)*D43/Agroecossistema!L$21) ->  | L82: =IF(D23=0,"",D23/(D23+E23)*(J63/C63)*D43/Agroecossistema!K$21) ->  | N82: =IF(D23=0,"",D23/(D23+E23)*(K63/C63)*D43/Agroecossistema!L$21) ->  | Q82: =IF(D43=0,"0",D43/Agroecossistema!M$21) -> 0 | R82: =C23/Agroecossistema!M$21 -> 0
B83: 0 | H83: =IF(E24=0,"",E24/(D24+E24)*(J64/C64)*D44/Agroecossistema!K$21) ->  | J83: =IF(E24=0,"",E24/(D24+E24)*(K64/C64)*D44/Agroecossistema!L$21) ->  | L83: =IF(D24=0,"",D24/(D24+E24)*(J64/C64)*D44/Agroecossistema!K$21) ->  | N83: =IF(D24=0,"",D24/(D24+E24)*(K64/C64)*D44/Agroecossistema!L$21) ->  | Q83: =IF(D44=0,"0",D44/Agroecossistema!M$21) -> 0 | R83: =C24/Agroecossistema!M$21 -> 0
B84: 0 | H84: =IF(E25=0,"",E25/(D25+E25)*(J65/C65)*D45/Agroecossistema!K$21) ->  | J84: =IF(E25=0,"",E25/(D25+E25)*(K65/C65)*D45/Agroecossistema!L$21) ->  | L84: =IF(D25=0,"",D25/(D25+E25)*(J65/C65)*D45/Agroecossistema!K$21) ->  | N84: =IF(D25=0,"",D25/(D25+E25)*(K65/C65)*D45/Agroecossistema!L$21) ->  | Q84: =IF(D45=0,"0",D45/Agroecossistema!M$21) -> 0 | R84: =C25/Agroecossistema!M$21 -> 0
B85: 0 | H85: =IF(E26=0,"",E26/(D26+E26)*(J66/C66)*D46/Agroecossistema!K$21) ->  | J85: =IF(E26=0,"",E26/(D26+E26)*(K66/C66)*D46/Agroecossistema!L$21) ->  | L85: =IF(D26=0,"",D26/(D26+E26)*(J66/C66)*D46/Agroecossistema!K$21) ->  | N85: =IF(D26=0,"",D26/(D26+E26)*(K66/C66)*D46/Agroecossistema!L$21) ->  | Q85: =IF(D46=0,"0",D46/Agroecossistema!M$21) -> 0 | R85: =C26/Agroecossistema!M$21 -> 0
B86: 0 | H86: =IF(E27=0,"",E27/(D27+E27)*(J67/C67)*D47/Agroecossistema!K$21) ->  | J86: =IF(E27=0,"",E27/(D27+E27)*(K67/C67)*D47/Agroecossistema!L$21) ->  | L86: =IF(D27=0,"",D27/(D27+E27)*(J67/C67)*D47/Agroecossistema!K$21) ->  | N86: =IF(D27=0,"",D27/(D27+E27)*(K67/C67)*D47/Agroecossistema!L$21) ->  | Q86: =IF(D47=0,"0",D47/Agroecossistema!M$21) -> 0 | R86: =C27/Agroecossistema!M$21 -> 0
B87: 0 | H87: =IF(E28=0,"",E28/(D28+E28)*(J68/C68)*D48/Agroecossistema!K$21) ->  | J87: =IF(E28=0,"",E28/(D28+E28)*(K68/C68)*D48/Agroecossistema!L$21) ->  | L87: =IF(D28=0,"",D28/(D28+E28)*(J68/C68)*D48/Agroecossistema!K$21) ->  | N87: =IF(D28=0,"",D28/(D28+E28)*(K68/C68)*D48/Agroecossistema!L$21) ->  | Q87: =IF(D48=0,"0",D48/Agroecossistema!M$21) -> 0 | R87: =C28/Agroecossistema!M$21 -> 0
B88: 0 | H88: =IF(E29=0,"",E29/(D29+E29)*(J69/C69)*D49/Agroecossistema!K$21) ->  | J88: =IF(E29=0,"",E29/(D29+E29)*(K69/C69)*D49/Agroecossistema!L$21) ->  | L88: =IF(D29=0,"",D29/(D29+E29)*(J69/C69)*D49/Agroecossistema!K$21) ->  | N88: =IF(D29=0,"",D29/(D29+E29)*(K69/C69)*D49/Agroecossistema!L$21) ->  | Q88: =IF(D49=0,"0",D49/Agroecossistema!M$21) -> 2.173913043e-05 | R88: =C29/Agroecossistema!M$21 -> 0
B89: Agroecossistema | C89: =SUM(C76:C88) ->  | H89: 1615.036888 | I89: 0.8627656273 | J89: =SUM(J76:J88) -> 256.8931438 | K89: 0.1372343727 | L89: =SUM(L76:L88) ->  | N89: =SUM(N76:N88) ->  | P89: =IF(D51=0,"",D51/C70) -> 2.506049745 | Q89: =IF(D51=0,"0",D51/Agroecossistema!M$21) -> 4654.442608 | R89: =C31/Agroecossistema!M$21 -> 1.52173913 | S89: =IF(F51=0,"",F51/C70) -> 2.32345479

Sheet Indicadores II
B3: USO DOS TEMPOS E REPARTIÇÃO PROPORCIONAL DO VALOR AGREGADO SEGUNDO SEXO E ESFERAS DE OCUPAÇÃO ECONÔMICA
B5: Tabela 07: Tempos totais e parciais de ocupação efetiva (HT) e ocupação proporcional (% UTC) de diferentes segmentos do NSGA nas diferentes esferas de trabalho
B6: Esferas de Ocupação | C6: Tempo de Ocupação Efetiva HT/Ano | L6: Equivalente Unidade de Trabalho Contratada (UTC)
C9: Mulher | D9: Homem | E9: Jovens Mulheres | F9: Jovens Homens | G9: Outras | H9: Outros | I9: Total Mulheres | J9: Total Homens | K9: Total Geral | L9: Total Mulheres | M9: Total Homens | N9: Total Geral
B10: Mercantil e Autoconsumo | C10: ='Indicadores I'!D70 -> 2505 | D10: ='Indicadores I'!E70 -> 4843.5 | E10: ='Indicadores I'!F70 -> 907 | F10: ='Indicadores I'!G70 -> 288 | G10: ='Indicadores I'!H70 -> 0 | H10: ='Indicadores I'!I70 -> 0 | I10: ='Indicadores I'!J70 -> 3412 | J10: ='Indicadores I'!K70 -> 5131.5 | K10: ='Indicadores I'!C70 -> 8543.5 | L10: =$I$14/$I$22*I10/$I$14/2105 -> 0.3998125146 | M10: =$J$14/$J$22*J10/$J$14/2105 -> 0.9639335024 | N10: =$K$14/$K$22*K10/$K$14/2105 -> 0.6165253473
B11: Doméstico e de Cuidados | C11: =Agroecossistema!C27 -> 2920 | D11: =Agroecossistema!D27 -> 192 | E11: =Agroecossistema!E27 -> 2190 | F11: =Agroecossistema!F27 -> 0 | G11: =Agroecossistema!G27 -> 0 | H11: =Agroecossistema!H27 -> 0 | I11: =C11+E11+G11 -> 5110 | J11: 192 | K11: =Agroecossistema!K27 -> 5302 | L11: =$I$14/$I$22*I11/$I$14/2105 -> 0.5987813452 | M11: =$J$14/$J$22*J11/$J$14/2105 -> 0.0360664976 | N11: =$K$14/$K$22*K11/$K$14/2105 -> 0.3826086957
B12: Participação Social | C12: =Agroecossistema!C28 -> 12 | D12: =Agroecossistema!D28 -> 0 | E12: =Agroecossistema!E28 -> 0 | F12: =Agroecossistema!F28 -> 0 | G12: =Agroecossistema!G28 -> 0 | H12: =Agroecossistema!H28 -> 0 | I12: 12 | J12: 0 | K12: =Agroecossistema!K28 -> 12 | L12: =$I$14/$I$22*I12/$I$14/2105 -> 0.001406140145 | M12: =$J$14/$J$22*J12/$J$14/2105 -> 0 | N12: =$K$14/$K$22*K12/$K$14/2105 -> 0.000865957063
B13: Pluriatividade | C13: =Agroecossistema!C29 -> 0 | D13: =Agroecossistema!D29 -> 0 | E13: =Agroecossistema!E29 -> 0 | F13: =Agroecossistema!F29 -> 0 | G13: =Agroecossistema!G29 -> 0 | H13: =Agroecossistema!H29 -> 0 | I13: 0 | J13: 0 | K13: =Agroecossistema!K29 -> 0 | L13: =$I$14/$I$22*I13/$I$14/2105 -> 0 | M13: =$J$14/$J$22*J13/$J$14/2105 -> 0 | N13: =$K$14/$K$22*K13/$K$14/2105 -> 0
B14: TOTAL (A) | C14: =C10+C11+C12+C13 -> 5437 | D14: 5035.5 | E14: 3097 | F14: 288 | G14: 0 | H14: 0 | I14: =SUM(I10:I13) -> 8534 | J14: =SUM(J10:J13) -> 5323.5 | K14: =SUM(K10:K13) -> 13857.5 | L14: =$I$14/$I$22*I14/$I$14/2105 -> 1 | M14: =$J$14/$J$22*J14/$J$14/2105 -> 1 | N14: =$K$14/$K$22*K14/$K$14/2105 -> 1
B16: Tabela 08: Composição do NSGA e dedicação de tempo de seus membros à gestão do agroecossistema
C17: Composição do NSGA e Tempos Equivalentes de Ocupação
C19: Mulher | D19: Homem | E19: Jovens Mulheres | F19: Jovens Homens | G19: Outras | H19: Outros | I19: Total Mulheres | J19: Total Homens | K19: Total Geral | L19: Crianças
B20: Composição do NSGA | C20: =Agroecossistema!D20 -> 1 | D20: =Agroecossistema!E20 -> 1 | E20: =Agroecossistema!F20 -> 7 | F20: =Agroecossistema!G20 -> 6 | G20: =Agroecossistema!H20 -> 0 | H20: =Agroecossistema!I20 -> 0 | I20: =Agroecossistema!K20 -> 8 | J20: =Agroecossistema!L20 -> 7 | K20: =Agroecossistema!M20 -> 15 | L20: =Agroecossistema!J20 -> 0
B21: Unidades de Trabalho Familiar | C21: =Agroecossistema!D23 -> 1 | D21: =Agroecossistema!E23 -> 1 | E21: =Agroecossistema!F23 -> 1.6 | F21: =Agroecossistema!G23 -> 1 | G21: =Agroecossistema!H23 -> 0 | H21: =Agroecossistema!I23 -> 0 | I21: =Agroecossistema!K23 -> 2.6 | J21: =Agroecossistema!L23 -> 2 | K21: =Agroecossistema!M23 -> 4.6
B22: Equivalente Unidade de Trabalho Contratada (UTC) | C22: =C14/2105 -> 2.582897862 | D22: =D14/2105 -> 2.39216152 | E22: 1.471258907 | F22: 0.1368171021 | G22: 0 | H22: 0 | I22: 4.05415677 | J22: 2.528978622 | K22: 6.583135392
B23: Tempos médio ocupado por dia (HT/Dia) | C23: =C14/365 -> 14.89589041 | D23: =D14/365 -> 13.79589041 | E23: 8.484931507 | F23: 0.7890410959 | G23: 0 | H23: 0 | I23: 23.38082192 | J23: 14.58493151 | K23: 37.96575342
B25: Tabela 09: Equivalência do trabalho anual do NSGA em jornadas de oito horas
B26: Esferas de Ocupação | C26: Equivalência Emprego - Dias Trabalhados
C27: Mulher | D27: Homem | E27: Jovens Mulheres | F27: Jovens Homens | G27: Outras | H27: Outros | I27: Total Mulheres | J27: Total Homens | K27: Total Geral | L27: Total UTFs
L28: Mulheres | M28: % | N28: Homens | O28: %
B29: Mercantil e Autoconsumo | C29: =C10/8 -> 313.125 | D29: 605.4375 | E29: 113.375 | F29: 36 | G29: 0 | H29: 0 | I29: 426.5 | J29: 641.4375 | K29: 1067.9375 | L29: =I29/Agroecossistema!K$21 -> 164.0384615 | M29: =L29/(L$33+N$33) -> 0.2207764057 | N29: =J29/Agroecossistema!L$21 -> 320.71875 | O29: =N29/(L$33+N$33) -> 0.4316495789
B30: Doméstico e de Cuidados | C30: =C11/8 -> 365 | D30: 24 | E30: 273.75 | F30: 0 | G30: 0 | H30: 0 | I30: 638.75 | J30: 24 | K30: 662.75 | L30: =I30/Agroecossistema!K$21 -> 245.6730769 | M30: =L30/(L$33+N$33) -> 0.3306469616 | N30: =J30/Agroecossistema!L$21 -> 12 | O30: =N30/(L$33+N$33) -> 0.01615058349
B31: Participação Social | C31: =C12/8 -> 1.5 | D31: 0 | E31: 0 | F31: 0 | G31: 0 | H31: 0 | I31: 1.5 | J31: 0 | K31: 1.5 | L31: =I31/Agroecossistema!K$21 -> 0.5769230769 | M31: =L31/(L$33+N$33) -> 0.0007764703599 | N31: =J31/Agroecossistema!L$21 -> 0 | O31: =N31/(L$33+N$33) -> 0
B32: Pluriatividade | C32: =C13/8 -> 0 | D32: 0 | E32: 0 | F32: 0 | G32: 0 | H32: 0 | I32: 0 | J32: 0 | K32: 0 | L32: =I32/Agroecossistema!K$21 -> 0 | M32: =L32/(L$33+N$33) -> 0 | N32: =J32/Agroecossistema!L$21 -> 0 | O32: =N32/(L$33+N$33) -> 0
B33: Total (C) | C33: =C14/8 -> 679.625 | D33: 629.4375 | E33: 387.125 | F33: 36 | G33: 0 | H33: 0 | I33: 1066.75 | J33: 665.4375 | K33: 1732.1875 | L33: =I33/Agroecossistema!K$21 -> 410.2884615 | M33: =L33/(L$33+N$33) -> 0.5521998376 | N33: =J33/Agroecossistema!L$21 -> 332.71875 | O33: =N33/(L$33+N$33) -> 0.4478001624
B35: Tabela 10: Repartição da renda por esfera de ocupação econômica por gênero e geração
B36: Esferas de Ocupação | C36: Repartição da Renda por Esfera de Trabalho por Gênero e Geração
C37: Mulher | D37: Homem | E37: Jovens Mulheres | F37: Jovens Homens | G37: Outras | H37: Outros | I37: Total Mulheres | J37: Total Homens | K37: Total Geral
B39: Mercantil e Autoconsumo | C39: =IF($K$14=0,"",('Indicadores I'!$C$6+'Indicadores I'!$C$10)*(C10/$K$14)) -> 4369.254351 | D39: =IF($K$14=0,"",('Indicadores I'!$C$6+'Indicadores I'!$C$10)*(D10/$K$14)) -> 8448.097186 | E39: =IF($K$14=0,"",('Indicadores I'!$C$6+'Indicadores I'!$C$10)*(E10/$K$14)) -> 1582.001476 | F39: =IF($K$14=0,"",('Indicadores I'!$C$6+'Indicadores I'!$C$10)*(F10/$K$14)) -> 502.3334344 | G39: =IF($K$14=0,"",('Indicadores I'!$C$6+'Indicadores I'!$C$10)*(G10/$K$14)) -> 0 | H39: =IF($K$14=0,"",('Indicadores I'!$C$6+'Indicadores I'!$C$10)*(H10/$K$14)) -> 0 | I39: =IF($K$14=0,"",('Indicadores I'!$C$6+'Indicadores I'!$C$10)*(I10/$K$14)) -> 5951.255827 | J39: =IF($K$14=0,"",('Indicadores I'!$C$6+'Indicadores I'!$C$10)*(J10/$K$14)) -> 8950.43062 | K39: =IF($K$14=0,"",('Indicadores I'!$C$6+'Indicadores I'!$C$10)*(K10/$K$14)) -> 14901.68645
B40: Doméstico e de Cuidados | C40: =IF($K$14=0,"",('Indicadores I'!$C$6+'Indicadores I'!$C$10)*(C11/$K$14)) -> 5093.102877 | D40: =IF($K$14=0,"",('Indicadores I'!$C$6+'Indicadores I'!$C$10)*(D11/$K$14)) -> 334.8889563 | E40: =IF($K$14=0,"",('Indicadores I'!$C$6+'Indicadores I'!$C$10)*(E11/$K$14)) -> 3819.827157 | F40: =IF($K$14=0,"",('Indicadores I'!$C$6+'Indicadores I'!$C$10)*(F11/$K$14)) -> 0 | G40: =IF($K$14=0,"",('Indicadores I'!$C$6+'Indicadores I'!$C$10)*(G11/$K$14)) -> 0 | H40: =IF($K$14=0,"",('Indicadores I'!$C$6+'Indicadores I'!$C$10)*(H11/$K$14)) -> 0 | I40: =IF($K$14=0,"",('Indicadores I'!$C$6+'Indicadores I'!$C$10)*(I11/$K$14)) -> 8912.930034 | J40: =IF($K$14=0,"",('Indicadores I'!$C$6+'Indicadores I'!$C$10)*(J11/$K$14)) -> 334.8889563 | K40: =IF($K$14=0,"",('Indicadores I'!$C$6+'Indicadores I'!$C$10)*(K11/$K$14)) -> 9247.81899
B41: Participação Social | C41: =IF($K$14=0,"",('Indicadores I'!$C$6+'Indicadores I'!$C$10)*(C12/$K$14)) -> 20.93055977 | D41: =IF($K$14=0,"",('Indicadores I'!$C$6+'Indicadores I'!$C$10)*(D12/$K$14)) -> 0 | E41: =IF($K$14=0,"",('Indicadores I'!$C$6+'Indicadores I'!$C$10)*(E12/$K$14)) -> 0 | F41: =IF($K$14=0,"",('Indicadores I'!$C$6+'Indicadores I'!$C$10)*(F12/$K$14)) -> 0 | G41: =IF($K$14=0,"",('Indicadores I'!$C$6+'Indicadores I'!$C$10)*(G12/$K$14)) -> 0 | H41: =IF($K$14=0,"",('Indicadores I'!$C$6+'Indicadores I'!$C$10)*(H12/$K$14)) -> 0 | I41: =IF($K$14=0,"",('Indicadores I'!$C$6+'Indicadores I'!$C$10)*(I12/$K$14)) -> 20.93055977 | J41: =IF($K$14=0,"",('Indicadores I'!$C$6+'Indicadores I'!$C$10)*(J12/$K$14)) -> 0 | K41: =IF($K$14=0,"",('Indicadores I'!$C$6+'Indicadores I'!$C$10)*(K12/$K$14)) -> 20.93055977
B42: Pluriatividade | C42: =IF($K$14=0,"",('Indicadores I'!$C$6+'Indicadores I'!$C$10)*(C13/$K$14)) -> 0 | D42: =IF($K$14=0,"",('Indicadores I'!$C$6+'Indicadores I'!$C$10)*(D13/$K$14)) -> 0 | E42: =IF($K$14=0,"",('Indicadores I'!$C$6+'Indicadores I'!$C$10)*(E13/$K$14)) -> 0 | F42: =IF($K$14=0,"",('Indicadores I'!$C$6+'Indicadores I'!$C$10)*(F13/$K$14)) -> 0 | G42: =IF($K$14=0,"",('Indicadores I'!$C$6+'Indicadores I'!$C$10)*(G13/$K$14)) -> 0 | H42: =IF($K$14=0,"",('Indicadores I'!$C$6+'Indicadores I'!$C$10)*(H13/$K$14)) -> 0 | I42: =IF($K$14=0,"",('Indicadores I'!$C$6+'Indicadores I'!$C$10)*(I13/$K$14)) -> 0 | J42: =IF($K$14=0,"",('Indicadores I'!$C$6+'Indicadores I'!$C$10)*(J13/$K$14)) -> 0 | K42: =IF($K$14=0,"",('Indicadores I'!$C$6+'Indicadores I'!$C$10)*(K13/$K$14)) -> 0
B43: Total (B) | C43: =IF($K$14=0,"",('Indicadores I'!$C$6+'Indicadores I'!$C$10)*(C14/$K$14)) -> 9483.287788 | D43: =IF($K$14=0,"",('Indicadores I'!$C$6+'Indicadores I'!$C$10)*(D14/$K$14)) -> 8782.986142 | E43: =IF($K$14=0,"",('Indicadores I'!$C$6+'Indicadores I'!$C$10)*(E14/$K$14)) -> 5401.828633 | F43: =IF($K$14=0,"",('Indicadores I'!$C$6+'Indicadores I'!$C$10)*(F14/$K$14)) -> 502.3334344 | G43: =IF($K$14=0,"",('Indicadores I'!$C$6+'Indicadores I'!$C$10)*(G14/$K$14)) -> 0 | H43: =IF($K$14=0,"",('Indicadores I'!$C$6+'Indicadores I'!$C$10)*(H14/$K$14)) -> 0 | I43: =IF($K$14=0,"",('Indicadores I'!$C$6+'Indicadores I'!$C$10)*(I14/$K$14)) -> 14885.11642 | J43: =IF($K$14=0,"",('Indicadores I'!$C$6+'Indicadores I'!$C$10)*(J14/$K$14)) -> 9285.319577 | K43: =IF($K$14=0,"",('Indicadores I'!$C$6+'Indicadores I'!$C$10)*(K14/$K$14)) -> 24170.436

Sheet Diagrama SÍntese
C2: Diagrama síntese dos fluxos econômico-ecológicos do agroecossistema
L14: ='Indicadores I'!L51 -> 3.256423218
F17: ='Indicadores I'!O31 -> 5729.230769 | Q17: ='Indicadores I'!D31 -> 18656.8001
I24: =F17/(F17+F30+F42) -> 0.3248796859
F30: ='TG Grau Merc.'!N21 -> 10080.7 | Q30: ='Indicadores I'!E31 -> 4410.2
L32: =F30+Q30+Q42+F42 -> 18828.56667
F42: =GETPIVOTDATA("Soma de Entrada serviços e produtos ",'TD ERS para Diagrama'!$A$3) -> 1825 | Q42: ='Indicadores I'!F31 -> 2512.666667

Sheet Gráficos Renda
B2: Gráficos Renda
O4: Após inserir dados clique na Guia acima opção "DADOS", comando "Atualizar Tudo"
M191: 1 | N191: ='Indicadores I'!B17 -> Bovino
M192: 2 | N192: ='Indicadores I'!B18 -> Suino
M193: 3 | N193: ='Indicadores I'!B19 -> Ovino
M194: 4 | N194: ='Indicadores I'!B20 -> Aves
M195: 5 | N195: ='Indicadores I'!B21 -> Lavoura Milho e palma
M196: 6 | N196: ='Indicadores I'!B22 -> Quintal - frutas e medicinais
M197: 7 | N197: ='Indicadores I'!B23 -> 0
M198: 8 | N198: ='Indicadores I'!B24 -> 0
M199: 9 | N199: ='Indicadores I'!B25 -> 0
M200: 10 | N200: ='Indicadores I'!B26 -> 0
M201: 11 | N201: ='Indicadores I'!B27 -> 0
M202: 12 | N202: ='Indicadores I'!B28 -> 0

Sheet Gráficos Trabalho
B2: Gráficos Trabalho
T4: Após inserir dados clique na Guia acima opção "DADOS", comando "Atualizar Tudo"

Sheet Plan1 (hidden)

Sheet Gráficos reciprocidade
B2: Reciprocidade Ecológica e Social

Sheet MENU
B1: LUME - Método da Análise Econômico-Ecológica de Agroecossistemas
B4: Versão atualizada em 03 de outubro de 2019
E5: Família | F5: : | G5: =Agroecossistema!C4 -> Manoel Inacio/Adenice Vieira | K5: Ano de referência | L5: : | M5: Inicio | N5: Fim
M6: mês/ano | N6: mês/ano
E7: Comunidade | F7: : | G7: =Agroecossistema!C6 -> Tanque de Pedra / Sitio Balaio | M7: =Agroecossistema!P6 -> 2015-11-01 | N7: =Agroecossistema!Q6 -> 2016-11-01
E9: Município | F9: : | G9: =Agroecossistema!C11 -> Nossa Senhora do Glória
E11: Estado | F11: : | G11: =Agroecossistema!C12 -> Sergipe
D13: Entrada de Dados | K13: Consulta indicadores e gráficos
H15: ='SUB. 7'!D6 -> 0
E17: ='SUB. 1'!D6 -> Bovino | H17: ='SUB. 8'!D6 -> 0
E19: ='SUB. 2'!D6 -> Suino | H19: ='SUB. 9'!D6 -> 0
E21: ='SUB. 3'!D6 -> Ovino | H21: ='SUB. 10'!D6 -> 0
E23: ='SUB. 4'!D6 -> Aves | H23: ='SUB. 11'!D6 -> 0
E25: ='SUB. 5'!D6 -> Lavoura Milho e palma | H25: ='SUB. 12'!D6 -> 0
E27: ='SUB. 6'!D6 -> Quintal - frutas e medicinais | H27: ='SUB. Extrativista'!D6 -> 0

Sheet Instruções
D2: Processamento dos dados econômicos
D3: Os dados levantados em campo, correspondentes aos fluxos econômicos identificados na modelização dos agroecossistemas, são lançados e processados nesta planilha eletrônica. Ela está estruturada em duas partes: a primeira destina-se à entrada dos dados (abas verdes); a segunda apresenta tabelas e gráficos elaborados a partir de um conjunto de indicadores da economia do agroecossistema (abas azuis). A planilha conta também com um menu com funções de atalho para facilitar o acesso às demais abas (aba de cor laranja).
D4: Entrada dos dados (abas verdes)
D5: A seção reservada à entrada dos dados econômicos é composta por quatorze abas. Os dados relativos ao conjunto do agroecossistema são lançados na primeira aba da seção (aba verde-escuro). Os dados específicos dos subsistemas são lançados nas demais 13 abas (verde-claro), sendo 12 delas para subsistemas de produção animal e vegetal e uma reservada para as atividades de extrativismo.
D6: Como a planilha cruza um conjunto grande de dados e informações registradas nas diferentes abas e tabelas, é essencial a padronização das unidades e termos empregados para quantificar e designar produtos, insumos e serviços. Variações na unidade de quantificação de um mesmo item em diferentes tabelas da planilha implicarão distorções na geração dos indicadores e gráficos. Embora possam ser empregadas diferentes unidades para um mesmo item na análise de diferentes agroecossistemas (por exemplo, “quilos” ou “sacos” de milho), sugere-se a padronização das unidades em um mesmo território, de forma a permitir análises comparativas entre agroecossistemas. Esse cuidado no preenchimento dos campos também é extensivo à digitação dos termos, já que a planilha não identifica como equivalentes palavras semanticamente idênticas, mas digitadas de forma diferente. Um cuidado especial deve ser observado no uso de maiúsculas e minúsculas (ex.: Ovo e ovo) e singular e plural (Ovo e Ovos).
D7: [1] A Planilha encontra-se disponível em http://aspta.org.br/aspta-temas-de-intervencao/monitoramento-da-transicao-agroecologica-2/.
D8: [1] Assumiu-se na concepção da planilha que o agroecossistema possui um limite máximo de 13 subsistemas. Os subsistemas de produção vegetal e animal exploram um espaço ambiental definido (em hectares) e as atividades extrativistas realizadas em territórios de uso comum são realizadas em espaços físicos variáveis. Por essa razão, a aba reservada às atividades extrativistas se diferencia das abas dedicadas a entrada de dados de subsistemas de produção animal e vegetal.
D9: Agroecossistema (aba verde-escura)
D10: Os campos a seguir devem ser preenchidos na aba reservada à entrada de dados relacionados ao conjunto do agroecossistema.
D11: Núcleo Social de Gestão do Agroecossistema (NSGA)
D12: Caso o agroecossistema considerado seja gerido exclusivamente por uma família, são introduzidos nesse campo os nomes dos principais responsáveis pelas decisões de estão. Caso o agroecossistema seja gerido por uma comunidade (um conjunto de núcleos familiares), mas a análise realizada se refira à economia de apenas uma família integrante dessa comunidade, adota-se o mesmo procedimento.
D13: Caso o agroecossistema seja gerido por uma comunidade e a anális se refira à economia do conjunto da comunidade, introduz-se nesse campo o nome da comunidade.
D14: Comunidade
D15: Nome da comunidade à qual o NSGA está vinculado (caso o NSGA não seja a própria comunidade).
D16: Coordenadas geográficas
D17: Inserir as coordenadas da residência da família ou da sede da comunidade (no formato “graus, minutos e segundos”).
D18: Município
D19: Indicar o nome do município em que se localiza a comunidade.
D20: Estado
D21: Indicar o estado da federação em que se localiza o município.
D22: Ciclo anual de referência
D23: Indicar mês e ano de início e de fim do ciclo econômico abrangido pelos dados econômicos lançados na planilha (o ciclo deve ser necessariamente de 12 meses).
D24: Data da coleta dos dados
D25: Caso o levantamento de dados em campo tenha sido realizado em mais de um dia, indicar a data da última entrevista
D26: Área (em hectares)
D27: Indicar a extensão territorial (em hectares) efetivamente utilizada pelo NSGA para a produção econômica no período considerado. Essa extensão corresponde à soma das áreas próprias com as áreas de terceiros utilizadas no período, além de proporções de áreas comunitárias exploradas pelo NSGA para a produção animal e/ou vegetal. As áreas próprias são aquelas sobre as quais o NSGA tem estabilidade de acesso exclusivo sob os mais variados regimes (propriedade privada, posse, cessão de uso, etc.). Pode compreender diferentes parcelas, mesmo que não contíguas. Áreas de reserva ambiental, em pousio e parcelas do terreno impróprias para a produção vegetal e animal também são consideradas.
D28: As áreas de terceiros ou comunitárias correspondem às extensões de terra utilizadas no período considerado (ou em parte dele) para a produção vegetal e animal. O acesso a áreas de terceiros se dá por meio de regras mercantis (aluguel, arrendamento, comodato, foro, meia, etc.) ou de regras de reciprocidade (cessão, empréstimo temporário etc.). O acesso a áreas comunitárias se faz por meio de regras ou costumes estabelecidos localmente (consuetudinárias).
D29: Embora as áreas comunitárias sejam, por princípio, indivisíveis, para efeito de adequação ao cálculo econômico de um agroecossistema de gestão familiar assumimos as seguintes premissas:
D30: a) caso a área seja ocupada pela família com cultivos anuais, considera-se a área efetivamente ocupada com a lavoura;
D31: b) caso a lavoura seja coletiva, considera-se a fração da área proporcional ao acordo de partilha estabelecido no coletivo;
D32: c) caso a área seja utilizada para pastoreio, sua dimensão é estimada em conjunto com a família e corresponde ao espaço territorial efetivamente explorado pelo seu rebanho.
D33: Um tratamento diferenciado é dado para as áreas de uso comum nas quais são realizadas atividades de extrativismo vegetal, pesca artesanal e/ou caça, ou seja, em espaços ambientais cujo usufruto é compartilhado por uma determinada comunidade (por ex. fundos de pasto, reservas extrativistas, áreas coletivas em assentamentos, rios, lagos, florestas etc.). Embora a apropriação de bens naturais nesses territórios integre organicamente a economia dos NSGA, essas extensões não são contabilizadas na determinação da área do agroecossistema. A identificação das áreas dos subsistemas tem por objetivo permitir a geração de indicadores de intensidade econômica por unidade de área. Ocorre que esse indicador não corresponde à racionalidade econômico-ecológica empregada por comunidades extrativistas. Por essa razão, para que os bens naturais apropriados nessas situações sejam inseridos na contabilidade do agroecossistema, a planilha conta com uma aba específica para o lançamento de dados de subsistemas extrativistas (ver na sequência).
D34: Composição do NSGA
B35: ↑ | D35: Indicar o número de pessoas diretamente dependentes das riquezas geradas no agroecossistema, sejam elas residentes ou não. Essa composição é discriminada por gênero (homem, mulher) e geração (adultos, jovens e crianças). Caso o NSGA seja uma família, são considerados também os parentes e/ou agregados que dependem regularmente das rendas agrícolas geradas. Não são considerados nessa composição os prestadores de serviços remunerados uma vez que seus vínculos com o NSGA são efetivados por meio da venda de serviços. Os membros das famílias que não têm vínculos de trabalho e de consumo com o agroecossistema não são contabilizados. As informações sobre esses membros devem ser registradas no campo “observações”.
D36: » Equivalente em Unidades de Trabalho Familiar (UTF)
D37: O dimensionamento da força de trabalho do NSGA em UTF (ver orientações na página 178) tem por objetivo identificar proporções da renda anual gerada pela contribuição do trabalho de homens, mulheres, adultos e jovens. O trabalho realizado nas esferas de ocupação econômica relacionadas direta ou indiretamente à geração de rendas agrícolas (“mercantil e autoconsumo”, “doméstico” e “participação social”) são lançadas na linha “UTF Agroecossistema” segundo as especificações por gênero e geração. As estimativas em UTFs da força de trabalho alocada em atividades não agrícolas são lançadas na linha “UTF Pluriatividade” segundo as mesmas especificações.
D38: » Tempo estimado de ocupação dos membros do NSGA por esfera de trabalho (horas/ano):
D39: Nesses campos são inseridas as estimativas dos tempos dedicados no período aos trabalhos realizados nas esferas “doméstica”, “participação social” e “pluriatividade”. Os tempos dedicados ao trabalho na esfera “mercantil e autoconsumo” são lançados nas abas reservadas ao lançamento dos dados econômicos dos subsistemas. A distribuição dos tempos de trabalho deve ser feita em relação aos seguintes segmentos do NSGA:
D40: a) Mulher e Homem: Indicar os tempos de trabalho empregados pelo casal responsável pela gestão do agroecossistema, caso o NSGA seja uma família. Essa responsabilidade pode ser assumida por uma só pessoa, caso seja solteira ou viúva. Pode também ser assumida por dois homens ou por duas mulheres.
D41: b) Jovens Mulheres e Jovens Homens: Indicar os tempos de trabalho empregados pelas(os) jovens.
D42: c) Outras e Outros: Indicar aos tempos de trabalho empregados pelas demais pessoas adultas integrantes do NSGA.
D43: d) Total Mulheres e Total Homens: Apresenta automaticamente o somatório dos dados lançados nas colunas anteriores.
D44: » Rendas não agrícolas:
D45: Indicar nessa tabela as rendas não agrícolas auferidas no período anual considerado por todos os membros do NSGA. As rendas não agrícolas originam-se de duas fontes: a) Pluriatividade: corresponde à venda de serviços ou produtos não agrícolas (assalariamento, diárias, empreitadas, turismo rural, artesanato – desde que não elaborado com produtos gerados no agroecossistema, etc.). Artesanatos cujas matérias-primas são oriundas principalmente do agroecossistema são contabilizados como produtos de um subsistema específico. Portanto, geram rendas agrícolas. b) Transferências de renda: direitos sociais – previdência, bolsa família, bolsa de estudo, seguro safra, remessa de parentes, outras.
D46: Essas rendas podem ser obtidas segundo cronogramas regulares, como os ingressos mensais de salários e aposentadorias, ou segundo entradas eventuais, como a venda de serviços em regime de diárias ou de empreitadas. Recomenda-se preencher o campo Observações para que sejam indicados os membros dos NSGA responsáveis pela obtenção das rendas não agrícolas registradas e para que sejam fornecidas informações adicionais sobre a natureza dessas rendas.
D47: » Inventário patrimonial (capital agrário):
D48: O inventário patrimonial corresponde ao levantamento físico e financeiro do capital agrário do agroecossistema, ou seja, dos bens materiais cujos ciclos de reprodução ou de reposição são superiores ao período considerado na análise. A variação do capital agrário no período analisado (ou balanço patrimonial) deve ser contabilizada nos resultados econômicos do ano. Essa cifra é obtida automaticamente após o lançamento dos valores financeiros estimados de cada um dos itens inventariados nos campos correspondentes ao início e ao final do período.
D49: O inventário do capital agrário é organizado em uma tabela subdividida em duas seções principais: capital fundiário e capital fixo. O capital fundiário corresponde ao patrimônio imóvel, ou seja, o capital imobilizado em terras, em infraestruturas, em matas e em plantios perenes. O capital fixo corresponde ao patrimônio móvel e contempla duas categorias: a) capital inanimado (equipamentos) e b) capital vivo (semoventes). Do ponto de vista metodológico, o levantamento do inventário patrimonial é um exercício que comporta alguma complexidade dada a dificuldade de contabilização das unidades de cada item inventariado e a ausência de referenciais de preço de mercado para muitos desses itens. Diante dessa complexidade, busca-se dimensionar o capital agrário de forma aproximativa para que seja possível o estabelecimento de uma visão global da contribuição do ciclo econômico avaliado sobre a construção do capital agrário. O patrimônio é um indicador da base de recursos autocontrolada do agroecossistema. Algumas sugestões metodológicas para o levantamento estimativo dos valores financeiros do capital agrário:
D50: » Capital Fundiário
D51: Terra: Levantar o valor unitário médio de terra equivalente na região (sem considerar as infraestruturas) e multiplicar pelo número de unidades de corrigindo ao final para hectares. Infraestruturas: Estimar o valor de cada infraestrutura integrante do agroecossistema (residência da família, cercas, curral, cisternas, esterqueiras, etc.). Caso não tenham sido instaladas ou desativadas infraestruturas no período considerado, os valores do início devem ser iguais ao do final do período. A depreciação das infraestruturas não é contabilizada financeiramente.
D52: » Capital Fixo
D53: CF Equipamentos: Estimar o valor de cada equipamento que integra o agroecossistema (máquina forrageira, automóvel, microtrator, etc.). Ao final do período, não deve ser descontado o valor da depreciação dos equipamentos. CF Vivo (Semovente): Corresponde aos planteis animais do agroecossistema. Trata-se de um recurso preexistente ao período de referência que poderá ser utilizado em futuros ciclos de produção consumo e venda. Para que o inventário dos planteis animais seja bem elaborado é necessário indicar o número de animais por espécie e categoria de valor. Por exemplo, os bovinos podem ser indicados nas categorias reprodutores (machos), matrizes (fêmeas reprodutoras e produtoras de leite), garrotes (machos de 12 a 24 meses), novilhas (fêmeas de 12 a 24 meses) e bezerros (animais de até um ano).
D54: » Pagamento a terceiros (custos sistêmicos):
D55: Corresponde aos pagamentos efetuados pelo NSGA para a reprodução do conjunto do agroecossistema, ou seja, cujos custos não podem ser atribuídos a nenhum subsistema em específico. Exemplos: terras arrendadas, imposto territorial, assalariamento, diárias, luz, mensalidades de associações, sindicatos e cooperativas, serviços de dívidas, etc. Quando esses itens de custo correspondem à reprodução de subsistemas específicos, os valores deverão ser lançados nas tabelas “pagamento a terceiros” nas abas dos subsistemas correspondentes.
D56: » Estoque de insumos
D57: O domínio de informação por parte das(os) agricultoras(es) sobre os volumes de insumos estocados de um ano para o outro varia consideravelmente em função do tipo de insumo. Além disso, a ausência de preços de mercado de alguns insumos costuma ser uma dificuldade no dimensionamento desses estoques em equivalente monetário. Para lidar com essas dificuldades metodológicas, sugere-se registrar na tabela pelo menos os volumes estocados em infraestruturas específicas para esse fim, como silos de forragem, esterqueiras, bancos de sementes, etc. Embora apresente apenas uma aproximação dos volumes de recursos que passam de um ciclo produtivo para outro, esse dimensionamento parcial é suficiente para dar visibilidade a fluxos econômicos importantes no funcionamento do agroecossistema.
D58: Como metodologia para o levantamento desses dados durante a condução da entrevista, sugere-se estimar primeiro os estoques produzidos no final do período analisado (cujo registro na memória dos entrevistados é mais recente) e em seguida os estoques existentes no final do período anterior.
D59: • Subsistemas (abas verde-claras)
D60: Os campos a seguir devem ser preenchidos nas abas reservadas para a entrada de dados relacionados aos subsistemas.
D61: » Identificação do subsistema:
D62: Indicar os nomes atribuídos a cada subsistema nos campos de identificação na sequência de abas entre o subsistema 1 e o subsistema 13. O subsistema 13 está reservado para a introdução de dados relacionados a atividades extrativistas. Os subsistemas são individualizados como unidades básicas de gestão econômico-ecológica do agroecossistema. Isso significa que correspondem a sistemas de organização do trabalho, não devendo ser entendidos exclusivamente como espaços físicos nem como sistemas técnicos de produção de itens específicos. O processo de trabalho em um subsistema pode ocupar diferentes espaços físicos no decorrer do ano (ver explicação adiante) e gerar diferentes produtos. Por outro lado, um mesmo item pode ser produzido em diferentes subsistemas. Por exemplo: embora possam produzir exatamente os mesmos itens, um roçado próprio e um roçado realizado em parceria com um vizinho devem ser considerados subsistemas independentes, pois são geridos em diferentes processos de trabalho.
D63: » Área do subsistema:
D64: Indicar o espaço físico (em hectares) efetivamente explorado pelo subsistema durante o ciclo econômico analisado. Essa extensão corresponde ao espaço ambiental onde bens e serviços ecológicos são diretamente apropriados para a posterior conversão em bens econômicos. Essa informação é essencial para a determinação de indicadores de intensidade econômica por unidade de área (R$/ha). Alguns cuidados metodológicos relacionados ao dimensionamento das áreas dos subsistemas devem ser observados para que sejam evitadas distorções na análise desses indicadores.
D65: • As áreas de subsistemas de produção vegetal são facilmente dimensionadas já que suas produções econômicas são geradas a partir do uso direto do solo. Nesses subsistemas, as rendas são geradas pela valorização da biomassa produzida pelo processo de fotossíntese (por organismos produtores). Há situações em que as produções vegetais são realizadas em espaços físicos dispersos no agroecossistema. A presença de árvores frutíferas em diferentes áreas dos estabelecimentos rurais é um caso comum dessas situações. Nessas situações, estima-se a área efetivamente ocupada pelas árvores (como se estivessem fisicamente dispostas em um pomar).
D66: • As áreas de subsistemas de produção animal correspondem aos espaços físicos explorados no período considerado (pastos, capineiras, infraestruturas, etc.). Nesses subsistemas, as rendas são geradas pela valorização da biomassa produzida por organismos consumidores de biomassa gerada em outros processos ecológicos. Os animais podem circular em diferentes espaços físicos, indo ao encontro da biomassa que consomem, ou podem ser mantidos em um espaço fixo (onde acessam toda a biomassa consumida). No primeiro caso, a área do subsistema compreende a soma de todos os espaços explorados nos diferentes momentos do ciclo econômico analisado. Essa mobilidade sazonal dos animais faz com que a soma das áreas dos subsistemas frequentemente supere a área total do agroecossistema. No segundo caso, a área do subsistema compreende o espaço ambiental no qual os animais são contidos durante todo o período analisado. Essa regra também é válida para os criatórios confinados em aviários, pocilgas, currais, etc.
D67: OBS - Os subsistemas de confinamento intensivo de animais têm baixos índices de endogeneidade (ver explicação na página 204) já que dependem de alto nível de importação de insumos (matéria e energia) provenientes de outros espaços ambientais. Os ganhos econômicos nessas situações resultam essencialmente das margens entre receitas monetárias e custos monetários por unidade de produto, sendo a atividade gerida segundo uma lógica de economia de escala. Por essa razão, o indicador de intensidade econômica por área é uma informação de baixa relevância para esse tipo de subsistema.
D68: • As áreas não são determinadas no caso de subsistemas extrativistas cuja apropriação dos bens ecológicos é realizada em espaços ambientais de uso comum. Como os territórios de uso comum são espaços físicos indivisíveis do ponto de vista da análise econômica, não cabe a determinação dos indicadores de intensidade por unidade de área. A planilha conta com uma aba específica para a entrada de dados relacionados à economia de subsistemas extrativistas.
D69: » Horas trabalhadas: Introduzir os quantitativos de horas trabalhadas no período considerado no subsistema segundo a divisão social entre os membros do NSGA (por sexo e por geração).
D70: » Produtos e insumos gerados:
D71: Introduzir volumes e preços unitários de todos os produtos e insumos gerados pelo subsistema no decorrer do período analisado. As totalizações de volumes e valores financeiros são automaticamente preenchidas nessa tabela com a introdução de dados e informações nas seguintes colunas: • Item: nome do produto ou do insumo • Unidade: referência de peso, volume ou medida tradicionalmente adotada na região para o item correspondente • Valor unitário: para os produtos adotar preço de venda no mercado; para os insumos adotar preço de compra no mercado • Na coluna “Produtos” indicar quantidades (número de unidades) de venda, de autoconsumo, de trocas/doações, de estoque.
D72: Obs. 1: É necessário considerar o fato de que existem produções consumidas, vendidas ou trocadas/doadas no período analisado que resultam, ao menos em parte, de estoques produzidos em ciclos econômicos precedentes. Conceitualmente, esses estoques representam rendas potenciais resultantes de processos de trabalho realizados antes do período considerado. Esse é o caso típico da venda de bovinos adultos para o abate. O dimensionamento preciso da renda efetivamente gerada pelo trabalho realizado no período analisado é um exercício que requer detalhamento dos da193 dos levantados em campo. Esse investimento é necessário sempre que o objetivo do estudo é detalhar o funcionamento econômico de subsistemas produtores de rendas geradas em ciclos econômicos com duração superior a 12 meses. Caso esse detalhamento não seja necessário, assume-se que as rendas auferidas com a realização econômica desses produtos são resultado do período analisado. Esse procedimento não chega a comprometer a qualidade da análise, já que uma parte do trabalho realizado no período é investida na produção de itens que não serão contabilizados no final do período como renda, mas como estoque de produtos. Há, portanto, algum nível de compensação entre a realização econômica de estoques derivados de ciclos econômicos anteriores (venda, autoconsumo, troca e/ou doação) e a produção de estoques que serão realizados economicamente em ciclos posteriores. É recomendável nesses casos o registro no campo “observações” de uma informação sobre a realização econômica de produtos provenientes de estoques gerados em períodos anteriores.
D73: Obs. 2: Os animais que integram o sistema com funções de reprodução ou como processadores de insumos (vacas e cabras leiteiras, galinhas poedeiras, etc.) não são considerados na categoria “estoque de produtos”.
D74: Obs. 3: Como explicado no item “modelização do agroecossistema”, os produtos gerados em atividades de beneficiamento devem ser contabilizados nessa tabela sempre que as matérias-primas utilizadas sejam oriundas predominantemente de um único subsistema. Esse é o caso, por exemplo, da produção de queijo. Como o principal insumo para essa produção é o leite, o processamento deve ser considerado um trabalho organicamente vinculado ao subsistema de criação (ou qualquer outra designação atribuída a ele). No modelo do agroecossistema, essa vinculação estará representada com a inserção das infraestruturas e equipamentos necessários ao processamento no interior do subsistema. • Na coluna “Insumos” indicar quantidades (número de unidades) de insumos gerados no período (não necessariamente consumidos – parte do volume gerado alimenta os estoques que serão utilizados nos ciclos produtivos subsequentes).
D75: » Consumos intermediários:
D76: Bens de consumo intermediário são os bens econômicos consumidos na produção de outros bens. Para identificar a riqueza gerada na produção dos bens finais (ou valor agregado) é necessário que seja descontado o valor correspondente aos bens consumidos no processo de trabalho. Podem ser produzidos no próprio agroecossistema ou ser adquiridos nos mercados. A tabela está subdividida em duas seções para que essesbens e seus correspondentes valores sejam registrados e processados em separado. Na primeira seção da tabela, inserir dados e informações sobre os bens consumidos de produção própria nas seguintes colunas: • Item: nome dos insumos consumidos no período • Unidade: referência de peso, volume ou medida tradicionalmente adotada na região para o item correspondente • Valor unitário: Adotar preço de compra • Quantidade: Inserir o número de unidades consumidas
D77: Na segunda seção da tabela, inserir dados e informações sobre os bens consumidos adquiridos nos mercados nas seguintes colunas: • Item: Indicar os nomes dos insumos consumidos no período • Unidade: Indicar a referência de peso, volume ou medida tradicionalmente adotada na região para o item correspondente • Valor unitário: Indicar o valor pelo preço de compra • Quantidade: Inserir o número de unidades consumidas • Origem: Identificar a procedência do insumo adquirido. Insumos provenientes de mercados socialmente regulados e gerados com base no trabalho de atores sociais da região geográfica em que o agroecossistema está presente são identificados com a letra “T” (para designar “no território”). Insumos adquiridos em mercados convencionais são identificados com a letra “F” (para designar “fora do território”). Essa distinção da origem social dos insumos comprados tem como função identificar o destino dos valores financeiros desembolsados pelo NSGA. Recursos financeiros utilizados para a compra de insumos em mercados socialmente regulados, cuja origem é identificada como “no território”, remuneram o trabalho de atores locais e permanecem circulando e gerando efeitos multiplicadores na economia regional. Já os recursos empregados para a aquisição de insumos em mercados convencionais (“fora do território”) são drenados para fora da região, significando uma transferência de riqueza para atores externos. Nessa discriminação da origem dos bens intermediários consumidos, é preciso atentar para o fato de que os conceitos de “no território” e “fora do território” se referem à “história social” do insumo e não ao local onde foi comprado. Por exemplo: as sementes adquiridas em um mercado na comunidade serão classificadas como “fora do território” caso sejam provenientes de empresas sementeiras; caso tenham sido produzidas localmente por algum(a) agricultor(a) ou organização sua origem será definida como “no território”.
D78: » Pagamento a terceiros:
D79: Corresponde aos desembolsos efetuados para a remuneração de serviços ou ao pagamento da renda da terra de terceiros. São contabilizados nessa tabela os custos com trabalhadores externos, com assistência técnica, com juros sobre empréstimos contraídos, com o direito de uso de terras de terceiros (sob qualquer regime de acesso – aluguel, meia, arrendamento, etc.).
D80: • Pagamentos a terceiros não relacionados especificamente ao funcionamento econômico-ecológico de um subsistema são assumidos como custos compartilhados pelo conjunto do agroecossistema. Por essa razão, devem ser lançados na aba Agroecossistema.
D81: • Trabalhadores remunerados, mesmo que permanentes, não são considerados membros do NSGA. Por essa razão, o valor dos alimentos fornecidos a esses trabalhadores (caso exista) é contabilizado como parte da remuneração do trabalho.
D82: Inserir dados e informações nas seguintes colunas da tabela: • Serviços/Rendas da terra: Indicar os nomes dos serviços remunerados e rendas pagas no período (aluguel, arrendamento, parceria, etc.)
D83: • Unidade: Indicar a referência tradicionalmente adotada na região para quantificar o serviço
D84: • Valor unitário: Indicar o valor referencial de uma unidade do serviço ou da renda da terra (somente em caso de ser um valor fixo)
D85: • Quantidade: Inserir o número de unidades de serviços prestados ou de área de terceiros utilizada.
D86: Obs.: No caso de uso de áreas de terceiros acessadas em regime de parceria (meia, terça, etc.), o valor pago varia segundo o volume da colheita e os preços de mercado das produções na área.
D87: • Origem: Identificar a origem social dos prestadores de serviços e dos proprietários das terras utilizadas. Pagamentos efetuados a atores sociais da mesma região são identificados com a letra “T” (para designar “no território”). Pagamentos efetuados a atores sociais de fora da região são identificados com a letra “F” (para designar “fora do território”). São exemplos comuns de serviços pagos para agentes econômicos de fora do território: taxas de energia elétrica, taxas bancárias, etc. Essa distinção permite identificar o destino dos recursos financeiros desembolsados para pagamento a terceiros. Recursos empregados para remunerar atores sociais do território permanecerão circulando e gerando efeitos multiplicadores na economia regional. Recursos que remuneram atores de fora do território são drenados para fora da região.
D88: » Entrada de recursos por reciprocidade:
D89: Um conjunto de recursos necessários ao acionamento do processo de trabalho no subsistema pode ser mobilizado por meio de relações de reciprocidade, ou seja, por relações socialmente reguladas na comunidade sem a necessidade da intermediação de dinheiro. Esses recursos compreendem serviços prestados por terceiros ou insumos gerados fora do agroecossistema. Como circulam por intermédio de fluxos não mercantis, esses recursos não são identificados e dimensionados pela economia agrícola convencional, mesmo que sejam indispensáveis ao funcionamento econômico-ecológico do subsistema.
D90: Inserir dados e informações nas seguintes colunas da tabela: • Itens: Indicar os nomes dos recursos mobilizados (serviços ou insumos) • Unidade: Indicar a referência tradicionalmente adotada na região para quantificar o serviço prestado ou insumo utilizado • Valor unitário: Indicar o valor referencial de uma unidade do serviço prestado ou do insumo utilizado • Quantidade: Inserir o número de unidades de serviços prestados ou de insumos utilizados
D91: Indicadores econômicos do agroecossistema (abas azuis)
D92: Um conjunto de sete abas compõe a seção de apresentação de indicadores econômicos do agroecossistema. Esses indicadores, apresentados em formato numérico e gráfico, expressam a riqueza produzida no agroecossistema no período analisado segundo diferentes composições (estoques, rendas brutas e líquidas) e diferentes recortes analíticos (rendas totais e parciais, monetárias e não monetárias, agrícolas e não agrícolas). Os indicadores também expressam a distribuição proporcional das rendas segundo a contribuição proporcional do trabalho realizado pelos diferentes segmentos sociais do NSGA (homens, mulheres, adultos, jovens) nas diferentes esferas de trabalho. Interpretados em conjunto, esses indicadores permitem dar visibilidade a relações sociais de produção e a formas de integração à natureza ocultadas pelas análises econômicas convencionais.
D93: • Aba Quadro Síntese
D94: O quadro síntese apresenta informações gerais e indicadores econômicos agregados mais relevantes do agroecossistema. É automaticamente preenchido a partir da importação de informações e dados de outras abas da planilha. A Figura 29 apresenta a estrutura do Quadro Síntese a partir de informações e dados de um agroecossistema hipotético (os mesmos dados serão apresentados na imagens seguintes relacionadas às demais abas do agroecossistema).
D95: • Aba Indicadores I
D96: Essa aba apresenta seis tabelas de indicadores econômicos em diferentes níveis de agregação. Os indicadores relacionados referem-se tanto aos subsistemas como ao conjunto do agroecossistema e são compostos a partir do processamento dos dados brutos inseridos nas abas de entrada da planilha.
D97: A primeira tabela apresenta a composição da renda do NSGA em valores absolutos e relativos: rendas agrícolas (produções vegetais e animais e extrativismo) e rendas não agrícolas (pluriatividade e transferências de renda). (Tabela 01)
D98: A segunda tabela apresenta uma síntese do inventário patrimonial (capital agrário), identificando os valores do capital fundiário e do capital fixo no início e no final do período, bem como a sua variação em termos absolutos (Tabela 2).
D99: >>Tabela 03: Produto Bruto e Custos de Produção do agroecossistema e de seus subsistemas:
D100: A terceira tabela apresenta a composição total e parcial do Produto Bruto e dos Custos de Produção, indicadores econômicos elaborados a partir de um primeiro nível de agregação dos dados brutos lançados nas abas de alimentação da planilha (Tabela 03). Esses indicadores referem-se ao conjunto do agroecossistema e a cada um dos subsistemas e são apresentados de acordo com a composição a seguir.
D101: • Produto Bruto (PB): Corresponde ao somatório de todos os produtos obtidos no agroecossistema durante o exercício. Compreende os itens: bens da produção vegetal e animal e extrativismo vendidos; bens produzidos e autoconsumidos, estocados, doados ou utilizados para fazer pagamentos em espécie, avaliados pelo preço que seria pago caso comprados nos mercados.
D102: Obs.: Embora a alteração do valor dos rebanhos pela variação do número de animais, do peso ou dos preços nos mercados (variação de inventário do estoque em relação ao exercício anterior) também integre a contabilidade do Produto Bruto, essa variável não está contemplada na análise proposta.
D103: • Consumos Intermediários (CI): Correspondem aos insumos adquiridos nos mercados que são integralmente consumidos no processo produtivo e que se incorporam nos novos produtos (sementes, adubos, ração para os animais, etc.). Esses valores podem ser gastos no território e fora dele.
D104: Obs.: Embora a parcela do capital fixo que sofre desgaste e depreciação pelo uso na produção (instrumentos, ferramentas, motores, instalações, etc.) seja contabilizada no cálculo dos consumos intermediários, esta variável não está contemplada na análise proposta. São duas as razões para essa opção metodológica. Em primeiro lugar, o cálculo linear da depreciação anual com base no tempo de vida útil do capital fixo não corresponde à lógica econômica da agricultura familiar para eventual reposição do bem. Em segundo lugar, a incorporação dos valores da depreciação nos consumos intermediários pode gerar desvios e deformações no curto prazo, com riscos de mascarar os dados reais da economia dos agroecossistemas.
D105: • Pagamento a Terceiros (PT): O pagamento a terceiros corresponde à remuneração monetária de serviços de diaristas, assalariados, arrendamento, juros bancários, impostos etc. Esses valores podem ser gastos no território e fora dele.
D106: • Custos de Produção (CP): Corresponde ao somatório dos valores dos consumos intermediários comprados e o pagamento de serviços de terceiros.
D107: • Custos Sistêmicos: Corresponde a pagamentos de serviços de terceiros não atribuídos especificamente a nenhum subsistema.
D108: >> Tabela 04: Indicadores econômicos do agroecossistema e de seus subsistemas
D109: A quarta tabela apresenta um conjunto de indicadores elaborados a partir de um segundo nível de processamento dos dados brutos do agroecossistema e de seus subsistemas (Tabela )4). São eles:
D110: • Renda Bruta (RB = PB – ES): Corresponde ao somatório dos valores das parcelas da produção vendida, autoconsumida, doada e/ ou trocada. Pode ser também aferida pela dedução do valor dos estoques do produto bruto.
D111: • Valor Agregado (VA= RB – CI): Equivale ao somatório dos valores da produção vendida, autoconsumida, doada e/ou trocada (RB) descontado dos custos relacionados aos consumos intermediários. Pode ser entendido também como a nova riqueza gerada pelo trabalho do NSGA.
D112: • Renda Agrícola (RA = VA – PT): É a parcela do VA efetivamente apropriada pelo NSGA. Corresponde ao Valor Agregado deduzido dos pagamentos de serviços de terceiros (no território ou fora dele), ou seja, a remuneração efetiva do trabalho realizado pelo NSGA.
D113: • Valor Agregado Territorial (VAT = VA – CIF): Corresponde à parcela da nova riqueza criada (VA) que permanence no território, gerando efeitos multiplicadores sobre a economia territorial.
D114: • Índice de Apropriação do Valor Agregado (RA/VA x 100): Equivale à porcentagem do Valor Agregado que o NSGA retém após remunerar serviços de terceiros.
D115: • Índice de Intensidade por Área I (eficiência do trabalho total) (VA/ha): O valor agregado por unidade de área expressa o nível de eficiência ou de intensificação econômica obtido pelo acionamento do conjunto da força de trabalho alocada em atividades produtivas que fazem uso direto do solo do agroecossistema. Portanto, esse indicador não se aplica a duas situações: a) quando o processo de trabalho mobiliza bens naturais em áreas de gestão comunitária e/ou uso compartilhado (rio, pasto apícola, áreas coletivas de agroextrativismo, etc.). Sendo na prática indivisíveis, essas áreas de uso comum não podem ser assimiladas no cálculo da intensificação por unidade de área dos agroecossistemas; b) quando o sistema não faz uso do solo, uma característica comum em criatórios com animais confinados.
D116: • Índice de Intensidade por Área II (eficiência do trabalho do NSGA) (RA/ha): A renda agrícola por unidade de área expressa o nível de eficiência ou de intensificação obtido pela força de trabalho dos membros do NSGA no manejo da base de recursos do agroecossistema. Pela mesma razão antes explicada, este indicador não se aplica a bens naturais mobilizados em áreas de gestão comunitária e/ou uso compartilhado (rio, áreas coletivas, territórios de uso comum etc.).
D117: • Renda Agrícola Monetária (RAM = RA – [autoconsumo + doações recebidas]): É a parcela da renda agrícola resultante da venda da produção.
D118: • Rentabilidade Monetária (RM = RAM/ CI + PT): Equivale à renda agrícola monetária recuperada por unidade de custo monetário investido na produção. O indicador não se aplica quando não existe custo monetário pois a renda é igual ao valor agregado.
D119: • Rentabilidade Monetária Bruta (RMB = RBM/ CI + PT): Equivale à renda bruta monetária recuperada por unidade de custo monetário investido na produção. O indicador não se aplica quando não existe custo monetário pois a renda é igual ao valor agregado.
D120: Índice de Endogeneidade (IE = VA/RB): Equivale à porcentagem da renda bruta correspondente à riqueza efetivamente gerada pelo trabalho executado na gestão do agroecossistema.
D121: Índice de Mercantilização (IM = CP/CPT): Equivale à razão entre os custos produtivos (CI + PT) e o valor total dos recursos mobilizados pelo processo de trabalho (CI + PT + recursos mobilizados por reciprocidade). Indica o grau de dependência do agroecossistema em relação aos mercados de insumos e serviços.
D122: Tabela 05: Número de horas trabalhadas nos subsistemas e no conjunto do agroecossistema segundo os diferentes segmentos do NSGA
D123: A quinta tabela reproduz os dados relacionados ao número de horas trabalhadas nos subsistemas e no conjunto do agroecossistema, discriminando esses quantitativos segundo os diferentes segmentos sociais do NSGA: homem e mulher (correspondem aos pais da família), jovens (homens e mulheres) e outros membros (agregados) (Tabela 05).
D124: >>Tabela 06: Indicadores de produtividade do trabalho realizado nos subsistemas e no conjunto do agroecossistema
D125: A sexta tabela apresenta um conjunto de indicadores relacionados à produtividade do trabalho realizado nos subsistemas e no conjunto do agroecossistema (Tabela 06). As cinco primeiras colunas apresentam a repartição do valor agregado segundo as contribuições proporcionais do tempo trabalho de diferentes segmentos do NSGA (VA Mulher; VA Homem; VA Jovens; VA Total Mulheres; VA Total Homens)
D126: As oito colunas seguintes apresentam o valor agregado correspondente às produções autoconsumidas e às produções mercantilizadas, identificando a contribuição proporcional (absoluta e relativa) do trabalho de homens e mulheres para cada uma delas (VA Autoconsumo/UTF, VA Mercantil/UTF).
D127: A produtividade do trabalho nos subsistemas e no agroecossistema é indicada por meio de dois indicadores nas duas colunas seguintes: o valor agregado por hora trabalhada (VA/HT); o valor agregado por unidade de trabalho familiar (VA/UTF).
D128: A coluna seguinte apresenta o nível de escala, ou seja, do número de trabalhadores por área trabalhada (Área/UTF).
D129: Finalmente, a última coluna da tabela apresenta a renda agrícola por hora trabalhada.
D130: • Aba Indicadores II
D131: Essa aba apresenta três tabelas com indicadores relacionados ao uso do tempo e à repartição proporcional do valor agregado segundo sexo e esferas de ocupação econômica dos membros do NSGA.
D132: >> Tabela 07: Tempos totais e parciais de diferentes segmentos do NSGA nas diferentes esferas de ocupação econômica valor percentual proporcional por Unidade de Trabalho Contratada
D133: A tabela 07 reproduz os dados parciais e totais relacionados ao uso dos tempos (HT/ano) de diferentes segmentos do NSGA (homem, mulher, jovens mulheres, jovens homens, outras, outros, total mulheres, total homens) nas diferentes esferas de ocupação econômica (mercantil e autoconsumo, doméstico e cuidados, participação social e pluriatividade). ???
D134: >>Tabela 08: Composição do NSGA e dedicação de tempo de seus membros à gestão do agroecossistema
D135: >> Tabela 09: Equivalência do trabalho anual do NSGA em jornadas de oito horas
D136: A tabela 09 traduz os dados apresentados na primeira tabela,ou seja, os totais de horas trabalhadas anualmente, em jornadas de trabalho com a duração de 8 horas. Por meio desse artifício, converte-se o total anual de trabalho investido na gestão do agroecossistema em número equivalente de jornadas de trabalho ]ssalariadas.
D137: >>Tabela 10: Repartição da renda por esfera de ocupação econômica por gênero e geração
D138: A tabela 10 apresenta a repartição da renda gerada no agroecossistema por esfera de ocupação econômica por gênero e geração . A repartição por esfera de trabalho é discriminada por segmentos do NSGA (homem, mulher, jovens mulheres, jovens homens, outras, outros, total mulheres, total homens). Os dados apresentados nessa tabela dão visibilidade à contribuição proporcional dos diferentes segmentos do NSGA e do trabalho nas diferentes esferas de ocupações econômicas à geração da riqueza gerada no agroecossistema no período de um ano.
D139: • Aba Diagrama Síntese
D140: A imagem reproduzida na aba Diagrama Síntese representa uma visão agregada dos fluxos econômico-ecológicos no agroecossistema, ou seja, do processo de conversão de recursos em produtos . Do lado dos recursos, são reproduzidos três gráficos de barras empilhadas que representam os equivalentes monetários dos Recursos Produtivos Mercantis (recursos que entram no processo como mercadorias), os Recursos Reproduzidos (insumos produzidos em ciclos produtivos precedentes) e os Recursos Recebidos (recursos mobilizados por meio de relações de reciprocidade na comunidade). Do lado dos produtos, também são reproduzidos três gráficos de barras: Produtos Vendidos (produção comercializada), Produtos Consumidos (autoconsumo pelo NSGA) e Produtos Doados (saída por reciprocidade).
D141: Os Circuitos Mercantilizados representam os fluxos econômico-ecológicos que mobilizam os Recursos Produtivos Mercantis e os Produtos Vendidos e os Circuitos Não Mercantilizados mobilizam os Recursos Reproduzidos, os Recursos Recebidos os Produtos Consumidos e os Produtos Doados.
D142: Duas relações econômicas representadas no diagrama expressam as lógicas de reprodução econômico-ecológica do agroecossistema adotadas pelos NSGA. A primeira se refere ao balanço entre as receitas advindas dos produtos vendidos e as despesas incorridas com a mobilização de fatores de produção nos mercados (recursos produtivos mercantis). Esse balanço, que corresponde à renda agrícola monetária (RAM), varia em função do custo dos recursos mercantis consumidos, da eficiência técnica na conversão dos recursos em produtos e do preço dos produtos comercializados. A rentabilidade monetária, ou seja, o percentual de remuneração do capital financeiro investido na produção (RAM/CI+PT) é um indicador diretamente derivado desse balanço. Embora em qualquer situação esse indicador seja de grande importância na definição das estratégias de reprodução adotadas pelos NSGA, nos agroecossistemas geridos segundo estilos empresariais ele assume um papel central uma vez que seus fluxos econômico-ecológicos são comandados essencialmente pela “lógica dos mercados”, assumindo os circuitos não mercantis menor peso relativo.
D143: A segunda relação corresponde ao balanço entre os recursos produtivo mercantis e os recursos reproduzidos pelo processo de trabalho no agroecossistema (reciprocidade ecológica) e/ou recebidos de terceiros a partir de relações de troca não mercantilizada estabelecidas na comunidade (reciprocidade social). Nos estilos de gestão de maior nível de campesinidade, uma porcentagem relativamente maior de recursos mobilizados para o processo de trabalho é proveniente da base de recursos autocontrolada, o que implica uma maior autonomia em relação aos mercados de insumos e serviços. Esse maior grau relativo de autonomia (ou de dependência) em relação aos mercados de fatores de produção pode ser identificado pelo índice de mercantilização (IM = CP/CPT, onde CP corresponde aos custos dos recursos que entram no processo de produção como mercadorias e CPT ao valor dos recursos produtivos totais, ou seja, a soma do custo das mercadorias com os valores dos recursos mobilizados da base de recursos autocontrolada).
D144: Combinadas, as duas relações expressam diferenças marcantes entre os estilos de gestão econômico-ecológica dos agroecossistemas. Nos estilos dependentes dos mercados (mais empresariais), os índices de mercantilização são maiores (mais próximos de 1), enquanto nos estilos relativamente autônomos e historicamente garantidos (maior campesinidade) os índices de mercantilização tendem a ser menores (mais próximos de 0). O progressivo aumento da base de recursos autocontrolada (em termos quantitativos e qualitativos), bem como do nível de eficiência técnica da conversão dos recursos em produtos são elementos decisivos para o aumento da rentabilidade dos agroecossistemas geridos por lógicas camponesas. Já nos estilos empresariais de gestão, os níveis de rentabilidade do agroecossistema são definidos essencialmente pelo cálculo da relação custo/benefício expressa em termos monetários.
D145: Em resumo: os índices apresentados nesse diagrama são uma expressão sintética dos estilos de gestão do agroecossistema já que refletem lógicas e objetivos distintos no planejamento do processo de trabalho do NSGA. Nos agroecossistemas que apresentam maiores índices de mercantilização (estilos mais empresariais), o planejamento visa predominantemente o alcance de maior eficiência econômica (em termos monetários) no curto prazo. Além de focar as necessidades de consumo imediato dos NSGA, o planejamento nos estilos de gestão de maior campesinidade (menores índices de mercantilização) incorpora também objetivos de médio e longo prazos relacionados à ampliação da base de recursos autocontrolada e ao aprimoramento da eficiência técnica do processo de conversão. Isso implica dizer que a melhoria dos resultados econômicos dos agroecossistemas de maior campesinidade é obtida por trajetórias de desenvolvimento que vinculam organicamente o trabalho produtivo e o trabalho reprodutivo. Em termos analíticos, diz-se que correspondem a trajetórias de intensificação produtiva, ou seja, melhoria nos rendimentos produtivos por objeto de trabalho.
D146: Maiores índices de mercantilização indicam que parte importante do trabalho de reprodução no agroecossistema é externalizado e que a manutenção e a contínua ampliação da base de recursos autocontrolada são um aspecto secundário (senão irrelevante) no planejamento do processo de trabalho. Dada a elevada dependência das relações mercantis, os índices de rentabilidade nesses agroecossistemas costumam variar significativamente em função da alta volatilidade dos mercados de fatores de produção (a montante) e de produtos agrícolas (a jusante). Para compensar índices de rentabilidade relativamente baixos e obter níveis adequados de renda, os NSGA são levados a ingressar em trajetórias de desenvolvimento baseadas na lógica do aumento de escala, isto é, aumentar o número de objetos de trabalho (sobre os conceitos de intensidade e escala ver página 70).
D147: • Aba Gráficos Renda
D148: Essa aba apresenta graficamente os resultados econômicos do conjunto do agroecossistema e de seus subsistemas segundo diferentes indicadores e composições.
D149: O gráfico 1 apresenta a composição da renda total dos NSGA segundo suas origens: transferências de renda (políticas sociais, transferências de parentes, outras); pluriatividade (venda de serviço a terceiros); rendas agrícolas (rendas geradas pelo trabalho de manejo do agroecossistema).
D150: Os gráficos 2 e 3 representam o produto bruto e as rendas produzidas no conjunto do agroecossistema segundo diferentes composições. O primeiro se refere ao produto bruto total e o segundo ao produto bruto proporcional a uma área de um hectare. Nos dois gráficos, os valores estão apresentados em colunas empilhadas sucessivas segundo as seguintes composições:
D151: • produto bruto (coluna 1): corresponde ao valor bruto da produção total realizada no período de um ano;
D152: • estoque + trocas e doações + autoconsumo + venda (coluna 2): apresenta a discriminação do produto bruto segundo as diferentes destinações da produção;
D153: • valor agregado + consumos intermediários (coluna 3): refere-se à discriminação da renda bruta entre a riqueza gerada pelo trabalho do NSGA (VA) e o valor dos insumos adquiridos nos mercados (CI);
D154: • valor agregado territorial + consumos intermediários fora do território (coluna 4): refere-se à discriminação da renda bruta entre a riqueza gerada pelo trabalho (VA) e o valor dos insumos adquiridos nos mercados convencionais (fora do território) (CIFT);
D155: • renda agrícola + custos produtivos (coluna 5): corresponde à discriminação da renda bruta entre a renda agrícola (RA), ou seja, à parcela da renda que efetivamente remunera o trabalho do NSGA, e os custos produtivos (CP), ou seja, os custos com consumos intermediários e serviços de terceiros;
D156: • renda agrícola monetária + custos produtivos (coluna 6): corresponde à discriminação da renda bruta monetária entre a renda agrícola monetária (RAM), ou seja, à parcela que remunera monetariamente o trabalho do NSGA, e os custos produtivos (CP), ou seja, os custos com consumos intermediários e serviços de terceiros (CP)
D157: Os gráficos 4 ao 7 nessa aba apresentam a composição do produto bruto e da renda gerada no agroecossistema e nos seus subsistemas segundo diferentes categorias econômicas. O gráfico 4 representa a composição do produto bruto (PB) segundo os valores produzidos destinados ao estoque, a trocas e doações, ao autoconsumo e à venda. O gráfico 5 apresenta a composição da renda bruta (RB) segundo os valores dos consumos intermediários e do valor agregado. O gráfico 6 apresenta a composição da renda bruta segundo os valores dos consumos intermediários fora do território (CIFT) e do valor agregado territorial (VAT). O gráfico 7 apresenta a composição da renda bruta monetária (RBM) segundo os valores da renda agrícola monetária (RAM) e dos custos produtivos (CP).
D158: Os quatro gráficos seguintes (de 8 a 11) apresentam as diferente produções segundo suas destinações. O gráfico 8 (colunas empilhadas) discrimina o valor das produções destinadas à venda, ao autoconsumo, ao estoque e às doações. O gráfico 9 apresenta a mesma composição do gráfico 8 em formato de pizza. O gráfico 10 (pizza) apresenta a composição das rendas das produções vendidas e o gráfico 11 (pizza) a composição das rendas das produções autoconsumidas.
D159: Os quatro gráficos seguintes (de linha) representam níveis de intensidade de fatores de produção empregados no agroecossistema e em seus subsistemas. As inclinações das seções da linha representam os diferentes níveis de intensidade dos subsistemas correspondentes a cada seção. Nesse sentido, a inclinação da linha imaginária que liga os pontos extremos da curva representa o nível de intensidade do fator de produção (terra ou trabalho) do conjunto do agroecossistema.
D160: O primeiro gráfico apresenta o nível efetivo de intensidade do fator terra, ou seja, a riqueza gerada na área efetivamente trabalhada pelo NSGA.
D161: O segundo gráfico apresenta o nível proporcional de intensidade do fator terra, isto é, a riqueza gerada proporcionalmente a uma área de um hectare.
D162: O terceiro gráfico apresenta o nível de intensidade do fator trabalho, isto é, a riqueza gerada pelo trabalho realizado no agroecossistema e em seus subsistemas.
D163: O quarto gráfico apresenta o nível de intensidade do fator terra por unidade de trabalho, ou seja, a produtividade combinada dos recursos terra e trabalho. Em outros termos, esse gráfico representa a eficiência técnica da conversão de ambos os recursos na produção da riqueza gerada no agroecossistema e nos seus subsistemas .
D164: • Aba Gráficos Trabalho
D165: Por meio de nove gráficos de colunas empilhadas, esta aba apresenta a repartição proporcional do valor agregado gerado no agroecossistema por esfera de ocupação econômica, por gênero e por geração.
D166: O primeiro gráfico apresenta os valores correspondentes à riqueza gerada no agroecossistema pelo trabalho do casal responsável pelo NSGA, distinguindo entre a contribuição proporcional da mulher e do homem nas diferentes esferas de ocupação (aplicável caso o NSGA seja uma família e seja coordenada por um casal formado por um homem e uma mulher).
D167: O segundo gráfico (à direita) apresenta a repartição proporcional da renda gerada por gênero e por esfera de trabalho, distinguindo entre os diferentes grupos que integram o NSGA (homem e mulher - corresponde ao casal responsável pelo NSGA; jovens homens e mulheres; outros - podendo ser idosos, agregados, etc).
D168: O terceiro gráfico apresenta os valores proporcionais da riqueza gerada pelo trabalho das mulheres e homens integrantes do NSGA segundo as esferas de ocupação.
D169: O quarto gráfico apresenta a repartição proporcional da renda por esfera de trabalho e por gênero.
D170: O quinto gráfico apresenta uma visão similar à do gráfico anterior, mas apresentando a alocação proporcional do tempo de trabalho de homens e mulheres integrantes do NSGA às diferentes esferas de ocupação (o gráfico apresenta a proporção dos tempos alocados por mulheres e homens para perfazerem o montante de horas trabalhadas correspondente a uma unidade de trabalho contratada).
D171: O sexto gráfico apresenta a contribuição do tempo de trabalho, em equivalentes de jornadas de oito horas, de homens e de mulheres, de adultos e de jovens, segundo as esferas de trabalho .
D172: O sétimo gráfico apresenta a contribuição proporcional do trabalho de mulheres e homens à geração do valor agregado correspondente à produção autoconsumida do conjunto do agroecossistema e dos seus subsistemas.
D173: O oitavo gráfico apresenta a contribuição proporcional do trabalho de mulheres e homens à geração do valor agregado correspondente à produção mercantilizada do conjunto do agroecossistema e dos seus subsistemas.
D174: O nono gráfico apresenta os dois gráficos anteriores lado a lado, proporcionando uma visualização mais clara sobre a contribuição proporcional do trabalho de mulheres e homens à produção autoconsumida e mercantilizada gerada no conjunto do agroecossistema e nos seus subsistemas.
D175: • Aba Gráficos Reciprocidade
D176: Os valores dos recursos materiais e aos serviços mobilizados para o processo de trabalho sem a intermediação de relações mercantilizadas são apresentadas nos dois gráficos reproduzidos nesta aba segundo os seus equivalentes monetários.
D177: O primeiro gráfico (reciprocidade ecológica) apresenta os valores dos insumos produzidos no agroecossistema a partir da interação recíproca entre o trabalho dos membros do NSGA e o trabalho da natureza. O gráfico é composto por quatro barras correspondentes, respectivamente, aos insumos produzidos e estocados em ciclos de produção anteriores, aos insumos produzidos durante o ciclo anual analisado, aos insumos de produção própria consumidos no ciclo analisado e aos insumos estocados para uso em ciclos produtivos posteriores.
D178: O segundo gráfico (reciprocidade social) apresenta os valores de produtos e serviços intercambiados por meio de relações de reciprocidade comunitária. Apresenta duas barras, sendo a primeira correspondente aos produtos e serviços recebidos de terceiros e a segunda aos produtos e serviços doados.

Sheet Agroecossistema
B2: ENTRADA DE DADOS DO AGROECOSSISTEMA
B4: Família | C4: Manoel Inacio/Adenice Vieira | N4: Ciclo Anual de Referência | P4: Inicio | Q4: Fim
P5: mês/ano | Q5: mês/ano
B6: Comunidade | C6: Tanque de Pedra / Sitio Balaio | P6: 2015-11-01 | Q6: 2016-11-01
D7: graus | E7: minutos | F7: segundos
B8: Coordenadas geográficas | C8: Lat. | N8: Data de Coleta dos dados: | P8: 2016-12-01
C9: Long.
B11: Município | C11: Nossa Senhora do Glória
B12: Estado | C12: Sergipe
B14: Área Total | C14: =C15+C16 -> 7 | D14: Observações
B15: Próprias | C15: 6 | D15: 23 tarefas
B16: Terceiros/comunitária | C16: 1 | D16: ARRENDAMENTO
B19: Composição do NSGA | D19: Mulher | E19: Homem | F19: Jovens Mulheres | G19: Jovens Homens | H19: Outras | I19: Outros | J19: Crianças | K19: Total Mulheres | L19: Total Homens | M19: TOTAL | N19: Observações
D20: 1 | E20: 1 | F20: 7 | G20: 6 | K20: =D20+F20+H20 -> 8 | L20: 7 | M20: =K20+L20+J20 -> 15
B21: Equivalente em Unidades de Trabalho Familiar (UTF) | C21: UTF Agroecossitema | D21: 1 | E21: 1 | F21: 1.6 | G21: 1 | K21: 2.6 | L21: 2 | M21: =E21+D21+G21+F21+I21+H21 -> 4.6
C22: UTF Pluriatividade | K22: 0 | L22: 0 | M22: =E22+D22+G22+F22+I22+H22 -> 0
C23: UTF Total | D23: =D21+D22 -> 1 | E23: 1 | F23: 1.6 | G23: 1 | H23: 0 | I23: 0 | K23: 2.6 | L23: 2 | M23: =E23+D23+G23+F23+I23+H23 -> 4.6
B25: Esferas de ocupação | C25: Tempo estimado de ocupação por esfera de trabalho (Horas/Ano) | L25: Observações
C26: Mulher | D26: Homem | E26: Jovens Mulheres | F26: Jovens Homens | G26: Outras | H26: Outros | I26: TOTAL MULHERS | J26: TOTAL HOMENS | K26: TOTAL
B27: Trabalho doméstico e de cuidados: | C27: =8*365 -> 2920 | D27: =16*12 -> 192 | E27: =6*365 -> 2190 | I27: =C27+E27+G27 -> 5110 | J27: 192 | K27: =SUM(C27:H27) -> 5302
B28: Participação social: | C28: 12 | D28: 0 | E28: 0 | I28: 12 | J28: 0 | K28: =SUM(C28:H28) -> 12 | L28: 1 hora no mês
B29: Pluriatividade: | I29: 0 | J29: 0 | K29: =SUM(C29:H29) -> 0
B30: Total | C30: =SUM(C27:C29) -> 2932 | D30: =SUM(D27:D29) -> 192 | E30: 2190 | F30: 0 | G30: 0 | H30: 0 | I30: 5122 | J30: 192 | K30: 5314
K32: Total
B33: Rendas Não Agrícolas | D33: Pluriatividade | H33: Unidade | I33: Valor Unitário | J33: Qtdade | K33: =SUM(K34:K38) -> 4320 | L33: Observações:
D34: atividades externa | H34: diaria | I34: 30 | J34: =12*12 -> 144 | K34: =I34*J34 -> 4320
K35: =I35*J35 -> 0
K36: =I36*J36 -> 0
K37: =I37*J37 -> 0
K38: =I38*J38 -> 0
D39: Transferências de Renda | K39: =SUM(K40:K44) -> 11440 | L39: Observações:
D40: Aposentadoria rural | H40: mensal | I40: 880 | J40: 12 | K40: =I40*J40 -> 10560
D41: Bolsa família | H41: mensal | I41: 110 | J41: 8 | K41: =I41*J41 -> 880
K42: =I42*J42 -> 0
K43: =I43*J43 -> 0
K44: =I44*J44 -> 0
D45: Total Rendas Não agrícolas | K45: =K33+K39 -> 15760
B48: Inventário Patrimonial (Capital agrário) | D48: Início do Período | H48: Final do Período | K48: Variação no Peróodo | M48: OBSERVAÇÕES
B50: Capital Fundiário | D50: Unidade | E50: Valor Unitário | F50: Qtde | G50: Valor Total | H50: Valor Unitário | I50: Qtde | J50: Valor Total | K50: Qtde | L50: Valor Total
B51: Propriedade | D51: tarefa | E51: 3000 | F51: 23 | G51: =F51*E51 -> 69000 | H51: 3000 | I51: 23 | J51: =I51*H51 -> 69000 | K51: =I51-F51 -> 0 | L51: =J51-G51 -> 0
B52: Casa 1 | D52: Unidade | E52: =300*150 -> 45000 | F52: 1 | G52: 45000 | H52: 45000 | I52: 1 | J52: 45000 | K52: 0 | L52: 0
B53: galinheiro | D53: Unidade | E53: 2500 | F53: 1 | G53: 2500 | H53: 2500 | I53: 1 | J53: 2500 | K53: 0 | L53: 0
B54: Cercas | D54: estacas | E54: 1416 | F54: 4 | G54: 5664 | H54: 1416 | I54: 4 | J54: 5664 | K54: 0 | L54: 0
B55: Aprisco (novo) | D55: Unidade | E55: 2500 | F55: 1 | G55: 2500 | H55: 2500 | I55: 1 | J55: 2500 | K55: 0 | L55: 0
B56: Pocilga | D56: estacas | E56: 2400 | F56: 1 | G56: 2400 | H56: 2400 | I56: 1 | J56: 2400 | K56: 0 | L56: 0
B57: Curral | D57: Unidade | E57: 2000 | F57: 1 | G57: 2000 | H57: 2000 | I57: 1 | J57: 2000 | K57: 0 | L57: 0
B58: Arame | D58: m | E58: 0.5 | F58: 4500 | G58: 2250 | H58: 0.5 | I58: 4500 | J58: 2250 | K58: 0 | L58: 0
G59: =F59*E59 -> 0 | J59: =I59*H59 -> 0 | K59: 0 | L59: 0
G60: 0 | J60: 0 | K60: 0 | L60: 0
G61: 0 | J61: 0 | K61: 0 | L61: 0
G62: 0 | J62: 0 | K62: 0 | L62: 0
G63: 0 | J63: 0 | K63: 0 | L63: 0
G64: 0 | J64: 0 | K64: 0 | L64: 0
G65: 0 | J65: 0 | K65: 0 | L65: 0
B66: Total - Capital Fundiário | G66: =SUM(G51:G65) -> 131314 | J66: =SUM(J51:J65) -> 131314 | L66: =SUM(L51:L65) -> 0
B67: Capital Fixo (CF) | D67: Início do Período | H67: Final do Período | K67: Variação no Peróodo | M67: OBSERVAÇÕES
B68: CF Equipamentos | D68: Unidade | E68: Valor Unitário | F68: Qtde | G68: Valor Total | H68: Valor Unitário | I68: Qtde | J68: Valor Total | K68: Qtde | L68: Valor
B69: Forrageira | D69: Unidade | E69: 1200 | F69: 1 | G69: =F69*E69 -> 1200 | H69: 1200 | I69: 1 | J69: =I69*H69 -> 1200 | K69: =I69-F69 -> 0 | L69: =J69-G69 -> 0
B70: carroça | D70: Unidade | E70: 1200 | F70: 1 | G70: 1200 | H70: 1200 | I70: 1 | J70: 1200 | K70: 0 | L70: 0
B71: Bomba centrifuga 1 (comodato embrapa) | D71: unidade | E71: 900 | F71: 1 | G71: 900 | H71: 900 | I71: 1 | J71: 900 | K71: 0 | L71: 0
B72: matraca | D72: Unidade | E72: 50 | F72: 2 | G72: 100 | H72: 50 | I72: 2 | J72: 100 | K72: 0 | L72: 0
G73: =F73*E73 -> 0 | J73: =I73*H73 -> 0 | K73: 0 | L73: 0
G74: 0 | J74: 0 | K74: 0 | L74: 0
G75: 0 | J75: 0 | K75: 0 | L75: 0
G76: 0 | J76: 0 | K76: 0 | L76: 0
G77: 0 | J77: 0 | K77: 0 | L77: 0
G78: 0 | J78: 0 | K78: 0 | L78: 0
G79: 0 | J79: 0 | K79: 0 | L79: 0
G80: 0 | J80: 0 | K80: 0 | L80: 0
B81: Total - CF Equipamentos | G81: =SUM(G69:G80) -> 3400 | J81: =SUM(J69:J80) -> 3400 | L81: =SUM(L69:L80) -> 0
B82: Capital Fixo (CF) | D82: Início do Período | H82: Final do Período | K82: Variação no Peróodo
B83: CF Vivo (Semoventes) | D83: Unidade | E83: Valor Unitário | F83: Qtde | G83: Valor Total | H83: Valor Unitário | I83: Qtde | J83: Valor Total | K83: Qtde | L83: Valor
B84: vacas | D84: Unidade | E84: 2500 | F84: 3 | G84: =F84*E84 -> 7500 | H84: 2500 | I84: 3 | J84: =I84*H84 -> 7500 | K84: =I84-F84 -> 0 | L84: 0
B85: Suínos | D85: kg | E85: 6.6 | F85: 440 | G85: 2904 | H85: 6.6 | I85: 440 | J85: 2904 | K85: 0 | L85: 0 | M85: 1 reprodutor 2 porcas e 3 pequenos
B86: galinha | D86: Unidade | E86: 30 | F86: 8 | G86: 240 | H86: 30 | I86: 8 | J86: 240 | K86: 0 | L86: 0
B87: garrote | D87: unidade | E87: 800 | F87: 1 | G87: 800 | H87: 800 | I87: 0 | J87: 0 | K87: -1 | L87: -800
B88: pinto | D88: Unidade | E88: 25 | F88: 5 | G88: 125 | H88: 25 | I88: 5 | J88: 125 | K88: 0 | L88: 0
B89: frango | D89: unidade | E89: 25 | F89: 20 | G89: 500 | H89: 25 | I89: 20 | J89: 500 | K89: 0 | L89: 0
B90: galo | D90: unidade | E90: 15 | F90: 2 | G90: 30 | H90: 15 | I90: 2 | J90: 30 | K90: 0 | L90: 0
B91: pato | D91: unidade | E91: 25 | F91: 5 | G91: 125 | H91: 25 | I91: 5 | J91: 125 | K91: 0 | L91: 0
B92: ovelha | D92: unidade | E92: 350 | F92: 1 | G92: 350 | H92: 350 | I92: 1 | J92: 350 | K92: 0 | L92: 0
B93: cavalo | D93: unidade | E93: 1200 | F93: 1 | G93: 1200 | H93: 1200 | I93: 1 | J93: 1200 | K93: 0 | L93: 0
B94: jegue | D94: unidade | E94: 100 | F94: 1 | G94: 100 | H94: 100 | I94: 1 | J94: 100 | K94: 0 | L94: 0
G95: =F95*E95 -> 0 | J95: =I95*H95 -> 0 | K95: =I95-F95 -> 0 | L95: =J95-G95 -> 0
G96: 0 | J96: 0 | K96: 0 | L96: 0
G97: 0 | J97: 0 | K97: 0 | L97: 0
G98: 0 | J98: 0 | K98: 0 | L98: 0
G99: 0 | J99: 0 | K99: 0 | L99: 0
G100: 0 | J100: 0 | K100: 0 | L100: 0
G101: 0 | J101: 0 | K101: 0 | L101: 0
B102: Total - Capital Fixo Vivo (Semoventes) | G102: =SUM(G84:G101) -> 13874 | J102: =SUM(J84:J101) -> 13074 | L102: =SUM(L84:L101) -> -800
B103: Total Geral | G103: =G81+G102+G66 -> 148588 | J103: =J81+J102+J66 -> 147788 | L103: =L81+L102+L66 -> -800
B105: Pagamento a Terceiros (custos sistêmicos)
B106: Itens | D106: Unidade | E106: Valor Unitário | F106: Qtde | G106: Valor Total
B107: Mensalidade associação | D107: mensalidade | E107: 4 | F107: 12 | G107: =F107*E107 -> 48
B108: água | D108: mensalidade | E108: 31 | F108: 12 | G108: 372
B109: Energia | D109: kW | E109: 40 | F109: 12 | G109: 480
G110: 0
G111: 0
G112: 0
G113: 0
G114: 0
G115: 0
G116: 0
G117: 0
G118: 0
G119: 0
G120: 0
G121: 0
B122: Total pagamento a terceiros | G122: =SUM(G107:G121) -> 900
B125: Reserva de insumos | F125: Acumulados no Período Anterior | H125: Final do Período
D126: Unidade | E126: Valor Unitário | F126: Qtde | G126: Valor Total | H126: Qtde | I126: Valor Total
B127: silagem | D127: ton | E127: 300 | F127: 10 | G127: =F127*E127 -> 3000 | H127: 6 | I127: =E127*H127 -> 1800
G128: =F128*E128 -> 0 | I128: =E128*H128 -> 0
G129: 0 | I129: 0
G130: 0 | I130: 0
G131: 0 | I131: 0
G132: 0 | I132: 0
G133: 0 | I133: 0
G134: 0 | I134: 0
G135: 0 | I135: 0
G136: 0 | I136: 0
G137: 0 | I137: 0
G138: 0 | I138: 0
G139: 0 | I139: 0
G140: 0 | I140: 0
G141: 0 | I141: 0
G142: 0 | I142: 0
G143: 0 | I143: 0
G144: 0 | I144: 0
G145: 0 | I145: 0
G146: 0 | I146: 0
G147: 0 | I147: 0
G148: 0 | I148: 0
G149: 0 | I149: 0
G150: 0 | I150: 0
G151: 0 | I151: =E151*H151 -> 0
B152: Total | G152: =SUM(G127:G151) -> 3000 | I152: =SUM(I127:I151) -> 1800

Sheet SUB. 1
B2: ENTRADA DE DADOS POR SUBSISTEMA
B6: Subsistema n° 1: | D6: Bovino | K6: OBS | L6: rever o valor do esterco bovino
B8: ÁREA | C8: 4.54 | D8: hectare(s)
C12: Horas Trabalhadas | L12: Observações
C13: Mulher | D13: Homem | E13: Jovens Mulheres | F13: Jovens Homens | G13: Outras | H13: Outros | I13: Total Mulheres | J13: Total Homens | K13: TOTAL
B14: N° Horas | C14: =0.5*365 -> 182.5 | D14: =7*365 -> 2555 | E14: =(0.15*365)+(24*12) -> 342.75 | F14: =24*12 -> 288 | I14: =C14+E14+G14 -> 525.25 | J14: =D14+F14+H14 -> 2843 | K14: =C14+D14+E14+F14+G14+H14 -> 3368.25
B16: Produtos e Insumos Gerados | G16: Produtos | Q16: Insumos Produzidos | S16: Total Produtos e Insumos | U16: Observações
G17: Venda | I17: Autoconsumo | K17: Doações Trocas | M17: Estoque | O17: Total Produtos
B18: Itens | E18: Unidade | F18: Valor Unitário | G18: Qtde | H18: Valor Total | I18: Qtde | J18: Valor Total | K18: Qtde | L18: Valor Total | M18: Qtde | N18: Valor Total | O18: Qtde | P18: Valor Total | Q18: Qtde | R18: Valor Total | S18: Qtde | T18: Valor Total
B19: Leite | E19: Litro | F19: 1.1 | G19: =((30*210) + (20*60)+ (6*30))-(16*12) -> 7488 | H19: =G19*F19 -> 8236.8 | I19: 192 | J19: =I19*F19 -> 211.2 | K19: 200 | L19: =K19*F19 -> 220 | N19: =M19*F19 -> 0 | O19: =G19++I19+K19+M19 -> 7880 | P19: =F19*O19 -> 8668 | R19: =Q19*F19 -> 0 | S19: =O19+Q19 -> 7880 | T19: =F19*S19 -> 8668
B20: vaca (4) | E20: kg | F20: =2000/195 -> 10.25641026 | G20: 195 | H20: 2000 | J20: 0 | L20: 0 | M20: 750 | N20: 7692.307692 | O20: 945 | P20: 9692.307692 | R20: 0 | S20: 945 | T20: 9692.307692
B21: esterco | E21: kg | F21: 2 | H21: 0 | J21: 0 | L21: 0 | N21: 0 | O21: 0 | P21: 0 | Q21: 1680 | R21: 3360 | S21: 1680 | T21: 3360
H22: 0 | J22: 0 | L22: 0 | N22: 0 | O22: 0 | P22: 0 | R22: 0 | S22: 0 | T22: 0
H23: 0 | J23: 0 | L23: 0 | N23: 0 | O23: 0 | P23: 0 | R23: 0 | S23: 0 | T23: 0
H24: 0 | J24: 0 | L24: 0 | N24: 0 | O24: 0 | P24: 0 | R24: 0 | S24: 0 | T24: 0
H25: 0 | J25: 0 | L25: 0 | N25: 0 | O25: 0 | P25: 0 | R25: 0 | S25: 0 | T25: 0
H26: 0 | J26: 0 | L26: 0 | N26: 0 | O26: 0 | P26: 0 | R26: 0 | S26: 0 | T26: 0
H27: 0 | J27: 0 | L27: 0 | N27: 0 | O27: 0 | P27: 0 | R27: 0 | S27: 0 | T27: 0
H28: 0 | J28: 0 | L28: 0 | N28: 0 | O28: 0 | P28: 0 | R28: 0 | S28: 0 | T28: 0
H29: 0 | J29: 0 | L29: 0 | N29: 0 | O29: 0 | P29: 0 | R29: 0 | S29: 0 | T29: 0
H30: 0 | J30: 0 | L30: 0 | N30: 0 | O30: 0 | P30: 0 | R30: 0 | S30: 0 | T30: 0
H31: 0 | J31: 0 | L31: 0 | N31: 0 | O31: 0 | P31: 0 | R31: 0 | S31: 0 | T31: 0
H32: 0 | J32: 0 | L32: 0 | N32: 0 | O32: 0 | P32: 0 | R32: 0 | S32: 0 | T32: 0
H33: 0 | J33: 0 | L33: 0 | N33: 0 | O33: 0 | P33: 0 | R33: 0 | S33: 0 | T33: 0
H34: 0 | J34: 0 | L34: 0 | N34: 0 | O34: 0 | P34: 0 | R34: 0 | S34: 0 | T34: 0
H35: 0 | J35: 0 | L35: 0 | N35: 0 | O35: 0 | P35: 0 | R35: 0 | S35: 0 | T35: 0
H36: 0 | J36: 0 | L36: 0 | N36: 0 | O36: 0 | P36: 0 | R36: 0 | S36: 0 | T36: 0
B37: Totais | H37: =SUM(H19:H36) -> 10236.8 | J37: =SUM(J19:J36) -> 211.2 | L37: =SUM(L19:L36) -> 220 | N37: =SUM(N19:N36) -> 7692.307692 | P37: =SUM(P19:P36) -> 18360.30769 | R37: =SUM(R19:R36) -> 3360 | T37: =SUM(T19:T36) -> 21720.30769
B39: Insumos
B40: Produção Própria - Reciprocidade Ecológica | I40: Observações
B41: Itens | E41: Unidade | F41: Valor Unitário | G41: Qtde | H41: Valor Total
B42: silagem | E42: ton | F42: 300 | G42: 10 | H42: =G42*F42 -> 3000
B43: palha | E43: kg | F43: 0.4 | G43: =(120*15) -> 1800 | H43: =G43*F43 -> 720 | I43: 120 kg/dia de alimentação
B44: palma | E44: kg | F44: 0.2 | G44: =(60*335) -> 20100 | H44: 4020 | I44: Ajustado de 1,00 para 0,20/kg
H45: =G45*F45 -> 0
H46: 0
H47: 0
H48: 0
H49: 0
H50: 0
H51: 0
H52: 0
H53: 0
H54: 0
H55: 0
H56: 0
B57: Total Insumos - Produção Própria | H57: =SUM(H42:H56) -> 7740
B58: Comprados - Consumos Intermediários | J58: Observações
B59: Itens | E59: Unidade | F59: Valor Unitário | G59: Qtde | H59: Valor Total | I59: Origem
B60: sais | E60: kg | F60: 1 | G60: 45 | H60: =G60*F60 -> 45 | I60: F
B61: silo | E61: ton | F61: 300 | G61: 6 | H61: =G61*F61 -> 1800 | I61: T
B62: vacina | E62: Unidade | F62: 1.5 | G62: 10 | H62: 15 | I62: F
B63: Remédio | E63: unidade | F63: 300 | G63: 1 | H63: 300 | I63: F
H64: 0
H65: 0
H66: 0
H67: 0
H68: 0
H69: 0
H70: 0
H71: 0
H72: 0
H73: 0
H74: 0
H75: 0
H76: 0
H77: 0
H78: 0
H79: 0
B80: Insumos Comprados no Território | H80: =DSUM(H59:I79,"Valor Total",G124:G125) -> 1800
B81: Insumos Comprados Fora do Território | H81: =DSUM(H59:I79,"Valor Total",H124:H125) -> 360
B82: Total de Insumos Comprados | H82: =SUM(H60:H79) -> 2160
B84: Pagamento a Terceiros | J84: Observações
B85: Serviços/Renda da Terra | E85: Unidade | F85: Valor Unitário | G85: Qtde | H85: Valor Total | I85: Origem
H86: =G86*F86 -> 0
H87: 0
H88: 0
H89: 0
H90: 0
H91: 0
H92: 0
H93: 0
H94: 0
H95: 0
H96: 0
H97: 0
H98: 0
H99: 0
H100: 0
B101: Pagamentos a Terceiros do Território | H101: =DSUM(H85:I100,"Valor Total",G124:G125) -> 0
B102: Pagamentos a Terceiros Fora do Território | H102: =DSUM(H85:I100,"Valor Total",H124:H125) -> 0
B103: Total de Pagamentos a Terceiros | H103: =SUM(H86:H100) -> 0
B105: Entrada de Recursos por Reciprocidade | I105: Observações
B106: Serviços e Insumos | E106: Unidade | F106: Valor Unitário | G106: Qtde | H106: Valor Total
H107: =G107*F107 -> 0
H108: 0
H109: 0
H110: 0
H111: 0
H112: 0
H113: 0
H114: 0
H115: 0
H116: 0
H117: 0
H118: 0
H119: 0
H120: 0
H121: 0
B122: Total Recursos por Reciprocidade | H122: =SUM(H107:H121) -> 0
G124: Origem | H124: Origem
G125: T | H125: F

Sheet SUB. 2
B2: ENTRADA DE DADOS POR SUBSISTEMA
B6: Subsistema n° 2: | D6: Suino | K6: OBS
B8: ÁREA | C8: 0.01 | D8: hectare(s)
C12: Horas Trabalhadas | L12: Observações
C13: Mulher | D13: Homem | E13: Jovens Mulheres | F13: Jovens Homens | G13: Outras | H13: Outros | I13: Total Mulheres | J13: Total Homens | K13: TOTAL
B14: N° Horas | C14: =0.5*360 -> 180 | D14: =0.5*360 -> 180 | E14: =0.25*365 -> 91.25 | I14: =C14+E14+G14 -> 271.25 | J14: =D14+F14+H14 -> 180 | K14: =C14+D14+E14+F14+G14+H14 -> 451.25
B16: Produtos e Insumos Gerados | G16: Produtos | Q16: Insumos Produzidos | S16: Total Produtos e Insumos | U16: Observações
G17: Venda | I17: Autoconsumo | K17: Doações Trocas | M17: Estoque | O17: Total Produtos
B18: Itens | E18: Unidade | F18: Valor Unitário | G18: Qtde | H18: Valor Total | I18: Qtde | J18: Valor Total | K18: Qtde | L18: Valor Total | M18: Qtde | N18: Valor Total | O18: Qtde | P18: Valor Total | Q18: Qtde | R18: Valor Total | S18: Qtde | T18: Valor Total
B19: porco | E19: kg | F19: 15 | G19: =(12*6)+(3*150) -> 522 | H19: =G19*F19 -> 7830 | I19: 60 | J19: =I19*F19 -> 900 | K19: 100 | L19: =K19*F19 -> 1500 | M19: 440 | N19: =M19*F19 -> 6600 | O19: =G19+I19+K19+M19 -> 1122 | P19: =F19*O19 -> 16830 | R19: =Q19*F19 -> 0 | S19: =O19+Q19 -> 1122 | T19: =F19*S19 -> 16830 | U19: tem um reprodutor vale o dobro
B20: esterco | E20: kg | F20: 0.42 | H20: 0 | J20: 0 | L20: 0 | N20: 0 | O20: 0 | P20: 0 | Q20: 365 | R20: 153.3 | S20: 365 | T20: 153.3
H21: =G21*F21 -> 0 | J21: =I21*F21 -> 0 | L21: =K21*F21 -> 0 | N21: =M21*F21 -> 0 | O21: =G21+I21+K21+M21 -> 0 | P21: =F21*O21 -> 0 | R21: =Q21*F21 -> 0 | S21: =O21+Q21 -> 0 | T21: =F21*S21 -> 0
H22: 0 | J22: 0 | L22: 0 | N22: 0 | O22: 0 | P22: 0 | R22: 0 | S22: 0 | T22: 0
H23: 0 | J23: 0 | L23: 0 | N23: 0 | O23: 0 | P23: 0 | R23: 0 | S23: 0 | T23: 0
H24: 0 | J24: 0 | L24: 0 | N24: 0 | O24: 0 | P24: 0 | R24: 0 | S24: 0 | T24: 0
H25: 0 | J25: 0 | L25: 0 | N25: 0 | O25: 0 | P25: 0 | R25: 0 | S25: 0 | T25: 0
H26: 0 | J26: 0 | L26: 0 | N26: 0 | O26: 0 | P26: 0 | R26: 0 | S26: 0 | T26: 0
H27: 0 | J27: 0 | L27: 0 | N27: 0 | O27: 0 | P27: 0 | R27: 0 | S27: 0 | T27: 0
H28: 0 | J28: 0 | L28: 0 | N28: 0 | O28: 0 | P28: 0 | R28: 0 | S28: 0 | T28: 0
H29: 0 | J29: 0 | L29: 0 | N29: 0 | O29: 0 | P29: 0 | R29: 0 | S29: 0 | T29: 0
H30: 0 | J30: 0 | L30: 0 | N30: 0 | O30: 0 | P30: 0 | R30: 0 | S30: 0 | T30: 0
H31: 0 | J31: 0 | L31: 0 | N31: 0 | O31: 0 | P31: 0 | R31: 0 | S31: 0 | T31: 0
H32: 0 | J32: 0 | L32: 0 | N32: 0 | O32: 0 | P32: 0 | R32: 0 | S32: 0 | T32: 0
H33: 0 | J33: 0 | L33: 0 | N33: 0 | O33: 0 | P33: 0 | R33: 0 | S33: 0 | T33: 0
H34: 0 | J34: 0 | L34: 0 | N34: 0 | O34: 0 | P34: 0 | R34: 0 | S34: 0 | T34: 0
H35: 0 | J35: 0 | L35: 0 | N35: 0 | O35: 0 | P35: 0 | R35: 0 | S35: 0 | T35: 0
H36: 0 | J36: 0 | L36: 0 | N36: 0 | O36: 0 | P36: 0 | R36: 0 | S36: 0 | T36: 0
B37: Totais | H37: =SUM(H19:H36) -> 7830 | J37: =SUM(J19:J36) -> 900 | L37: =SUM(L19:L36) -> 1500 | N37: =SUM(N19:N36) -> 6600 | P37: =SUM(P19:P36) -> 16830 | R37: =SUM(R19:R36) -> 153.3 | T37: =SUM(T19:T36) -> 16983.3
B39: Insumos
B40: Produção Própria - Reciprocidade Ecológica | I40: Observações
B41: Itens | E41: Unidade | F41: Valor Unitário | G41: Qtde | H41: Valor Total
H42: =G42*F42 -> 0
H43: 0
H44: 0
H45: 0
H46: 0
H47: 0
H48: 0
H49: 0
H50: 0
H51: 0
H52: 0
H53: 0
H54: 0
H55: 0
H56: 0
B57: Total Insumos - Produção Própria | H57: =SUM(H42:H56) -> 0
B58: Comprados - Consumos Intermediários | J58: Observações
B59: Insumos | E59: Unidade | F59: Valor Unitário | G59: Qtde | H59: Valor Total | I59: Origem
B60: milho grão | E60: kg | F60: =50/60 -> 0.8333333333 | G60: 720 | H60: =G60*F60 -> 600 | I60: F
B61: farelo de trigo | E61: kg | F61: =30/30 -> 1 | G61: 360 | H61: =G61*F61 -> 360 | I61: F
B62: ração leiteira | E62: kg | F62: =80/60 -> 1.333333333 | G62: 120 | H62: 160 | I62: T
H63: =G63*F63 -> 0
H64: 0
H65: 0
H66: 0
H67: 0
H68: 0
H69: 0
H70: 0
H71: 0
H72: 0
H73: 0
H74: 0
H75: 0
H76: 0
H77: 0
H78: 0
H79: 0
B80: Insumos Comprados no Território | H80: =DSUM(H59:I79,"Valor Total",G124:G125) -> 160
B81: Insumos Comprados Fora do Território | H81: =DSUM(H59:I79,"Valor Total",H124:H125) -> 960
B82: Total de Insumos Comprados | H82: =SUM(H60:H79) -> 1120
B84: Pagamento a Terceiros | J84: Observações
B85: Serviços/Renda da Terra | E85: Unidade | F85: Valor Unitário | G85: Qtde | H85: Valor Total | I85: Origem
H86: =G86*F86 -> 0
H87: 0
H88: 0
H89: 0
H90: 0
H91: 0
H92: 0
H93: 0
H94: 0
H95: 0
H96: 0
H97: 0
H98: 0
H99: 0
H100: 0
B101: Pagamentos a Terceiros do Território | H101: =DSUM(H85:I100,"Valor Total",G124:G125) -> 0
B102: Pagamentos a Terceiros Fora do Território | H102: =DSUM(H85:I100,"Valor Total",H124:H125) -> 0
B103: Total de Pagamentos a Terceiros | H103: =SUM(H86:H100) -> 0
B105: Entrada de Recursos por Reciprocidade | I105: Observações
B106: Serviços e Insumos | E106: Unidade | F106: Valor Unitário | G106: Qtde | H106: Valor Total
B107: Soro da comunidade | E107: Litros | F107: 0.1 | G107: =50*365 -> 18250 | H107: =G107*F107 -> 1825
H108: 0
H109: 0
H110: 0
H111: 0
H112: 0
H113: 0
H114: 0
H115: 0
H116: 0
H117: 0
H118: 0
H119: 0
H120: 0
H121: 0
B122: Total Recursos por Reciprocidade | H122: =SUM(H107:H121) -> 1825
G124: Origem | H124: Origem
G125: T | H125: F

Sheet SUB. 3
B2: ENTRADA DE DADOS POR SUBSISTEMA
B6: Subsistema n° 3: | D6: Ovino | K6: OBS
B8: ÁREA | C8: 4.54 | D8: hectare(s)
C12: Horas Trabalhadas | L12: Observações
C13: Mulher | D13: Homem | E13: Jovens Mulheres | F13: Jovens Homens | G13: Outras | H13: Outros | I13: Total Mulheres | J13: Total Homens | K13: TOTAL | L13: 60 minutos de trabalho entre as mulheres
B14: N° Horas | C14: =0.5*365 -> 182.5 | D14: =0.5*365 -> 182.5 | E14: =0.25*365 -> 91.25 | I14: =C14+E14+G14 -> 273.75 | J14: =D14+F14+H14 -> 182.5 | K14: =C14+D14+E14+F14+G14+H14 -> 456.25
B16: Produtos e Insumos Gerados | G16: Produtos | Q16: Insumos Produzidos | S16: Total Produtos e Insumos | U16: Observações
G17: Venda | I17: Autoconsumo | K17: Doações Trocas | M17: Estoque | O17: Total Produtos
B18: Itens | E18: Unidade | F18: Valor Unitário | G18: Qtde | H18: Valor Total | I18: Qtde | J18: Valor Total | K18: Qtde | L18: Valor Total | M18: Qtde | N18: Valor Total | O18: Qtde | P18: Valor Total | Q18: Qtde | R18: Valor Total | S18: Qtde | T18: Valor Total
B19: animal | E19: kg | F19: 9 | G19: 20 | H19: =G19*F19 -> 180 | J19: =I19*F19 -> 0 | K19: 0 | L19: =K19*F19 -> 0 | M19: 25 | N19: =M19*F19 -> 225 | O19: =G19+I19+K19+M19 -> 45 | P19: =F19*O19 -> 405 | R19: =Q19*F19 -> 0 | S19: =O19+Q19 -> 45 | T19: =F19*S19 -> 405
B20: esterco | E20: kg | F20: 0.42 | G20: 0 | H20: 0 | J20: 0 | K20: 0 | L20: 0 | M20: 0 | N20: 0 | O20: 0 | P20: 0 | Q20: 1500 | R20: 630 | S20: 1500 | T20: 630
H21: 0 | J21: 0 | K21: 0 | L21: 0 | M21: 0 | N21: 0 | O21: 0 | P21: 0 | R21: 0 | S21: 0 | T21: 0
H22: 0 | J22: 0 | K22: 0 | L22: 0 | M22: 0 | N22: 0 | O22: 0 | P22: 0 | R22: 0 | S22: 0 | T22: 0
H23: 0 | J23: 0 | K23: 0 | L23: 0 | M23: 0 | N23: 0 | O23: 0 | P23: 0 | R23: 0 | S23: 0 | T23: 0
G24: 0 | H24: 0 | J24: 0 | K24: 0 | L24: 0 | M24: 0 | N24: 0 | O24: 0 | P24: 0 | R24: 0 | S24: 0 | T24: 0
G25: 0 | H25: 0 | J25: 0 | K25: 0 | L25: 0 | M25: 0 | N25: 0 | O25: 0 | P25: 0 | R25: 0 | S25: 0 | T25: 0
G26: 0 | H26: 0 | J26: 0 | K26: 0 | L26: 0 | M26: 0 | N26: 0 | O26: 0 | P26: 0 | R26: 0 | S26: 0 | T26: 0
G27: 0 | H27: 0 | J27: 0 | K27: 0 | L27: 0 | M27: 0 | N27: 0 | O27: 0 | P27: 0 | R27: 0 | S27: 0 | T27: 0
G28: 0 | H28: 0 | J28: 0 | K28: 0 | L28: 0 | M28: 0 | N28: 0 | O28: 0 | P28: 0 | R28: 0 | S28: 0 | T28: 0
G29: 0 | H29: 0 | J29: 0 | K29: 0 | L29: 0 | M29: 0 | N29: 0 | O29: 0 | P29: 0 | R29: 0 | S29: 0 | T29: 0
G30: 0 | H30: 0 | J30: 0 | K30: 0 | L30: 0 | M30: 0 | N30: 0 | O30: 0 | P30: 0 | R30: 0 | S30: 0 | T30: 0
G31: 0 | H31: 0 | J31: 0 | K31: 0 | L31: 0 | M31: 0 | N31: 0 | O31: 0 | P31: 0 | R31: 0 | S31: 0 | T31: 0
G32: 0 | H32: 0 | I32: 0 | J32: 0 | K32: 0 | L32: 0 | N32: 0 | O32: 0 | P32: 0 | R32: 0 | S32: 0 | T32: 0
G33: 0 | H33: 0 | I33: 0 | J33: 0 | K33: 0 | L33: 0 | N33: 0 | O33: 0 | P33: 0 | R33: 0 | S33: 0 | T33: 0
G34: 0 | H34: 0 | I34: 0 | J34: 0 | K34: 0 | L34: 0 | N34: 0 | O34: 0 | P34: 0 | R34: 0 | S34: 0 | T34: 0
G35: 0 | H35: 0 | I35: 0 | J35: 0 | K35: 0 | L35: 0 | N35: 0 | O35: 0 | P35: 0 | R35: 0 | S35: 0 | T35: 0
H36: 0 | J36: 0 | L36: 0 | N36: 0 | O36: 0 | P36: 0 | R36: 0 | S36: 0 | T36: 0
B37: Totais | H37: =SUM(H19:H36) -> 180 | J37: =SUM(J19:J36) -> 0 | L37: =SUM(L19:L36) -> 0 | N37: =SUM(N19:N36) -> 225 | P37: =SUM(P19:P36) -> 405 | R37: =SUM(R19:R36) -> 630 | T37: =SUM(T19:T36) -> 1035
B39: Insumos
B40: Produção Própria - Reciprocidade Ecológica | I40: Observações
B41: Itens | E41: Unidade | F41: Valor Unitário | G41: Qtde | H41: Valor Total
B42: palha de milho | E42: kg | F42: 0.4 | G42: =3*15 -> 45 | H42: =G42*F42 -> 18
B43: palma | E43: kg | F43: 1 | G43: =(5*365) -> 1825 | H43: 1825
B44: ração milho | E44: kg | F44: 1 | G44: 300 | H44: 300
B45: silo | E45: kg | F45: 0.3 | G45: 365 | H45: 109.5
H46: 0
H47: 0
H48: 0
H49: 0
H50: 0
H51: 0
H52: 0
H53: 0
H54: 0
H55: 0
H56: 0
B57: Total Insumos - Produção Própria | H57: =SUM(H42:H56) -> 2252.5
B58: Comprados - Consumos Intermediários | J58: Observações
B59: Insumos | E59: Unidade | F59: Valor Unitário | G59: Qtde | H59: Valor Total | I59: Origem
H60: =G60*F60 -> 0
H61: 0
H62: 0
H63: =G63*F63 -> 0
H64: 0
H65: 0
H66: 0
H67: 0
H68: 0
H69: 0
H70: 0
H71: 0
H72: 0
H73: 0
H74: 0
H75: 0
H76: 0
H77: 0
H78: 0
H79: 0
B80: Insumos Comprados no Território | H80: =DSUM(H59:I79,"Valor Total",G124:G125) -> 0
B81: Insumos Comprados Fora do Território | H81: =DSUM(H59:I79,"Valor Total",H124:H125) -> 0
B82: Total de Insumos Comprados | H82: =SUM(H60:H79) -> 0
B84: Pagamento a Terceiros | J84: Observações
B85: Serviços/Renda da Terra | E85: Unidade | F85: Valor Unitário | G85: Qtde | H85: Valor Total | I85: Origem
H86: =G86*F86 -> 0
H87: 0
H88: 0
H89: 0
H90: 0
H91: 0
H92: 0
H93: 0
H94: 0
H95: 0
H96: 0
H97: 0
H98: 0
H99: 0
H100: 0
B101: Pagamentos a Terceiros do Território | H101: =DSUM(H85:I100,"Valor Total",G124:G125) -> 0
B102: Pagamentos a Terceiros Fora do Território | H102: =DSUM(H85:I100,"Valor Total",H124:H125) -> 0
B103: Total de Pagamentos a Terceiros | H103: =SUM(H86:H100) -> 0
B105: Entrada de Recursos por Reciprocidade | I105: Observações
B106: Serviços e Insumos | E106: Unidade | F106: Valor Unitário | G106: Qtde | H106: Valor Total
H107: =G107*F107 -> 0
H108: 0
H109: 0
H110: 0
H111: 0
H112: 0
H113: 0
H114: 0
H115: 0
H116: 0
H117: 0
H118: 0
H119: 0
H120: 0
H121: 0
B122: Total Recursos por Reciprocidade | H122: =SUM(H107:H121) -> 0
G124: Origem | H124: Origem
G125: T | H125: F

Sheet SUB. 4
B2: ENTRADA DE DADOS POR SUBSISTEMA
B6: Subsistema n° 4: | D6: Aves | K6: OBS
B8: ÁREA | C8: 4.54 | D8: hectare(s)
C12: Horas Trabalhadas | L12: Observações
C13: Mulher | D13: Homem | E13: Jovens Mulheres | F13: Jovens Homens | G13: Outras | H13: Outros | I13: Total Mulheres | J13: Total Homens | K13: TOTAL
B14: N° Horas | C14: =1*365 -> 365 | D14: 0 | E14: =0.25*365 -> 91.25 | I14: =C14+E14+G14 -> 456.25 | J14: =D14+F14+H14 -> 0 | K14: =C14+D14+E14+F14+G14+H14 -> 456.25
B16: Produtos e Insumos Gerados | G16: Produtos | Q16: Insumos Produzidos | S16: Total Produtos e Insumos | U16: Observações
G17: Venda | I17: Autoconsumo | K17: Doações Trocas | M17: Estoque | O17: Total Produtos
B18: Itens | E18: Unidade | F18: Valor Unitário | G18: Qtde | H18: Valor Total | I18: Qtde | J18: Valor Total | K18: Qtde | L18: Valor Total | M18: Qtde | N18: Valor Total | O18: Qtde | P18: Valor Total | Q18: Qtde | R18: Valor Total | S18: Qtde | T18: Valor Total
B19: Galinhas | E19: Unidade | F19: 30 | G19: 6 | H19: =G19*F19 -> 180 | I19: =4*12 -> 48 | J19: =I19*F19 -> 1440 | K19: 12 | L19: =K19*F19 -> 360 | M19: 20 | N19: =M19*F19 -> 600 | O19: =G19+I19+K19+M19 -> 86 | P19: =F19*O19 -> 2580 | R19: =Q19*F19 -> 0 | S19: =Q19+O19 -> 86 | T19: =S19*F19 -> 2580
B20: Pato | E20: Unidade | F20: 50 | H20: 0 | I20: 6 | J20: 300 | L20: 0 | M20: 2 | N20: 100 | O20: 8 | P20: 400 | R20: 0 | S20: 8 | T20: 400
B21: Peru | E21: Unidade | F21: 30 | H21: 0 | J21: 0 | L21: 0 | M21: 2 | N21: 60 | O21: 2 | P21: 60 | R21: 0 | S21: 2 | T21: 60
B22: ovo | E22: unidade | F22: =5/12 -> 0.4166666667 | G22: =6*12 -> 72 | H22: 30 | I22: =(12*4) *12 -> 576 | J22: 240 | K22: 40 | L22: 16.66666667 | M22: 15 | N22: 6.25 | O22: 703 | P22: 292.9166667 | R22: 0 | S22: 703 | T22: 292.9166667
B23: esterco | E23: kg | F23: 0.4 | H23: 0 | J23: 0 | L23: 0 | N23: 0 | O23: 0 | P23: 0 | Q23: 180 | R23: 72 | S23: 180 | T23: 72
H24: 0 | J24: 0 | L24: 0 | N24: 0 | O24: 0 | P24: 0 | R24: 0 | S24: 0 | T24: 0
H25: 0 | J25: 0 | L25: 0 | N25: 0 | O25: 0 | P25: 0 | R25: 0 | S25: 0 | T25: 0
H26: 0 | J26: 0 | L26: 0 | N26: 0 | O26: 0 | P26: 0 | R26: 0 | S26: 0 | T26: 0
H27: 0 | J27: 0 | L27: 0 | N27: 0 | O27: 0 | P27: 0 | R27: 0 | S27: 0 | T27: 0
H28: 0 | J28: 0 | L28: 0 | N28: 0 | O28: 0 | P28: 0 | R28: 0 | S28: 0 | T28: 0
H29: 0 | J29: 0 | L29: 0 | N29: 0 | O29: 0 | P29: 0 | R29: 0 | S29: 0 | T29: 0
H30: 0 | J30: 0 | L30: 0 | N30: 0 | O30: 0 | P30: 0 | R30: 0 | S30: 0 | T30: 0
H31: 0 | J31: 0 | L31: 0 | N31: 0 | O31: 0 | P31: 0 | R31: 0 | S31: 0 | T31: 0
H32: 0 | J32: 0 | L32: 0 | N32: 0 | O32: 0 | P32: 0 | R32: 0 | S32: 0 | T32: 0
H33: 0 | J33: 0 | L33: 0 | N33: 0 | O33: 0 | P33: 0 | R33: 0 | S33: 0 | T33: 0
H34: 0 | J34: 0 | L34: 0 | N34: 0 | O34: 0 | P34: 0 | R34: 0 | S34: 0 | T34: 0
H35: 0 | J35: 0 | L35: 0 | N35: 0 | O35: 0 | P35: 0 | R35: 0 | S35: 0 | T35: 0
H36: 0 | J36: 0 | L36: 0 | N36: 0 | O36: 0 | P36: 0 | R36: 0 | S36: 0 | T36: 0
B37: Totais | H37: =SUM(H19:H36) -> 210 | J37: =SUM(J19:J36) -> 1980 | L37: =SUM(L19:L36) -> 376.6666667 | N37: =SUM(N19:N36) -> 766.25 | P37: =SUM(P19:P36) -> 3332.916667 | R37: =SUM(R19:R36) -> 72 | T37: =SUM(T19:T36) -> 3404.916667
B39: Insumos
B40: Produção Própria - Reciprocidade Ecológica | I40: Observações
B41: Itens | E41: Unidade | F41: Valor Unitário | G41: Qtde | H41: Valor Total
H42: =F42*G42 -> 0
H43: =F43*G43 -> 0
H44: 0
H45: 0
H46: 0
H47: 0
H48: 0
H49: 0
H50: 0
H51: 0
H52: 0
H53: 0
H54: 0
H55: 0
H56: 0
B57: Total Insumos - Produção Própria | H57: =SUM(H42:H56) -> 0
B58: Comprados - Consumos Intermediários | J58: Observações
B59: Insumos | E59: Unidade | F59: Valor Unitário | G59: Qtde | H59: Valor Total | I59: Origem
B60: ração de milho | E60: kg | F60: =60/39 -> 1.538461538 | G60: 240 | H60: =G60*F60 -> 369.2307692 | I60: F
H61: =G61*F61 -> 0
H62: 0
H63: 0
H64: 0
H65: 0
H66: 0
H67: 0
H68: 0
H69: 0
H70: 0
H71: 0
H72: 0
H73: 0
H74: 0
H75: 0
H76: 0
H77: 0
H78: 0
H79: 0
B80: Insumos Comprados no Território | H80: =DSUM(H59:I79,"Valor Total",G124:G125) -> 0
B81: Insumos Comprados Fora do Território | H81: =DSUM(H59:I79,"Valor Total",H124:H125) -> 369.2307692
B82: Total de Insumos Comprados | H82: =SUM(H60:H79) -> 369.2307692
B84: Pagamento a Terceiros | J84: Observações
B85: Serviços/Renda da Terra | E85: Unidade | F85: Valor Unitário | G85: Qtde | H85: Valor Total | I85: Origem
H86: =G86*F86 -> 0
H87: 0
H88: 0
H89: 0
H90: 0
H91: 0
H92: 0
H93: 0
H94: 0
H95: 0
H96: 0
H97: 0
H98: 0
H99: 0
H100: 0
B101: Pagamentos a Terceiros do Território | H101: =DSUM(H85:I100,"Valor Total",G124:G125) -> 0
B102: Pagamentos a Terceiros Fora do Território | H102: =DSUM(H85:I100,"Valor Total",H124:H125) -> 0
B103: Total de Pagamentos a Terceiros | H103: =SUM(H86:H100) -> 0
B105: Entrada de Recursos por Reciprocidade | I105: Observações
B106: Serviços e Insumos | E106: Unidade | F106: Valor Unitário | G106: Qtde | H106: Valor Total
H107: =G107*F107 -> 0
H108: 0
H109: 0
H110: 0
H111: 0
H112: 0
H113: 0
H114: 0
H115: 0
H116: 0
H117: 0
H118: 0
H119: 0
H120: 0
H121: 0
B122: Total Recursos por Reciprocidade | H122: =SUM(H107:H121) -> 0
G124: Origem | H124: Origem
G125: T | H125: F

Sheet SUB. 5
B2: ENTRADA DE DADOS POR SUBSISTEMA
B6: Subsistema n° 5: | D6: Lavoura Milho e palma | K6: OBS | L6: Arrendamento em área de terceiros
B8: ÁREA | C8: 1 | D8: hectare(s)
C12: Horas Trabalhadas | L12: Observações
C13: Mulher | D13: Homem | E13: Jovens Mulheres | F13: Jovens Homens | G13: Outras | H13: Outros | I13: Total Mulheres | J13: Total Homens | K13: TOTAL
B14: N° Horas | C14: =(8*90)+ (2*255) -> 1230 | D14: =(10*90)+(4*255) -> 1920 | E14: =(1*90)+(0.5*255) -> 217.5 | I14: =C14+E14+G14 -> 1447.5 | J14: =D14+F14+H14 -> 1920 | K14: =C14+D14+E14+F14+G14+H14 -> 3367.5
B16: Produtos e Insumos Gerados | G16: Produtos | Q16: Insumos Produzidos | S16: Total Produtos e Insumos | U16: Observações
G17: Venda | I17: Autoconsumo | K17: Doações Trocas | M17: Estoque | O17: Total Produtos
B18: Itens | E18: Unidade | F18: Valor Unitário | G18: Qtde | H18: Valor Total | I18: Qtde | J18: Valor Total | K18: Qtde | L18: Valor Total | M18: Qtde | N18: Valor Total | O18: Qtde | P18: Valor Total | Q18: Qtde | R18: Valor Total | S18: Qtde | T18: Valor Total
B19: Palma | E19: kg | F19: 0.2 | H19: =G19*F19 -> 0 | J19: =I19*F19 -> 0 | L19: =K19*F19 -> 0 | N19: =M19*F19 -> 0 | O19: =G19+I19+K19+M19 -> 0 | P19: =F19*O19 -> 0 | Q19: 20100 | R19: =Q19*F19 -> 4020 | S19: =Q19+O19 -> 20100 | T19: =S19*F19 -> 4020
B20: Millho seco | E20: kg | F20: 1 | G20: 200 | H20: 200 | I20: 50 | J20: 50 | K20: 20 | L20: 20 | N20: 0 | O20: 270 | P20: 270 | R20: 0 | S20: 270 | T20: 270
E21: kg | F21: 2 | H21: 0 | J21: 0 | L21: 0 | N21: 0 | O21: 0 | P21: 0 | R21: 0 | S21: 0 | T21: 0
H22: 0 | J22: 0 | L22: 0 | N22: 0 | O22: 0 | P22: 0 | R22: 0 | S22: 0 | T22: 0
H23: 0 | J23: 0 | L23: 0 | N23: 0 | O23: 0 | P23: 0 | R23: 0 | S23: 0 | T23: 0
H24: 0 | J24: 0 | L24: 0 | N24: 0 | O24: 0 | P24: 0 | R24: 0 | S24: 0 | T24: 0
H25: 0 | J25: 0 | L25: 0 | N25: 0 | O25: 0 | P25: 0 | R25: 0 | S25: 0 | T25: 0
H26: 0 | J26: 0 | L26: 0 | N26: 0 | O26: 0 | P26: 0 | R26: 0 | S26: 0 | T26: 0
H27: 0 | J27: 0 | L27: 0 | N27: 0 | O27: 0 | P27: 0 | R27: 0 | S27: 0 | T27: 0
H28: 0 | J28: 0 | L28: 0 | N28: 0 | O28: 0 | P28: 0 | R28: 0 | S28: 0 | T28: 0
H29: 0 | J29: 0 | L29: 0 | N29: 0 | O29: 0 | P29: 0 | R29: 0 | S29: 0 | T29: 0
H30: 0 | J30: 0 | L30: 0 | N30: 0 | O30: 0 | P30: 0 | R30: 0 | S30: 0 | T30: 0
H31: 0 | J31: 0 | L31: 0 | N31: 0 | O31: 0 | P31: 0 | R31: 0 | S31: 0 | T31: 0
H32: 0 | J32: 0 | L32: 0 | N32: 0 | O32: 0 | P32: 0 | R32: 0 | S32: 0 | T32: 0
H33: 0 | J33: 0 | L33: 0 | N33: 0 | O33: 0 | P33: 0 | R33: 0 | S33: 0 | T33: 0
H34: 0 | J34: 0 | L34: 0 | N34: 0 | O34: 0 | P34: 0 | R34: 0 | S34: 0 | T34: 0
H35: 0 | J35: 0 | L35: 0 | N35: 0 | O35: 0 | P35: 0 | R35: 0 | S35: 0 | T35: 0
H36: 0 | J36: 0 | L36: 0 | N36: 0 | O36: 0 | P36: 0 | R36: 0 | S36: 0 | T36: 0
B37: Totais | H37: =SUM(H19:H36) -> 200 | J37: =SUM(J19:J36) -> 50 | L37: =SUM(L19:L36) -> 20 | N37: =SUM(N19:N36) -> 0 | P37: =SUM(P19:P36) -> 270 | R37: =SUM(R19:R36) -> 4020 | T37: =SUM(T19:T36) -> 4290
B39: Insumos Consumidos
B40: Produção Própria - Reciprocidade Ecológica | I40: Observações
B41: Itens | E41: Unidade | F41: Valor Unitário | G41: Qtde | H41: Valor Total
B42: esterco galinha | E42: kg | F42: 0.42 | G42: 75 | H42: =G42*F42 -> 31.5
B43: esterco ovnos | E43: kg | F43: 0.42 | G43: 75 | H43: 31.5
H44: 0
H45: 0
H46: 0
H47: 0
H48: 0
H49: 0
H50: 0
H51: 0
H52: 0
H53: 0
H54: 0
H55: 0
H56: 0
B57: Total Insumos - Produção Própria | H57: =SUM(H42:H56) -> 63
B58: Comprados - Consumos Intermediários | J58: Observações
B59: Insumos | E59: Unidade | F59: Valor Unitário | G59: Qtde | H59: Valor Total | I59: Origem
B60: esterco | E60: kg | F60: 0.09 | G60: 4000 | H60: =G60*F60 -> 360 | I60: T
B61: sementes de milho híbrido (Joia) | E61: kg | F61: 4 | G61: 40 | H61: =G61*F61 -> 160 | I61: F
H62: 0
H63: 0
H64: 0
H65: 0
H66: 0
H67: 0
H68: 0
H69: 0
H70: 0
H71: 0
H72: 0
H73: 0
H74: 0
H75: 0
H76: 0
H77: 0
H78: 0
H79: 0
B80: Insumos Comprados no Território | H80: =DSUM(H59:I79,"Valor Total",G124:G125) -> 360
B81: Insumos Comprados Fora do Território | H81: =DSUM(H59:I79,"Valor Total",H124:H125) -> 160
B82: Total de Insumos Comprados | H82: =SUM(H60:H79) -> 520
B84: Pagamento a Terceiros | J84: Observações
B85: Serviços/Renda da Terra | E85: Unidade | F85: Valor Unitário | G85: Qtde | H85: Valor Total | I85: Origem
B86: pagamento a serviço de terceiros para transporte de milho. | E86: diarias | F86: 30 | G86: 5 | H86: =G86*F86 -> 150
B87: pagamento a serviço de terceiros para colheita de milho. | E87: frete | F87: 150 | G87: 1 | H87: 150
B88: servicio de diarias em outro município (São Braz)~, para plantio de capim. | E88: diarias | F88: 30 | G88: 12 | H88: 360
H89: 0
H90: 0
H91: 0
H92: 0
H93: 0
H94: 0
H95: 0
H96: 0
H97: 0
H98: 0
H99: 0
H100: 0
B101: Pagamentos a Terceiros do Território | H101: =DSUM(H85:I100,"Valor Total",G124:G125) -> 0
B102: Pagamentos a Terceiros Fora do Território | H102: =DSUM(H85:I100,"Valor Total",H124:H125) -> 0
B103: Total de Pagamentos a Terceiros | H103: =SUM(H86:H100) -> 660
B105: Entrada de Recursos por Reciprocidade | I105: Observações
B106: Serviços e Insumos | E106: Unidade | F106: Valor Unitário | G106: Qtde | H106: Valor Total
H107: =G107*F107 -> 0
H108: 0
H109: 0
H110: 0
H111: 0
H112: 0
H113: 0
H114: 0
H115: 0
H116: 0
H117: 0
H118: 0
H119: 0
H120: 0
H121: 0
B122: Total Recursos por Reciprocidade | H122: =SUM(H107:H121) -> 0
G124: Origem | H124: Origem
G125: T | H125: F

Sheet SUB. 6
B2: ENTRADA DE DADOS POR SUBSISTEMA
B6: Subsistema n° 6: | D6: Quintal - frutas e medicinais | K6: OBS
B8: ÁREA | C8: 0.16 | D8: hectare(s)
C12: Horas Trabalhadas | L12: Observações
C13: Mulher | D13: Homem | E13: Jovens Mulheres | F13: Jovens Homens | G13: Outras | H13: Outros | I13: Total Mulheres | J13: Total Homens | K13: TOTAL
B14: N° Horas | C14: =1*365 -> 365 | D14: 6 | E14: =0.2*365 -> 73 | I14: =C14+E14+G14 -> 438 | J14: =D14+F14+H14 -> 6 | K14: =C14+D14+E14+F14+G14+H14 -> 444
B16: Produtos e Insumos Gerados | G16: Produtos | Q16: Insumos Produzidos | S16: Total Produtos e Insumos | U16: Observações
G17: Venda | I17: Autoconsumo | K17: Doações Trocas | M17: Estoque | O17: Total Produtos
B18: Itens | E18: Unidade | F18: Valor Unitário | G18: Qtde | H18: Valor Total | I18: Qtde | J18: Valor Total | K18: Qtde | L18: Valor Total | M18: Qtde | N18: Valor Total | O18: Qtde | P18: Valor Total | Q18: Qtde | R18: Valor Total | S18: Qtde | T18: Valor Total
B19: gliricidea | E19: kg | F19: 3 | G19: 0 | H19: =G19*F19 -> 0 | J19: =I19*F19 -> 0 | L19: =K19*F19 -> 0 | N19: =M19*F19 -> 0 | O19: =G19+I19+K19+M19 -> 0 | P19: =F19*O19 -> 0 | Q19: 183 | R19: =Q19*F19 -> 549 | S19: =Q19+O19 -> 183 | T19: =S19*F19 -> 549
B20: jenipapo | E20: kg | F20: 3 | H20: 0 | I20: =5*3 -> 15 | J20: 45 | L20: 0 | N20: 0 | O20: 15 | P20: 45 | R20: 0 | S20: 15 | T20: 45
B21: cidreira | E21: molho | F21: 2 | G21: 0 | H21: 0 | I21: 48 | J21: 96 | L21: 0 | N21: 0 | O21: 48 | P21: 96 | R21: 0 | S21: 48 | T21: 96
B22: açerola | E22: kg | F22: 2 | G22: 0 | H22: 0 | I22: 48 | J22: 96 | L22: 0 | N22: 0 | O22: 48 | P22: 96 | R22: 0 | S22: 48 | T22: 96
B23: pinha | E23: kg | F23: 5 | G23: 0 | H23: 0 | I23: 12 | J23: 60 | L23: 0 | N23: 0 | O23: 12 | P23: 60 | R23: 0 | S23: 12 | T23: 60
B24: coco verde | E24: unidade | F24: 2 | H24: 0 | I24: 70 | J24: 140 | L24: 0 | N24: 0 | O24: 70 | P24: 140 | R24: 0 | S24: 70 | T24: 140
B25: laranja | E25: unidade | F25: 0.25 | H25: 0 | I25: 48 | J25: 12 | L25: 0 | N25: 0 | O25: 48 | P25: 12 | R25: 0 | S25: 48 | T25: 12
B26: hortelã de sete dor | E26: molho | F26: 2 | H26: 0 | I26: 48 | J26: 96 | L26: 0 | N26: 0 | O26: 48 | P26: 96 | R26: 0 | S26: 48 | T26: 96
B27: hortelã | E27: molho | F27: 2 | H27: 0 | I27: 48 | J27: 96 | L27: 0 | N27: 0 | O27: 48 | P27: 96 | R27: 0 | S27: 48 | T27: 96
B28: samba caitá | E28: molho | F28: 2 | H28: 0 | I28: 48 | J28: 96 | L28: 0 | N28: 0 | O28: 48 | P28: 96 | R28: 0 | S28: 48 | T28: 96
B29: couve | E29: molho | F29: 2 | H29: 0 | I29: 96 | J29: 192 | K29: 72 | L29: 144 | N29: 0 | O29: 168 | P29: 336 | R29: 0 | S29: 168 | T29: 336
B30: pimentão | E30: kg | F30: 2 | H30: 0 | I30: 2 | J30: 4 | L30: 0 | N30: 0 | O30: 2 | P30: 4 | R30: 0 | S30: 2 | T30: 4
B31: coentro | E31: molho | F31: 2 | H31: 0 | I31: 96 | J31: 192 | K31: 72 | L31: 144 | N31: 0 | O31: 168 | P31: 336 | R31: 0 | S31: 168 | T31: 336
B32: cebolinha | E32: molho | F32: 1.5 | H32: 0 | I32: 96 | J32: 144 | K32: 72 | L32: 108 | N32: 0 | P32: 0 | R32: 0 | S32: 0 | T32: 0
H33: =G33*F33 -> 0 | J33: =I33*F33 -> 0 | L33: =K33*F33 -> 0 | N33: =M33*F33 -> 0 | O33: =G33+I33+K33+M33 -> 0 | P33: =F33*O33 -> 0 | R33: =Q33*F33 -> 0 | S33: =Q33+O33 -> 0 | T33: =S33*F33 -> 0
H34: 0 | J34: 0 | L34: 0 | N34: 0 | O34: 0 | P34: 0 | R34: 0 | S34: 0 | T34: 0
H35: 0 | J35: 0 | L35: 0 | N35: 0 | O35: 0 | P35: 0 | R35: 0 | S35: 0 | T35: 0
H36: 0 | J36: 0 | L36: 0 | N36: 0 | P36: 0 | R36: 0 | S36: 0 | T36: 0
B37: Totais | H37: =SUM(H19:H36) -> 0 | J37: =SUM(J19:J36) -> 1269 | L37: =SUM(L19:L36) -> 396 | N37: =SUM(N19:N36) -> 0 | P37: =SUM(P19:P36) -> 1413 | R37: =SUM(R19:R36) -> 549 | T37: =SUM(T19:T36) -> 1962
B39: Insumos
B40: Produção Própria - Reciprocidade Ecológica | I40: Observações
B41: Itens | E41: Unidade | F41: Valor Unitário | G41: Qtde | H41: Valor Total
B42: esterco | E42: kg | F42: 0.42 | G42: =5*12 -> 60 | H42: =G42*F42 -> 25.2
H43: =G43*F43 -> 0
H44: 0
H45: 0
H46: 0
H47: 0
H48: 0
H49: 0
H50: 0
H51: 0
H52: 0
H53: 0
H54: 0
H55: 0
H56: 0
B57: Total Insumos - Produção Própria | H57: =SUM(H42:H56) -> 25.2
B58: Comprados - Consumos Intermediários | J58: Observações
B59: Insumos | E59: Unidade | F59: Valor Unitário | G59: Qtde | H59: Valor Total | I59: Origem
H60: =G60*F60 -> 0
H61: =G61*F61 -> 0
H62: 0
H63: 0
H64: 0
H65: 0
H66: 0
H67: 0
H68: 0
H69: 0
H70: 0
H71: 0
H72: 0
H73: 0
H74: 0
H75: 0
H76: 0
H77: 0
H78: 0
H79: 0
B80: Insumos Comprados no Território | H80: =DSUM(H59:I79,"Valor Total",G124:G125) -> 0
B81: Insumos Comprados Fora do Território | H81: =DSUM(H59:I79,"Valor Total",H124:H125) -> 0
B82: Total de Insumos Comprados | H82: =SUM(H60:H79) -> 0
B84: Pagamento a Terceiros | J84: Observações
B85: Serviços/Renda da Terra | E85: Unidade | F85: Valor Unitário | G85: Qtde | H85: Valor Total | I85: Origem
H86: =G86*F86 -> 0
H87: 0
H88: 0
H89: 0
H90: 0
H91: 0
H92: 0
H93: 0
H94: 0
H95: 0
H96: 0
H97: 0
H98: 0
H99: 0
H100: 0
B101: Pagamentos a Terceiros do Território | H101: =DSUM(H85:I100,"Valor Total",G124:G125) -> 0
B102: Pagamentos a Terceiros Fora do Território | H102: =DSUM(H85:I100,"Valor Total",H124:H125) -> 0
B103: Total de Pagamentos a Terceiros | H103: =SUM(H86:H100) -> 0
B105: Entrada de Recursos por Reciprocidade | I105: Observações
B106: Serviços e Insumos | E106: Unidade | F106: Valor Unitário | G106: Qtde | H106: Valor Total
H107: =G107*F107 -> 0
H108: 0
H109: 0
H110: 0
H111: 0
H112: 0
H113: 0
H114: 0
H115: 0
H116: 0
H117: 0
H118: 0
H119: 0
H120: 0
H121: 0
B122: Total Recursos por Reciprocidade | H122: =SUM(H107:H121) -> 0
G124: Origem | H124: Origem
G125: T | H125: F

Sheet SUB. 7
B2: ENTRADA DE DADOS POR SUBSISTEMA
B6: Subsistema n° 7: | K6: OBS
B8: ÁREA | D8: hectare(s)
C12: Horas Trabalhadas | L12: Observações
C13: Mulher | D13: Homem | E13: Jovens Mulheres | F13: Jovens Homens | G13: Outras | H13: Outros | I13: Total Mulheres | J13: Total Homens | K13: TOTAL
B14: N° Horas | I14: =C14+E14+G14 -> 0 | J14: =D14+F14+H14 -> 0 | K14: =C14+D14+E14+F14+G14+H14 -> 0
B16: Produtos e Insumos Gerados | G16: Produtos | Q16: Insumos Produzidos | S16: Total Produtos e Insumos | U16: Observações
G17: Venda | I17: Autoconsumo | K17: Doações Trocas | M17: Estoque | O17: Total Produtos
B18: Itens | E18: Unidade | F18: Valor Unitário | G18: Qtde | H18: Valor Total | I18: Qtde | J18: Valor Total | K18: Qtde | L18: Valor Total | M18: Qtde | N18: Valor Total | O18: Qtde | P18: Valor Total | Q18: Qtde | R18: Valor Total | S18: Qtde | T18: Valor Total
H19: =G19*F19 -> 0 | J19: =I19*F19 -> 0 | L19: =K19*F19 -> 0 | N19: =M19*F19 -> 0 | O19: =G19+I19+K19+M19 -> 0 | P19: =F19*O19 -> 0 | R19: =Q19*F19 -> 0 | S19: =Q19+O19 -> 0 | T19: =S19*F19 -> 0
H20: 0 | J20: 0 | L20: 0 | N20: 0 | O20: 0 | P20: 0 | R20: 0 | S20: 0 | T20: 0
H21: 0 | J21: 0 | L21: 0 | N21: 0 | O21: 0 | P21: 0 | R21: 0 | S21: 0 | T21: 0
H22: 0 | J22: 0 | L22: 0 | N22: 0 | O22: 0 | P22: 0 | R22: 0 | S22: 0 | T22: 0
H23: 0 | J23: 0 | L23: 0 | N23: 0 | O23: 0 | P23: 0 | R23: 0 | S23: 0 | T23: 0
H24: 0 | J24: 0 | L24: 0 | N24: 0 | O24: 0 | P24: 0 | R24: 0 | S24: 0 | T24: 0
H25: 0 | J25: 0 | L25: 0 | N25: 0 | O25: 0 | P25: 0 | R25: 0 | S25: 0 | T25: 0
H26: 0 | J26: 0 | L26: 0 | N26: 0 | O26: 0 | P26: 0 | R26: 0 | S26: 0 | T26: 0
H27: 0 | J27: 0 | L27: 0 | N27: 0 | O27: 0 | P27: 0 | R27: 0 | S27: 0 | T27: 0
H28: 0 | J28: 0 | L28: 0 | N28: 0 | O28: 0 | P28: 0 | R28: 0 | S28: 0 | T28: 0
H29: 0 | J29: 0 | L29: 0 | N29: 0 | O29: 0 | P29: 0 | R29: 0 | S29: 0 | T29: 0
H30: 0 | J30: 0 | L30: 0 | N30: 0 | O30: 0 | P30: 0 | R30: 0 | S30: 0 | T30: 0
H31: 0 | J31: 0 | L31: 0 | N31: 0 | O31: 0 | P31: 0 | R31: 0 | S31: 0 | T31: 0
H32: 0 | J32: 0 | L32: 0 | N32: 0 | O32: 0 | P32: 0 | R32: 0 | S32: 0 | T32: 0
H33: 0 | J33: 0 | L33: 0 | N33: 0 | O33: 0 | P33: 0 | R33: 0 | S33: 0 | T33: 0
H34: 0 | J34: 0 | L34: 0 | N34: 0 | O34: 0 | P34: 0 | R34: 0 | S34: 0 | T34: 0
H35: 0 | J35: 0 | L35: 0 | N35: 0 | O35: 0 | P35: 0 | R35: 0 | S35: 0 | T35: 0
H36: 0 | J36: 0 | L36: 0 | N36: 0 | O36: 0 | P36: 0 | R36: 0 | S36: 0 | T36: 0
B37: Totais | H37: =SUM(H19:H36) -> 0 | J37: =SUM(J19:J36) -> 0 | L37: =SUM(L19:L36) -> 0 | N37: =SUM(N19:N36) -> 0 | P37: =SUM(P19:P36) -> 0 | R37: =SUM(R19:R36) -> 0 | T37: =SUM(T19:T36) -> 0
B39: Insumos
B40: Produção Própria - Reciprocidade Ecológica | I40: Observações
B41: Itens | E41: Unidade | F41: Valor Unitário | G41: Qtde | H41: Valor Total
H42: =G42*F42 -> 0
H43: 0
H44: 0
H45: 0
H46: 0
H47: 0
H48: 0
H49: 0
H50: 0
H51: 0
H52: 0
H53: 0
H54: 0
H55: 0
H56: 0
B57: Total Insumos - Produção Própria | H57: =SUM(H42:H56) -> 0
B58: Comprados - Consumos Intermediários | J58: Observações
B59: Insumos | E59: Unidade | F59: Valor Unitário | G59: Qtde | H59: Valor Total | I59: Origem
H60: =G60*F60 -> 0
H61: =G61*F61 -> 0
H62: 0
H63: 0
H64: 0
H65: 0
H66: 0
H67: 0
H68: 0
H69: 0
H70: 0
H71: 0
H72: 0
H73: 0
H74: 0
H75: 0
H76: 0
H77: 0
H78: 0
H79: 0
B80: Insumos Comprados no Território | H80: =DSUM(H59:I79,"Valor Total",G124:G125) -> 0
B81: Insumos Comprados Fora do Território | H81: =DSUM(H59:I79,"Valor Total",H124:H125) -> 0
B82: Total de Insumos Comprados | H82: =SUM(H60:H79) -> 0
B84: Pagamento a Terceiros | J84: Observações
B85: Serviços/Renda da Terra | E85: Unidade | F85: Valor Unitário | G85: Qtde | H85: Valor Total | I85: Origem
H86: =G86*F86 -> 0
H87: 0
H88: 0
H89: 0
H90: 0
H91: 0
H92: 0
H93: 0
H94: 0
H95: 0
H96: 0
H97: 0
H98: 0
H99: 0
H100: 0
B101: Pagamentos a Terceiros do Território | H101: =DSUM(H85:I100,"Valor Total",G124:G125) -> 0
B102: Pagamentos a Terceiros Fora do Território | H102: =DSUM(H85:I100,"Valor Total",H124:H125) -> 0
B103: Total de Pagamentos a Terceiros | H103: =SUM(H86:H100) -> 0
B105: Entrada de Recursos por Reciprocidade | I105: Observações
B106: Serviços e Insumos | E106: Unidade | F106: Valor Unitário | G106: Qtde | H106: Valor Total
H107: =G107*F107 -> 0
H108: 0
H109: 0
H110: 0
H111: 0
H112: 0
H113: 0
H114: 0
H115: 0
H116: 0
H117: 0
H118: 0
H119: 0
H120: 0
H121: 0
B122: Total Recursos por Reciprocidade | H122: =SUM(H107:H121) -> 0
G124: Origem | H124: Origem
G125: T | H125: F

Sheet SUB. 8
B2: ENTRADA DE DADOS POR SUBSISTEMA
B6: Subsistema n° 8: | K6: OBS
B8: ÁREA | D8: hectare(s)
C12: Horas Trabalhadas | L12: Observações
C13: Mulher | D13: Homem | E13: Jovens Mulheres | F13: Jovens Homens | G13: Outras | H13: Outros | I13: Total Mulheres | J13: Total Homens | K13: TOTAL
B14: N° Horas | I14: =C14+E14+G14 -> 0 | J14: =D14+F14+H14 -> 0 | K14: =C14+D14+E14+F14+G14+H14 -> 0
B16: Produtos e Insumos Gerados | G16: Produtos | Q16: Insumos Produzidos | S16: Total Produtos e Insumos | U16: Observações
G17: Venda | I17: Autoconsumo | K17: Doações Trocas | M17: Estoque | O17: Total Produtos
B18: Itens | E18: Unidade | F18: Valor Unitário | G18: Qtde | H18: Valor Total | I18: Qtde | J18: Valor Total | K18: Qtde | L18: Valor Total | M18: Qtde | N18: Valor Total | O18: Qtde | P18: Valor Total | Q18: Qtde | R18: Valor Total | S18: Qtde | T18: Valor Total
G19: 0 | H19: =G19*F19 -> 0 | I19: 0 | J19: =I19*F19 -> 0 | K19: 0 | L19: =K19*F19 -> 0 | M19: 0 | N19: =M19*F19 -> 0 | O19: =G19+I19+K19+M19 -> 0 | P19: =F19*O19 -> 0 | R19: =Q19*F19 -> 0 | S19: =Q19+O19 -> 0 | T19: =S19*F19 -> 0
H20: 0 | J20: 0 | L20: 0 | N20: 0 | O20: 0 | P20: 0 | R20: 0 | S20: 0 | T20: 0
H21: 0 | J21: 0 | L21: 0 | N21: 0 | O21: 0 | P21: 0 | R21: 0 | S21: 0 | T21: 0
H22: 0 | J22: 0 | L22: 0 | N22: 0 | O22: 0 | P22: 0 | R22: 0 | S22: 0 | T22: 0
H23: 0 | J23: 0 | L23: 0 | N23: 0 | O23: 0 | P23: 0 | R23: 0 | S23: 0 | T23: 0
H24: 0 | J24: 0 | L24: 0 | N24: 0 | O24: 0 | P24: 0 | Q24: 0 | R24: 0 | S24: 0 | T24: 0
H25: 0 | J25: 0 | L25: 0 | N25: 0 | O25: 0 | P25: 0 | R25: 0 | S25: 0 | T25: 0
H26: 0 | J26: 0 | L26: 0 | N26: 0 | O26: 0 | P26: 0 | R26: 0 | S26: 0 | T26: 0
H27: 0 | J27: 0 | L27: 0 | N27: 0 | O27: 0 | P27: 0 | R27: 0 | S27: 0 | T27: 0
H28: 0 | J28: 0 | L28: 0 | N28: 0 | O28: 0 | P28: 0 | R28: 0 | S28: 0 | T28: 0
H29: 0 | J29: 0 | L29: 0 | N29: 0 | O29: 0 | P29: 0 | R29: 0 | S29: 0 | T29: 0
H30: 0 | J30: 0 | L30: 0 | N30: 0 | O30: 0 | P30: 0 | R30: 0 | S30: 0 | T30: 0
H31: 0 | J31: 0 | L31: 0 | N31: 0 | O31: 0 | P31: 0 | R31: 0 | S31: 0 | T31: 0
H32: 0 | J32: 0 | L32: 0 | N32: 0 | O32: 0 | P32: 0 | R32: 0 | S32: 0 | T32: 0
H33: 0 | J33: 0 | L33: 0 | N33: 0 | O33: 0 | P33: 0 | R33: 0 | S33: 0 | T33: 0
H34: 0 | J34: 0 | L34: 0 | N34: 0 | O34: 0 | P34: 0 | R34: 0 | S34: 0 | T34: 0
H35: 0 | J35: 0 | L35: 0 | N35: 0 | O35: 0 | P35: 0 | R35: 0 | S35: 0 | T35: 0
H36: 0 | J36: 0 | L36: 0 | N36: 0 | O36: 0 | P36: 0 | R36: 0 | S36: 0 | T36: 0
B37: Totais | H37: =SUM(H19:H36) -> 0 | J37: =SUM(J19:J36) -> 0 | L37: =SUM(L19:L36) -> 0 | N37: =SUM(N19:N36) -> 0 | P37: =SUM(P19:P36) -> 0 | R37: =SUM(R19:R36) -> 0 | T37: =SUM(T19:T36) -> 0
B39: Insumos
B40: Produção Própria - Reciprocidade Ecológica | I40: Observações
B41: Itens | E41: Unidade | F41: Valor Unitário | G41: Qtde | H41: Valor Total
H42: =G42*F42 -> 0
H43: 0
H44: 0
H45: 0
H46: 0
H47: 0
H48: 0
H49: 0
H50: 0
H51: 0
H52: 0
H53: 0
H54: 0
H55: 0
H56: 0
B57: Total Insumos - Produção Própria | H57: =SUM(H42:H56) -> 0
B58: Comprados - Consumos Intermediários | J58: Observações
B59: Insumos | E59: Unidade | F59: Valor Unitário | G59: Qtde | H59: Valor Total | I59: Origem
H60: =G60*F60 -> 0
H61: =G61*F61 -> 0
H62: 0
H63: 0
H64: 0
H65: 0
H66: 0
H67: 0
H68: 0
H69: 0
H70: 0
H71: 0
H72: 0
H73: 0
H74: 0
H75: 0
H76: 0
H77: 0
H78: 0
H79: 0
B80: Insumos Comprados no Território | H80: =DSUM(H59:I79,"Valor Total",G124:G125) -> 0
B81: Insumos Comprados Fora do Território | H81: =DSUM(H59:I79,"Valor Total",H124:H125) -> 0
B82: Total de Insumos Comprados | H82: =SUM(H60:H79) -> 0
B84: Pagamento a Terceiros | J84: Observações
B85: Serviços/Renda da Terra | E85: Unidade | F85: Valor Unitário | G85: Qtde | H85: Valor Total | I85: Origem
H86: =G86*F86 -> 0
H87: 0
H88: 0
H89: 0
H90: 0
H91: 0
H92: 0
H93: 0
H94: 0
H95: 0
H96: 0
H97: 0
H98: 0
H99: 0
H100: 0
B101: Pagamentos a Terceiros do Território | H101: =DSUM(H85:I100,"Valor Total",G124:G125) -> 0
B102: Pagamentos a Terceiros Fora do Território | H102: =DSUM(H85:I100,"Valor Total",H124:H125) -> 0
B103: Total de Pagamentos a Terceiros | H103: =SUM(H86:H100) -> 0
B105: Entrada de Recursos por Reciprocidade | I105: Observações
B106: Serviços e Insumos | E106: Unidade | F106: Valor Unitário | G106: Qtde | H106: Valor Total
H107: =G107*F107 -> 0
H108: 0
H109: 0
H110: 0
H111: 0
H112: 0
H113: 0
H114: 0
H115: 0
H116: 0
H117: 0
H118: 0
H119: 0
H120: 0
H121: 0
B122: Total Recursos por Reciprocidade | H122: =SUM(H107:H121) -> 0
G124: Origem | H124: Origem
G125: T | H125: F

Sheet SUB. 9
B2: ENTRADA DE DADOS POR SUBSISTEMA
B6: Subsistema n° 9: | K6: OBS
B8: ÁREA | D8: hectare(s)
C12: Horas Trabalhadas | L12: Observações
C13: Mulher | D13: Homem | E13: Jovens Mulheres | F13: Jovens Homens | G13: Outras | H13: Outros | I13: Total Mulheres | J13: Total Homens | K13: TOTAL
B14: N° Horas | I14: =C14+E14+G14 -> 0 | J14: =D14+F14+H14 -> 0 | K14: =C14+D14+E14+F14+G14+H14 -> 0
B16: Produtos e Insumos Gerados | G16: Produtos | Q16: Insumos Produzidos | S16: Total Produtos e Insumos | U16: Observações
G17: Venda | I17: Autoconsumo | K17: Doações Trocas | M17: Estoque | O17: Total Produtos
B18: Itens | E18: Unidade | F18: Valor Unitário | G18: Qtde | H18: Valor Total | I18: Qtde | J18: Valor Total | K18: Qtde | L18: Valor Total | M18: Qtde | N18: Valor Total | O18: Qtde | P18: Valor Total | Q18: Qtde | R18: Valor Total | S18: Qtde | T18: Valor Total
G19: 0 | H19: =G19*F19 -> 0 | I19: 0 | J19: =I19*F19 -> 0 | K19: 0 | L19: =K19*F19 -> 0 | M19: 0 | N19: =M19*F19 -> 0 | O19: =G19+I19+K19+M19 -> 0 | P19: =F19*O19 -> 0 | Q19: 0 | R19: =Q19*F19 -> 0 | S19: =Q19+O19 -> 0 | T19: =S19*F19 -> 0
H20: 0 | J20: 0 | L20: 0 | N20: 0 | O20: 0 | P20: 0 | R20: 0 | S20: 0 | T20: 0
H21: 0 | J21: 0 | L21: 0 | N21: 0 | O21: 0 | P21: 0 | R21: 0 | S21: 0 | T21: 0
H22: 0 | J22: 0 | L22: 0 | N22: 0 | O22: 0 | P22: 0 | R22: 0 | S22: 0 | T22: 0
H23: 0 | J23: 0 | L23: 0 | N23: 0 | O23: 0 | P23: 0 | R23: 0 | S23: 0 | T23: 0
H24: 0 | J24: 0 | L24: 0 | N24: 0 | O24: 0 | P24: 0 | R24: 0 | S24: 0 | T24: 0
H25: 0 | J25: 0 | L25: 0 | N25: 0 | O25: 0 | P25: 0 | R25: 0 | S25: 0 | T25: 0
H26: 0 | J26: 0 | L26: 0 | N26: 0 | O26: 0 | P26: 0 | R26: 0 | S26: 0 | T26: 0
H27: 0 | J27: 0 | L27: 0 | N27: 0 | O27: 0 | P27: 0 | R27: 0 | S27: 0 | T27: 0
H28: 0 | J28: 0 | L28: 0 | N28: 0 | O28: 0 | P28: 0 | R28: 0 | S28: 0 | T28: 0
H29: 0 | J29: 0 | L29: 0 | N29: 0 | O29: 0 | P29: 0 | R29: 0 | S29: 0 | T29: 0
H30: 0 | J30: 0 | L30: 0 | N30: 0 | O30: 0 | P30: 0 | R30: 0 | S30: 0 | T30: 0
H31: 0 | J31: 0 | L31: 0 | N31: 0 | O31: 0 | P31: 0 | R31: 0 | S31: 0 | T31: 0
H32: 0 | J32: 0 | L32: 0 | N32: 0 | O32: 0 | P32: 0 | R32: 0 | S32: 0 | T32: 0
H33: 0 | J33: 0 | L33: 0 | N33: 0 | O33: 0 | P33: 0 | R33: 0 | S33: 0 | T33: 0
H34: 0 | J34: 0 | L34: 0 | N34: 0 | O34: 0 | P34: 0 | R34: 0 | S34: 0 | T34: 0
H35: 0 | J35: 0 | L35: 0 | N35: 0 | O35: 0 | P35: 0 | R35: 0 | S35: 0 | T35: 0
H36: 0 | J36: 0 | L36: 0 | N36: 0 | O36: 0 | P36: 0 | R36: 0 | S36: 0 | T36: 0
B37: Totais | H37: =SUM(H19:H36) -> 0 | J37: =SUM(J19:J36) -> 0 | L37: =SUM(L19:L36) -> 0 | N37: =SUM(N19:N36) -> 0 | P37: =SUM(P19:P36) -> 0 | R37: =SUM(R19:R36) -> 0 | T37: =SUM(T19:T36) -> 0
B39: Insumos
B40: Produção Própria - Reciprocidade Ecológica | I40: Observações
B41: Itens | E41: Unidade | F41: Valor Unitário | G41: Qtde | H41: Valor Total
H42: =G42*F42 -> 0
H43: 0
H44: 0
H45: 0
H46: 0
H47: 0
H48: 0
H49: 0
H50: 0
H51: 0
H52: 0
H53: 0
H54: 0
H55: 0
H56: 0
B57: Total Insumos - Produção Própria | H57: =SUM(H42:H56) -> 0
B58: Comprados - Consumos Intermediários | J58: Observações
B59: Insumos | E59: Unidade | F59: Valor Unitário | G59: Qtde | H59: Valor Total | I59: Origem
H60: =G60*F60 -> 0
H61: =G61*F61 -> 0
H62: 0
H63: 0
H64: 0
H65: 0
H66: 0
H67: 0
H68: 0
H69: 0
H70: 0
H71: 0
H72: 0
H73: 0
H74: 0
H75: 0
H76: 0
H77: 0
H78: 0
H79: 0
B80: Insumos Comprados no Território | H80: =DSUM(H59:I79,"Valor Total",G124:G125) -> 0
B81: Insumos Comprados Fora do Território | H81: =DSUM(H59:I79,"Valor Total",H124:H125) -> 0
B82: Total de Insumos Comprados | H82: =SUM(H60:H79) -> 0
B84: Pagamento a Terceiros | J84: Observações
B85: Serviços/Renda da Terra | E85: Unidade | F85: Valor Unitário | G85: Qtde | H85: Valor Total | I85: Origem
H86: =G86*F86 -> 0
H87: 0
H88: 0
H89: 0
H90: 0
H91: 0
H92: 0
H93: 0
H94: 0
H95: 0
H96: 0
H97: 0
H98: 0
H99: 0
H100: 0
B101: Pagamentos a Terceiros do Território | H101: =DSUM(H85:I100,"Valor Total",G124:G125) -> 0
B102: Pagamentos a Terceiros Fora do Território | H102: =DSUM(H85:I100,"Valor Total",H124:H125) -> 0
B103: Total de Pagamentos a Terceiros | H103: =SUM(H86:H100) -> 0
B105: Entrada de Recursos por Reciprocidade | I105: Observações
B106: Serviços e Insumos | E106: Unidade | F106: Valor Unitário | G106: Qtde | H106: Valor Total
H107: =G107*F107 -> 0
H108: 0
H109: 0
H110: 0
H111: 0
H112: 0
H113: 0
H114: 0
H115: 0
H116: 0
H117: 0
H118: 0
H119: 0
H120: 0
H121: 0
B122: Total Recursos por Reciprocidade | H122: =SUM(H107:H121) -> 0
G124: Origem | H124: Origem
G125: T | H125: F

Sheet SUB. 10
A2: sel17 | B2: ENTRADA DE DADOS POR SUBSISTEMA
B6: Subsistema n° 10: | K6: OBS
B8: ÁREA | D8: hectare(s)
C12: Horas Trabalhadas | L12: Observações
C13: Mulher | D13: Homem | E13: Jovens Mulheres | F13: Jovens Homens | G13: Outras | H13: Outros | I13: Total Mulheres | J13: Total Homens | K13: TOTAL
B14: N° Horas | I14: =C14+E14+G14 -> 0 | J14: =D14+F14+H14 -> 0 | K14: =C14+D14+E14+F14+G14+H14 -> 0
B16: Produtos e Insumos Gerados | G16: Produtos | Q16: Insumos Produzidos | S16: Total Produtos e Insumos | U16: Observações
G17: Venda | I17: Autoconsumo | K17: Doações Trocas | M17: Estoque | O17: Total Produtos
B18: Itens | E18: Unidade | F18: Valor Unitário | G18: Qtde | H18: Valor Total | I18: Qtde | J18: Valor Total | K18: Qtde | L18: Valor Total | M18: Qtde | N18: Valor Total | O18: Qtde | P18: Valor Total | Q18: Qtde | R18: Valor Total | S18: Qtde | T18: Valor Total
G19: 0 | H19: =G19*F19 -> 0 | I19: 0 | J19: =I19*F19 -> 0 | K19: 0 | L19: =K19*F19 -> 0 | M19: 0 | N19: =M19*F19 -> 0 | O19: =G19+I19+K19+M19 -> 0 | P19: =F19*O19 -> 0 | Q19: 0 | R19: =Q19*F19 -> 0 | S19: =Q19+O19 -> 0 | T19: =S19*F19 -> 0
H20: 0 | J20: 0 | L20: 0 | N20: 0 | O20: 0 | P20: 0 | R20: 0 | S20: 0 | T20: 0
H21: 0 | J21: 0 | L21: 0 | N21: 0 | O21: 0 | P21: 0 | R21: 0 | S21: 0 | T21: 0
H22: 0 | J22: 0 | L22: 0 | N22: 0 | O22: 0 | P22: 0 | R22: 0 | S22: 0 | T22: 0
H23: 0 | J23: 0 | L23: 0 | N23: 0 | O23: 0 | P23: 0 | R23: 0 | S23: 0 | T23: 0
H24: 0 | J24: 0 | L24: 0 | N24: 0 | O24: 0 | P24: 0 | R24: 0 | S24: 0 | T24: 0
H25: 0 | J25: 0 | L25: 0 | N25: 0 | O25: 0 | P25: 0 | R25: 0 | S25: 0 | T25: 0
H26: 0 | J26: 0 | L26: 0 | N26: 0 | O26: 0 | P26: 0 | R26: 0 | S26: 0 | T26: 0
H27: 0 | J27: 0 | L27: 0 | N27: 0 | O27: 0 | P27: 0 | R27: 0 | S27: 0 | T27: 0
H28: 0 | J28: 0 | L28: 0 | N28: 0 | O28: 0 | P28: 0 | R28: 0 | S28: 0 | T28: 0
H29: 0 | J29: 0 | L29: 0 | N29: 0 | O29: 0 | P29: 0 | R29: 0 | S29: 0 | T29: 0
H30: 0 | J30: 0 | L30: 0 | N30: 0 | O30: 0 | P30: 0 | R30: 0 | S30: 0 | T30: 0
H31: 0 | J31: 0 | L31: 0 | N31: 0 | O31: 0 | P31: 0 | R31: 0 | S31: 0 | T31: 0
H32: 0 | J32: 0 | L32: 0 | N32: 0 | O32: 0 | P32: 0 | R32: 0 | S32: 0 | T32: 0
H33: 0 | J33: 0 | L33: 0 | N33: 0 | O33: 0 | P33: 0 | R33: 0 | S33: 0 | T33: 0
H34: 0 | J34: 0 | L34: 0 | N34: 0 | O34: 0 | P34: 0 | R34: 0 | S34: 0 | T34: 0
H35: 0 | J35: 0 | L35: 0 | N35: 0 | O35: 0 | P35: 0 | R35: 0 | S35: 0 | T35: 0
H36: 0 | J36: 0 | L36: 0 | N36: 0 | O36: 0 | P36: 0 | R36: 0 | S36: 0 | T36: 0
B37: Totais | H37: =SUM(H19:H36) -> 0 | J37: =SUM(J19:J36) -> 0 | L37: =SUM(L19:L36) -> 0 | N37: =SUM(N19:N36) -> 0 | P37: =SUM(P19:P36) -> 0 | R37: =SUM(R19:R36) -> 0 | T37: =SUM(T19:T36) -> 0
B39: Insumos
B40: Produção Própria - Reciprocidade Ecológica | I40: Observações
B41: Itens | E41: Unidade | F41: Valor Unitário | G41: Qtde | H41: Valor Total
H42: =G42*F42 -> 0
H43: 0
H44: 0
H45: 0
H46: 0
H47: 0
H48: 0
H49: 0
H50: 0
H51: 0
H52: 0
H53: 0
H54: 0
H55: 0
H56: 0
B57: Total Insumos - Produção Própria | H57: =SUM(H42:H56) -> 0
B58: Comprados - Consumos Intermediários | J58: Observações
B59: Insumos | E59: Unidade | F59: Valor Unitário | G59: Qtde | H59: Valor Total | I59: Origem
H60: =G60*F60 -> 0
H61: =G61*F61 -> 0
H62: 0
H63: 0
H64: 0
H65: 0
H66: 0
H67: 0
H68: 0
H69: 0
H70: 0
H71: 0
H72: 0
H73: 0
H74: 0
H75: 0
H76: 0
H77: 0
H78: 0
H79: 0
B80: Insumos Comprados no Território | H80: =DSUM(H59:I79,"Valor Total",G124:G125) -> 0
B81: Insumos Comprados Fora do Território | H81: =DSUM(H59:I79,"Valor Total",H124:H125) -> 0
B82: Total de Insumos Comprados | H82: =SUM(H60:H79) -> 0
B84: Pagamento a Terceiros | J84: Observações
B85: Serviços/Renda da Terra | E85: Unidade | F85: Valor Unitário | G85: Qtde | H85: Valor Total | I85: Origem
H86: =G86*F86 -> 0
H87: 0
H88: 0
H89: 0
H90: 0
H91: 0
H92: 0
H93: 0
H94: 0
H95: 0
H96: 0
H97: 0
H98: 0
H99: 0
H100: 0
B101: Pagamentos a Terceiros do Território | H101: =DSUM(H85:I100,"Valor Total",G124:G125) -> 0
B102: Pagamentos a Terceiros Fora do Território | H102: =DSUM(H85:I100,"Valor Total",H124:H125) -> 0
B103: Total de Pagamentos a Terceiros | H103: =SUM(H86:H100) -> 0
B105: Entrada de Recursos por Reciprocidade | I105: Observações
B106: Serviços e Insumos | E106: Unidade | F106: Valor Unitário | G106: Qtde | H106: Valor Total
H107: =G107*F107 -> 0
H108: 0
H109: 0
H110: 0
H111: 0
H112: 0
H113: 0
H114: 0
H115: 0
H116: 0
H117: 0
H118: 0
H119: 0
H120: 0
H121: 0
B122: Total Recursos por Reciprocidade | H122: =SUM(H107:H121) -> 0
G124: Origem | H124: Origem
G125: T | H125: F

Sheet SUB. 11
B2: ENTRADA DE DADOS POR SUBSISTEMA
B6: Subsistema n° 11: | K6: OBS
B8: ÁREA | D8: hectare(s)
C12: Horas Trabalhadas | L12: Observações
C13: Mulher | D13: Homem | E13: Jovens Mulheres | F13: Jovens Homens | G13: Outras | H13: Outros | I13: Total Mulheres | J13: Total Homens | K13: TOTAL
B14: N° Horas | I14: =C14+E14+G14 -> 0 | J14: =D14+F14+H14 -> 0 | K14: =C14+D14+E14+F14+G14+H14 -> 0
B16: Produtos e Insumos Gerados | G16: Produtos | Q16: Insumos Produzidos | S16: Total Produtos e Insumos | U16: Observações
G17: Venda | I17: Autoconsumo | K17: Doações Trocas | M17: Estoque | O17: Total Produtos
B18: Itens | E18: Unidade | F18: Valor Unitário | G18: Qtde | H18: Valor Total | I18: Qtde | J18: Valor Total | K18: Qtde | L18: Valor Total | M18: Qtde | N18: Valor Total | O18: Qtde | P18: Valor Total | Q18: Qtde | R18: Valor Total | S18: Qtde | T18: Valor Total
G19: 0 | H19: =G19*F19 -> 0 | I19: 0 | J19: =I19*F19 -> 0 | K19: 0 | L19: =K19*F19 -> 0 | M19: 0 | N19: =M19*F19 -> 0 | O19: =G19+I19+K19+M19 -> 0 | P19: =F19*O19 -> 0 | Q19: 0 | R19: =Q19*F19 -> 0 | S19: =Q19+O19 -> 0 | T19: =S19*F19 -> 0
H20: 0 | J20: 0 | L20: 0 | N20: 0 | O20: 0 | P20: 0 | R20: 0 | S20: 0 | T20: 0
H21: 0 | J21: 0 | L21: 0 | N21: 0 | O21: 0 | P21: 0 | R21: 0 | S21: 0 | T21: 0
H22: 0 | J22: 0 | L22: 0 | N22: 0 | O22: 0 | P22: 0 | R22: 0 | S22: 0 | T22: 0
H23: 0 | J23: 0 | L23: 0 | N23: 0 | O23: 0 | P23: 0 | R23: 0 | S23: 0 | T23: 0
H24: 0 | J24: 0 | L24: 0 | N24: 0 | O24: 0 | P24: 0 | R24: 0 | S24: 0 | T24: 0
H25: 0 | J25: 0 | L25: 0 | N25: 0 | O25: 0 | P25: 0 | R25: 0 | S25: 0 | T25: 0
H26: 0 | J26: 0 | L26: 0 | N26: 0 | O26: 0 | P26: 0 | R26: 0 | S26: 0 | T26: 0
H27: 0 | J27: 0 | L27: 0 | N27: 0 | O27: 0 | P27: 0 | R27: 0 | S27: 0 | T27: 0
H28: 0 | J28: 0 | L28: 0 | N28: 0 | O28: 0 | P28: 0 | R28: 0 | S28: 0 | T28: 0
H29: 0 | J29: 0 | L29: 0 | N29: 0 | O29: 0 | P29: 0 | R29: 0 | S29: 0 | T29: 0
H30: 0 | J30: 0 | L30: 0 | N30: 0 | O30: 0 | P30: 0 | R30: 0 | S30: 0 | T30: 0
H31: 0 | J31: 0 | L31: 0 | N31: 0 | O31: 0 | P31: 0 | R31: 0 | S31: 0 | T31: 0
H32: 0 | J32: 0 | L32: 0 | N32: 0 | O32: 0 | P32: 0 | R32: 0 | S32: 0 | T32: 0
H33: 0 | J33: 0 | L33: 0 | N33: 0 | O33: 0 | P33: 0 | R33: 0 | S33: 0 | T33: 0
H34: 0 | J34: 0 | L34: 0 | N34: 0 | O34: 0 | P34: 0 | R34: 0 | S34: 0 | T34: 0
H35: 0 | J35: 0 | L35: 0 | N35: 0 | O35: 0 | P35: 0 | R35: 0 | S35: 0 | T35: 0
H36: 0 | J36: 0 | L36: 0 | N36: 0 | O36: 0 | P36: 0 | R36: 0 | S36: 0 | T36: 0
B37: Totais | H37: =SUM(H19:H36) -> 0 | J37: =SUM(J19:J36) -> 0 | L37: =SUM(L19:L36) -> 0 | N37: =SUM(N19:N36) -> 0 | P37: =SUM(P19:P36) -> 0 | R37: =SUM(R19:R36) -> 0 | T37: =SUM(T19:T36) -> 0
B39: Insumos
B40: Produção Própria - Reciprocidade Ecológica | I40: Observações
B41: Itens | E41: Unidade | F41: Valor Unitário | G41: Qtde | H41: Valor Total
H42: =G42*F42 -> 0
H43: 0
H44: 0
H45: 0
H46: 0
H47: 0
H48: 0
H49: 0
H50: 0
H51: 0
H52: 0
H53: 0
H54: 0
H55: 0
H56: 0
B57: Total Insumos - Produção Própria | H57: =SUM(H42:H56) -> 0
B58: Comprados - Consumos Intermediários | J58: Observações
B59: Insumos | E59: Unidade | F59: Valor Unitário | G59: Qtde | H59: Valor Total | I59: Origem
H60: =G60*F60 -> 0
H61: =G61*F61 -> 0
H62: 0
H63: 0
H64: 0
H65: 0
H66: 0
H67: 0
H68: 0
H69: 0
H70: 0
H71: 0
H72: 0
H73: 0
H74: 0
H75: 0
H76: 0
H77: 0
H78: 0
H79: 0
B80: Insumos Comprados no Território | H80: =DSUM(H59:I79,"Valor Total",G124:G125) -> 0
B81: Insumos Comprados Fora do Território | H81: =DSUM(H59:I79,"Valor Total",H124:H125) -> 0
B82: Total de Insumos Comprados | H82: =SUM(H60:H79) -> 0
B84: Pagamento a Terceiros | J84: Observações
B85: Serviços/Renda da Terra | E85: Unidade | F85: Valor Unitário | G85: Qtde | H85: Valor Total | I85: Origem
H86: =G86*F86 -> 0
H87: 0
H88: 0
H89: 0
H90: 0
H91: 0
H92: 0
H93: 0
H94: 0
H95: 0
H96: 0
H97: 0
H98: 0
H99: 0
H100: 0
B101: Pagamentos a Terceiros do Território | H101: =DSUM(H85:I100,"Valor Total",G124:G125) -> 0
B102: Pagamentos a Terceiros Fora do Território | H102: =DSUM(H85:I100,"Valor Total",H124:H125) -> 0
B103: Total de Pagamentos a Terceiros | H103: =SUM(H86:H100) -> 0
B105: Entrada de Recursos por Reciprocidade | I105: Observações
B106: Serviços e Insumos | E106: Unidade | F106: Valor Unitário | G106: Qtde | H106: Valor Total
H107: =G107*F107 -> 0
H108: 0
H109: 0
H110: 0
H111: 0
H112: 0
H113: 0
H114: 0
H115: 0
H116: 0
H117: 0
H118: 0
H119: 0
H120: 0
H121: 0
B122: Total Recursos por Reciprocidade | H122: =SUM(H107:H121) -> 0
G124: Origem | H124: Origem
G125: T | H125: F

Sheet SUB. 12
B2: ENTRADA DE DADOS POR SUBSISTEMA
B6: Subsistema n° 12: | K6: OBS
B8: ÁREA | D8: hectare(s)
C12: Horas Trabalhadas | L12: Observações
C13: Mulher | D13: Homem | E13: Jovens Mulheres | F13: Jovens Homens | G13: Outras | H13: Outros | I13: Total Mulheres | J13: Total Homens | K13: TOTAL
B14: N° Horas | I14: =C14+E14+G14 -> 0 | J14: =D14+F14+H14 -> 0 | K14: =C14+D14+E14+F14+G14+H14 -> 0
B16: Produtos e Insumos Gerados | G16: Produtos | Q16: Insumos Produzidos | S16: Total Produtos e Insumos | U16: Observações
G17: Venda | I17: Autoconsumo | K17: Doações Trocas | M17: Estoque | O17: Total Produtos
B18: Itens | E18: Unidade | F18: Valor Unitário | G18: Qtde | H18: Valor Total | I18: Qtde | J18: Valor Total | K18: Qtde | L18: Valor Total | M18: Qtde | N18: Valor Total | O18: Qtde | P18: Valor Total | Q18: Qtde | R18: Valor Total | S18: Qtde | T18: Valor Total
G19: 0 | H19: =G19*F19 -> 0 | I19: 0 | J19: =I19*F19 -> 0 | K19: 0 | L19: =K19*F19 -> 0 | M19: 0 | N19: =M19*F19 -> 0 | O19: =G19+I19+K19+M19 -> 0 | P19: =F19*O19 -> 0 | R19: =Q19*F19 -> 0 | S19: =Q19+O19 -> 0 | T19: =S19*F19 -> 0
H20: 0 | J20: 0 | L20: 0 | N20: 0 | O20: 0 | P20: 0 | R20: 0 | S20: 0 | T20: 0
H21: 0 | J21: 0 | L21: 0 | N21: 0 | O21: 0 | P21: 0 | R21: 0 | S21: 0 | T21: 0
H22: 0 | J22: 0 | L22: 0 | N22: 0 | O22: 0 | P22: 0 | R22: 0 | S22: 0 | T22: 0
H23: 0 | J23: 0 | L23: 0 | N23: 0 | O23: 0 | P23: 0 | R23: 0 | S23: 0 | T23: 0
H24: 0 | J24: 0 | L24: 0 | N24: 0 | O24: 0 | P24: 0 | R24: 0 | S24: 0 | T24: 0
H25: 0 | J25: 0 | L25: 0 | N25: 0 | O25: 0 | P25: 0 | R25: 0 | S25: 0 | T25: 0
H26: 0 | J26: 0 | L26: 0 | N26: 0 | O26: 0 | P26: 0 | R26: 0 | S26: 0 | T26: 0
H27: 0 | J27: 0 | L27: 0 | N27: 0 | O27: 0 | P27: 0 | R27: 0 | S27: 0 | T27: 0
H28: 0 | J28: 0 | L28: 0 | N28: 0 | O28: 0 | P28: 0 | R28: 0 | S28: 0 | T28: 0
H29: 0 | J29: 0 | L29: 0 | N29: 0 | O29: 0 | P29: 0 | R29: 0 | S29: 0 | T29: 0
H30: 0 | J30: 0 | L30: 0 | N30: 0 | O30: 0 | P30: 0 | R30: 0 | S30: 0 | T30: 0
H31: 0 | J31: 0 | L31: 0 | N31: 0 | O31: 0 | P31: 0 | R31: 0 | S31: 0 | T31: 0
H32: 0 | J32: 0 | L32: 0 | N32: 0 | O32: 0 | P32: 0 | R32: 0 | S32: 0 | T32: 0
H33: 0 | J33: 0 | L33: 0 | N33: 0 | O33: 0 | P33: 0 | R33: 0 | S33: 0 | T33: 0
H34: 0 | J34: 0 | L34: 0 | N34: 0 | O34: 0 | P34: 0 | R34: 0 | S34: 0 | T34: 0
H35: 0 | J35: 0 | L35: 0 | N35: 0 | O35: 0 | P35: 0 | R35: 0 | S35: 0 | T35: 0
H36: 0 | J36: 0 | L36: 0 | N36: 0 | O36: 0 | P36: 0 | R36: 0 | S36: 0 | T36: 0
B37: Totais | H37: =SUM(H19:H36) -> 0 | J37: =SUM(J19:J36) -> 0 | L37: =SUM(L19:L36) -> 0 | N37: =SUM(N19:N36) -> 0 | P37: =SUM(P19:P36) -> 0 | R37: =SUM(R19:R36) -> 0 | T37: =SUM(T19:T36) -> 0
B39: Insumos
B40: Produção Própria - Reciprocidade Ecológica | I40: Observações
B41: Itens | E41: Unidade | F41: Valor Unitário | G41: Qtde | H41: Valor Total
H42: =G42*F42 -> 0
H43: 0
H44: 0
H45: 0
H46: 0
H47: 0
H48: 0
H49: 0
H50: 0
H51: 0
H52: 0
H53: 0
H54: 0
H55: 0
H56: 0
B57: Total Insumos - Produção Própria | H57: =SUM(H42:H56) -> 0
B58: Comprados - Consumos Intermediários | J58: Observações
B59: Insumos | E59: Unidade | F59: Valor Unitário | G59: Qtde | H59: Valor Total | I59: Origem
H60: =G60*F60 -> 0
H61: =G61*F61 -> 0
H62: 0
H63: 0
H64: 0
H65: 0
H66: 0
H67: 0
H68: 0
H69: 0
H70: 0
H71: 0
H72: 0
H73: 0
H74: 0
H75: 0
H76: 0
H77: 0
H78: 0
H79: 0
B80: Insumos Comprados no Território | H80: =DSUM(H59:I79,"Valor Total",G124:G125) -> 0
B81: Insumos Comprados Fora do Território | H81: =DSUM(H59:I79,"Valor Total",H124:H125) -> 0
B82: Total de Insumos Comprados | H82: =SUM(H60:H79) -> 0
B84: Pagamento a Terceiros | J84: Observações
B85: Serviços/Renda da Terra | E85: Unidade | F85: Valor Unitário | G85: Qtde | H85: Valor Total | I85: Origem
H86: =G86*F86 -> 0
H87: 0
H88: 0
H89: 0
H90: 0
H91: 0
H92: 0
H93: 0
H94: 0
H95: 0
H96: 0
H97: 0
H98: 0
H99: 0
H100: 0
B101: Pagamentos a Terceiros do Território | H101: =DSUM(H85:I100,"Valor Total",G124:G125) -> 0
B102: Pagamentos a Terceiros Fora do Território | H102: =DSUM(H85:I100,"Valor Total",H124:H125) -> 0
B103: Total de Pagamentos a Terceiros | H103: =SUM(H86:H100) -> 0
B105: Entrada de Recursos por Reciprocidade | I105: Observações
B106: Serviços e Insumos | E106: Unidade | F106: Valor Unitário | G106: Qtde | H106: Valor Total
H107: =G107*F107 -> 0
H108: 0
H109: 0
H110: 0
H111: 0
H112: 0
H113: 0
H114: 0
H115: 0
H116: 0
H117: 0
H118: 0
H119: 0
H120: 0
H121: 0
B122: Total Recursos por Reciprocidade | H122: =SUM(H107:H121) -> 0
G124: Origem | H124: Origem
G125: T | H125: F

Sheet SUB. Extrativista
B2: ENTRADA DE DADOS POR SUBSISTEMA
B6: Subsistema Extrativiasta: | K6: OBS
C12: Horas Trabalhadas | L12: Observações
C13: Mulher | D13: Homem | E13: Jovens Mulheres | F13: Jovens Homens | G13: Outras | H13: Outros | I13: Total Mulheres | J13: Total Homens | K13: TOTAL
B14: N° Horas | I14: =C14+E14+G14 -> 0 | J14: =D14+F14+H14 -> 0 | K14: =C14+D14+E14+F14+G14+H14 -> 0
B16: Produtos e Insumos Gerados | G16: Produtos | Q16: Insumos Produzidos | S16: Total Produtos e Insumos | U16: Observações
G17: Venda | I17: Autoconsumo | K17: Doações Trocas | M17: Estoque | O17: Total Produtos
B18: Itens | E18: Unidade | F18: Valor Unitário | G18: Qtde | H18: Valor Total | I18: Qtde | J18: Valor Total | K18: Qtde | L18: Valor Total | M18: Qtde | N18: Valor Total | O18: Qtde | P18: Valor Total | Q18: Qtde | R18: Valor Total | S18: Qtde | T18: Valor Total
H19: =G19*F19 -> 0 | J19: =I19*F19 -> 0 | L19: =K19*F19 -> 0 | M19: 0 | N19: =M19*F19 -> 0 | O19: =G19+I19+K19+M19 -> 0 | P19: =F19*O19 -> 0 | Q19: 0 | R19: =Q19*F19 -> 0 | S19: =Q19+O19 -> 0 | T19: =S19*F19 -> 0
H20: 0 | J20: 0 | L20: 0 | N20: 0 | O20: 0 | P20: 0 | R20: 0 | S20: 0 | T20: 0
H21: 0 | J21: 0 | L21: 0 | N21: 0 | O21: 0 | P21: 0 | R21: 0 | S21: 0 | T21: 0
H22: 0 | J22: 0 | L22: 0 | N22: 0 | O22: 0 | P22: 0 | R22: 0 | S22: 0 | T22: 0
H23: 0 | J23: 0 | L23: 0 | N23: 0 | O23: 0 | P23: 0 | R23: 0 | S23: 0 | T23: 0
H24: 0 | J24: 0 | L24: 0 | N24: 0 | O24: 0 | P24: 0 | R24: 0 | S24: 0 | T24: 0
H25: 0 | J25: 0 | L25: 0 | N25: 0 | O25: 0 | P25: 0 | R25: 0 | S25: 0 | T25: 0
H26: 0 | J26: 0 | L26: 0 | N26: 0 | O26: 0 | P26: 0 | R26: 0 | S26: 0 | T26: 0
H27: 0 | J27: 0 | L27: 0 | N27: 0 | O27: 0 | P27: 0 | R27: 0 | S27: 0 | T27: 0
H28: 0 | J28: 0 | L28: 0 | N28: 0 | O28: 0 | P28: 0 | R28: 0 | S28: 0 | T28: 0
H29: 0 | J29: 0 | L29: 0 | N29: 0 | O29: 0 | P29: 0 | R29: 0 | S29: 0 | T29: 0
H30: 0 | J30: 0 | L30: 0 | N30: 0 | O30: 0 | P30: 0 | R30: 0 | S30: 0 | T30: 0
H31: 0 | J31: 0 | L31: 0 | N31: 0 | O31: 0 | P31: 0 | R31: 0 | S31: 0 | T31: 0
H32: 0 | J32: 0 | L32: 0 | N32: 0 | O32: 0 | P32: 0 | R32: 0 | S32: 0 | T32: 0
H33: 0 | J33: 0 | L33: 0 | N33: 0 | O33: 0 | P33: 0 | R33: 0 | S33: 0 | T33: 0
H34: 0 | J34: 0 | L34: 0 | N34: 0 | O34: 0 | P34: 0 | R34: 0 | S34: 0 | T34: 0
H35: 0 | J35: 0 | L35: 0 | N35: 0 | O35: 0 | P35: 0 | R35: 0 | S35: 0 | T35: 0
E36: 0.01 | F36: 0.01 | G36: 0.01 | H36: 0.0001 | J36: 0 | L36: 0 | N36: 0 | O36: 0.01 | P36: 0.0001 | R36: 0 | S36: 0.01 | T36: 0.0001
B37: Totais | H37: =SUM(H19:H36) -> 0.0001 | J37: =SUM(J19:J36) -> 0 | L37: =SUM(L19:L36) -> 0 | N37: =SUM(N19:N36) -> 0 | P37: =SUM(P19:P36) -> 0.0001 | R37: =SUM(R19:R36) -> 0 | T37: =SUM(T19:T36) -> 0.0001
B39: Insumos
B40: Produção Própria - Reciprocidade Ecológica | I40: Observações
B41: Itens | E41: Unidade | F41: Valor Unitário | G41: Qtde | H41: Valor Total
H42: =G42*F42 -> 0
H43: 0
H44: 0
H45: 0
H46: 0
H47: 0
H48: 0
H49: 0
H50: 0
H51: 0
H52: 0
H53: 0
H54: 0
H55: 0
H56: 0
B57: Total Insumos - Produção Própria | H57: =SUM(H42:H56) -> 0
B58: Comprados - Consumos Intermediários | J58: Observações
B59: Insumos | E59: Unidade | F59: Valor Unitário | G59: Qtde | H59: Valor Total | I59: Origem
H60: =G60*F60 -> 0
H61: =G61*F61 -> 0
H62: 0
H63: 0
H64: 0
H65: 0
H66: 0
H67: 0
H68: 0
H69: 0
H70: 0
H71: 0
H72: 0
H73: 0
H74: 0
H75: 0
H76: 0
H77: 0
H78: 0
H79: 0
B80: Insumos Comprados no Território | H80: =DSUM(H59:I79,"Valor Total",G124:G125) -> 0
B81: Insumos Comprados Fora do Território | H81: =DSUM(H59:I79,"Valor Total",H124:H125) -> 0
B82: Total de Insumos Comprados | H82: =SUM(H60:H79) -> 0
B84: Pagamento a Terceiros | J84: Observações
B85: Serviços/Renda da Terra | E85: Unidade | F85: Valor Unitário | G85: Qtde | H85: Valor Total | I85: Origem
H86: =G86*F86 -> 0
H87: 0
H88: 0
H89: 0
H90: 0
H91: 0
H92: 0
H93: 0
H94: 0
H95: 0
H96: 0
H97: 0
H98: 0
H99: 0
H100: 0
B101: Pagamentos a Terceiros do Território | H101: =DSUM(H85:I100,"Valor Total",G124:G125) -> 0
B102: Pagamentos a Terceiros Fora do Território | H102: =DSUM(H85:I100,"Valor Total",H124:H125) -> 0
B103: Total de Pagamentos a Terceiros | H103: =SUM(H86:H100) -> 0
B105: Entrada de Recursos por Reciprocidade | I105: Observações
B106: Serviços e Insumos | E106: Unidade | F106: Valor Unitário | G106: Qtde | H106: Valor Total
H107: =G107*F107 -> 0
H108: 0
H109: 0
H110: 0
H111: 0
H112: 0
H113: 0
H114: 0
H115: 0
H116: 0
H117: 0
H118: 0
H119: 0
H120: 0
H121: 0
B122: Total Recursos por Reciprocidade | H122: =SUM(H107:H121) -> 0
G124: Origem | H124: Origem
G125: T | H125: F

Sheet Tabelas Dinâmicas 1 (hidden)
A3: Tabelas de composição dos gráficos 1 | R3: Tabelas Dinâmicas de composição dos gráficos 1
G5: Gráfico 2 - Composição Renda Bruta | K5: Gráfico 3 - Renda Bruta II
A6: Gráfico 1 - Composição Produto Bruto
A7: Subsistema | B7: Venda | C7: Autoconsumo | D7: Trocas e doações | E7: Estoque | G7: Subsistema | H7: Valor Agregado Bruto | I7: Consumos Intermediários | K7: Subsistema | L7: Valor Agregado Territorial | M7: Consumos Intermediários - Fora do Território
A8: Agroecossistema | B8: =SUM(B9:B21) -> 18656.8001 | C8: =SUM(C9:C21) -> 4410.2 | D8: =SUM(D9:D21) -> 2512.666667 | E8: =SUM(E9:E21) -> 15283.55769 | G8: Agroecossistema | H8: =SUM(H9:H21) -> 21410.436 | I8: =SUM(I9:I21) -> 4169.230769 | K8: =A8 -> Agroecossistema | L8: =SUM(L9:L21) -> 23730.436 | M8: =SUM(M9:M21) -> 1849.230769
A9: ='Indicadores I'!B17 -> Bovino | B9: ='Indicadores I'!D17 -> 10236.8 | C9: ='Indicadores I'!E17 -> 211.2 | D9: ='Indicadores I'!F17 -> 220 | E9: ='Indicadores I'!G17 -> 7692.307692 | G9: =A9 -> Bovino | H9: ='Indicadores I'!D37 -> 8508 | I9: ='Indicadores I'!K17 -> 2160 | K9: Bovino | L9: ='Indicadores I'!E37 -> 10308 | M9: ='Indicadores I'!J17 -> 360 | R9: =A6 -> Gráfico 1 - Composição Produto Bruto | X9: =K5 -> Gráfico 3 - Renda Bruta II
A10: ='Indicadores I'!B18 -> Suino | B10: ='Indicadores I'!D18 -> 7830 | C10: ='Indicadores I'!E18 -> 900 | D10: ='Indicadores I'!F18 -> 1500 | E10: ='Indicadores I'!G18 -> 6600 | G10: Suino | H10: ='Indicadores I'!D38 -> 9110 | I10: ='Indicadores I'!K18 -> 1120 | K10: Suino | L10: ='Indicadores I'!E38 -> 9270 | M10: ='Indicadores I'!J18 -> 960 | S10: Dados | Y10: Dados
A11: ='Indicadores I'!B19 -> Ovino | B11: ='Indicadores I'!D19 -> 180 | C11: ='Indicadores I'!E19 -> 0 | D11: ='Indicadores I'!F19 -> 0 | E11: ='Indicadores I'!G19 -> 225 | G11: Ovino | H11: ='Indicadores I'!D39 -> 180 | I11: ='Indicadores I'!K19 -> 0 | K11: Ovino | L11: ='Indicadores I'!E39 -> 180 | M11: ='Indicadores I'!J19 -> 0 | R11: Subsistema | S11: Estoque. | T11: Trocas e doações. | U11: Autoconsumo. | V11: Venda. | X11: Subsistema | Y11: Consumos Intermediários - Fora do Território. | Z11: Valor Agregado Territorial.
A12: ='Indicadores I'!B20 -> Aves | B12: ='Indicadores I'!D20 -> 210 | C12: ='Indicadores I'!E20 -> 1980 | D12: ='Indicadores I'!F20 -> 376.6666667 | E12: ='Indicadores I'!G20 -> 766.25 | G12: Aves | H12: ='Indicadores I'!D40 -> 2197.435897 | I12: ='Indicadores I'!K20 -> 369.2307692 | K12: Aves | L12: ='Indicadores I'!E40 -> 2197.435897 | M12: ='Indicadores I'!J20 -> 369.2307692 | R12: Agroecossistema | S12: 15283.55769 | T12: 1052.666667 | U12: 3660.2 | V12: 18656.8001 | X12: Agroecossistema | Y12: 1849.230769 | Z12: 21520.436
A13: ='Indicadores I'!B21 -> Lavoura Milho e palma | B13: ='Indicadores I'!D21 -> 200 | C13: ='Indicadores I'!E21 -> 50 | D13: ='Indicadores I'!F21 -> 20 | E13: ='Indicadores I'!G21 -> 0 | G13: Lavoura Milho e palma | H13: ='Indicadores I'!D41 -> -250 | I13: ='Indicadores I'!K21 -> 520 | K13: Lavoura Milho e palma | L13: ='Indicadores I'!E41 -> 110 | M13: ='Indicadores I'!J21 -> 160 | R13: Aves | S13: 766.25 | T13: 376.6666667 | U13: 1980 | V13: 210 | X13: Bovino | Y13: 360 | Z13: 10198
A14: ='Indicadores I'!B22 -> Quintal - frutas e medicinais | B14: ='Indicadores I'!D22 -> 0 | C14: ='Indicadores I'!E22 -> 1269 | D14: ='Indicadores I'!F22 -> 396 | E14: ='Indicadores I'!G22 -> 0 | G14: Quintal - frutas e medicinais | H14: ='Indicadores I'!D42 -> 1665 | I14: ='Indicadores I'!K22 -> 0 | K14: Quintal - frutas e medicinais | L14: ='Indicadores I'!E42 -> 1665 | M14: ='Indicadores I'!J22 -> 0 | R14: Bovino | S14: 7692.307692 | T14: 110 | U14: 211.2 | V14: 10236.8 | X14: Suino | Y14: 960 | Z14: 7170
A15: ='Indicadores I'!B23 -> 0 | B15: ='Indicadores I'!D23 -> 0 | C15: ='Indicadores I'!E23 -> 0 | D15: ='Indicadores I'!F23 -> 0 | E15: ='Indicadores I'!G23 -> 0 | G15: 0 | H15: ='Indicadores I'!D43 -> 0 | I15: ='Indicadores I'!K23 -> 0 | K15: 0 | L15: ='Indicadores I'!E43 -> 0 | M15: ='Indicadores I'!J23 -> 0 | R15: Lavoura Milho e palma | S15: 0 | T15: 20 | U15: 50 | V15: 200 | X15: Ovino | Y15: 0 | Z15: 180
A16: ='Indicadores I'!B24 -> 0 | B16: ='Indicadores I'!D24 -> 0 | C16: ='Indicadores I'!E24 -> 0 | D16: ='Indicadores I'!F24 -> 0 | E16: ='Indicadores I'!G24 -> 0 | G16: 0 | H16: ='Indicadores I'!D44 -> 0 | I16: ='Indicadores I'!K24 -> 0 | K16: 0 | L16: ='Indicadores I'!E44 -> 0 | M16: ='Indicadores I'!J24 -> 0 | R16: Ovino | S16: 225 | T16: 0 | U16: 0 | V16: 180 | X16: Aves | Y16: 369.2307692 | Z16: 2197.435897
A17: ='Indicadores I'!B25 -> 0 | B17: ='Indicadores I'!D25 -> 0 | C17: ='Indicadores I'!E25 -> 0 | D17: ='Indicadores I'!F25 -> 0 | E17: ='Indicadores I'!G25 -> 0 | G17: 0 | H17: ='Indicadores I'!D45 -> 0 | I17: ='Indicadores I'!K25 -> 0 | K17: 0 | L17: ='Indicadores I'!E45 -> 0 | M17: ='Indicadores I'!J25 -> 0 | R17: Quintal - frutas e medicinais | S17: 0 | T17: 396 | U17: 1269 | V17: 0 | X17: Lavoura Milho e palma | Y17: 160 | Z17: 110
A18: ='Indicadores I'!B26 -> 0 | B18: ='Indicadores I'!D26 -> 0 | C18: ='Indicadores I'!E26 -> 0 | D18: ='Indicadores I'!F26 -> 0 | E18: ='Indicadores I'!G26 -> 0 | G18: 0 | H18: ='Indicadores I'!D46 -> 0 | I18: ='Indicadores I'!K26 -> 0 | K18: 0 | L18: ='Indicadores I'!E46 -> 0 | M18: ='Indicadores I'!J26 -> 0 | R18: Suino | S18: 6600 | T18: 150 | U18: 150 | V18: 7830 | X18: Quintal - frutas e medicinais | Y18: 0 | Z18: 1665
A19: ='Indicadores I'!B27 -> 0 | B19: ='Indicadores I'!D27 -> 0 | C19: ='Indicadores I'!E27 -> 0 | D19: ='Indicadores I'!F27 -> 0 | E19: ='Indicadores I'!G27 -> 0 | G19: 0 | H19: ='Indicadores I'!D47 -> 0 | I19: ='Indicadores I'!K27 -> 0 | K19: 0 | L19: ='Indicadores I'!E47 -> 0 | M19: ='Indicadores I'!J27 -> 0
A20: ='Indicadores I'!B28 -> 0 | B20: ='Indicadores I'!D28 -> 0 | C20: ='Indicadores I'!E28 -> 0 | D20: ='Indicadores I'!F28 -> 0 | E20: ='Indicadores I'!G28 -> 0 | G20: 0 | H20: ='Indicadores I'!D48 -> 0 | I20: ='Indicadores I'!K28 -> 0 | K20: 0 | L20: ='Indicadores I'!E48 -> 0 | M20: ='Indicadores I'!J28 -> 0
A21: ='Indicadores I'!B29 -> 0 | B21: ='Indicadores I'!D29 -> 0.0001 | C21: ='Indicadores I'!E29 -> 0 | D21: ='Indicadores I'!F29 -> 0 | E21: ='Indicadores I'!G29 -> 0 | G21: 0 | H21: ='Indicadores I'!D49 -> 0.0001 | I21: ='Indicadores I'!K29 -> 0 | K21: 0 | L21: ='Indicadores I'!E49 -> 0.0001 | M21: ='Indicadores I'!J29 -> 0
A22: ='Indicadores I'!B31 -> Agroecossistema | B22: ='Indicadores I'!D31 -> 18656.8001 | C22: ='Indicadores I'!E31 -> 4410.2 | D22: ='Indicadores I'!F31 -> 2512.666667 | E22: ='Indicadores I'!G31 -> 15283.55769
A24: Renda Monetária Bruta | E24: Intensidade do uso da Terra por Unidade de Trabalho
A25: Subsistema | B25: Renda Agrícola Monetária (RAM) | C25: Custos Produtivos | F25: VA/UTF | G25: Área (ha)/UTF | H25: VA/UTF | I25: Área (ha)/UTF (a) | J25: VA/UTF | K25: Área (ha)/UTF (b) | M25: Área (ha)/UTF © | N25: VA/UTF | T25: =G5 -> Gráfico 2 - Composição Renda Bruta | Z25: =A24 -> Renda Monetária Bruta
A26: Agroecossistema | B26: =SUM(B27:B39) -> 13827.56933 | C26: =SUM(C27:C38) -> 4829.230769 | E26: Agroecossistema | F26: 0 | H26: 0 | J26: 0 | L26: Agroecossistema | M26: 0 | N26: 0 | U26: Dados | AA26: Dados
A27: =A9 -> Bovino | B27: ='Indicadores I'!J37 -> 8076.8 | C27: ='Indicadores I'!O17 -> 2160 | E27: =A27 -> Bovino | F27: ='Indicadores I'!Q76 -> 1849.565217 | G27: ='Indicadores I'!R76 -> 0.9869565217 | H27: =F27 -> 1849.565217 | I27: =G27 -> 0.9869565217 | J27: =IF(H27>0,H27,NA()) -> 1849.565217 | K27: =G27 -> 0.9869565217 | L27: =E27 -> Bovino | M27: =K27 -> 0.9869565217 | N27: =J27 -> 1849.565217 | T27: Subsistema | U27: Consumos Intermediários. | V27: Valor Agregado. | Z27: Subsistema | AA27: Renda Agrícola Monetária (RAM). | AB27: Custos Produtivos.
A28: =A10 -> Suino | B28: ='Indicadores I'!J38 -> 6710 | C28: ='Indicadores I'!O18 -> 1120 | E28: =A28 -> Suino | F28: ='Indicadores I'!Q77 -> 1980.434783 | G28: ='Indicadores I'!R77 -> 0.002173913043 | H28: =IF(F28>0,SUM(F27+F28),NA()) -> 3830 | I28: =IF(G28>0,SUM(G27+G28),NA()) -> 0.9891304348 | J28: =IF(H28>0,H28,NA()) -> 3830 | K28: =IF(I28>0,I28,NA()) -> 0.9891304348 | L28: Suino | M28: =K28 -> 0.9891304348 | N28: 3830 | T28: Agroecossistema | U28: 4169.230769 | V28: 19200.436 | Z28: Agroecossistema | AA28: 13827.56933 | AB28: 4829.230769
A29: Ovino | B29: ='Indicadores I'!J39 -> 180 | C29: ='Indicadores I'!O19 -> 0 | E29: Ovino | F29: ='Indicadores I'!Q78 -> 39.13043478 | G29: ='Indicadores I'!R78 -> 0.9869565217 | H29: =IF(F29>0,SUM(F27+F28+F29),NA()) -> 3869.130435 | I29: =IF(G29>0,SUM(G27+G28+G29),NA()) -> 1.976086957 | J29: 3869.130435 | K29: =IF(I29>0,I29,NA()) -> 1.976086957 | L29: Ovino | M29: 1.976086957 | N29: 3869.130435 | T29: Bovino | U29: 2160 | V29: 8398 | Z29: Bovino | AA29: 8076.8 | AB29: 2160
A30: Aves | B30: ='Indicadores I'!J40 -> -159.2307692 | C30: ='Indicadores I'!O20 -> 369.2307692 | E30: Aves | F30: ='Indicadores I'!Q79 -> 477.703456 | G30: ='Indicadores I'!R79 -> 0.9869565217 | H30: =IF(F30>0,SUM(F27+F28+F29+F30),NA()) -> 4346.833891 | I30: =IF(G30>0,SUM(G27+G28+G29+G30),NA()) -> 2.963043478 | J30: 4346.833891 | K30: 2.963043478 | L30: Aves | M30: 2.963043478 | N30: 4346.833891 | T30: Suino | U30: 1120 | V30: 7010 | Z30: Suino | AA30: 6710 | AB30: 1120
A31: Lavoura Milho e palma | B31: ='Indicadores I'!J41 -> -980 | C31: ='Indicadores I'!O21 -> 1180 | E31: Lavoura Milho e palma | F31: ='Indicadores I'!Q80 -> -54.34782609 | G31: ='Indicadores I'!R80 -> 0.2173913043 | H31: =IF(F31>0,SUM(F27+F28+F29+F30+F31),NA()) ->  | I31: =IF(G31>0,SUM(G27+G28+G29+G30+G31),NA()) -> 3.180434783 | K31: 3.180434783 | L31: Lavoura Milho e palma | M31: 3.180434783 | T31: Ovino | U31: 0 | V31: 180 | Z31: Ovino | AA31: 180 | AB31: 0
A32: Quintal - frutas e medicinais | B32: ='Indicadores I'!J42 -> 0 | C32: ='Indicadores I'!O22 -> 0 | E32: Quintal - frutas e medicinais | F32: ='Indicadores I'!Q81 -> 361.9565217 | G32: ='Indicadores I'!R81 -> 0.0347826087 | H32: =IF(F32>0,SUM(F27+F28+F29+F30+F31+F32),NA()) -> 4654.442586 | I32: =IF(G32>0,SUM(G27+G28+G29+G30+G31+G32),NA()) -> 3.215217391 | J32: 4654.442586 | K32: 3.215217391 | L32: Quintal - frutas e medicinais | M32: 3.215217391 | N32: 4654.442586 | T32: Aves | U32: 369.2307692 | V32: 2197.435897 | Z32: Aves | AA32: -159.2307692 | AB32: 369.2307692
A33: 0 | B33: ='Indicadores I'!J43 -> 0 | C33: ='Indicadores I'!O23 -> 0 | E33: 0 | F33: ='Indicadores I'!Q82 -> 0 | G33: ='Indicadores I'!R82 -> 0 | H33: =IF(F33>0,SUM(F27+F28+F29+F30+F31+F32+F33),NA()) -> 4654.442586 | I33: =IF(G33>0,SUM(G27+G28+G29+G30+G31+G32+G33),NA()) ->  | J33: 4654.442586 | L33: 0 | N33: 4654.442586 | T33: Lavoura Milho e palma | U33: 520 | V33: -250 | Z33: Lavoura Milho e palma | AA33: -980 | AB33: 1180
A34: 0 | B34: ='Indicadores I'!J44 -> 0 | C34: ='Indicadores I'!O24 -> 0 | E34: 0 | F34: ='Indicadores I'!Q83 -> 0 | G34: ='Indicadores I'!R83 -> 0 | H34: =IF(F34>0,SUM(F27+F28+F29+F30+F31+F32+F33+F34),NA()) -> 4654.442586 | I34: =IF(G34>0,SUM(G27+G28+G29+G30+G31+G32+G33+G34),NA()) ->  | J34: 4654.442586 | L34: 0 | N34: 4654.442586 | T34: Quintal - frutas e medicinais | U34: 0 | V34: 1665 | Z34: Quintal - frutas e medicinais | AA34: 0 | AB34: 0
A35: 0 | B35: ='Indicadores I'!J45 -> 0 | C35: ='Indicadores I'!O25 -> 0 | E35: 0 | F35: ='Indicadores I'!Q84 -> 0 | G35: ='Indicadores I'!R84 -> 0 | H35: =IF(F35>0,SUM(F27+F28+F29+F30+F31+F32+F33+F34+F35),NA()) -> 4654.442586 | I35: =IF(G35>0,SUM(G27+G28+G29+G30+G31+G32+G33+G34+G35),NA()) ->  | J35: 4654.442586 | L35: 0 | N35: 4654.442586
A36: 0 | B36: ='Indicadores I'!J46 -> 0 | C36: ='Indicadores I'!O26 -> 0 | E36: 0 | F36: ='Indicadores I'!Q85 -> 0 | G36: ='Indicadores I'!R85 -> 0 | H36: =IF(F36>0,SUM(F27+F28+F29+F30+F31+F32+F33+F34+F35+F36),NA()) -> 4654.442586 | I36: =IF(G36>0,SUM(G27+G28+G29+G30+G31+G32+G33+G34+G35+G36),NA()) ->  | J36: 4654.442586 | L36: 0 | N36: 4654.442586
A37: 0 | B37: ='Indicadores I'!J47 -> 0 | C37: ='Indicadores I'!O27 -> 0 | E37: 0 | F37: ='Indicadores I'!Q86 -> 0 | G37: ='Indicadores I'!R86 -> 0 | H37: =IF(F37>0,SUM(F27+F28+F29+F30+F31+F32+F33+F34+F35+F36+F37),NA()) -> 4654.442586 | I37: =IF(G37>0,SUM(G27+G28+G29+G30+G31+G32+G33+G34+G35+G36+G37),NA()) ->  | J37: 4654.442586 | L37: 0 | N37: 4654.442586
A38: 0 | B38: ='Indicadores I'!J48 -> 0 | C38: ='Indicadores I'!O28 -> 0 | E38: 0 | F38: ='Indicadores I'!Q87 -> 0 | G38: ='Indicadores I'!R87 -> 0 | H38: =IF(F38>0,SUM(F27+F28+F29+F30+F31+F32+F33+F34+F35+F36+F37+F38),NA()) -> 4654.442586 | I38: =IF(G38>0,SUM(G27+G28+G29+G30+G31+G32+G33+G34+G35+G36+G37+G38),NA()) ->  | J38: 4654.442586 | L38: 0 | N38: 4654.442586
A39: 0 | B39: ='Indicadores I'!J49 -> 0.0001 | C39: ='Indicadores I'!O29 -> 0 | E39: 0 | F39: ='Indicadores I'!Q88 -> 2.173913043e-05 | G39: ='Indicadores I'!R88 -> 0 | H39: =IF(F39>0,SUM(F27+F28+F29+F30+F31+F32+F33+F34+F35+F36+F37+F38+F39),NA()) -> 4654.442608 | I39: =IF(G39>0,SUM(G27+G28+G29+G30+G31+G32+G33+G34+G35+G36+G37+G38+G39),NA()) ->  | J39: 4654.442608 | L39: 0 | N39: 4654.442608
A40: Agroecossistema | B40: ='Indicadores I'!J51 -> 12927.56933 | C40: ='Indicadores I'!O31 -> 5729.230769 | E40: Agroecossistema | F40: ='Indicadores I'!Q89 -> 4654.442608 | G40: ='Indicadores I'!R89 -> 1.52173913 | H40: =IF(F40>0,SUM(F28+F29+F30+F31+F32+F33+F34+F35+F36+F37+F38+F39+F40),NA()) -> 7459.319999 | I40: =IF(G40>0,SUM(G27+G28+G29+G30+G31+G32+G33+G34+G35+G36+G37+G38+G39+G40),NA()) -> 4.736956522 | J40: 7459.319999 | M40: 0
A43: Composição das Rendas | C43: Estoque | D43: Trocas/Doações | E43: Autocosumo | F43: Venda | G43: CI | H43: VA | I43: CIFT | J43: VAT | K43: CP | L43: RA | M43: RAM | N43: PB
A44: PB | B44: Produto Bruto | N44: ='Indicadores I'!H31 -> 40863.22446
A45: venda/autoconsumo/estoque | B45: Produto Bruto | C45: =E8 -> 15283.55769 | D45: =D8 -> 2512.666667 | E45: =C8 -> 4410.2 | F45: =B8 -> 18656.8001
A46: Valor agregado bruto/consumos intermediários | B46: Renda Bruta 1 | G46: =I8 -> 4169.230769 | H46: =H8 -> 21410.436
A47: Valor agregado territorial/custos intermed. Fora do território | B47: Renda Bruta 2 | I47: =M8 -> 1849.230769 | J47: =L8 -> 23730.436
A48: Renda agrícola/custos produtivos | K48: =C26 -> 4829.230769 | L48: ='Indicadores I'!F51 -> 19850.436
A49: Renda agricula monetária/custos produtivos | B49: Renda Monetária Bruta | K49: =C26 -> 4829.230769 | M49: =B26 -> 13827.56933
A51: Composição das Rendas/hectáre | C51: Estoque | D51: Trocas/Doações | E51: Autocosumo | F51: Venda | G51: CI | H51: VA | I51: CIFT | J51: VAT | K51: CP | L51: RA | M51: RAM | N51: PB
A52: PB | B52: PB | N52: ='Indicadores I'!H31/B58 -> 5837.603494
A53: venda/autoconsumo/estoque | B53: Produto Bruto | C53: =E8/B58 -> 2183.365385 | D53: =D8/B58 -> 358.952381 | E53: =C8/B58 -> 630.0285714 | F53: =B8/B58 -> 2665.257157
A54: Valor agregado bruto/consumos intermediários | B54: Renda Bruta 1 | G54: =I8/B58 -> 595.6043956 | H54: =H8/B58 -> 3058.633714
A55: Valor agregado territorial/custos intermed. Fora do território | B55: Renda Bruta 2 | I55: =M8/B58 -> 264.1758242 | J55: =L8/B58 -> 3390.062285
A56: Renda agrícola/custos produtivos | K56: =K48/B58 -> 689.8901099 | L56: =L48/B58 -> 2835.776571
A57: Renda agrícola monetária/custos produtivos | B57: Renda Monetária Bruta | K57: =C26/B58 -> 689.8901099 | M57: =B26/B58 -> 1975.367047
A58: Área total do agroecossitema | B58: =Agroecossistema!C14 -> 7
A60: Subsistemas | B60: VA Autoconsumo Muheres / UTF | C60: VA Autoconsumo Homens/ UTF | D60: VA Mercantil Mulheres/ UTF | E60: VA Mercantil Homens/ UTF
A61: ='Indicadores I'!B76 -> Bovino | B61: ='Indicadores I'!H76 -> 10.31517561 | C61: ='Indicadores I'!J76 -> 72.58230847 | D61: ='Indicadores I'!L76 -> 499.9734358 | E61: ='Indicadores I'!N76 -> 3518.042497 | S61: Subsistemas
A62: ='Indicadores I'!B77 -> Suino | B62: ='Indicadores I'!H77 -> 217.1329969 | C62: ='Indicadores I'!J77 -> 187.3147328 | D62: ='Indicadores I'!L77 -> 1889.057073 | E62: ='Indicadores I'!N77 -> 1629.638176 | R62: Dados | S62: 0 | T62: Bovino | U62: Suino | V62: Ovino | W62: Aves | X62: Lavoura Milho e palma | Y62: Quintal - frutas e medicinais | Z62: Total Geral
A63: ='Indicadores I'!B78 -> Ovino | B63: ='Indicadores I'!H78 ->  | C63: ='Indicadores I'!J78 ->  | D63: ='Indicadores I'!L78 -> 41.53846154 | E63: ='Indicadores I'!N78 -> 36 | R63: Mulheres. | T63: 493.5092753 | U63: 1590.215831 | V63: 41.53846154 | W63: 81.04347356 | X63: -33.06493062 | Y63: 0
A64: ='Indicadores I'!B79 -> Aves | B64: ='Indicadores I'!H79 -> 764.1241793 | C64: ='Indicadores I'!J79 -> 0 | D64: ='Indicadores I'!L79 -> 81.04347356 | E64: ='Indicadores I'!N79 -> 0 | R64: Homens. | T64: 3472.557697 | U64: 1371.835961 | V64: 36 | W64: 0 | X64: -57.0155902 | Y64: 0
A65: ='Indicadores I'!B80 -> Lavoura Milho e palma | B65: ='Indicadores I'!H80 -> -8.266232654 | C65: ='Indicadores I'!J80 -> -14.25389755 | D65: ='Indicadores I'!L80 -> -33.06493062 | E65: ='Indicadores I'!N80 -> -57.0155902
A66: ='Indicadores I'!B81 -> Quintal - frutas e medicinais | B66: ='Indicadores I'!H81 -> 631.7307692 | C66: ='Indicadores I'!J81 -> 11.25 | D66: ='Indicadores I'!L81 ->  | E66: ='Indicadores I'!N81 -> 
A67: ='Indicadores I'!B82 -> 0 | B67: ='Indicadores I'!H82 ->  | C67: ='Indicadores I'!J82 ->  | D67: ='Indicadores I'!L82 ->  | E67: ='Indicadores I'!N82 -> 
A68: ='Indicadores I'!B83 -> 0 | B68: ='Indicadores I'!H83 ->  | C68: ='Indicadores I'!J83 ->  | D68: ='Indicadores I'!L83 ->  | E68: ='Indicadores I'!N83 -> 
A69: ='Indicadores I'!B84 -> 0 | B69: ='Indicadores I'!H84 ->  | C69: ='Indicadores I'!J84 ->  | D69: ='Indicadores I'!L84 ->  | E69: ='Indicadores I'!N84 -> 
A70: ='Indicadores I'!B85 -> 0 | B70: ='Indicadores I'!H85 ->  | C70: ='Indicadores I'!J85 ->  | D70: ='Indicadores I'!L85 ->  | E70: ='Indicadores I'!N85 ->  | R70: VA Autoconsumo
A71: ='Indicadores I'!B86 -> 0 | B71: ='Indicadores I'!H86 ->  | C71: ='Indicadores I'!J86 ->  | D71: ='Indicadores I'!L86 ->  | E71: ='Indicadores I'!N86 ->  | S71: Subsistemas
A72: ='Indicadores I'!B87 -> 0 | B72: ='Indicadores I'!H87 ->  | C72: ='Indicadores I'!J87 ->  | D72: ='Indicadores I'!L87 ->  | E72: ='Indicadores I'!N87 ->  | R72: Dados | S72: 0 | T72: Bovino | U72: Suino | V72: Ovino | W72: Aves | X72: Lavoura Milho e palma | Y72: Quintal - frutas e medicinais | Z72: Total Geral
A73: ='Indicadores I'!B88 -> 0 | B73: ='Indicadores I'!H88 ->  | C73: ='Indicadores I'!J88 ->  | D73: ='Indicadores I'!L88 ->  | E73: ='Indicadores I'!N88 ->  | R73: Muheres. | S73: 0 | T73: 10.18181062 | U73: 30.46390481 | V73: 0 | W73: 764.1241793 | X73: -8.266232654 | Y73: 631.7307692 | Z73: 1428.234431
A74: ='Indicadores I'!B89 -> Agroecossistema | B74: ='Indicadores I'!H89 -> 1615.036888 | C74: ='Indicadores I'!J89 -> 256.8931438 | D74: ='Indicadores I'!L89 ->  | E74: ='Indicadores I'!N89 ->  | R74: Homens. | S74: 0 | T74: 71.64389122 | U74: 26.2803824 | V74: 0 | W74: 0 | X74: -14.25389755 | Y74: 11.25 | Z74: 94.92037607
E76: Intensidade do Trabalho VA/HT | I76: Intensidade do Uso de Terra Area/VA | L76: Intensidade do Uso de Terra Area/VA convertido em 1 há | O76: Intensidade do Uso de Terra Area/VA
B77: VA | C77: HT | D77: Àrea | F77: HT | G77: VA | H77: HT | J77: Area | K77: VA | M77: Area/Area total | N77: VA/Area Total | P77: Area / há | Q77: Va
A78: Agroecossitema | B78: 0 | C78: 0 | E78: =A78 -> Agroecossitema | F78: =H78 -> 0 | G78: =B78 -> 0 | H78: =C78 -> 0 | I78: =E78 -> Agroecossitema | J78: 0 | K78: =G78 -> 0 | L78: =A78 -> Agroecossitema | O78: =A78 -> Agroecossitema | P78: 0 | Q78: 0
A79: ='Indicadores I'!B76 -> Bovino | B79: ='Indicadores I'!D37 -> 8508 | C79: ='Indicadores I'!C57 -> 3368.25 | D79: ='Indicadores I'!C17 -> 4.54 | E79: =A79 -> Bovino | F79: =H79 -> 3368.25 | G79: =B79 -> 8508 | H79: =C79 -> 3368.25 | I79: =E79 -> Bovino | J79: =D79 -> 4.54 | K79: =G79 -> 8508 | L79: =A79 -> Bovino | M79: =D79/$D$92 -> 0.306964165 | N79: =B79/$D$92 -> 575.2535497 | O79: =A79 -> Bovino | P79: =M79 -> 0.306964165 | Q79: =N79 -> 575.2535497 | U79: Subsistemas
A80: ='Indicadores I'!B77 -> Suino | B80: ='Indicadores I'!D38 -> 9110 | C80: ='Indicadores I'!C58 -> 451.25 | D80: ='Indicadores I'!C18 -> 0.01 | E80: =A80 -> Suino | F80: 3819.5 | G80: =IF(B80>0,SUM(B$79:B80),NA()) -> 17618 | H80: =IF(C80>0,SUM(C$79:C80),NA()) -> 3819.5 | I80: Suino | J80: =IF(D80>0,SUM(D$79:D80),NA()) -> 4.55 | K80: 17618 | L80: Suino | M80: =D80/$D$92 -> 0.000676132522 | N80: =B80/$D$92 -> 615.9567275 | O80: Suino | P80: =IF(M80>0,SUM(M$79:M80),NA()) -> 0.3076402975 | Q80: =IF(N80>0,SUM(N$79:N80),NA()) -> 1191.210277 | T80: Dados | U80: 0 | V80: Bovino | W80: Suino | X80: Ovino | Y80: Aves | Z80: Lavoura Milho e palma | AA80: Quintal - frutas e medicinais
A81: ='Indicadores I'!B78 -> Ovino | B81: ='Indicadores I'!D39 -> 180 | C81: ='Indicadores I'!C59 -> 456.25 | D81: ='Indicadores I'!C19 -> 4.54 | E81: =A81 -> Ovino | F81: 4275.75 | G81: =IF(B81>0,SUM(B$79:B81),NA()) -> 17798 | H81: =IF(C81>0,SUM(C$79:C81),NA()) -> 4275.75 | I81: Ovino | J81: =IF(D81>0,SUM(D$79:D81),NA()) -> 9.09 | K81: 17798 | L81: Ovino | M81: 0.306964165 | N81: 12.1703854 | O81: Ovino | P81: =IF(M81>0,SUM(M$79:M81),NA()) -> 0.6146044625 | Q81: =IF(N81>0,SUM(N$79:N81),NA()) -> 1203.380663 | T81: VA Autoconsumo Muheres / UTF | U81: 0 | V81: 10.18181062 | W81: 30.46390481 | X81: 0 | Y81: 764.1241793 | Z81: -8.266232654 | AA81: 631.7307692
A82: ='Indicadores I'!B79 -> Aves | B82: ='Indicadores I'!D40 -> 2197.435897 | C82: ='Indicadores I'!C60 -> 456.25 | D82: ='Indicadores I'!C20 -> 4.54 | E82: =A82 -> Aves | F82: 4732 | G82: =IF(B82>0,SUM(B$79:B82),NA()) -> 19995.4359 | H82: =IF(C82>0,SUM(C$79:C82),NA()) -> 4732 | I82: Aves | J82: =IF(D82>0,SUM(D$79:D82),NA()) -> 13.63 | K82: 19995.4359 | L82: Aves | M82: 0.306964165 | N82: 148.5757875 | O82: Aves | P82: =IF(M82>0,SUM(M$79:M82),NA()) -> 0.9215686275 | Q82: =IF(N82>0,SUM(N$79:N82),NA()) -> 1351.95645 | T82: VA Autoconsumo Homens/ UTF. | U82: 0 | V82: 71.64389122 | W82: 26.2803824 | X82: 0 | Y82: 0 | Z82: -14.25389755 | AA82: 11.25
A83: ='Indicadores I'!B80 -> Lavoura Milho e palma | B83: ='Indicadores I'!D41 -> -250 | C83: ='Indicadores I'!C61 -> 3367.5 | D83: ='Indicadores I'!C21 -> 1 | E83: =A83 -> Lavoura Milho e palma | F83: 8099.5 | G83: =IF(B83>0,SUM(B$79:B83),NA()) ->  | H83: =IF(C83>0,SUM(C$79:C83),NA()) -> 8099.5 | I83: Lavoura Milho e palma | J83: =IF(D83>0,SUM(D$79:D83),NA()) -> 14.63 | L83: Lavoura Milho e palma | M83: 0.0676132522 | N83: -16.90331305 | O83: Lavoura Milho e palma | P83: =IF(M83>0,SUM(M$79:M83),NA()) -> 0.9891818796 | Q83: =IF(N83>0,SUM(N$79:N83),NA()) ->  | T83: VA Mercantil Mulheres/ UTF. | V83: 493.5092753 | W83: 1590.215831 | X83: 41.53846154 | Y83: 81.04347356 | Z83: -33.06493062 | AA83: 0
A84: ='Indicadores I'!B81 -> Quintal - frutas e medicinais | B84: ='Indicadores I'!D42 -> 1665 | C84: ='Indicadores I'!C62 -> 444 | D84: ='Indicadores I'!C22 -> 0.16 | E84: Quintal - frutas e medicinais | F84: 8543.5 | G84: =IF(B84>0,SUM(B$79:B84),NA()) -> 21410.4359 | H84: =IF(C84>0,SUM(C$79:C84),NA()) -> 8543.5 | I84: Quintal - frutas e medicinais | J84: =IF(D84>0,SUM(D$79:D84),NA()) -> 14.79 | K84: 21410.4359 | L84: Quintal - frutas e medicinais | M84: 0.01081812035 | N84: 112.5760649 | O84: Quintal - frutas e medicinais | P84: =IF(M84>0,SUM(M$79:M84),NA()) -> 1 | Q84: =IF(N84>0,SUM(N$79:N84),NA()) -> 1447.629202 | T84: VA Mercantil Homens/ UTF. | V84: 3472.557697 | W84: 1371.835961 | X84: 36 | Y84: 0 | Z84: -57.0155902 | AA84: 0
A85: ='Indicadores I'!B82 -> 0 | B85: ='Indicadores I'!D43 -> 0 | C85: ='Indicadores I'!C63 -> 0 | D85: ='Indicadores I'!C23 -> 0 | E85: 0 | G85: =IF(B85>0,SUM(B$79:B85),NA()) ->  | H85: =IF(C85>0,SUM(C$79:C85),NA()) ->  | I85: 0 | J85: =IF(D85>0,SUM(D$79:D85),NA()) ->  | L85: 0 | M85: 0 | N85: 0 | O85: 0 | P85: =IF(M85>0,SUM(M$79:M85),NA()) ->  | Q85: =IF(N85>0,SUM(N$79:N85),NA()) -> 
A86: ='Indicadores I'!B83 -> 0 | B86: ='Indicadores I'!D44 -> 0 | C86: ='Indicadores I'!C64 -> 0 | D86: ='Indicadores I'!C24 -> 0 | E86: 0 | G86: =IF(B86>0,SUM(B$79:B86),NA()) ->  | H86: =IF(C86>0,SUM(C$79:C86),NA()) ->  | I86: 0 | J86: =IF(D86>0,SUM(D$79:D86),NA()) ->  | L86: 0 | M86: 0 | N86: 0 | O86: 0 | P86: =IF(M86>0,SUM(M$79:M86),NA()) ->  | Q86: =IF(N86>0,SUM(N$79:N86),NA()) -> 
A87: ='Indicadores I'!B84 -> 0 | B87: ='Indicadores I'!D45 -> 0 | C87: ='Indicadores I'!C65 -> 0 | D87: ='Indicadores I'!C25 -> 0 | E87: 0 | G87: =IF(B87>0,SUM(B$79:B87),NA()) ->  | H87: =IF(C87>0,SUM(C$79:C87),NA()) ->  | I87: 0 | J87: =IF(D87>0,SUM(D$79:D87),NA()) ->  | L87: 0 | M87: 0 | N87: 0 | O87: 0 | P87: =IF(M87>0,SUM(M$79:M87),NA()) ->  | Q87: =IF(N87>0,SUM(N$79:N87),NA()) -> 
A88: ='Indicadores I'!B85 -> 0 | B88: ='Indicadores I'!D46 -> 0 | C88: ='Indicadores I'!C66 -> 0 | D88: ='Indicadores I'!C26 -> 0 | E88: 0 | G88: =IF(B88>0,SUM(B$79:B88),NA()) ->  | H88: =IF(C88>0,SUM(C$79:C88),NA()) ->  | I88: 0 | J88: =IF(D88>0,SUM(D$79:D88),NA()) ->  | L88: 0 | M88: 0 | N88: 0 | O88: 0 | P88: =IF(M88>0,SUM(M$79:M88),NA()) ->  | Q88: =IF(N88>0,SUM(N$79:N88),NA()) -> 
A89: ='Indicadores I'!B86 -> 0 | B89: ='Indicadores I'!D47 -> 0 | C89: ='Indicadores I'!C67 -> 0 | D89: ='Indicadores I'!C27 -> 0 | E89: 0 | G89: =IF(B89>0,SUM(B$79:B89),NA()) ->  | H89: =IF(C89>0,SUM(C$79:C89),NA()) ->  | I89: 0 | J89: =IF(D89>0,SUM(D$79:D89),NA()) ->  | L89: 0 | M89: 0 | N89: 0 | O89: 0 | P89: =IF(M89>0,SUM(M$79:M89),NA()) ->  | Q89: =IF(N89>0,SUM(N$79:N89),NA()) -> 
A90: ='Indicadores I'!B87 -> 0 | B90: ='Indicadores I'!D48 -> 0 | C90: ='Indicadores I'!C68 -> 0 | D90: ='Indicadores I'!C28 -> 0 | E90: 0 | G90: =IF(B90>0,SUM(B$79:B90),NA()) ->  | H90: =IF(C90>0,SUM(C$79:C90),NA()) ->  | I90: 0 | J90: =IF(D90>0,SUM(D$79:D90),NA()) ->  | L90: 0 | M90: 0 | N90: 0 | O90: 0 | P90: =IF(M90>0,SUM(M$79:M90),NA()) ->  | Q90: =IF(N90>0,SUM(N$79:N90),NA()) -> 
A91: ='Indicadores I'!B88 -> 0 | B91: ='Indicadores I'!D49 -> 0.0001 | C91: ='Indicadores I'!C69 -> 0 | D91: ='Indicadores I'!C29 -> 0 | E91: 0 | G91: =IF(B91>0,SUM(B$79:B91),NA()) -> 21410.436 | H91: =IF(C91>0,SUM(C$79:C91),NA()) ->  | I91: 0 | J91: =IF(D91>0,SUM(D$79:D91),NA()) ->  | K91: 21410.436 | L91: 0 | M91: 0 | N91: 6.76132522e-06 | O91: 0 | P91: =IF(M91>0,SUM(M$79:M91),NA()) ->  | Q91: =IF(N91>0,SUM(N$79:N91),NA()) -> 1447.629209
A92: ='Indicadores I'!B89 -> Agroecossistema | B92: ='Indicadores I'!D51 -> 21410.436 | C92: ='Indicadores I'!C70 -> 8543.5 | D92: =SUM(D79:D91) -> 14.79 | E92: =A92 -> Agroecossistema | F92: 17087 | G92: =IF(B92>0,SUM(B$79:B92),NA()) -> 42820.87199 | H92: =IF(C92>0,SUM(C$79:C92),NA()) -> 17087 | I92: Agroecossistema | J92: =IF(D92>0,SUM(D$79:D92),NA()) -> 29.58 | K92: 42820.87199 | L92: Agroecossistema | N92: 1447.629209 | O92: Agroecossistema | Q92: =IF(N92>0,SUM(N$79:N92),NA()) -> 2895.258418

Sheet TG Grau Merc. (hidden)
B2: Quadro - Gráfico Grau de Mercantilização
B6: Subsistemas | C6: Custos de produção | F6: Renda Bruta | J6: Venda | K6: Total venda | L6: Autoconsumo | M6: Total venda | N6: Insumos produzidos | O6: Total Venda | P6: Trocas e Doações
B7: ='Indicadores I'!B17 -> Bovino | C7: ='Indicadores I'!O17 -> 2160 | J7: ='Indicadores I'!D17 -> 10236.8 | L7: ='Indicadores I'!E17 -> 211.2 | N7: ='SUB. 1'!$H$57 -> 7740 | P7: ='Indicadores I'!F17 -> 220
B8: ='Indicadores I'!B18 -> Suino | C8: ='Indicadores I'!O18 -> 1120 | J8: ='Indicadores I'!D18 -> 7830 | L8: ='Indicadores I'!E18 -> 900 | N8: ='SUB. 2'!$H$57 -> 0 | P8: ='Indicadores I'!F18 -> 1500
B9: ='Indicadores I'!B19 -> Ovino | C9: ='Indicadores I'!O19 -> 0 | J9: ='Indicadores I'!D19 -> 180 | L9: ='Indicadores I'!E19 -> 0 | N9: ='SUB. 3'!$H$57 -> 2252.5 | P9: ='Indicadores I'!F19 -> 0
B10: ='Indicadores I'!B20 -> Aves | C10: ='Indicadores I'!O20 -> 369.2307692 | J10: ='Indicadores I'!D20 -> 210 | L10: ='Indicadores I'!E20 -> 1980 | N10: ='SUB. 4'!$H$57 -> 0 | P10: ='Indicadores I'!F20 -> 376.6666667
B11: ='Indicadores I'!B21 -> Lavoura Milho e palma | C11: ='Indicadores I'!O21 -> 1180 | J11: ='Indicadores I'!D21 -> 200 | L11: ='Indicadores I'!E21 -> 50 | N11: ='SUB. 5'!$H$57 -> 63 | P11: ='Indicadores I'!F21 -> 20
B12: ='Indicadores I'!B22 -> Quintal - frutas e medicinais | C12: ='Indicadores I'!O22 -> 0 | J12: ='Indicadores I'!D22 -> 0 | L12: ='Indicadores I'!E22 -> 1269 | N12: ='SUB. 6'!$H$57 -> 25.2 | P12: ='Indicadores I'!F22 -> 396
B13: ='Indicadores I'!B23 -> 0 | C13: ='Indicadores I'!O23 -> 0 | J13: ='Indicadores I'!D23 -> 0 | L13: ='Indicadores I'!E23 -> 0 | N13: ='SUB. 7'!$H$57 -> 0 | P13: ='Indicadores I'!F23 -> 0
B14: ='Indicadores I'!B24 -> 0 | C14: ='Indicadores I'!O24 -> 0 | J14: ='Indicadores I'!D24 -> 0 | L14: ='Indicadores I'!E24 -> 0 | N14: ='SUB. 8'!$H$57 -> 0 | P14: ='Indicadores I'!F24 -> 0
B15: ='Indicadores I'!B25 -> 0 | C15: ='Indicadores I'!O25 -> 0 | J15: ='Indicadores I'!D25 -> 0 | L15: ='Indicadores I'!E25 -> 0 | N15: ='SUB. 9'!$H$57 -> 0 | P15: ='Indicadores I'!F25 -> 0
B16: ='Indicadores I'!B26 -> 0 | C16: ='Indicadores I'!O26 -> 0 | J16: ='Indicadores I'!D26 -> 0 | L16: ='Indicadores I'!E26 -> 0 | N16: ='SUB. 10'!$H$57 -> 0 | P16: ='Indicadores I'!F26 -> 0
B17: ='Indicadores I'!B27 -> 0 | C17: ='Indicadores I'!O27 -> 0 | J17: ='Indicadores I'!D27 -> 0 | L17: ='Indicadores I'!E27 -> 0 | N17: ='SUB. 11'!$H$57 -> 0 | P17: ='Indicadores I'!F27 -> 0
B18: ='Indicadores I'!B28 -> 0 | C18: ='Indicadores I'!O28 -> 0 | J18: ='Indicadores I'!D28 -> 0 | L18: ='Indicadores I'!E28 -> 0 | N18: ='SUB. 12'!$H$57 -> 0 | P18: ='Indicadores I'!F28 -> 0
B19: ='Indicadores I'!B29 -> 0 | C19: ='Indicadores I'!O29 -> 0 | J19: ='Indicadores I'!D29 -> 0.0001 | L19: ='Indicadores I'!E29 -> 0 | N19: ='SUB. Extrativista'!H57 -> 0 | P19: ='Indicadores I'!F29 -> 0
B20: ='Indicadores I'!B30 -> Custos Sistêmicos | C20: ='Indicadores I'!O30 -> 900 | F20: =K20 -> 25579.66677 | K20: ='Indicadores I'!C51 -> 25579.66677 | M20: =K20 -> 25579.66677 | O20: =K20 -> 25579.66677
N21: =SUM(N7:N20) -> 10080.7 | O21: total
K32: ='Indicadores I'!J37 -> 8076.8
K33: ='Indicadores I'!J38 -> 6710
K34: ='Indicadores I'!J39 -> 180
K35: ='Indicadores I'!J40 -> -159.2307692
K36: ='Indicadores I'!J41 -> -980
K37: ='Indicadores I'!J42 -> 0
K38: ='Indicadores I'!J43 -> 0
K39: ='Indicadores I'!J44 -> 0
K40: ='Indicadores I'!J45 -> 0
K41: ='Indicadores I'!J46 -> 0
K42: ='Indicadores I'!J47 -> 0
K43: ='Indicadores I'!J48 -> 0
K44: ='Indicadores I'!J49 -> 0.0001

Sheet TD ERS (hidden)
B3: Produtos
A4: Dados | C4: (vazio) | D4: Soro da comunidade | E4: couve | F4: coentro | G4: cebolinha | H4: Leite | I4: porco | J4: Galinhas | K4: ovo | L4: Millho seco | M4: Total Geral
A5: Entrada serviços e produtos. | B5: 0 | D5: 1825 | E5: 0 | F5: 0 | G5: 0 | H5: 0 | I5: 0 | J5: 0 | K5: 0 | L5: 0 | M5: 1825
A6: Doações. | B6: 0 | E6: 144 | F6: 144 | G6: 108 | H6: 110 | I6: 150 | J6: 360 | K6: 16.66666667 | L6: 20 | M6: 1052.666667

Sheet TD ERS para Diagrama (hidden)
B3: Rótulos de Coluna
A4: Valores | C4: (vazio) | D4: Soro da comunidade | E4: couve | F4: coentro | G4: cebolinha | H4: Leite | I4: porco | J4: Galinhas | K4: ovo | L4: Millho seco | M4: Total Geral
A5: Soma de Entrada serviços e produtos | B5: 0 | D5: 1825 | E5: 0 | F5: 0 | G5: 0 | H5: 0 | I5: 0 | J5: 0 | K5: 0 | L5: 0 | M5: 1825
A6: Soma de Renda Bruta | C6: 23369.66677 | M6: 23369.66677

Sheet Tabela ERS (hidden)
B2: Tabelas Dinâmicas de composição do gráfico ER-Social
B4: Produtos | C4: Doações | D4: Entrada serviços e produtos | E4: Recda Bruta
E5: ='Indicadores I'!C51 -> 25579.66677
A6: SUBSISTEMA 1 | B6: =IF(C6=0,"",'SUB. 1'!B19) -> Leite | C6: ='SUB. 1'!L19 -> 220 | D6: =N6 -> 0
B7: =IF(C7=0,"",'SUB. 1'!B20) ->  | C7: ='SUB. 1'!L20 -> 0 | D7: =N7 -> 0
B8: =IF(C8=0,"",'SUB. 1'!B21) ->  | C8: ='SUB. 1'!L21 -> 0 | D8: 0
B9: =IF(C9=0,"",'SUB. 1'!B22) ->  | C9: ='SUB. 1'!L22 -> 0 | D9: 0
B10: =IF(C10=0,"",'SUB. 1'!B23) ->  | C10: ='SUB. 1'!L23 -> 0 | D10: 0
B11: =IF(C11=0,"",'SUB. 1'!B24) ->  | C11: ='SUB. 1'!L24 -> 0 | D11: 0
B12: =IF(C12=0,"",'SUB. 1'!B25) ->  | C12: ='SUB. 1'!L25 -> 0 | D12: 0
B13: =IF(C13=0,"",'SUB. 1'!B26) ->  | C13: ='SUB. 1'!L26 -> 0 | D13: 0
B14: =IF(C14=0,"",'SUB. 1'!B27) ->  | C14: ='SUB. 1'!L27 -> 0 | D14: 0
B15: =IF(C15=0,"",'SUB. 1'!B28) ->  | C15: ='SUB. 1'!L28 -> 0 | D15: 0
B16: =IF(C16=0,"",'SUB. 1'!B29) ->  | C16: ='SUB. 1'!L29 -> 0 | D16: 0
B17: =IF(C17=0,"",'SUB. 1'!B30) ->  | C17: ='SUB. 1'!L30 -> 0 | D17: 0
B18: =IF(C18=0,"",'SUB. 1'!B31) ->  | C18: ='SUB. 1'!L31 -> 0 | D18: 0
B19: =IF(C19=0,"",'SUB. 1'!B32) ->  | C19: ='SUB. 1'!L32 -> 0 | D19: 0
B20: =IF(C20=0,"",'SUB. 1'!B33) ->  | C20: ='SUB. 1'!L33 -> 0 | D20: 0
B21: =IF(C21=0,"",'SUB. 1'!B34) ->  | C21: ='SUB. 1'!L34 -> 0 | D21: 0
B22: =IF(C22=0,"",'SUB. 1'!B35) ->  | C22: ='SUB. 1'!L35 -> 0 | D22: 0
B23: =IF(C23=0,"",'SUB. 1'!B36) ->  | C23: ='SUB. 1'!L36 -> 0 | D23: 0
A24: SUBSISTEMA 2 | B24: =IF(C24=0,"",'SUB. 2'!B19) -> porco | C24: ='SUB. 2'!L19 -> 1500 | D24: 0
B25: =IF(C25=0,"",'SUB. 2'!B20) ->  | C25: ='SUB. 2'!L20 -> 0 | D25: 0
B26: =IF(C26=0,"",'SUB. 2'!B21) ->  | C26: ='SUB. 2'!L21 -> 0 | D26: 0
B27: =IF(C27=0,"",'SUB. 2'!B22) ->  | C27: ='SUB. 2'!L22 -> 0 | D27: 0
B28: =IF(C28=0,"",'SUB. 2'!B23) ->  | C28: ='SUB. 2'!L23 -> 0 | D28: 0
B29: =IF(C29=0,"",'SUB. 2'!B24) ->  | C29: ='SUB. 2'!L24 -> 0 | D29: 0
B30: =IF(C30=0,"",'SUB. 2'!B25) ->  | C30: ='SUB. 2'!L25 -> 0 | D30: 0
B31: =IF(C31=0,"",'SUB. 2'!B26) ->  | C31: ='SUB. 2'!L26 -> 0 | D31: 0
B32: =IF(C32=0,"",'SUB. 2'!B27) ->  | C32: ='SUB. 2'!L27 -> 0 | D32: 0
B33: =IF(C33=0,"",'SUB. 2'!B28) ->  | C33: ='SUB. 2'!L28 -> 0 | D33: 0
B34: =IF(C34=0,"",'SUB. 2'!B29) ->  | C34: ='SUB. 2'!L29 -> 0 | D34: 0
B35: =IF(C35=0,"",'SUB. 2'!B30) ->  | C35: ='SUB. 2'!L30 -> 0 | D35: 0
B36: =IF(C36=0,"",'SUB. 2'!B31) ->  | C36: ='SUB. 2'!L31 -> 0 | D36: 0
B37: =IF(C37=0,"",'SUB. 2'!B32) ->  | C37: ='SUB. 2'!L32 -> 0 | D37: 0
B38: =IF(C38=0,"",'SUB. 2'!B33) ->  | C38: ='SUB. 2'!L33 -> 0 | D38: 0
B39: =IF(C39=0,"",'SUB. 2'!B34) ->  | C39: ='SUB. 2'!L34 -> 0 | D39: 0
B40: =IF(C40=0,"",'SUB. 2'!B35) ->  | C40: ='SUB. 2'!L35 -> 0 | D40: 0
B41: =IF(C41=0,"",'SUB. 2'!B36) ->  | C41: ='SUB. 2'!L36 -> 0 | D41: 0
A42: SUBSISTEMA 3 | B42: =IF(C42=0,"",'SUB. 3'!B19) ->  | C42: ='SUB. 3'!L19 -> 0 | D42: 0
B43: =IF(C43=0,"",'SUB. 3'!B20) ->  | C43: ='SUB. 3'!L20 -> 0 | D43: 0
B44: =IF(C44=0,"",'SUB. 3'!B21) ->  | C44: ='SUB. 3'!L21 -> 0 | D44: 0
B45: =IF(C45=0,"",'SUB. 3'!B22) ->  | C45: ='SUB. 3'!L22 -> 0 | D45: 0
B46: =IF(C46=0,"",'SUB. 3'!B23) ->  | C46: ='SUB. 3'!L23 -> 0 | D46: 0
B47: =IF(C47=0,"",'SUB. 3'!B24) ->  | C47: ='SUB. 3'!L24 -> 0 | D47: 0
B48: =IF(C48=0,"",'SUB. 3'!B25) ->  | C48: ='SUB. 3'!L25 -> 0 | D48: 0
B49: =IF(C49=0,"",'SUB. 3'!B26) ->  | C49: ='SUB. 3'!L26 -> 0 | D49: 0
B50: =IF(C50=0,"",'SUB. 3'!B27) ->  | C50: ='SUB. 3'!L27 -> 0 | D50: 0
B51: =IF(C51=0,"",'SUB. 3'!B28) ->  | C51: ='SUB. 3'!L28 -> 0 | D51: 0
B52: =IF(C52=0,"",'SUB. 3'!B29) ->  | C52: ='SUB. 3'!L29 -> 0 | D52: 0
B53: =IF(C53=0,"",'SUB. 3'!B30) ->  | C53: ='SUB. 3'!L30 -> 0 | D53: 0
B54: =IF(C54=0,"",'SUB. 3'!B31) ->  | C54: ='SUB. 3'!L31 -> 0 | D54: 0
B55: =IF(C55=0,"",'SUB. 3'!B32) ->  | C55: ='SUB. 3'!L32 -> 0 | D55: 0
B56: =IF(C56=0,"",'SUB. 3'!B33) ->  | C56: ='SUB. 3'!L33 -> 0 | D56: 0
B57: =IF(C57=0,"",'SUB. 3'!B34) ->  | C57: ='SUB. 3'!L34 -> 0 | D57: 0
B58: =IF(C58=0,"",'SUB. 3'!B35) ->  | C58: ='SUB. 3'!L35 -> 0 | D58: 0
B59: =IF(C59=0,"",'SUB. 3'!B36) ->  | C59: ='SUB. 1'!K48 -> 0 | D59: 0
A60: SUBSISTEMA 4 | B60: =IF(C60=0,"",'SUB. 4'!B19) -> Galinhas | C60: ='SUB. 4'!L19 -> 360 | D60: 0
B61: =IF(C61=0,"",'SUB. 4'!B20) ->  | C61: ='SUB. 4'!L20 -> 0 | D61: 0
B62: =IF(C62=0,"",'SUB. 4'!B21) ->  | C62: ='SUB. 4'!L21 -> 0 | D62: 0
B63: =IF(C63=0,"",'SUB. 4'!B22) -> ovo | C63: ='SUB. 4'!L22 -> 16.66666667 | D63: 0
B64: =IF(C64=0,"",'SUB. 4'!B23) ->  | C64: ='SUB. 4'!L23 -> 0 | D64: 0
B65: =IF(C65=0,"",'SUB. 4'!B24) ->  | C65: ='SUB. 4'!L24 -> 0 | D65: 0
B66: =IF(C66=0,"",'SUB. 4'!B25) ->  | C66: ='SUB. 4'!L25 -> 0 | D66: 0
B67: =IF(C67=0,"",'SUB. 4'!B26) ->  | C67: ='SUB. 4'!L26 -> 0 | D67: 0
B68: =IF(C68=0,"",'SUB. 4'!B27) ->  | C68: ='SUB. 4'!L27 -> 0 | D68: 0
B69: =IF(C69=0,"",'SUB. 4'!B28) ->  | C69: ='SUB. 4'!L28 -> 0 | D69: 0
B70: =IF(C70=0,"",'SUB. 4'!B29) ->  | C70: ='SUB. 4'!L29 -> 0 | D70: 0
B71: =IF(C71=0,"",'SUB. 4'!B30) ->  | C71: ='SUB. 4'!L30 -> 0 | D71: =N71 -> 0
B72: =IF(C72=0,"",'SUB. 4'!B31) ->  | C72: ='SUB. 4'!L31 -> 0 | D72: 0
B73: =IF(C73=0,"",'SUB. 4'!B32) ->  | C73: ='SUB. 4'!L32 -> 0 | D73: 0
B74: =IF(C74=0,"",'SUB. 4'!B33) ->  | C74: ='SUB. 4'!L33 -> 0 | D74: 0
B75: =IF(C75=0,"",'SUB. 4'!B34) ->  | C75: ='SUB. 4'!L34 -> 0 | D75: 0
B76: =IF(C76=0,"",'SUB. 4'!B35) ->  | C76: ='SUB. 4'!L35 -> 0 | D76: 0
B77: =IF(C77=0,"",'SUB. 4'!B36) ->  | C77: ='SUB. 4'!L36 -> 0 | D77: 0
A78: SUBSISTEMA 5 | B78: =IF(C78=0,"",'SUB. 5'!B19) ->  | C78: ='SUB. 5'!L19 -> 0 | D78: 0
B79: =IF(C79=0,"",'SUB. 5'!B20) -> Millho seco | C79: ='SUB. 5'!L20 -> 20 | D79: 0
B80: =IF(C80=0,"",'SUB. 5'!B21) ->  | C80: ='SUB. 5'!L21 -> 0 | D80: 0
B81: =IF(C81=0,"",'SUB. 5'!B22) ->  | C81: ='SUB. 5'!L22 -> 0 | D81: 0
B82: =IF(C82=0,"",'SUB. 5'!B23) ->  | C82: ='SUB. 5'!L23 -> 0 | D82: 0
B83: =IF(C83=0,"",'SUB. 5'!B24) ->  | C83: ='SUB. 5'!L24 -> 0 | D83: 0
B84: =IF(C84=0,"",'SUB. 5'!B25) ->  | C84: ='SUB. 5'!L25 -> 0 | D84: 0
B85: =IF(C85=0,"",'SUB. 5'!B26) ->  | C85: ='SUB. 5'!L26 -> 0 | D85: 0
B86: =IF(C86=0,"",'SUB. 5'!B27) ->  | C86: ='SUB. 5'!L27 -> 0 | D86: 0
B87: =IF(C87=0,"",'SUB. 5'!B28) ->  | C87: ='SUB. 5'!L28 -> 0 | D87: 0
B88: =IF(C88=0,"",'SUB. 5'!B29) ->  | C88: ='SUB. 5'!L29 -> 0 | D88: 0
B89: =IF(C89=0,"",'SUB. 5'!B30) ->  | C89: ='SUB. 5'!L30 -> 0 | D89: 0
B90: =IF(C90=0,"",'SUB. 5'!B31) ->  | C90: ='SUB. 5'!L31 -> 0 | D90: 0
B91: =IF(C91=0,"",'SUB. 5'!B32) ->  | C91: ='SUB. 5'!L32 -> 0 | D91: 0
B92: =IF(C92=0,"",'SUB. 5'!B33) ->  | C92: ='SUB. 5'!L33 -> 0 | D92: 0
B93: =IF(C93=0,"",'SUB. 5'!B34) ->  | C93: ='SUB. 5'!L34 -> 0 | D93: 0
B94: =IF(C94=0,"",'SUB. 5'!B35) ->  | C94: ='SUB. 5'!L35 -> 0 | D94: 0
B95: =IF(C95=0,"",'SUB. 5'!B36) ->  | C95: ='SUB. 5'!L36 -> 0 | D95: 0
A96: SUBSISTEMA 6 | B96: =IF(C96=0,"",'SUB. 6'!B19) ->  | C96: ='SUB. 6'!L19 -> 0 | D96: 0
B97: =IF(C97=0,"",'SUB. 6'!B20) ->  | C97: ='SUB. 6'!L20 -> 0 | D97: 0
B98: =IF(C98=0,"",'SUB. 6'!B21) ->  | C98: ='SUB. 6'!L21 -> 0 | D98: 0
B99: =IF(C99=0,"",'SUB. 6'!B22) ->  | C99: ='SUB. 6'!L22 -> 0 | D99: 0
B100: =IF(C100=0,"",'SUB. 6'!B23) ->  | C100: ='SUB. 6'!L23 -> 0 | D100: 0
B101: =IF(C101=0,"",'SUB. 6'!B24) ->  | C101: ='SUB. 6'!L24 -> 0 | D101: 0
B102: =IF(C102=0,"",'SUB. 6'!B25) ->  | C102: ='SUB. 6'!L25 -> 0 | D102: 0
B103: =IF(C103=0,"",'SUB. 6'!B26) ->  | C103: ='SUB. 6'!L26 -> 0 | D103: 0
B104: =IF(C104=0,"",'SUB. 6'!B27) ->  | C104: ='SUB. 6'!L27 -> 0 | D104: 0
B105: =IF(C105=0,"",'SUB. 6'!B28) ->  | C105: ='SUB. 6'!L28 -> 0 | D105: 0
B106: =IF(C106=0,"",'SUB. 6'!B29) -> couve | C106: ='SUB. 6'!L29 -> 144 | D106: 0
B107: =IF(C107=0,"",'SUB. 6'!B30) ->  | C107: ='SUB. 6'!L30 -> 0 | D107: 0
B108: =IF(C108=0,"",'SUB. 6'!B31) -> coentro | C108: ='SUB. 6'!L31 -> 144 | D108: 0
B109: =IF(C109=0,"",'SUB. 6'!B32) -> cebolinha | C109: ='SUB. 6'!L32 -> 108 | D109: 0
B110: =IF(C110=0,"",'SUB. 6'!B33) ->  | C110: ='SUB. 6'!L33 -> 0 | D110: 0
B111: =IF(C111=0,"",'SUB. 6'!B34) ->  | C111: ='SUB. 6'!L34 -> 0 | D111: 0
B112: =IF(C112=0,"",'SUB. 6'!B35) ->  | C112: ='SUB. 6'!L35 -> 0 | D112: 0
B113: =IF(C113=0,"",'SUB. 6'!B36) ->  | C113: ='SUB. 6'!L36 -> 0 | D113: 0
A114: SUBSISTEMA 7 | B114: =IF(C114=0,"",'SUB. 7'!B19) ->  | C114: ='SUB. 7'!L19 -> 0 | D114: 0
B115: =IF(C115=0,"",'SUB. 7'!B20) ->  | C115: ='SUB. 7'!L20 -> 0 | D115: 0
B116: =IF(C116=0,"",'SUB. 7'!B21) ->  | C116: ='SUB. 7'!L21 -> 0 | D116: 0
B117: =IF(C117=0,"",'SUB. 7'!B22) ->  | C117: ='SUB. 7'!L22 -> 0 | D117: 0
B118: =IF(C118=0,"",'SUB. 7'!B23) ->  | C118: ='SUB. 7'!L23 -> 0 | D118: 0
B119: =IF(C119=0,"",'SUB. 7'!B24) ->  | C119: ='SUB. 7'!L24 -> 0 | D119: 0
B120: =IF(C120=0,"",'SUB. 7'!B25) ->  | C120: ='SUB. 7'!L25 -> 0 | D120: 0
B121: =IF(C121=0,"",'SUB. 7'!B26) ->  | C121: ='SUB. 7'!L26 -> 0 | D121: 0
B122: =IF(C122=0,"",'SUB. 7'!B27) ->  | C122: ='SUB. 7'!L27 -> 0 | D122: 0
B123: =IF(C123=0,"",'SUB. 7'!B28) ->  | C123: ='SUB. 7'!L28 -> 0 | D123: 0
B124: =IF(C124=0,"",'SUB. 7'!B29) ->  | C124: ='SUB. 7'!L29 -> 0 | D124: 0
B125: =IF(C125=0,"",'SUB. 7'!B30) ->  | C125: ='SUB. 7'!L30 -> 0 | D125: 0
B126: =IF(C126=0,"",'SUB. 7'!B31) ->  | C126: ='SUB. 7'!L31 -> 0 | D126: 0
B127: =IF(C127=0,"",'SUB. 7'!B32) ->  | C127: ='SUB. 7'!L32 -> 0 | D127: 0
B128: =IF(C128=0,"",'SUB. 7'!B33) ->  | C128: ='SUB. 7'!L33 -> 0 | D128: 0
B129: =IF(C129=0,"",'SUB. 7'!B34) ->  | C129: ='SUB. 7'!L34 -> 0 | D129: 0
B130: =IF(C130=0,"",'SUB. 7'!B35) ->  | C130: ='SUB. 7'!L35 -> 0 | D130: 0
B131: =IF(C131=0,"",'SUB. 7'!B36) ->  | C131: ='SUB. 7'!L36 -> 0 | D131: 0
A132: SUBSISTEMA 8 | B132: =IF(C132=0,"",'SUB. 8'!B19) ->  | C132: ='SUB. 8'!L19 -> 0 | D132: 0
B133: =IF(C133=0,"",'SUB. 8'!B20) ->  | C133: ='SUB. 8'!L20 -> 0 | D133: 0
B134: =IF(C134=0,"",'SUB. 8'!B21) ->  | C134: ='SUB. 8'!L21 -> 0 | D134: 0
B135: =IF(C135=0,"",'SUB. 8'!B22) ->  | C135: ='SUB. 8'!L22 -> 0 | D135: =N135 -> 0
B136: =IF(C136=0,"",'SUB. 8'!B23) ->  | C136: ='SUB. 8'!L23 -> 0 | D136: 0
B137: =IF(C137=0,"",'SUB. 8'!B24) ->  | C137: ='SUB. 8'!L24 -> 0 | D137: 0
B138: =IF(C138=0,"",'SUB. 8'!B25) ->  | C138: ='SUB. 8'!L25 -> 0 | D138: 0
B139: =IF(C139=0,"",'SUB. 8'!B26) ->  | C139: ='SUB. 8'!L26 -> 0 | D139: 0
B140: =IF(C140=0,"",'SUB. 8'!B27) ->  | C140: ='SUB. 8'!L27 -> 0 | D140: 0
B141: =IF(C141=0,"",'SUB. 8'!B28) ->  | C141: ='SUB. 8'!L28 -> 0 | D141: 0
B142: =IF(C142=0,"",'SUB. 8'!B29) ->  | C142: ='SUB. 8'!L29 -> 0 | D142: 0
B143: =IF(C143=0,"",'SUB. 8'!B30) ->  | C143: ='SUB. 8'!L30 -> 0 | D143: 0
B144: =IF(C144=0,"",'SUB. 8'!B31) ->  | C144: ='SUB. 8'!L31 -> 0 | D144: 0
B145: =IF(C145=0,"",'SUB. 8'!B32) ->  | C145: ='SUB. 8'!L32 -> 0 | D145: 0
B146: =IF(C146=0,"",'SUB. 8'!B33) ->  | C146: ='SUB. 8'!L33 -> 0 | D146: 0
B147: =IF(C147=0,"",'SUB. 8'!B34) ->  | C147: ='SUB. 8'!L34 -> 0 | D147: 0
B148: =IF(C148=0,"",'SUB. 8'!B35) ->  | C148: ='SUB. 8'!L35 -> 0 | D148: 0
B149: =IF(C149=0,"",'SUB. 8'!B36) ->  | C149: ='SUB. 8'!L36 -> 0 | D149: 0
A150: SUBSISTEMA 9 | B150: =IF(C150=0,"",'SUB. 9'!B19) ->  | C150: ='SUB. 9'!L19 -> 0 | D150: 0
B151: =IF(C151=0,"",'SUB. 9'!B20) ->  | C151: ='SUB. 9'!L20 -> 0 | D151: 0
B152: =IF(C152=0,"",'SUB. 9'!B21) ->  | C152: ='SUB. 9'!L21 -> 0 | D152: 0
B153: =IF(C153=0,"",'SUB. 9'!B22) ->  | C153: ='SUB. 9'!L22 -> 0 | D153: 0
B154: =IF(C154=0,"",'SUB. 9'!B23) ->  | C154: ='SUB. 9'!L23 -> 0 | D154: 0
B155: =IF(C155=0,"",'SUB. 9'!B24) ->  | C155: ='SUB. 9'!L24 -> 0 | D155: 0
B156: =IF(C156=0,"",'SUB. 9'!B25) ->  | C156: ='SUB. 9'!L25 -> 0 | D156: 0
B157: =IF(C157=0,"",'SUB. 9'!B26) ->  | C157: ='SUB. 9'!L26 -> 0 | D157: 0
B158: =IF(C158=0,"",'SUB. 9'!B27) ->  | C158: ='SUB. 9'!L27 -> 0 | D158: 0
B159: =IF(C159=0,"",'SUB. 9'!B28) ->  | C159: ='SUB. 9'!L28 -> 0 | D159: 0
B160: =IF(C160=0,"",'SUB. 9'!B29) ->  | C160: ='SUB. 9'!L29 -> 0 | D160: 0
B161: =IF(C161=0,"",'SUB. 9'!B30) ->  | C161: ='SUB. 9'!L30 -> 0 | D161: 0
B162: =IF(C162=0,"",'SUB. 9'!B31) ->  | C162: ='SUB. 9'!L31 -> 0 | D162: 0
B163: =IF(C163=0,"",'SUB. 9'!B32) ->  | C163: ='SUB. 9'!L32 -> 0 | D163: 0
B164: =IF(C164=0,"",'SUB. 9'!B33) ->  | C164: ='SUB. 9'!L33 -> 0 | D164: 0
B165: =IF(C165=0,"",'SUB. 9'!B34) ->  | C165: ='SUB. 9'!L34 -> 0 | D165: 0
B166: =IF(C166=0,"",'SUB. 9'!B35) ->  | C166: ='SUB. 9'!L35 -> 0 | D166: 0
B167: =IF(C167=0,"",'SUB. 9'!B36) ->  | C167: ='SUB. 9'!L36 -> 0 | D167: 0
A168: SUBSISTEMA 10 | B168: =IF(C168=0,"",'SUB. 10'!B19) ->  | C168: ='SUB. 10'!L19 -> 0 | D168: 0
B169: =IF(C169=0,"",'SUB. 10'!B20) ->  | C169: ='SUB. 10'!L20 -> 0 | D169: 0
B170: =IF(C170=0,"",'SUB. 10'!B21) ->  | C170: ='SUB. 10'!L21 -> 0 | D170: 0
B171: =IF(C171=0,"",'SUB. 10'!B22) ->  | C171: ='SUB. 10'!L22 -> 0 | D171: 0
B172: =IF(C172=0,"",'SUB. 10'!B23) ->  | C172: ='SUB. 10'!L23 -> 0 | D172: 0
B173: =IF(C173=0,"",'SUB. 10'!B24) ->  | C173: ='SUB. 10'!L24 -> 0 | D173: 0
B174: =IF(C174=0,"",'SUB. 10'!B25) ->  | C174: ='SUB. 10'!L25 -> 0 | D174: 0
B175: =IF(C175=0,"",'SUB. 10'!B26) ->  | C175: ='SUB. 10'!L26 -> 0 | D175: 0
B176: =IF(C176=0,"",'SUB. 10'!B27) ->  | C176: ='SUB. 10'!L27 -> 0 | D176: 0
B177: =IF(C177=0,"",'SUB. 10'!B28) ->  | C177: ='SUB. 10'!L28 -> 0 | D177: 0
B178: =IF(C178=0,"",'SUB. 10'!B29) ->  | C178: ='SUB. 10'!L29 -> 0 | D178: 0
B179: =IF(C179=0,"",'SUB. 10'!B30) ->  | C179: ='SUB. 10'!L30 -> 0 | D179: 0
B180: =IF(C180=0,"",'SUB. 10'!B31) ->  | C180: ='SUB. 10'!L31 -> 0 | D180: 0
B181: =IF(C181=0,"",'SUB. 10'!B32) ->  | C181: ='SUB. 10'!L32 -> 0 | D181: 0
B182: =IF(C182=0,"",'SUB. 10'!B33) ->  | C182: ='SUB. 10'!L33 -> 0 | D182: 0
B183: =IF(C183=0,"",'SUB. 10'!B34) ->  | C183: ='SUB. 10'!L34 -> 0 | D183: 0
B184: =IF(C184=0,"",'SUB. 10'!B35) ->  | C184: ='SUB. 10'!L35 -> 0 | D184: 0
B185: =IF(C185=0,"",'SUB. 10'!B36) ->  | C185: ='SUB. 10'!L36 -> 0 | D185: 0
A186: SUBSISTEMA 11 | B186: =IF(C186=0,"",'SUB. 11'!B19) ->  | C186: ='SUB. 11'!L19 -> 0 | D186: 0
B187: =IF(C187=0,"",'SUB. 11'!B20) ->  | C187: ='SUB. 11'!L20 -> 0 | D187: 0
B188: =IF(C188=0,"",'SUB. 11'!B21) ->  | C188: ='SUB. 11'!L21 -> 0 | D188: 0
B189: =IF(C189=0,"",'SUB. 11'!B22) ->  | C189: ='SUB. 11'!L22 -> 0 | D189: 0
B190: =IF(C190=0,"",'SUB. 11'!B23) ->  | C190: ='SUB. 11'!L23 -> 0 | D190: 0
B191: =IF(C191=0,"",'SUB. 11'!B24) ->  | C191: ='SUB. 11'!L24 -> 0 | D191: 0
B192: =IF(C192=0,"",'SUB. 11'!B25) ->  | C192: ='SUB. 11'!L25 -> 0 | D192: 0
B193: =IF(C193=0,"",'SUB. 11'!B26) ->  | C193: ='SUB. 11'!L26 -> 0 | D193: 0
B194: =IF(C194=0,"",'SUB. 11'!B27) ->  | C194: ='SUB. 11'!L27 -> 0 | D194: 0
B195: =IF(C195=0,"",'SUB. 11'!B28) ->  | C195: ='SUB. 11'!L28 -> 0 | D195: 0
B196: =IF(C196=0,"",'SUB. 11'!B29) ->  | C196: ='SUB. 11'!L29 -> 0 | D196: 0
B197: =IF(C197=0,"",'SUB. 11'!B30) ->  | C197: ='SUB. 11'!L30 -> 0 | D197: 0
B198: =IF(C198=0,"",'SUB. 11'!B31) ->  | C198: ='SUB. 11'!L31 -> 0 | D198: 0
B199: =IF(C199=0,"",'SUB. 11'!B32) ->  | C199: ='SUB. 11'!L32 -> 0 | D199: =N199 -> 0
B200: =IF(C200=0,"",'SUB. 11'!B33) ->  | C200: ='SUB. 11'!L33 -> 0 | D200: 0
B201: =IF(C201=0,"",'SUB. 11'!B34) ->  | C201: ='SUB. 11'!L34 -> 0 | D201: 0
B202: =IF(C202=0,"",'SUB. 11'!B35) ->  | C202: ='SUB. 11'!L35 -> 0 | D202: 0
... 232 more rows

Sheet Tabela Produções (hidden)
J2: Tabelas Dinâmicas de composição dos gráficos 2
B4: Produtos 1 | C4: Produções | D4: Produtos 2 | E4: Venda | F4: Produtos 3 | G4: Autoconsumo | H4: Doações trocas | I4: Estoque | J4: Insumos Produzidos
A5: SUBSISTEMA 1 | B5: =IF(C5=0,"",'SUB. 1'!B19) -> Leite | C5: ='SUB. 1'!P19 -> 8668 | D5: =IF(E5=0,"",'SUB. 1'!B19) -> Leite | E5: ='SUB. 1'!H19 -> 8236.8 | F5: =IF(G5=0,"",'SUB. 1'!B19) -> Leite | G5: ='SUB. 1'!J19 -> 211.2 | H5: ='SUB. 1'!L19 -> 220 | I5: ='SUB. 1'!N19 -> 0 | J5: ='SUB. 1'!R19 -> 0
B6: =IF(C6=0,"",'SUB. 1'!B20) -> vaca (4) | C6: ='SUB. 1'!P20 -> 9692.307692 | D6: =IF(E6=0,"",'SUB. 1'!B20) -> vaca (4) | E6: ='SUB. 1'!H20 -> 2000 | F6: =IF(G6=0,"",'SUB. 1'!B20) ->  | G6: ='SUB. 1'!J20 -> 0 | H6: ='SUB. 1'!L20 -> 0 | I6: ='SUB. 1'!N20 -> 7692.307692 | J6: ='SUB. 1'!R20 -> 0
B7: =IF(C7=0,"",'SUB. 1'!B21) ->  | C7: ='SUB. 1'!P21 -> 0 | D7: =IF(E7=0,"",'SUB. 1'!B21) ->  | E7: ='SUB. 1'!H21 -> 0 | F7: =IF(G7=0,"",'SUB. 1'!B21) ->  | G7: ='SUB. 1'!J21 -> 0 | H7: ='SUB. 1'!L21 -> 0 | I7: ='SUB. 1'!N21 -> 0 | J7: ='SUB. 1'!R21 -> 3360
B8: =IF(C8=0,"",'SUB. 1'!B22) ->  | C8: ='SUB. 1'!P22 -> 0 | D8: =IF(E8=0,"",'SUB. 1'!B22) ->  | E8: ='SUB. 1'!H22 -> 0 | F8: =IF(G8=0,"",'SUB. 1'!B22) ->  | G8: ='SUB. 1'!J22 -> 0 | H8: ='SUB. 1'!L22 -> 0 | I8: ='SUB. 1'!N22 -> 0 | J8: ='SUB. 1'!R22 -> 0
B9: =IF(C9=0,"",'SUB. 1'!B23) ->  | C9: ='SUB. 1'!P23 -> 0 | D9: =IF(E9=0,"",'SUB. 1'!B23) ->  | E9: ='SUB. 1'!H23 -> 0 | F9: =IF(G9=0,"",'SUB. 1'!B23) ->  | G9: ='SUB. 1'!J23 -> 0 | H9: ='SUB. 1'!L23 -> 0 | I9: ='SUB. 1'!N23 -> 0 | J9: ='SUB. 1'!R23 -> 0
B10: =IF(C10=0,"",'SUB. 1'!B24) ->  | C10: ='SUB. 1'!P24 -> 0 | D10: =IF(E10=0,"",'SUB. 1'!B24) ->  | E10: ='SUB. 1'!H24 -> 0 | F10: =IF(G10=0,"",'SUB. 1'!B24) ->  | G10: ='SUB. 1'!J24 -> 0 | H10: ='SUB. 1'!L24 -> 0 | I10: ='SUB. 1'!N24 -> 0 | J10: ='SUB. 1'!R24 -> 0
B11: =IF(C11=0,"",'SUB. 1'!B25) ->  | C11: ='SUB. 1'!P25 -> 0 | D11: =IF(E11=0,"",'SUB. 1'!B25) ->  | E11: ='SUB. 1'!H25 -> 0 | F11: =IF(G11=0,"",'SUB. 1'!B25) ->  | G11: ='SUB. 1'!J25 -> 0 | H11: ='SUB. 1'!L25 -> 0 | I11: ='SUB. 1'!N25 -> 0 | J11: ='SUB. 1'!R25 -> 0
B12: =IF(C12=0,"",'SUB. 1'!B26) ->  | C12: ='SUB. 1'!P26 -> 0 | D12: =IF(E12=0,"",'SUB. 1'!B26) ->  | E12: ='SUB. 1'!H26 -> 0 | F12: =IF(G12=0,"",'SUB. 1'!B26) ->  | G12: ='SUB. 1'!J26 -> 0 | H12: ='SUB. 1'!L26 -> 0 | I12: ='SUB. 1'!N26 -> 0 | J12: ='SUB. 1'!R26 -> 0
B13: =IF(C13=0,"",'SUB. 1'!B27) ->  | C13: ='SUB. 1'!P27 -> 0 | D13: =IF(E13=0,"",'SUB. 1'!B27) ->  | E13: ='SUB. 1'!H27 -> 0 | F13: =IF(G13=0,"",'SUB. 1'!B27) ->  | G13: ='SUB. 1'!J27 -> 0 | H13: ='SUB. 1'!L27 -> 0 | I13: ='SUB. 1'!N27 -> 0 | J13: ='SUB. 1'!R27 -> 0
B14: =IF(C14=0,"",'SUB. 1'!B28) ->  | C14: ='SUB. 1'!P28 -> 0 | D14: =IF(E14=0,"",'SUB. 1'!B28) ->  | E14: ='SUB. 1'!H28 -> 0 | F14: =IF(G14=0,"",'SUB. 1'!B28) ->  | G14: ='SUB. 1'!J28 -> 0 | H14: ='SUB. 1'!L28 -> 0 | I14: ='SUB. 1'!N28 -> 0 | J14: ='SUB. 1'!R28 -> 0
B15: =IF(C15=0,"",'SUB. 1'!B29) ->  | C15: ='SUB. 1'!P29 -> 0 | D15: =IF(E15=0,"",'SUB. 1'!B29) ->  | E15: ='SUB. 1'!H29 -> 0 | F15: =IF(G15=0,"",'SUB. 1'!B29) ->  | G15: ='SUB. 1'!J29 -> 0 | H15: ='SUB. 1'!L29 -> 0 | I15: ='SUB. 1'!N29 -> 0 | J15: ='SUB. 1'!R29 -> 0
B16: =IF(C16=0,"",'SUB. 1'!B30) ->  | C16: ='SUB. 1'!P30 -> 0 | D16: =IF(E16=0,"",'SUB. 1'!B30) ->  | E16: ='SUB. 1'!H30 -> 0 | F16: =IF(G16=0,"",'SUB. 1'!B30) ->  | G16: ='SUB. 1'!J30 -> 0 | H16: ='SUB. 1'!L30 -> 0 | I16: ='SUB. 1'!N30 -> 0 | J16: ='SUB. 1'!R30 -> 0
B17: =IF(C17=0,"",'SUB. 1'!B31) ->  | C17: ='SUB. 1'!P31 -> 0 | D17: =IF(E17=0,"",'SUB. 1'!B31) ->  | E17: ='SUB. 1'!H31 -> 0 | F17: =IF(G17=0,"",'SUB. 1'!B31) ->  | G17: ='SUB. 1'!J31 -> 0 | H17: ='SUB. 1'!L31 -> 0 | I17: ='SUB. 1'!N31 -> 0 | J17: ='SUB. 1'!R31 -> 0
B18: =IF(C18=0,"",'SUB. 1'!B32) ->  | C18: ='SUB. 1'!P32 -> 0 | D18: =IF(E18=0,"",'SUB. 1'!B32) ->  | E18: ='SUB. 1'!H32 -> 0 | F18: =IF(G18=0,"",'SUB. 1'!B32) ->  | G18: ='SUB. 1'!J32 -> 0 | H18: ='SUB. 1'!L32 -> 0 | I18: ='SUB. 1'!N32 -> 0 | J18: ='SUB. 1'!R32 -> 0
B19: =IF(C19=0,"",'SUB. 1'!B33) ->  | C19: ='SUB. 1'!P33 -> 0 | D19: =IF(E19=0,"",'SUB. 1'!B33) ->  | E19: ='SUB. 1'!H33 -> 0 | F19: =IF(G19=0,"",'SUB. 1'!B33) ->  | G19: ='SUB. 1'!J33 -> 0 | H19: ='SUB. 1'!L33 -> 0 | I19: ='SUB. 1'!N33 -> 0 | J19: ='SUB. 1'!R33 -> 0
B20: =IF(C20=0,"",'SUB. 1'!B34) ->  | C20: ='SUB. 1'!P34 -> 0 | D20: =IF(E20=0,"",'SUB. 1'!B34) ->  | E20: ='SUB. 1'!H34 -> 0 | F20: =IF(G20=0,"",'SUB. 1'!B34) ->  | G20: ='SUB. 1'!J34 -> 0 | H20: ='SUB. 1'!L34 -> 0 | I20: ='SUB. 1'!N34 -> 0 | J20: ='SUB. 1'!R34 -> 0
B21: =IF(C21=0,"",'SUB. 1'!B35) ->  | C21: ='SUB. 1'!P35 -> 0 | D21: =IF(E21=0,"",'SUB. 1'!B35) ->  | E21: ='SUB. 1'!H35 -> 0 | F21: =IF(G21=0,"",'SUB. 1'!B35) ->  | G21: ='SUB. 1'!J35 -> 0 | H21: ='SUB. 1'!L35 -> 0 | I21: ='SUB. 1'!N35 -> 0 | J21: ='SUB. 1'!R35 -> 0
B22: =IF(C22=0,"",'SUB. 1'!B36) ->  | C22: ='SUB. 1'!P36 -> 0 | D22: =IF(E22=0,"",'SUB. 1'!B36) ->  | E22: ='SUB. 1'!H36 -> 0 | F22: =IF(G22=0,"",'SUB. 1'!B36) ->  | G22: ='SUB. 1'!J36 -> 0 | H22: ='SUB. 1'!L36 -> 0 | I22: ='SUB. 1'!N36 -> 0 | J22: ='SUB. 1'!R36 -> 0
A23: SUBSISTEMA 2 | B23: =IF(C23=0,"",'SUB. 2'!B19) -> porco | C23: ='SUB. 2'!P19 -> 16830 | D23: =IF(E23=0,"",'SUB. 2'!B19) -> porco | E23: ='SUB. 2'!H19 -> 7830 | F23: =IF(G23=0,"",'SUB. 2'!B19) -> porco | G23: ='SUB. 2'!J19 -> 900 | H23: ='SUB. 2'!L19 -> 1500 | I23: ='SUB. 2'!N19 -> 6600 | J23: ='SUB. 2'!R19 -> 0
B24: =IF(C24=0,"",'SUB. 2'!B20) ->  | C24: ='SUB. 2'!P20 -> 0 | D24: =IF(E24=0,"",'SUB. 2'!B20) ->  | E24: ='SUB. 2'!H20 -> 0 | F24: =IF(G24=0,"",'SUB. 2'!B20) ->  | G24: ='SUB. 2'!J20 -> 0 | H24: ='SUB. 2'!L20 -> 0 | I24: ='SUB. 2'!N20 -> 0 | J24: ='SUB. 2'!R20 -> 153.3
B25: =IF(C25=0,"",'SUB. 2'!B21) ->  | C25: ='SUB. 2'!P21 -> 0 | D25: =IF(E25=0,"",'SUB. 2'!B21) ->  | E25: ='SUB. 2'!H21 -> 0 | F25: =IF(G25=0,"",'SUB. 2'!B21) ->  | G25: ='SUB. 2'!J21 -> 0 | H25: ='SUB. 2'!L21 -> 0 | I25: ='SUB. 2'!N21 -> 0 | J25: ='SUB. 2'!R21 -> 0
B26: =IF(C26=0,"",'SUB. 2'!B22) ->  | C26: ='SUB. 2'!P22 -> 0 | D26: =IF(E26=0,"",'SUB. 2'!B22) ->  | E26: ='SUB. 2'!H22 -> 0 | F26: =IF(G26=0,"",'SUB. 2'!B22) ->  | G26: ='SUB. 2'!J22 -> 0 | H26: ='SUB. 2'!L22 -> 0 | I26: ='SUB. 2'!N22 -> 0 | J26: ='SUB. 2'!R22 -> 0
B27: =IF(C27=0,"",'SUB. 2'!B23) ->  | C27: ='SUB. 2'!P23 -> 0 | D27: =IF(E27=0,"",'SUB. 2'!B23) ->  | E27: ='SUB. 2'!H23 -> 0 | F27: =IF(G27=0,"",'SUB. 2'!B23) ->  | G27: ='SUB. 2'!J23 -> 0 | H27: ='SUB. 2'!L23 -> 0 | I27: ='SUB. 2'!N23 -> 0 | J27: ='SUB. 2'!R23 -> 0
B28: =IF(C28=0,"",'SUB. 2'!B24) ->  | C28: ='SUB. 2'!P24 -> 0 | D28: =IF(E28=0,"",'SUB. 2'!B24) ->  | E28: ='SUB. 2'!H24 -> 0 | F28: =IF(G28=0,"",'SUB. 2'!B24) ->  | G28: ='SUB. 2'!J24 -> 0 | H28: ='SUB. 2'!L24 -> 0 | I28: ='SUB. 2'!N24 -> 0 | J28: ='SUB. 2'!R24 -> 0
B29: =IF(C29=0,"",'SUB. 2'!B25) ->  | C29: ='SUB. 2'!P25 -> 0 | D29: =IF(E29=0,"",'SUB. 2'!B25) ->  | E29: ='SUB. 2'!H25 -> 0 | F29: =IF(G29=0,"",'SUB. 2'!B25) ->  | G29: ='SUB. 2'!J25 -> 0 | H29: ='SUB. 2'!L25 -> 0 | I29: ='SUB. 2'!N25 -> 0 | J29: ='SUB. 2'!R25 -> 0
B30: =IF(C30=0,"",'SUB. 2'!B26) ->  | C30: ='SUB. 2'!P26 -> 0 | D30: =IF(E30=0,"",'SUB. 2'!B26) ->  | E30: ='SUB. 2'!H26 -> 0 | F30: =IF(G30=0,"",'SUB. 2'!B26) ->  | G30: ='SUB. 2'!J26 -> 0 | H30: ='SUB. 2'!L26 -> 0 | I30: ='SUB. 2'!N26 -> 0 | J30: ='SUB. 2'!R26 -> 0
B31: =IF(C31=0,"",'SUB. 2'!B27) ->  | C31: ='SUB. 2'!P27 -> 0 | D31: =IF(E31=0,"",'SUB. 2'!B27) ->  | E31: ='SUB. 2'!H27 -> 0 | F31: =IF(G31=0,"",'SUB. 2'!B27) ->  | G31: ='SUB. 2'!J27 -> 0 | H31: ='SUB. 2'!L27 -> 0 | I31: ='SUB. 2'!N27 -> 0 | J31: ='SUB. 2'!R27 -> 0
B32: =IF(C32=0,"",'SUB. 2'!B28) ->  | C32: ='SUB. 2'!P28 -> 0 | D32: =IF(E32=0,"",'SUB. 2'!B28) ->  | E32: ='SUB. 2'!H28 -> 0 | F32: =IF(G32=0,"",'SUB. 2'!B28) ->  | G32: ='SUB. 2'!J28 -> 0 | H32: ='SUB. 2'!L28 -> 0 | I32: ='SUB. 2'!N28 -> 0 | J32: ='SUB. 2'!R28 -> 0
B33: =IF(C33=0,"",'SUB. 2'!B29) ->  | C33: ='SUB. 2'!P29 -> 0 | D33: =IF(E33=0,"",'SUB. 2'!B29) ->  | E33: ='SUB. 2'!H29 -> 0 | F33: =IF(G33=0,"",'SUB. 2'!B29) ->  | G33: ='SUB. 2'!J29 -> 0 | H33: ='SUB. 2'!L29 -> 0 | I33: ='SUB. 2'!N29 -> 0 | J33: ='SUB. 2'!R29 -> 0
B34: =IF(C34=0,"",'SUB. 2'!B30) ->  | C34: ='SUB. 2'!P30 -> 0 | D34: =IF(E34=0,"",'SUB. 2'!B30) ->  | E34: ='SUB. 2'!H30 -> 0 | F34: =IF(G34=0,"",'SUB. 2'!B30) ->  | G34: ='SUB. 2'!J30 -> 0 | H34: ='SUB. 2'!L30 -> 0 | I34: ='SUB. 2'!N30 -> 0 | J34: ='SUB. 2'!R30 -> 0
B35: =IF(C35=0,"",'SUB. 2'!B31) ->  | C35: ='SUB. 2'!P31 -> 0 | D35: =IF(E35=0,"",'SUB. 2'!B31) ->  | E35: ='SUB. 2'!H31 -> 0 | F35: =IF(G35=0,"",'SUB. 2'!B31) ->  | G35: ='SUB. 2'!J31 -> 0 | H35: ='SUB. 2'!L31 -> 0 | I35: ='SUB. 2'!N31 -> 0 | J35: ='SUB. 2'!R31 -> 0
B36: =IF(C36=0,"",'SUB. 2'!B32) ->  | C36: ='SUB. 2'!P32 -> 0 | D36: =IF(E36=0,"",'SUB. 2'!B32) ->  | E36: ='SUB. 2'!H32 -> 0 | F36: =IF(G36=0,"",'SUB. 2'!B32) ->  | G36: ='SUB. 2'!J32 -> 0 | H36: ='SUB. 2'!L32 -> 0 | I36: ='SUB. 2'!N32 -> 0 | J36: ='SUB. 2'!R32 -> 0
B37: =IF(C37=0,"",'SUB. 2'!B33) ->  | C37: ='SUB. 2'!P33 -> 0 | D37: =IF(E37=0,"",'SUB. 2'!B33) ->  | E37: ='SUB. 2'!H33 -> 0 | F37: =IF(G37=0,"",'SUB. 2'!B33) ->  | G37: ='SUB. 2'!J33 -> 0 | H37: ='SUB. 2'!L33 -> 0 | I37: ='SUB. 2'!N33 -> 0 | J37: ='SUB. 2'!R33 -> 0
B38: =IF(C38=0,"",'SUB. 2'!B34) ->  | C38: ='SUB. 2'!P34 -> 0 | D38: =IF(E38=0,"",'SUB. 2'!B34) ->  | E38: ='SUB. 2'!H34 -> 0 | F38: =IF(G38=0,"",'SUB. 2'!B34) ->  | G38: ='SUB. 2'!J34 -> 0 | H38: ='SUB. 2'!L34 -> 0 | I38: ='SUB. 2'!N34 -> 0 | J38: ='SUB. 2'!R34 -> 0
B39: =IF(C39=0,"",'SUB. 2'!B35) ->  | C39: ='SUB. 2'!P35 -> 0 | D39: =IF(E39=0,"",'SUB. 2'!B35) ->  | E39: ='SUB. 2'!H35 -> 0 | F39: =IF(G39=0,"",'SUB. 2'!B35) ->  | G39: ='SUB. 2'!J35 -> 0 | H39: ='SUB. 2'!L35 -> 0 | I39: ='SUB. 2'!N35 -> 0 | J39: ='SUB. 2'!R35 -> 0
B40: =IF(C40=0,"",'SUB. 2'!B36) ->  | C40: ='SUB. 2'!P36 -> 0 | D40: =IF(E40=0,"",'SUB. 2'!B36) ->  | E40: ='SUB. 2'!H36 -> 0 | F40: =IF(G40=0,"",'SUB. 2'!B36) ->  | G40: ='SUB. 2'!J36 -> 0 | H40: ='SUB. 2'!L36 -> 0 | I40: ='SUB. 2'!N36 -> 0 | J40: ='SUB. 2'!R36 -> 0
A41: SUBSISTEMA 3 | B41: =IF(C41=0,"",'SUB. 3'!B19) -> animal | C41: ='SUB. 3'!P19 -> 405 | D41: =IF(E41=0,"",'SUB. 3'!B19) -> animal | E41: ='SUB. 3'!H19 -> 180 | F41: =IF(G41=0,"",'SUB. 3'!B19) ->  | G41: ='SUB. 3'!J19 -> 0 | H41: ='SUB. 3'!L19 -> 0 | I41: ='SUB. 3'!N19 -> 225 | J41: ='SUB. 3'!R19 -> 0
B42: =IF(C42=0,"",'SUB. 3'!B20) ->  | C42: ='SUB. 3'!P20 -> 0 | D42: =IF(E42=0,"",'SUB. 3'!B20) ->  | E42: ='SUB. 3'!H20 -> 0 | F42: =IF(G42=0,"",'SUB. 3'!B20) ->  | G42: ='SUB. 3'!J20 -> 0 | H42: ='SUB. 3'!L20 -> 0 | I42: ='SUB. 3'!N20 -> 0 | J42: ='SUB. 3'!R20 -> 630
B43: =IF(C43=0,"",'SUB. 3'!B21) ->  | C43: ='SUB. 3'!P21 -> 0 | D43: =IF(E43=0,"",'SUB. 3'!B21) ->  | E43: ='SUB. 3'!H21 -> 0 | F43: =IF(G43=0,"",'SUB. 3'!B21) ->  | G43: ='SUB. 3'!J21 -> 0 | H43: ='SUB. 3'!L21 -> 0 | I43: ='SUB. 3'!N21 -> 0 | J43: ='SUB. 3'!R21 -> 0
B44: =IF(C44=0,"",'SUB. 3'!B22) ->  | C44: ='SUB. 3'!P22 -> 0 | D44: =IF(E44=0,"",'SUB. 3'!B22) ->  | E44: ='SUB. 3'!H22 -> 0 | F44: =IF(G44=0,"",'SUB. 3'!B22) ->  | G44: ='SUB. 3'!J22 -> 0 | H44: ='SUB. 3'!L22 -> 0 | I44: ='SUB. 3'!N22 -> 0 | J44: ='SUB. 3'!R22 -> 0
B45: =IF(C45=0,"",'SUB. 3'!B23) ->  | C45: ='SUB. 3'!P23 -> 0 | D45: =IF(E45=0,"",'SUB. 3'!B23) ->  | E45: ='SUB. 3'!H23 -> 0 | F45: =IF(G45=0,"",'SUB. 3'!B23) ->  | G45: ='SUB. 3'!J23 -> 0 | H45: ='SUB. 3'!L23 -> 0 | I45: ='SUB. 3'!N23 -> 0 | J45: ='SUB. 3'!R23 -> 0
B46: =IF(C46=0,"",'SUB. 3'!B24) ->  | C46: ='SUB. 3'!P24 -> 0 | D46: =IF(E46=0,"",'SUB. 3'!B24) ->  | E46: ='SUB. 3'!H24 -> 0 | F46: =IF(G46=0,"",'SUB. 3'!B24) ->  | G46: ='SUB. 3'!J24 -> 0 | H46: ='SUB. 3'!L24 -> 0 | I46: ='SUB. 3'!N24 -> 0 | J46: ='SUB. 3'!R24 -> 0
B47: =IF(C47=0,"",'SUB. 3'!B25) ->  | C47: ='SUB. 3'!P25 -> 0 | D47: =IF(E47=0,"",'SUB. 3'!B25) ->  | E47: ='SUB. 3'!H25 -> 0 | F47: =IF(G47=0,"",'SUB. 3'!B25) ->  | G47: ='SUB. 3'!J25 -> 0 | H47: ='SUB. 3'!L25 -> 0 | I47: ='SUB. 3'!N25 -> 0 | J47: ='SUB. 3'!R25 -> 0
B48: =IF(C48=0,"",'SUB. 3'!B26) ->  | C48: ='SUB. 3'!P26 -> 0 | D48: =IF(E48=0,"",'SUB. 3'!B26) ->  | E48: ='SUB. 3'!H26 -> 0 | F48: =IF(G48=0,"",'SUB. 3'!B26) ->  | G48: ='SUB. 3'!J26 -> 0 | H48: ='SUB. 3'!L26 -> 0 | I48: ='SUB. 3'!N26 -> 0 | J48: ='SUB. 3'!R26 -> 0
B49: =IF(C49=0,"",'SUB. 3'!B27) ->  | C49: ='SUB. 3'!P27 -> 0 | D49: =IF(E49=0,"",'SUB. 3'!B27) ->  | E49: ='SUB. 3'!H27 -> 0 | F49: =IF(G49=0,"",'SUB. 3'!B27) ->  | G49: ='SUB. 3'!J27 -> 0 | H49: ='SUB. 3'!L27 -> 0 | I49: ='SUB. 3'!N27 -> 0 | J49: ='SUB. 3'!R27 -> 0
B50: =IF(C50=0,"",'SUB. 3'!B28) ->  | C50: ='SUB. 3'!P28 -> 0 | D50: =IF(E50=0,"",'SUB. 3'!B28) ->  | E50: ='SUB. 3'!H28 -> 0 | F50: =IF(G50=0,"",'SUB. 3'!B28) ->  | G50: ='SUB. 3'!J28 -> 0 | H50: ='SUB. 3'!L28 -> 0 | I50: ='SUB. 3'!N28 -> 0 | J50: ='SUB. 3'!R28 -> 0
B51: =IF(C51=0,"",'SUB. 3'!B29) ->  | C51: ='SUB. 3'!P29 -> 0 | D51: =IF(E51=0,"",'SUB. 3'!B29) ->  | E51: ='SUB. 3'!H29 -> 0 | F51: =IF(G51=0,"",'SUB. 3'!B29) ->  | G51: ='SUB. 3'!J29 -> 0 | H51: ='SUB. 3'!L29 -> 0 | I51: ='SUB. 3'!N29 -> 0 | J51: ='SUB. 3'!R29 -> 0
B52: =IF(C52=0,"",'SUB. 3'!B30) ->  | C52: ='SUB. 3'!P30 -> 0 | D52: =IF(E52=0,"",'SUB. 3'!B30) ->  | E52: ='SUB. 3'!H30 -> 0 | F52: =IF(G52=0,"",'SUB. 3'!B30) ->  | G52: ='SUB. 3'!J30 -> 0 | H52: ='SUB. 3'!L30 -> 0 | I52: ='SUB. 3'!N30 -> 0 | J52: ='SUB. 3'!R30 -> 0
B53: =IF(C53=0,"",'SUB. 3'!B31) ->  | C53: ='SUB. 3'!P31 -> 0 | D53: =IF(E53=0,"",'SUB. 3'!B31) ->  | E53: ='SUB. 3'!H31 -> 0 | F53: =IF(G53=0,"",'SUB. 3'!B31) ->  | G53: ='SUB. 3'!J31 -> 0 | H53: ='SUB. 3'!L31 -> 0 | I53: ='SUB. 3'!N31 -> 0 | J53: ='SUB. 3'!R31 -> 0
B54: =IF(C54=0,"",'SUB. 3'!B32) ->  | C54: ='SUB. 3'!P32 -> 0 | D54: =IF(E54=0,"",'SUB. 3'!B32) ->  | E54: ='SUB. 3'!H32 -> 0 | F54: =IF(G54=0,"",'SUB. 3'!B32) ->  | G54: ='SUB. 3'!J32 -> 0 | H54: ='SUB. 3'!L32 -> 0 | I54: ='SUB. 3'!N32 -> 0 | J54: ='SUB. 3'!R32 -> 0
B55: =IF(C55=0,"",'SUB. 3'!B33) ->  | C55: ='SUB. 3'!P33 -> 0 | D55: =IF(E55=0,"",'SUB. 3'!B33) ->  | E55: ='SUB. 3'!H33 -> 0 | F55: =IF(G55=0,"",'SUB. 3'!B33) ->  | G55: ='SUB. 3'!J33 -> 0 | H55: ='SUB. 3'!L33 -> 0 | I55: ='SUB. 3'!N33 -> 0 | J55: ='SUB. 3'!R33 -> 0
B56: =IF(C56=0,"",'SUB. 3'!B34) ->  | C56: ='SUB. 3'!P34 -> 0 | D56: =IF(E56=0,"",'SUB. 3'!B34) ->  | E56: ='SUB. 3'!H34 -> 0 | F56: =IF(G56=0,"",'SUB. 3'!B34) ->  | G56: ='SUB. 3'!J34 -> 0 | H56: ='SUB. 3'!L34 -> 0 | I56: ='SUB. 3'!N34 -> 0 | J56: ='SUB. 3'!R34 -> 0
B57: =IF(C57=0,"",'SUB. 3'!B35) ->  | C57: ='SUB. 3'!P35 -> 0 | D57: =IF(E57=0,"",'SUB. 3'!B35) ->  | E57: ='SUB. 3'!H35 -> 0 | F57: =IF(G57=0,"",'SUB. 3'!B35) ->  | G57: ='SUB. 3'!J35 -> 0 | H57: ='SUB. 3'!L35 -> 0 | I57: ='SUB. 3'!N35 -> 0 | J57: ='SUB. 3'!R35 -> 0
B58: =IF(C58=0,"",'SUB. 3'!B36) ->  | C58: ='SUB. 3'!P36 -> 0 | D58: =IF(E58=0,"",'SUB. 3'!B36) ->  | E58: ='SUB. 3'!H36 -> 0 | F58: =IF(G58=0,"",'SUB. 3'!B36) ->  | G58: ='SUB. 3'!J36 -> 0 | H58: ='SUB. 1'!K48 -> 0 | I58: ='SUB. 3'!N36 -> 0 | J58: ='SUB. 3'!R36 -> 0
A59: SUBSISTEMA 4 | B59: =IF(C59=0,"",'SUB. 4'!B19) -> Galinhas | C59: ='SUB. 4'!P19 -> 2580 | D59: =IF(E59=0,"",'SUB. 4'!B19) -> Galinhas | E59: ='SUB. 4'!H19 -> 180 | F59: =IF(G59=0,"",'SUB. 4'!B19) -> Galinhas | G59: ='SUB. 4'!J19 -> 1440 | H59: ='SUB. 4'!L19 -> 360 | I59: ='SUB. 4'!N19 -> 600 | J59: ='SUB. 4'!R19 -> 0
B60: =IF(C60=0,"",'SUB. 4'!B20) -> Pato | C60: ='SUB. 4'!P20 -> 400 | D60: =IF(E60=0,"",'SUB. 4'!B20) ->  | E60: ='SUB. 4'!H20 -> 0 | F60: =IF(G60=0,"",'SUB. 4'!B20) -> Pato | G60: ='SUB. 4'!J20 -> 300 | H60: ='SUB. 4'!L20 -> 0 | I60: ='SUB. 4'!N20 -> 100 | J60: ='SUB. 4'!R20 -> 0
B61: =IF(C61=0,"",'SUB. 4'!B21) -> Peru | C61: ='SUB. 4'!P21 -> 60 | D61: =IF(E61=0,"",'SUB. 4'!B21) ->  | E61: ='SUB. 4'!H21 -> 0 | F61: =IF(G61=0,"",'SUB. 4'!B21) ->  | G61: ='SUB. 4'!J21 -> 0 | H61: ='SUB. 4'!L21 -> 0 | I61: ='SUB. 4'!N21 -> 60 | J61: ='SUB. 4'!R21 -> 0
B62: =IF(C62=0,"",'SUB. 4'!B22) -> ovo | C62: ='SUB. 4'!P22 -> 292.9166667 | D62: =IF(E62=0,"",'SUB. 4'!B22) -> ovo | E62: ='SUB. 4'!H22 -> 30 | F62: =IF(G62=0,"",'SUB. 4'!B22) -> ovo | G62: ='SUB. 4'!J22 -> 240 | H62: ='SUB. 4'!L22 -> 16.66666667 | I62: ='SUB. 4'!N22 -> 6.25 | J62: ='SUB. 4'!R22 -> 0
B63: =IF(C63=0,"",'SUB. 4'!B23) ->  | C63: ='SUB. 4'!P23 -> 0 | D63: =IF(E63=0,"",'SUB. 4'!B23) ->  | E63: ='SUB. 4'!H23 -> 0 | F63: =IF(G63=0,"",'SUB. 4'!B23) ->  | G63: ='SUB. 4'!J23 -> 0 | H63: ='SUB. 4'!L23 -> 0 | I63: ='SUB. 4'!N23 -> 0 | J63: ='SUB. 4'!R23 -> 72
B64: =IF(C64=0,"",'SUB. 4'!B24) ->  | C64: ='SUB. 4'!P24 -> 0 | D64: =IF(E64=0,"",'SUB. 4'!B24) ->  | E64: ='SUB. 4'!H24 -> 0 | F64: =IF(G64=0,"",'SUB. 4'!B24) ->  | G64: ='SUB. 4'!J24 -> 0 | H64: ='SUB. 4'!L24 -> 0 | I64: ='SUB. 4'!N24 -> 0 | J64: ='SUB. 4'!R24 -> 0
B65: =IF(C65=0,"",'SUB. 4'!B25) ->  | C65: ='SUB. 4'!P25 -> 0 | D65: =IF(E65=0,"",'SUB. 4'!B25) ->  | E65: ='SUB. 4'!H25 -> 0 | F65: =IF(G65=0,"",'SUB. 4'!B25) ->  | G65: ='SUB. 4'!J25 -> 0 | H65: ='SUB. 4'!L25 -> 0 | I65: ='SUB. 4'!N25 -> 0 | J65: ='SUB. 4'!R25 -> 0
B66: =IF(C66=0,"",'SUB. 4'!B26) ->  | C66: ='SUB. 4'!P26 -> 0 | D66: =IF(E66=0,"",'SUB. 4'!B26) ->  | E66: ='SUB. 4'!H26 -> 0 | F66: =IF(G66=0,"",'SUB. 4'!B26) ->  | G66: ='SUB. 4'!J26 -> 0 | H66: ='SUB. 4'!L26 -> 0 | I66: ='SUB. 4'!N26 -> 0 | J66: ='SUB. 4'!R26 -> 0
B67: =IF(C67=0,"",'SUB. 4'!B27) ->  | C67: ='SUB. 4'!P27 -> 0 | D67: =IF(E67=0,"",'SUB. 4'!B27) ->  | E67: ='SUB. 4'!H27 -> 0 | F67: =IF(G67=0,"",'SUB. 4'!B27) ->  | G67: ='SUB. 4'!J27 -> 0 | H67: ='SUB. 4'!L27 -> 0 | I67: ='SUB. 4'!N27 -> 0 | J67: ='SUB. 4'!R27 -> 0
B68: =IF(C68=0,"",'SUB. 4'!B28) ->  | C68: ='SUB. 4'!P28 -> 0 | D68: =IF(E68=0,"",'SUB. 4'!B28) ->  | E68: ='SUB. 4'!H28 -> 0 | F68: =IF(G68=0,"",'SUB. 4'!B28) ->  | G68: ='SUB. 4'!J28 -> 0 | H68: ='SUB. 4'!L28 -> 0 | I68: ='SUB. 4'!N28 -> 0 | J68: ='SUB. 4'!R28 -> 0
B69: =IF(C69=0,"",'SUB. 4'!B29) ->  | C69: ='SUB. 4'!P29 -> 0 | D69: =IF(E69=0,"",'SUB. 4'!B29) ->  | E69: ='SUB. 4'!H29 -> 0 | F69: =IF(G69=0,"",'SUB. 4'!B29) ->  | G69: ='SUB. 4'!J29 -> 0 | H69: ='SUB. 4'!L29 -> 0 | I69: ='SUB. 4'!N29 -> 0 | J69: ='SUB. 4'!R29 -> 0
B70: =IF(C70=0,"",'SUB. 4'!B30) ->  | C70: ='SUB. 4'!P30 -> 0 | D70: =IF(E70=0,"",'SUB. 4'!B30) ->  | E70: ='SUB. 4'!H30 -> 0 | F70: =IF(G70=0,"",'SUB. 4'!B30) ->  | G70: ='SUB. 4'!J30 -> 0 | H70: ='SUB. 4'!L30 -> 0 | I70: ='SUB. 4'!N30 -> 0 | J70: ='SUB. 4'!R30 -> 0
B71: =IF(C71=0,"",'SUB. 4'!B31) ->  | C71: ='SUB. 4'!P31 -> 0 | D71: =IF(E71=0,"",'SUB. 4'!B31) ->  | E71: ='SUB. 4'!H31 -> 0 | F71: =IF(G71=0,"",'SUB. 4'!B31) ->  | G71: ='SUB. 4'!J31 -> 0 | H71: ='SUB. 4'!L31 -> 0 | I71: ='SUB. 4'!N31 -> 0 | J71: ='SUB. 4'!R31 -> 0
B72: =IF(C72=0,"",'SUB. 4'!B32) ->  | C72: ='SUB. 4'!P32 -> 0 | D72: =IF(E72=0,"",'SUB. 4'!B32) ->  | E72: ='SUB. 4'!H32 -> 0 | F72: =IF(G72=0,"",'SUB. 4'!B32) ->  | G72: ='SUB. 4'!J32 -> 0 | H72: ='SUB. 4'!L32 -> 0 | I72: ='SUB. 4'!N32 -> 0 | J72: ='SUB. 4'!R32 -> 0
B73: =IF(C73=0,"",'SUB. 4'!B33) ->  | C73: ='SUB. 4'!P33 -> 0 | D73: =IF(E73=0,"",'SUB. 4'!B33) ->  | E73: ='SUB. 4'!H33 -> 0 | F73: =IF(G73=0,"",'SUB. 4'!B33) ->  | G73: ='SUB. 4'!J33 -> 0 | H73: ='SUB. 4'!L33 -> 0 | I73: ='SUB. 4'!N33 -> 0 | J73: ='SUB. 4'!R33 -> 0
B74: =IF(C74=0,"",'SUB. 4'!B34) ->  | C74: ='SUB. 4'!P34 -> 0 | D74: =IF(E74=0,"",'SUB. 4'!B34) ->  | E74: ='SUB. 4'!H34 -> 0 | F74: =IF(G74=0,"",'SUB. 4'!B34) ->  | G74: ='SUB. 4'!J34 -> 0 | H74: ='SUB. 4'!L34 -> 0 | I74: ='SUB. 4'!N34 -> 0 | J74: ='SUB. 4'!R34 -> 0
B75: =IF(C75=0,"",'SUB. 4'!B35) ->  | C75: ='SUB. 4'!P35 -> 0 | D75: =IF(E75=0,"",'SUB. 4'!B35) ->  | E75: ='SUB. 4'!H35 -> 0 | F75: =IF(G75=0,"",'SUB. 4'!B35) ->  | G75: ='SUB. 4'!J35 -> 0 | H75: ='SUB. 4'!L35 -> 0 | I75: ='SUB. 4'!N35 -> 0 | J75: ='SUB. 4'!R35 -> 0
B76: =IF(C76=0,"",'SUB. 4'!B36) ->  | C76: ='SUB. 4'!P36 -> 0 | D76: =IF(E76=0,"",'SUB. 4'!B36) ->  | E76: ='SUB. 4'!H36 -> 0 | F76: =IF(G76=0,"",'SUB. 4'!B36) ->  | G76: ='SUB. 4'!J36 -> 0 | H76: ='SUB. 4'!L36 -> 0 | I76: ='SUB. 4'!N36 -> 0 | J76: ='SUB. 4'!R36 -> 0
A77: SUBSISTEMA 5 | B77: =IF(C77=0,"",'SUB. 5'!B19) ->  | C77: ='SUB. 5'!P19 -> 0 | D77: =IF(E77=0,"",'SUB. 5'!B19) ->  | E77: ='SUB. 5'!H19 -> 0 | F77: =IF(G77=0,"",'SUB. 5'!B19) ->  | G77: ='SUB. 5'!J19 -> 0 | H77: ='SUB. 5'!L19 -> 0 | I77: ='SUB. 5'!N19 -> 0 | J77: ='SUB. 5'!R19 -> 4020
B78: =IF(C78=0,"",'SUB. 5'!B20) -> Millho seco | C78: ='SUB. 5'!P20 -> 270 | D78: =IF(E78=0,"",'SUB. 5'!B20) -> Millho seco | E78: ='SUB. 5'!H20 -> 200 | F78: =IF(G78=0,"",'SUB. 5'!B20) -> Millho seco | G78: ='SUB. 5'!J20 -> 50 | H78: ='SUB. 5'!L20 -> 20 | I78: ='SUB. 5'!N20 -> 0 | J78: ='SUB. 5'!R20 -> 0
B79: =IF(C79=0,"",'SUB. 5'!B21) ->  | C79: ='SUB. 5'!P21 -> 0 | D79: =IF(E79=0,"",'SUB. 5'!B21) ->  | E79: ='SUB. 5'!H21 -> 0 | F79: =IF(G79=0,"",'SUB. 5'!B21) ->  | G79: ='SUB. 5'!J21 -> 0 | H79: ='SUB. 5'!L21 -> 0 | I79: ='SUB. 5'!N21 -> 0 | J79: ='SUB. 5'!R21 -> 0
B80: =IF(C80=0,"",'SUB. 5'!B22) ->  | C80: ='SUB. 5'!P22 -> 0 | D80: =IF(E80=0,"",'SUB. 5'!B22) ->  | E80: ='SUB. 5'!H22 -> 0 | F80: =IF(G80=0,"",'SUB. 5'!B22) ->  | G80: ='SUB. 5'!J22 -> 0 | H80: ='SUB. 5'!L22 -> 0 | I80: ='SUB. 5'!N22 -> 0 | J80: ='SUB. 5'!R22 -> 0
B81: =IF(C81=0,"",'SUB. 5'!B23) ->  | C81: ='SUB. 5'!P23 -> 0 | D81: =IF(E81=0,"",'SUB. 5'!B23) ->  | E81: ='SUB. 5'!H23 -> 0 | F81: =IF(G81=0,"",'SUB. 5'!B23) ->  | G81: ='SUB. 5'!J23 -> 0 | H81: ='SUB. 5'!L23 -> 0 | I81: ='SUB. 5'!N23 -> 0 | J81: ='SUB. 5'!R23 -> 0
B82: =IF(C82=0,"",'SUB. 5'!B24) ->  | C82: ='SUB. 5'!P24 -> 0 | D82: =IF(E82=0,"",'SUB. 5'!B24) ->  | E82: ='SUB. 5'!H24 -> 0 | F82: =IF(G82=0,"",'SUB. 5'!B24) ->  | G82: ='SUB. 5'!J24 -> 0 | H82: ='SUB. 5'!L24 -> 0 | I82: ='SUB. 5'!N24 -> 0 | J82: ='SUB. 5'!R24 -> 0
B83: =IF(C83=0,"",'SUB. 5'!B25) ->  | C83: ='SUB. 5'!P25 -> 0 | D83: =IF(E83=0,"",'SUB. 5'!B25) ->  | E83: ='SUB. 5'!H25 -> 0 | F83: =IF(G83=0,"",'SUB. 5'!B25) ->  | G83: ='SUB. 5'!J25 -> 0 | H83: ='SUB. 5'!L25 -> 0 | I83: ='SUB. 5'!N25 -> 0 | J83: ='SUB. 5'!R25 -> 0
B84: =IF(C84=0,"",'SUB. 5'!B26) ->  | C84: ='SUB. 5'!P26 -> 0 | D84: =IF(E84=0,"",'SUB. 5'!B26) ->  | E84: ='SUB. 5'!H26 -> 0 | F84: =IF(G84=0,"",'SUB. 5'!B26) ->  | G84: ='SUB. 5'!J26 -> 0 | H84: ='SUB. 5'!L26 -> 0 | I84: ='SUB. 5'!N26 -> 0 | J84: ='SUB. 5'!R26 -> 0
B85: =IF(C85=0,"",'SUB. 5'!B27) ->  | C85: ='SUB. 5'!P27 -> 0 | D85: =IF(E85=0,"",'SUB. 5'!B27) ->  | E85: ='SUB. 5'!H27 -> 0 | F85: =IF(G85=0,"",'SUB. 5'!B27) ->  | G85: ='SUB. 5'!J27 -> 0 | H85: ='SUB. 5'!L27 -> 0 | I85: ='SUB. 5'!N27 -> 0 | J85: ='SUB. 5'!R27 -> 0
B86: =IF(C86=0,"",'SUB. 5'!B28) ->  | C86: ='SUB. 5'!P28 -> 0 | D86: =IF(E86=0,"",'SUB. 5'!B28) ->  | E86: ='SUB. 5'!H28 -> 0 | F86: =IF(G86=0,"",'SUB. 5'!B28) ->  | G86: ='SUB. 5'!J28 -> 0 | H86: ='SUB. 5'!L28 -> 0 | I86: ='SUB. 5'!N28 -> 0 | J86: ='SUB. 5'!R28 -> 0
B87: =IF(C87=0,"",'SUB. 5'!B29) ->  | C87: ='SUB. 5'!P29 -> 0 | D87: =IF(E87=0,"",'SUB. 5'!B29) ->  | E87: ='SUB. 5'!H29 -> 0 | F87: =IF(G87=0,"",'SUB. 5'!B29) ->  | G87: ='SUB. 5'!J29 -> 0 | H87: ='SUB. 5'!L29 -> 0 | I87: ='SUB. 5'!N29 -> 0 | J87: ='SUB. 5'!R29 -> 0
B88: =IF(C88=0,"",'SUB. 5'!B30) ->  | C88: ='SUB. 5'!P30 -> 0 | D88: =IF(E88=0,"",'SUB. 5'!B30) ->  | E88: ='SUB. 5'!H30 -> 0 | F88: =IF(G88=0,"",'SUB. 5'!B30) ->  | G88: ='SUB. 5'!J30 -> 0 | H88: ='SUB. 5'!L30 -> 0 | I88: ='SUB. 5'!N30 -> 0 | J88: ='SUB. 5'!R30 -> 0
B89: =IF(C89=0,"",'SUB. 5'!B31) ->  | C89: ='SUB. 5'!P31 -> 0 | D89: =IF(E89=0,"",'SUB. 5'!B31) ->  | E89: ='SUB. 5'!H31 -> 0 | F89: =IF(G89=0,"",'SUB. 5'!B31) ->  | G89: ='SUB. 5'!J31 -> 0 | H89: ='SUB. 5'!L31 -> 0 | I89: ='SUB. 5'!N31 -> 0 | J89: ='SUB. 5'!R31 -> 0
B90: =IF(C90=0,"",'SUB. 5'!B32) ->  | C90: ='SUB. 5'!P32 -> 0 | D90: =IF(E90=0,"",'SUB. 5'!B32) ->  | E90: ='SUB. 5'!H32 -> 0 | F90: =IF(G90=0,"",'SUB. 5'!B32) ->  | G90: ='SUB. 5'!J32 -> 0 | H90: ='SUB. 5'!L32 -> 0 | I90: ='SUB. 5'!N32 -> 0 | J90: ='SUB. 5'!R32 -> 0
B91: =IF(C91=0,"",'SUB. 5'!B33) ->  | C91: ='SUB. 5'!P33 -> 0 | D91: =IF(E91=0,"",'SUB. 5'!B33) ->  | E91: ='SUB. 5'!H33 -> 0 | F91: =IF(G91=0,"",'SUB. 5'!B33) ->  | G91: ='SUB. 5'!J33 -> 0 | H91: ='SUB. 5'!L33 -> 0 | I91: ='SUB. 5'!N33 -> 0 | J91: ='SUB. 5'!R33 -> 0
B92: =IF(C92=0,"",'SUB. 5'!B34) ->  | C92: ='SUB. 5'!P34 -> 0 | D92: =IF(E92=0,"",'SUB. 5'!B34) ->  | E92: ='SUB. 5'!H34 -> 0 | F92: =IF(G92=0,"",'SUB. 5'!B34) ->  | G92: ='SUB. 5'!J34 -> 0 | H92: ='SUB. 5'!L34 -> 0 | I92: ='SUB. 5'!N34 -> 0 | J92: ='SUB. 5'!R34 -> 0
B93: =IF(C93=0,"",'SUB. 5'!B35) ->  | C93: ='SUB. 5'!P35 -> 0 | D93: =IF(E93=0,"",'SUB. 5'!B35) ->  | E93: ='SUB. 5'!H35 -> 0 | F93: =IF(G93=0,"",'SUB. 5'!B35) ->  | G93: ='SUB. 5'!J35 -> 0 | H93: ='SUB. 5'!L35 -> 0 | I93: ='SUB. 5'!N35 -> 0 | J93: ='SUB. 5'!R35 -> 0
B94: =IF(C94=0,"",'SUB. 5'!B36) ->  | C94: ='SUB. 5'!P36 -> 0 | D94: =IF(E94=0,"",'SUB. 5'!B36) ->  | E94: ='SUB. 5'!H36 -> 0 | F94: =IF(G94=0,"",'SUB. 5'!B36) ->  | G94: ='SUB. 5'!J36 -> 0 | H94: ='SUB. 5'!L36 -> 0 | I94: ='SUB. 5'!N36 -> 0 | J94: ='SUB. 5'!R36 -> 0
A95: SUBSISTEMA 6 | B95: =IF(C95=0,"",'SUB. 6'!B19) ->  | C95: ='SUB. 6'!P19 -> 0 | D95: =IF(E95=0,"",'SUB. 6'!B19) ->  | E95: ='SUB. 6'!H19 -> 0 | F95: =IF(G95=0,"",'SUB. 6'!B19) ->  | G95: ='SUB. 6'!J19 -> 0 | H95: ='SUB. 6'!L19 -> 0 | I95: ='SUB. 6'!N19 -> 0 | J95: ='SUB. 6'!R19 -> 549
B96: =IF(C96=0,"",'SUB. 6'!B20) -> jenipapo | C96: ='SUB. 6'!P20 -> 45 | D96: =IF(E96=0,"",'SUB. 6'!B20) ->  | E96: ='SUB. 6'!H20 -> 0 | F96: =IF(G96=0,"",'SUB. 6'!B20) -> jenipapo | G96: ='SUB. 6'!J20 -> 45 | H96: ='SUB. 6'!L20 -> 0 | I96: ='SUB. 6'!N20 -> 0 | J96: ='SUB. 6'!R20 -> 0
B97: =IF(C97=0,"",'SUB. 6'!B21) -> cidreira | C97: ='SUB. 6'!P21 -> 96 | D97: =IF(E97=0,"",'SUB. 6'!B21) ->  | E97: ='SUB. 6'!H21 -> 0 | F97: =IF(G97=0,"",'SUB. 6'!B21) -> cidreira | G97: ='SUB. 6'!J21 -> 96 | H97: ='SUB. 6'!L21 -> 0 | I97: ='SUB. 6'!N21 -> 0 | J97: ='SUB. 6'!R21 -> 0
B98: =IF(C98=0,"",'SUB. 6'!B22) -> açerola | C98: ='SUB. 6'!P22 -> 96 | D98: =IF(E98=0,"",'SUB. 6'!B22) ->  | E98: ='SUB. 6'!H22 -> 0 | F98: =IF(G98=0,"",'SUB. 6'!B22) -> açerola | G98: ='SUB. 6'!J22 -> 96 | H98: ='SUB. 6'!L22 -> 0 | I98: ='SUB. 6'!N22 -> 0 | J98: ='SUB. 6'!R22 -> 0
B99: =IF(C99=0,"",'SUB. 6'!B23) -> pinha | C99: ='SUB. 6'!P23 -> 60 | D99: =IF(E99=0,"",'SUB. 6'!B23) ->  | E99: ='SUB. 6'!H23 -> 0 | F99: =IF(G99=0,"",'SUB. 6'!B23) -> pinha | G99: ='SUB. 6'!J23 -> 60 | H99: ='SUB. 6'!L23 -> 0 | I99: ='SUB. 6'!N23 -> 0 | J99: ='SUB. 6'!R23 -> 0
B100: =IF(C100=0,"",'SUB. 6'!B24) -> coco verde | C100: ='SUB. 6'!P24 -> 140 | D100: =IF(E100=0,"",'SUB. 6'!B24) ->  | E100: ='SUB. 6'!H24 -> 0 | F100: =IF(G100=0,"",'SUB. 6'!B24) -> coco verde | G100: ='SUB. 6'!J24 -> 140 | H100: ='SUB. 6'!L24 -> 0 | I100: ='SUB. 6'!N24 -> 0 | J100: ='SUB. 6'!R24 -> 0
B101: =IF(C101=0,"",'SUB. 6'!B25) -> laranja | C101: ='SUB. 6'!P25 -> 12 | D101: =IF(E101=0,"",'SUB. 6'!B25) ->  | E101: ='SUB. 6'!H25 -> 0 | F101: =IF(G101=0,"",'SUB. 6'!B25) -> laranja | G101: ='SUB. 6'!J25 -> 12 | H101: ='SUB. 6'!L25 -> 0 | I101: ='SUB. 6'!N25 -> 0 | J101: ='SUB. 6'!R25 -> 0
B102: =IF(C102=0,"",'SUB. 6'!B26) -> hortelã de sete dor | C102: ='SUB. 6'!P26 -> 96 | D102: =IF(E102=0,"",'SUB. 6'!B26) ->  | E102: ='SUB. 6'!H26 -> 0 | F102: =IF(G102=0,"",'SUB. 6'!B26) -> hortelã de sete dor | G102: ='SUB. 6'!J26 -> 96 | H102: ='SUB. 6'!L26 -> 0 | I102: ='SUB. 6'!N26 -> 0 | J102: ='SUB. 6'!R26 -> 0
B103: =IF(C103=0,"",'SUB. 6'!B27) -> hortelã | C103: ='SUB. 6'!P27 -> 96 | D103: =IF(E103=0,"",'SUB. 6'!B27) ->  | E103: ='SUB. 6'!H27 -> 0 | F103: =IF(G103=0,"",'SUB. 6'!B27) -> hortelã | G103: ='SUB. 6'!J27 -> 96 | H103: ='SUB. 6'!L27 -> 0 | I103: ='SUB. 6'!N27 -> 0 | J103: ='SUB. 6'!R27 -> 0
B104: =IF(C104=0,"",'SUB. 6'!B28) -> samba caitá | C104: ='SUB. 6'!P28 -> 96 | D104: =IF(E104=0,"",'SUB. 6'!B28) ->  | E104: ='SUB. 6'!H28 -> 0 | F104: =IF(G104=0,"",'SUB. 6'!B28) -> samba caitá | G104: ='SUB. 6'!J28 -> 96 | H104: ='SUB. 6'!L28 -> 0 | I104: ='SUB. 6'!N28 -> 0 | J104: ='SUB. 6'!R28 -> 0
B105: =IF(C105=0,"",'SUB. 6'!B29) -> couve | C105: ='SUB. 6'!P29 -> 336 | D105: =IF(E105=0,"",'SUB. 6'!B29) ->  | E105: ='SUB. 6'!H29 -> 0 | F105: =IF(G105=0,"",'SUB. 6'!B29) -> couve | G105: ='SUB. 6'!J29 -> 192 | H105: ='SUB. 6'!L29 -> 144 | I105: ='SUB. 6'!N29 -> 0 | J105: ='SUB. 6'!R29 -> 0
B106: =IF(C106=0,"",'SUB. 6'!B30) -> pimentão | C106: ='SUB. 6'!P30 -> 4 | D106: =IF(E106=0,"",'SUB. 6'!B30) ->  | E106: ='SUB. 6'!H30 -> 0 | F106: =IF(G106=0,"",'SUB. 6'!B30) -> pimentão | G106: ='SUB. 6'!J30 -> 4 | H106: ='SUB. 6'!L30 -> 0 | I106: ='SUB. 6'!N30 -> 0 | J106: ='SUB. 6'!R30 -> 0
B107: =IF(C107=0,"",'SUB. 6'!B31) -> coentro | C107: ='SUB. 6'!P31 -> 336 | D107: =IF(E107=0,"",'SUB. 6'!B31) ->  | E107: ='SUB. 6'!H31 -> 0 | F107: =IF(G107=0,"",'SUB. 6'!B31) -> coentro | G107: ='SUB. 6'!J31 -> 192 | H107: ='SUB. 6'!L31 -> 144 | I107: ='SUB. 6'!N31 -> 0 | J107: ='SUB. 6'!R31 -> 0
B108: =IF(C108=0,"",'SUB. 6'!B32) ->  | C108: ='SUB. 6'!P32 -> 0 | D108: =IF(E108=0,"",'SUB. 6'!B32) ->  | E108: ='SUB. 6'!H32 -> 0 | F108: =IF(G108=0,"",'SUB. 6'!B32) -> cebolinha | G108: ='SUB. 6'!J32 -> 144 | H108: ='SUB. 6'!L32 -> 108 | I108: ='SUB. 6'!N32 -> 0 | J108: ='SUB. 6'!R32 -> 0
B109: =IF(C109=0,"",'SUB. 6'!B33) ->  | C109: ='SUB. 6'!P33 -> 0 | D109: =IF(E109=0,"",'SUB. 6'!B33) ->  | E109: ='SUB. 6'!H33 -> 0 | F109: =IF(G109=0,"",'SUB. 6'!B33) ->  | G109: ='SUB. 6'!J33 -> 0 | H109: ='SUB. 6'!L33 -> 0 | I109: ='SUB. 6'!N33 -> 0 | J109: ='SUB. 6'!R33 -> 0
B110: =IF(C110=0,"",'SUB. 6'!B34) ->  | C110: ='SUB. 6'!P34 -> 0 | D110: =IF(E110=0,"",'SUB. 6'!B34) ->  | E110: ='SUB. 6'!H34 -> 0 | F110: =IF(G110=0,"",'SUB. 6'!B34) ->  | G110: ='SUB. 6'!J34 -> 0 | H110: ='SUB. 6'!L34 -> 0 | I110: ='SUB. 6'!N34 -> 0 | J110: ='SUB. 6'!R34 -> 0
B111: =IF(C111=0,"",'SUB. 6'!B35) ->  | C111: ='SUB. 6'!P35 -> 0 | D111: =IF(E111=0,"",'SUB. 6'!B35) ->  | E111: ='SUB. 6'!H35 -> 0 | F111: =IF(G111=0,"",'SUB. 6'!B35) ->  | G111: ='SUB. 6'!J35 -> 0 | H111: ='SUB. 6'!L35 -> 0 | I111: ='SUB. 6'!N35 -> 0 | J111: ='SUB. 6'!R35 -> 0
B112: =IF(C112=0,"",'SUB. 6'!B36) ->  | C112: ='SUB. 6'!P36 -> 0 | D112: ='SUB. 6'!D36:F36 -> 0 | E112: ='SUB. 6'!H36 -> 0 | F112: =IF(G112=0,"",'SUB. 6'!B36) ->  | G112: ='SUB. 6'!J36 -> 0 | H112: ='SUB. 6'!L36 -> 0 | I112: ='SUB. 6'!N36 -> 0 | J112: ='SUB. 6'!R36 -> 0
A113: SUBSISTEMA 7 | B113: =IF(C113=0,"",'SUB. 7'!B19) ->  | C113: ='SUB. 7'!P19 -> 0 | D113: =IF(E113=0,"",'SUB. 7'!B19) ->  | E113: ='SUB. 7'!H19 -> 0 | F113: =IF(G113=0,"",'SUB. 7'!B19) ->  | G113: ='SUB. 7'!J19 -> 0 | H113: ='SUB. 7'!L19 -> 0 | I113: ='SUB. 7'!N19 -> 0 | J113: ='SUB. 7'!R19 -> 0
B114: =IF(C114=0,"",'SUB. 7'!B20) ->  | C114: ='SUB. 7'!P20 -> 0 | D114: =IF(E114=0,"",'SUB. 7'!B20) ->  | E114: ='SUB. 7'!H20 -> 0 | F114: =IF(G114=0,"",'SUB. 7'!B20) ->  | G114: ='SUB. 7'!J20 -> 0 | H114: ='SUB. 7'!L20 -> 0 | I114: ='SUB. 7'!N20 -> 0 | J114: ='SUB. 7'!R20 -> 0
B115: =IF(C115=0,"",'SUB. 7'!B21) ->  | C115: ='SUB. 7'!P21 -> 0 | D115: =IF(E115=0,"",'SUB. 7'!B21) ->  | E115: ='SUB. 7'!H21 -> 0 | F115: =IF(G115=0,"",'SUB. 7'!B21) ->  | G115: ='SUB. 7'!J21 -> 0 | H115: ='SUB. 7'!L21 -> 0 | I115: ='SUB. 7'!N21 -> 0 | J115: ='SUB. 7'!R21 -> 0
B116: =IF(C116=0,"",'SUB. 7'!B22) ->  | C116: ='SUB. 7'!P22 -> 0 | D116: =IF(E116=0,"",'SUB. 7'!B22) ->  | E116: ='SUB. 7'!H22 -> 0 | F116: =IF(G116=0,"",'SUB. 7'!B22) ->  | G116: ='SUB. 7'!J22 -> 0 | H116: ='SUB. 7'!L22 -> 0 | I116: ='SUB. 7'!N22 -> 0 | J116: ='SUB. 7'!R22 -> 0
B117: =IF(C117=0,"",'SUB. 7'!B23) ->  | C117: ='SUB. 7'!P23 -> 0 | D117: =IF(E117=0,"",'SUB. 7'!B23) ->  | E117: ='SUB. 7'!H23 -> 0 | F117: =IF(G117=0,"",'SUB. 7'!B23) ->  | G117: ='SUB. 7'!J23 -> 0 | H117: ='SUB. 7'!L23 -> 0 | I117: ='SUB. 7'!N23 -> 0 | J117: ='SUB. 7'!R23 -> 0
B118: =IF(C118=0,"",'SUB. 7'!B24) ->  | C118: ='SUB. 7'!P24 -> 0 | D118: =IF(E118=0,"",'SUB. 7'!B24) ->  | E118: ='SUB. 7'!H24 -> 0 | F118: =IF(G118=0,"",'SUB. 7'!B24) ->  | G118: ='SUB. 7'!J24 -> 0 | H118: ='SUB. 7'!L24 -> 0 | I118: ='SUB. 7'!N24 -> 0 | J118: ='SUB. 7'!R24 -> 0
B119: =IF(C119=0,"",'SUB. 7'!B25) ->  | C119: ='SUB. 7'!P25 -> 0 | D119: =IF(E119=0,"",'SUB. 7'!B25) ->  | E119: ='SUB. 7'!H25 -> 0 | F119: =IF(G119=0,"",'SUB. 7'!B25) ->  | G119: ='SUB. 7'!J25 -> 0 | H119: ='SUB. 7'!L25 -> 0 | I119: ='SUB. 7'!N25 -> 0 | J119: ='SUB. 7'!R25 -> 0
B120: =IF(C120=0,"",'SUB. 7'!B26) ->  | C120: ='SUB. 7'!P26 -> 0 | D120: =IF(E120=0,"",'SUB. 7'!B26) ->  | E120: ='SUB. 7'!H26 -> 0 | F120: =IF(G120=0,"",'SUB. 7'!B26) ->  | G120: ='SUB. 7'!J26 -> 0 | H120: ='SUB. 7'!L26 -> 0 | I120: ='SUB. 7'!N26 -> 0 | J120: ='SUB. 7'!R26 -> 0
B121: =IF(C121=0,"",'SUB. 7'!B27) ->  | C121: ='SUB. 7'!P27 -> 0 | D121: =IF(E121=0,"",'SUB. 7'!B27) ->  | E121: ='SUB. 7'!H27 -> 0 | F121: =IF(G121=0,"",'SUB. 7'!B27) ->  | G121: ='SUB. 7'!J27 -> 0 | H121: ='SUB. 7'!L27 -> 0 | I121: ='SUB. 7'!N27 -> 0 | J121: ='SUB. 7'!R27 -> 0
B122: =IF(C122=0,"",'SUB. 7'!B28) ->  | C122: ='SUB. 7'!P28 -> 0 | D122: =IF(E122=0,"",'SUB. 7'!B28) ->  | E122: ='SUB. 7'!H28 -> 0 | F122: =IF(G122=0,"",'SUB. 7'!B28) ->  | G122: ='SUB. 7'!J28 -> 0 | H122: ='SUB. 7'!L28 -> 0 | I122: ='SUB. 7'!N28 -> 0 | J122: ='SUB. 7'!R28 -> 0
B123: =IF(C123=0,"",'SUB. 7'!B29) ->  | C123: ='SUB. 7'!P29 -> 0 | D123: =IF(E123=0,"",'SUB. 7'!B29) ->  | E123: ='SUB. 7'!H29 -> 0 | F123: =IF(G123=0,"",'SUB. 7'!B29) ->  | G123: ='SUB. 7'!J29 -> 0 | H123: ='SUB. 7'!L29 -> 0 | I123: ='SUB. 7'!N29 -> 0 | J123: ='SUB. 7'!R29 -> 0
B124: =IF(C124=0,"",'SUB. 7'!B30) ->  | C124: ='SUB. 7'!P30 -> 0 | D124: =IF(E124=0,"",'SUB. 7'!B30) ->  | E124: ='SUB. 7'!H30 -> 0 | F124: =IF(G124=0,"",'SUB. 7'!B30) ->  | G124: ='SUB. 7'!J30 -> 0 | H124: ='SUB. 7'!L30 -> 0 | I124: ='SUB. 7'!N30 -> 0 | J124: ='SUB. 7'!R30 -> 0
B125: =IF(C125=0,"",'SUB. 7'!B31) ->  | C125: ='SUB. 7'!P31 -> 0 | D125: =IF(E125=0,"",'SUB. 7'!B31) ->  | E125: ='SUB. 7'!H31 -> 0 | F125: =IF(G125=0,"",'SUB. 7'!B31) ->  | G125: ='SUB. 7'!J31 -> 0 | H125: ='SUB. 7'!L31 -> 0 | I125: ='SUB. 7'!N31 -> 0 | J125: ='SUB. 7'!R31 -> 0
B126: =IF(C126=0,"",'SUB. 7'!B32) ->  | C126: ='SUB. 7'!P32 -> 0 | D126: =IF(E126=0,"",'SUB. 7'!B32) ->  | E126: ='SUB. 7'!H32 -> 0 | F126: =IF(G126=0,"",'SUB. 7'!B32) ->  | G126: ='SUB. 7'!J32 -> 0 | H126: ='SUB. 7'!L32 -> 0 | I126: ='SUB. 7'!N32 -> 0 | J126: ='SUB. 7'!R32 -> 0
B127: =IF(C127=0,"",'SUB. 7'!B33) ->  | C127: ='SUB. 7'!P33 -> 0 | D127: =IF(E127=0,"",'SUB. 7'!B33) ->  | E127: ='SUB. 7'!H33 -> 0 | F127: =IF(G127=0,"",'SUB. 7'!B33) ->  | G127: ='SUB. 7'!J33 -> 0 | H127: ='SUB. 7'!L33 -> 0 | I127: ='SUB. 7'!N33 -> 0 | J127: ='SUB. 7'!R33 -> 0
B128: =IF(C128=0,"",'SUB. 7'!B34) ->  | C128: ='SUB. 7'!P34 -> 0 | D128: =IF(E128=0,"",'SUB. 7'!B34) ->  | E128: ='SUB. 7'!H34 -> 0 | F128: =IF(G128=0,"",'SUB. 7'!B34) ->  | G128: ='SUB. 7'!J34 -> 0 | H128: ='SUB. 7'!L34 -> 0 | I128: ='SUB. 7'!N34 -> 0 | J128: ='SUB. 7'!R34 -> 0
B129: =IF(C129=0,"",'SUB. 7'!B35) ->  | C129: ='SUB. 7'!P35 -> 0 | D129: =IF(E129=0,"",'SUB. 7'!B35) ->  | E129: ='SUB. 7'!H35 -> 0 | F129: =IF(G129=0,"",'SUB. 7'!B35) ->  | G129: ='SUB. 7'!J35 -> 0 | H129: ='SUB. 7'!L35 -> 0 | I129: ='SUB. 7'!N35 -> 0 | J129: ='SUB. 7'!R35 -> 0
B130: =IF(C130=0,"",'SUB. 7'!B36) ->  | C130: ='SUB. 7'!P36 -> 0 | D130: =IF(E130=0,"",'SUB. 7'!B36) ->  | E130: ='SUB. 7'!H36 -> 0 | F130: =IF(G130=0,"",'SUB. 7'!B36) ->  | G130: ='SUB. 7'!J36 -> 0 | H130: ='SUB. 7'!L36 -> 0 | I130: ='SUB. 7'!N36 -> 0 | J130: ='SUB. 7'!R36 -> 0
A131: SUBSISTEMA 8 | B131: =IF(C131=0,"",'SUB. 8'!B19) ->  | C131: ='SUB. 8'!P19 -> 0 | D131: =IF(E131=0,"",'SUB. 8'!B19) ->  | E131: ='SUB. 8'!H19 -> 0 | F131: =IF(G131=0,"",'SUB. 8'!B19) ->  | G131: ='SUB. 8'!J19 -> 0 | H131: ='SUB. 8'!L19 -> 0 | I131: ='SUB. 8'!N19 -> 0 | J131: ='SUB. 8'!R19 -> 0
B132: =IF(C132=0,"",'SUB. 8'!B20) ->  | C132: ='SUB. 8'!P20 -> 0 | D132: =IF(E132=0,"",'SUB. 8'!B20) ->  | E132: ='SUB. 8'!H20 -> 0 | F132: =IF(G132=0,"",'SUB. 8'!B20) ->  | G132: ='SUB. 8'!J20 -> 0 | H132: ='SUB. 8'!L20 -> 0 | I132: ='SUB. 8'!N20 -> 0 | J132: ='SUB. 8'!R20 -> 0
B133: =IF(C133=0,"",'SUB. 8'!B21) ->  | C133: ='SUB. 8'!P21 -> 0 | D133: =IF(E133=0,"",'SUB. 8'!B21) ->  | E133: ='SUB. 8'!H21 -> 0 | F133: =IF(G133=0,"",'SUB. 8'!B21) ->  | G133: ='SUB. 8'!J21 -> 0 | H133: ='SUB. 8'!L21 -> 0 | I133: ='SUB. 8'!N21 -> 0 | J133: ='SUB. 8'!R21 -> 0
B134: =IF(C134=0,"",'SUB. 8'!B22) ->  | C134: ='SUB. 8'!P22 -> 0 | D134: =IF(E134=0,"",'SUB. 8'!B22) ->  | E134: ='SUB. 8'!H22 -> 0 | F134: =IF(G134=0,"",'SUB. 8'!B22) ->  | G134: ='SUB. 8'!J22 -> 0 | H134: ='SUB. 8'!L22 -> 0 | I134: ='SUB. 8'!N22 -> 0 | J134: ='SUB. 8'!R22 -> 0
B135: =IF(C135=0,"",'SUB. 8'!B23) ->  | C135: ='SUB. 8'!P23 -> 0 | D135: =IF(E135=0,"",'SUB. 8'!B23) ->  | E135: ='SUB. 8'!H23 -> 0 | F135: =IF(G135=0,"",'SUB. 8'!B23) ->  | G135: ='SUB. 8'!J23 -> 0 | H135: ='SUB. 8'!L23 -> 0 | I135: ='SUB. 8'!N23 -> 0 | J135: ='SUB. 8'!R23 -> 0
B136: =IF(C136=0,"",'SUB. 8'!B24) ->  | C136: ='SUB. 8'!P24 -> 0 | D136: =IF(E136=0,"",'SUB. 8'!B24) ->  | E136: ='SUB. 8'!H24 -> 0 | F136: =IF(G136=0,"",'SUB. 8'!B24) ->  | G136: ='SUB. 8'!J24 -> 0 | H136: ='SUB. 8'!L24 -> 0 | I136: ='SUB. 8'!N24 -> 0 | J136: ='SUB. 8'!R24 -> 0
B137: =IF(C137=0,"",'SUB. 8'!B25) ->  | C137: ='SUB. 8'!P25 -> 0 | D137: =IF(E137=0,"",'SUB. 8'!B25) ->  | E137: ='SUB. 8'!H25 -> 0 | F137: =IF(G137=0,"",'SUB. 8'!B25) ->  | G137: ='SUB. 8'!J25 -> 0 | H137: ='SUB. 8'!L25 -> 0 | I137: ='SUB. 8'!N25 -> 0 | J137: ='SUB. 8'!R25 -> 0
B138: =IF(C138=0,"",'SUB. 8'!B26) ->  | C138: ='SUB. 8'!P26 -> 0 | D138: =IF(E138=0,"",'SUB. 8'!B26) ->  | E138: ='SUB. 8'!H26 -> 0 | F138: =IF(G138=0,"",'SUB. 8'!B26) ->  | G138: ='SUB. 8'!J26 -> 0 | H138: ='SUB. 8'!L26 -> 0 | I138: ='SUB. 8'!N26 -> 0 | J138: ='SUB. 8'!R26 -> 0
B139: =IF(C139=0,"",'SUB. 8'!B27) ->  | C139: ='SUB. 8'!P27 -> 0 | D139: =IF(E139=0,"",'SUB. 8'!B27) ->  | E139: ='SUB. 8'!H27 -> 0 | F139: =IF(G139=0,"",'SUB. 8'!B27) ->  | G139: ='SUB. 8'!J27 -> 0 | H139: ='SUB. 8'!L27 -> 0 | I139: ='SUB. 8'!N27 -> 0 | J139: ='SUB. 8'!R27 -> 0
B140: =IF(C140=0,"",'SUB. 8'!B28) ->  | C140: ='SUB. 8'!P28 -> 0 | D140: =IF(E140=0,"",'SUB. 8'!B28) ->  | E140: ='SUB. 8'!H28 -> 0 | F140: =IF(G140=0,"",'SUB. 8'!B28) ->  | G140: ='SUB. 8'!J28 -> 0 | H140: ='SUB. 8'!L28 -> 0 | I140: ='SUB. 8'!N28 -> 0 | J140: ='SUB. 8'!R28 -> 0
B141: =IF(C141=0,"",'SUB. 8'!B29) ->  | C141: ='SUB. 8'!P29 -> 0 | D141: =IF(E141=0,"",'SUB. 8'!B29) ->  | E141: ='SUB. 8'!H29 -> 0 | F141: =IF(G141=0,"",'SUB. 8'!B29) ->  | G141: ='SUB. 8'!J29 -> 0 | H141: ='SUB. 8'!L29 -> 0 | I141: ='SUB. 8'!N29 -> 0 | J141: ='SUB. 8'!R29 -> 0
B142: =IF(C142=0,"",'SUB. 8'!B30) ->  | C142: ='SUB. 8'!P30 -> 0 | D142: =IF(E142=0,"",'SUB. 8'!B30) ->  | E142: ='SUB. 8'!H30 -> 0 | F142: =IF(G142=0,"",'SUB. 8'!B30) ->  | G142: ='SUB. 8'!J30 -> 0 | H142: ='SUB. 8'!L30 -> 0 | I142: ='SUB. 8'!N30 -> 0 | J142: ='SUB. 8'!R30 -> 0
B143: =IF(C143=0,"",'SUB. 8'!B31) ->  | C143: ='SUB. 8'!P31 -> 0 | D143: =IF(E143=0,"",'SUB. 8'!B31) ->  | E143: ='SUB. 8'!H31 -> 0 | F143: =IF(G143=0,"",'SUB. 8'!B31) ->  | G143: ='SUB. 8'!J31 -> 0 | H143: ='SUB. 8'!L31 -> 0 | I143: ='SUB. 8'!N31 -> 0 | J143: ='SUB. 8'!R31 -> 0
B144: =IF(C144=0,"",'SUB. 8'!B32) ->  | C144: ='SUB. 8'!P32 -> 0 | D144: =IF(E144=0,"",'SUB. 8'!B32) ->  | E144: ='SUB. 8'!H32 -> 0 | F144: =IF(G144=0,"",'SUB. 8'!B32) ->  | G144: ='SUB. 8'!J32 -> 0 | H144: ='SUB. 8'!L32 -> 0 | I144: ='SUB. 8'!N32 -> 0 | J144: ='SUB. 8'!R32 -> 0
B145: =IF(C145=0,"",'SUB. 8'!B33) ->  | C145: ='SUB. 8'!P33 -> 0 | D145: =IF(E145=0,"",'SUB. 8'!B33) ->  | E145: ='SUB. 8'!H33 -> 0 | F145: =IF(G145=0,"",'SUB. 8'!B33) ->  | G145: ='SUB. 8'!J33 -> 0 | H145: ='SUB. 8'!L33 -> 0 | I145: ='SUB. 8'!N33 -> 0 | J145: ='SUB. 8'!R33 -> 0
B146: =IF(C146=0,"",'SUB. 8'!B34) ->  | C146: ='SUB. 8'!P34 -> 0 | D146: =IF(E146=0,"",'SUB. 8'!B34) ->  | E146: ='SUB. 8'!H34 -> 0 | F146: =IF(G146=0,"",'SUB. 8'!B34) ->  | G146: ='SUB. 8'!J34 -> 0 | H146: ='SUB. 8'!L34 -> 0 | I146: ='SUB. 8'!N34 -> 0 | J146: ='SUB. 8'!R34 -> 0
B147: =IF(C147=0,"",'SUB. 8'!B35) ->  | C147: ='SUB. 8'!P35 -> 0 | D147: =IF(E147=0,"",'SUB. 8'!B35) ->  | E147: ='SUB. 8'!H35 -> 0 | F147: =IF(G147=0,"",'SUB. 8'!B35) ->  | G147: ='SUB. 8'!J35 -> 0 | H147: ='SUB. 8'!L35 -> 0 | I147: ='SUB. 8'!N35 -> 0 | J147: ='SUB. 8'!R35 -> 0
B148: =IF(C148=0,"",'SUB. 8'!B36) ->  | C148: ='SUB. 8'!P36 -> 0 | D148: =IF(E148=0,"",'SUB. 8'!B36) ->  | E148: ='SUB. 8'!H36 -> 0 | F148: =IF(G148=0,"",'SUB. 8'!B36) ->  | G148: ='SUB. 8'!J36 -> 0 | H148: ='SUB. 8'!L36 -> 0 | I148: ='SUB. 8'!N36 -> 0 | J148: ='SUB. 8'!R36 -> 0
A149: SUBSISTEMA 9 | B149: =IF(C149=0,"",'SUB. 9'!B19) ->  | C149: ='SUB. 9'!P19 -> 0 | D149: =IF(E149=0,"",'SUB. 9'!B19) ->  | E149: ='SUB. 9'!H19 -> 0 | F149: =IF(G149=0,"",'SUB. 9'!B19) ->  | G149: ='SUB. 9'!J19 -> 0 | H149: ='SUB. 9'!L19 -> 0 | I149: ='SUB. 9'!N19 -> 0 | J149: ='SUB. 9'!R19 -> 0 | M149: Dados | S149: Dados
B150: =IF(C150=0,"",'SUB. 9'!B20) ->  | C150: ='SUB. 9'!P20 -> 0 | D150: =IF(E150=0,"",'SUB. 9'!B20) ->  | E150: ='SUB. 9'!H20 -> 0 | F150: =IF(G150=0,"",'SUB. 9'!B20) ->  | G150: ='SUB. 9'!J20 -> 0 | H150: ='SUB. 9'!L20 -> 0 | I150: ='SUB. 9'!N20 -> 0 | J150: ='SUB. 9'!R20 -> 0 | M150: Produções. | N150: Soma de Venda | O150: Soma de Autoconsumo | P150: Soma de Doações trocas | S150: Produções. | T150: Soma de Venda | U150: Soma de Autoconsumo | V150: Soma de Doações trocas
B151: =IF(C151=0,"",'SUB. 9'!B21) ->  | C151: ='SUB. 9'!P21 -> 0 | D151: =IF(E151=0,"",'SUB. 9'!B21) ->  | E151: ='SUB. 9'!H21 -> 0 | F151: =IF(G151=0,"",'SUB. 9'!B21) ->  | G151: ='SUB. 9'!J21 -> 0 | H151: ='SUB. 9'!L21 -> 0 | I151: ='SUB. 9'!N21 -> 0 | J151: ='SUB. 9'!R21 -> 0 | L151: Total | M151: 0 | N151: 18656.8001 | O151: 3660.2 | P151: 1052.666667 | R151: Total | S151: 0 | T151: 18656.8001 | U151: 3660.2 | V151: 1052.666667
B152: =IF(C152=0,"",'SUB. 9'!B22) ->  | C152: ='SUB. 9'!P22 -> 0 | D152: =IF(E152=0,"",'SUB. 9'!B22) ->  | E152: ='SUB. 9'!H22 -> 0 | F152: =IF(G152=0,"",'SUB. 9'!B22) ->  | G152: ='SUB. 9'!J22 -> 0 | H152: ='SUB. 9'!L22 -> 0 | I152: ='SUB. 9'!N22 -> 0 | J152: ='SUB. 9'!R22 -> 0
B153: =IF(C153=0,"",'SUB. 9'!B23) ->  | C153: ='SUB. 9'!P23 -> 0 | D153: =IF(E153=0,"",'SUB. 9'!B23) ->  | E153: ='SUB. 9'!H23 -> 0 | F153: =IF(G153=0,"",'SUB. 9'!B23) ->  | G153: ='SUB. 9'!J23 -> 0 | H153: ='SUB. 9'!L23 -> 0 | I153: ='SUB. 9'!N23 -> 0 | J153: ='SUB. 9'!R23 -> 0
B154: =IF(C154=0,"",'SUB. 9'!B24) ->  | C154: ='SUB. 9'!P24 -> 0 | D154: =IF(E154=0,"",'SUB. 9'!B24) ->  | E154: ='SUB. 9'!H24 -> 0 | F154: =IF(G154=0,"",'SUB. 9'!B24) ->  | G154: ='SUB. 9'!J24 -> 0 | H154: ='SUB. 9'!L24 -> 0 | I154: ='SUB. 9'!N24 -> 0 | J154: ='SUB. 9'!R24 -> 0
B155: =IF(C155=0,"",'SUB. 9'!B25) ->  | C155: ='SUB. 9'!P25 -> 0 | D155: =IF(E155=0,"",'SUB. 9'!B25) ->  | E155: ='SUB. 9'!H25 -> 0 | F155: =IF(G155=0,"",'SUB. 9'!B25) ->  | G155: ='SUB. 9'!J25 -> 0 | H155: ='SUB. 9'!L25 -> 0 | I155: ='SUB. 9'!N25 -> 0 | J155: ='SUB. 9'!R25 -> 0
B156: =IF(C156=0,"",'SUB. 9'!B26) ->  | C156: ='SUB. 9'!P26 -> 0 | D156: =IF(E156=0,"",'SUB. 9'!B26) ->  | E156: ='SUB. 9'!H26 -> 0 | F156: =IF(G156=0,"",'SUB. 9'!B26) ->  | G156: ='SUB. 9'!J26 -> 0 | H156: ='SUB. 9'!L26 -> 0 | I156: ='SUB. 9'!N26 -> 0 | J156: ='SUB. 9'!R26 -> 0
B157: =IF(C157=0,"",'SUB. 9'!B27) ->  | C157: ='SUB. 9'!P27 -> 0 | D157: =IF(E157=0,"",'SUB. 9'!B27) ->  | E157: ='SUB. 9'!H27 -> 0 | F157: =IF(G157=0,"",'SUB. 9'!B27) ->  | G157: ='SUB. 9'!J27 -> 0 | H157: ='SUB. 9'!L27 -> 0 | I157: ='SUB. 9'!N27 -> 0 | J157: ='SUB. 9'!R27 -> 0
B158: =IF(C158=0,"",'SUB. 9'!B28) ->  | C158: ='SUB. 9'!P28 -> 0 | D158: =IF(E158=0,"",'SUB. 9'!B28) ->  | E158: ='SUB. 9'!H28 -> 0 | F158: =IF(G158=0,"",'SUB. 9'!B28) ->  | G158: ='SUB. 9'!J28 -> 0 | H158: ='SUB. 9'!L28 -> 0 | I158: ='SUB. 9'!N28 -> 0 | J158: ='SUB. 9'!R28 -> 0
B159: =IF(C159=0,"",'SUB. 9'!B29) ->  | C159: ='SUB. 9'!P29 -> 0 | D159: =IF(E159=0,"",'SUB. 9'!B29) ->  | E159: ='SUB. 9'!H29 -> 0 | F159: =IF(G159=0,"",'SUB. 9'!B29) ->  | G159: ='SUB. 9'!J29 -> 0 | H159: ='SUB. 9'!L29 -> 0 | I159: ='SUB. 9'!N29 -> 0 | J159: ='SUB. 9'!R29 -> 0
B160: =IF(C160=0,"",'SUB. 9'!B30) ->  | C160: ='SUB. 9'!P30 -> 0 | D160: =IF(E160=0,"",'SUB. 9'!B30) ->  | E160: ='SUB. 9'!H30 -> 0 | F160: =IF(G160=0,"",'SUB. 9'!B30) ->  | G160: ='SUB. 9'!J30 -> 0 | H160: ='SUB. 9'!L30 -> 0 | I160: ='SUB. 9'!N30 -> 0 | J160: ='SUB. 9'!R30 -> 0
B161: =IF(C161=0,"",'SUB. 9'!B31) ->  | C161: ='SUB. 9'!P31 -> 0 | D161: =IF(E161=0,"",'SUB. 9'!B31) ->  | E161: ='SUB. 9'!H31 -> 0 | F161: =IF(G161=0,"",'SUB. 9'!B31) ->  | G161: ='SUB. 9'!J31 -> 0 | H161: ='SUB. 9'!L31 -> 0 | I161: ='SUB. 9'!N31 -> 0 | J161: ='SUB. 9'!R31 -> 0
B162: =IF(C162=0,"",'SUB. 9'!B32) ->  | C162: ='SUB. 9'!P32 -> 0 | D162: =IF(E162=0,"",'SUB. 9'!B32) ->  | E162: ='SUB. 9'!H32 -> 0 | F162: =IF(G162=0,"",'SUB. 9'!B32) ->  | G162: ='SUB. 9'!J32 -> 0 | H162: ='SUB. 9'!L32 -> 0 | I162: ='SUB. 9'!N32 -> 0 | J162: ='SUB. 9'!R32 -> 0
B163: =IF(C163=0,"",'SUB. 9'!B33) ->  | C163: ='SUB. 9'!P33 -> 0 | D163: =IF(E163=0,"",'SUB. 9'!B33) ->  | E163: ='SUB. 9'!H33 -> 0 | F163: =IF(G163=0,"",'SUB. 9'!B33) ->  | G163: ='SUB. 9'!J33 -> 0 | H163: ='SUB. 9'!L33 -> 0 | I163: ='SUB. 9'!N33 -> 0 | J163: ='SUB. 9'!R33 -> 0
B164: =IF(C164=0,"",'SUB. 9'!B34) ->  | C164: ='SUB. 9'!P34 -> 0 | D164: =IF(E164=0,"",'SUB. 9'!B34) ->  | E164: ='SUB. 9'!H34 -> 0 | F164: =IF(G164=0,"",'SUB. 9'!B34) ->  | G164: ='SUB. 9'!J34 -> 0 | H164: ='SUB. 9'!L34 -> 0 | I164: ='SUB. 9'!N34 -> 0 | J164: ='SUB. 9'!R34 -> 0
B165: =IF(C165=0,"",'SUB. 9'!B35) ->  | C165: ='SUB. 9'!P35 -> 0 | D165: =IF(E165=0,"",'SUB. 9'!B35) ->  | E165: ='SUB. 9'!H35 -> 0 | F165: =IF(G165=0,"",'SUB. 9'!B35) ->  | G165: ='SUB. 9'!J35 -> 0 | H165: ='SUB. 9'!L35 -> 0 | I165: ='SUB. 9'!N35 -> 0 | J165: ='SUB. 9'!R35 -> 0
B166: =IF(C166=0,"",'SUB. 9'!B36) ->  | C166: ='SUB. 9'!P36 -> 0 | D166: =IF(E166=0,"",'SUB. 9'!B36) ->  | E166: ='SUB. 9'!H36 -> 0 | F166: =IF(G166=0,"",'SUB. 9'!B36) ->  | G166: ='SUB. 9'!J36 -> 0 | H166: ='SUB. 9'!L36 -> 0 | I166: ='SUB. 9'!N36 -> 0 | J166: ='SUB. 9'!R36 -> 0
A167: SUBSISTEMA 10 | B167: =IF(C167=0,"",'SUB. 10'!B19) ->  | C167: ='SUB. 10'!P19 -> 0 | D167: =IF(E167=0,"",'SUB. 10'!B19) ->  | E167: ='SUB. 10'!H19 -> 0 | F167: =IF(G167=0,"",'SUB. 10'!B19) ->  | G167: ='SUB. 10'!J19 -> 0 | H167: ='SUB. 10'!L19 -> 0 | I167: ='SUB. 10'!N19 -> 0 | J167: ='SUB. 10'!R19 -> 0
B168: =IF(C168=0,"",'SUB. 10'!B20) ->  | C168: ='SUB. 10'!P20 -> 0 | D168: =IF(E168=0,"",'SUB. 10'!B20) ->  | E168: ='SUB. 10'!H20 -> 0 | F168: =IF(G168=0,"",'SUB. 10'!B20) ->  | G168: ='SUB. 10'!J20 -> 0 | H168: ='SUB. 10'!L20 -> 0 | I168: ='SUB. 10'!N20 -> 0 | J168: ='SUB. 10'!R20 -> 0
B169: =IF(C169=0,"",'SUB. 10'!B21) ->  | C169: ='SUB. 10'!P21 -> 0 | D169: =IF(E169=0,"",'SUB. 10'!B21) ->  | E169: ='SUB. 10'!H21 -> 0 | F169: =IF(G169=0,"",'SUB. 10'!B21) ->  | G169: ='SUB. 10'!J21 -> 0 | H169: ='SUB. 10'!L21 -> 0 | I169: ='SUB. 10'!N21 -> 0 | J169: ='SUB. 10'!R21 -> 0
B170: =IF(C170=0,"",'SUB. 10'!B22) ->  | C170: ='SUB. 10'!P22 -> 0 | D170: =IF(E170=0,"",'SUB. 10'!B22) ->  | E170: ='SUB. 10'!H22 -> 0 | F170: =IF(G170=0,"",'SUB. 10'!B22) ->  | G170: ='SUB. 10'!J22 -> 0 | H170: ='SUB. 10'!L22 -> 0 | I170: ='SUB. 10'!N22 -> 0 | J170: ='SUB. 10'!R22 -> 0
B171: =IF(C171=0,"",'SUB. 10'!B23) ->  | C171: ='SUB. 10'!P23 -> 0 | D171: =IF(E171=0,"",'SUB. 10'!B23) ->  | E171: ='SUB. 10'!H23 -> 0 | F171: =IF(G171=0,"",'SUB. 10'!B23) ->  | G171: ='SUB. 10'!J23 -> 0 | H171: ='SUB. 10'!L23 -> 0 | I171: ='SUB. 10'!N23 -> 0 | J171: ='SUB. 10'!R23 -> 0
B172: =IF(C172=0,"",'SUB. 10'!B24) ->  | C172: ='SUB. 10'!P24 -> 0 | D172: =IF(E172=0,"",'SUB. 10'!B24) ->  | E172: ='SUB. 10'!H24 -> 0 | F172: =IF(G172=0,"",'SUB. 10'!B24) ->  | G172: ='SUB. 10'!J24 -> 0 | H172: ='SUB. 10'!L24 -> 0 | I172: ='SUB. 10'!N24 -> 0 | J172: ='SUB. 10'!R24 -> 0
B173: =IF(C173=0,"",'SUB. 10'!B25) ->  | C173: ='SUB. 10'!P25 -> 0 | D173: =IF(E173=0,"",'SUB. 10'!B25) ->  | E173: ='SUB. 10'!H25 -> 0 | F173: =IF(G173=0,"",'SUB. 10'!B25) ->  | G173: ='SUB. 10'!J25 -> 0 | H173: ='SUB. 10'!L25 -> 0 | I173: ='SUB. 10'!N25 -> 0 | J173: ='SUB. 10'!R25 -> 0
B174: =IF(C174=0,"",'SUB. 10'!B26) ->  | C174: ='SUB. 10'!P26 -> 0 | D174: =IF(E174=0,"",'SUB. 10'!B26) ->  | E174: ='SUB. 10'!H26 -> 0 | F174: =IF(G174=0,"",'SUB. 10'!B26) ->  | G174: ='SUB. 10'!J26 -> 0 | H174: ='SUB. 10'!L26 -> 0 | I174: ='SUB. 10'!N26 -> 0 | J174: ='SUB. 10'!R26 -> 0
B175: =IF(C175=0,"",'SUB. 10'!B27) ->  | C175: ='SUB. 10'!P27 -> 0 | D175: =IF(E175=0,"",'SUB. 10'!B27) ->  | E175: ='SUB. 10'!H27 -> 0 | F175: =IF(G175=0,"",'SUB. 10'!B27) ->  | G175: ='SUB. 10'!J27 -> 0 | H175: ='SUB. 10'!L27 -> 0 | I175: ='SUB. 10'!N27 -> 0 | J175: ='SUB. 10'!R27 -> 0
B176: =IF(C176=0,"",'SUB. 10'!B28) ->  | C176: ='SUB. 10'!P28 -> 0 | D176: =IF(E176=0,"",'SUB. 10'!B28) ->  | E176: ='SUB. 10'!H28 -> 0 | F176: =IF(G176=0,"",'SUB. 10'!B28) ->  | G176: ='SUB. 10'!J28 -> 0 | H176: ='SUB. 10'!L28 -> 0 | I176: ='SUB. 10'!N28 -> 0 | J176: ='SUB. 10'!R28 -> 0
B177: =IF(C177=0,"",'SUB. 10'!B29) ->  | C177: ='SUB. 10'!P29 -> 0 | D177: =IF(E177=0,"",'SUB. 10'!B29) ->  | E177: ='SUB. 10'!H29 -> 0 | F177: =IF(G177=0,"",'SUB. 10'!B29) ->  | G177: ='SUB. 10'!J29 -> 0 | H177: ='SUB. 10'!L29 -> 0 | I177: ='SUB. 10'!N29 -> 0 | J177: ='SUB. 10'!R29 -> 0
B178: =IF(C178=0,"",'SUB. 10'!B30) ->  | C178: ='SUB. 10'!P30 -> 0 | D178: =IF(E178=0,"",'SUB. 10'!B30) ->  | E178: ='SUB. 10'!H30 -> 0 | F178: =IF(G178=0,"",'SUB. 10'!B30) ->  | G178: ='SUB. 10'!J30 -> 0 | H178: ='SUB. 10'!L30 -> 0 | I178: ='SUB. 10'!N30 -> 0 | J178: ='SUB. 10'!R30 -> 0
B179: =IF(C179=0,"",'SUB. 10'!B31) ->  | C179: ='SUB. 10'!P31 -> 0 | D179: =IF(E179=0,"",'SUB. 10'!B31) ->  | E179: ='SUB. 10'!H31 -> 0 | F179: =IF(G179=0,"",'SUB. 10'!B31) ->  | G179: ='SUB. 10'!J31 -> 0 | H179: ='SUB. 10'!L31 -> 0 | I179: ='SUB. 10'!N31 -> 0 | J179: ='SUB. 10'!R31 -> 0
B180: =IF(C180=0,"",'SUB. 10'!B32) ->  | C180: ='SUB. 10'!P32 -> 0 | D180: =IF(E180=0,"",'SUB. 10'!B32) ->  | E180: ='SUB. 10'!H32 -> 0 | F180: =IF(G180=0,"",'SUB. 10'!B32) ->  | G180: ='SUB. 10'!J32 -> 0 | H180: ='SUB. 10'!L32 -> 0 | I180: ='SUB. 10'!N32 -> 0 | J180: ='SUB. 10'!R32 -> 0
B181: =IF(C181=0,"",'SUB. 10'!B33) ->  | C181: ='SUB. 10'!P33 -> 0 | D181: =IF(E181=0,"",'SUB. 10'!B33) ->  | E181: ='SUB. 10'!H33 -> 0 | F181: =IF(G181=0,"",'SUB. 10'!B33) ->  | G181: ='SUB. 10'!J33 -> 0 | H181: ='SUB. 10'!L33 -> 0 | I181: ='SUB. 10'!N33 -> 0 | J181: ='SUB. 10'!R33 -> 0
B182: =IF(C182=0,"",'SUB. 10'!B34) ->  | C182: ='SUB. 10'!P34 -> 0 | D182: =IF(E182=0,"",'SUB. 10'!B34) ->  | E182: ='SUB. 10'!H34 -> 0 | F182: =IF(G182=0,"",'SUB. 10'!B34) ->  | G182: ='SUB. 10'!J34 -> 0 | H182: ='SUB. 10'!L34 -> 0 | I182: ='SUB. 10'!N34 -> 0 | J182: ='SUB. 10'!R34 -> 0
B183: =IF(C183=0,"",'SUB. 10'!B35) ->  | C183: ='SUB. 10'!P35 -> 0 | D183: =IF(E183=0,"",'SUB. 10'!B35) ->  | E183: ='SUB. 10'!H35 -> 0 | F183: =IF(G183=0,"",'SUB. 10'!B35) ->  | G183: ='SUB. 10'!J35 -> 0 | H183: ='SUB. 10'!L35 -> 0 | I183: ='SUB. 10'!N35 -> 0 | J183: ='SUB. 10'!R35 -> 0
B184: =IF(C184=0,"",'SUB. 10'!B36) ->  | C184: ='SUB. 10'!P36 -> 0 | D184: =IF(E184=0,"",'SUB. 10'!B36) ->  | E184: ='SUB. 10'!H36 -> 0 | F184: =IF(G184=0,"",'SUB. 10'!B36) ->  | G184: ='SUB. 10'!J36 -> 0 | H184: ='SUB. 10'!L36 -> 0 | I184: ='SUB. 10'!N36 -> 0 | J184: ='SUB. 10'!R36 -> 0
A185: SUBSISTEMA 11 | B185: =IF(C185=0,"",'SUB. 11'!B19) ->  | C185: ='SUB. 11'!P19 -> 0 | D185: =IF(E185=0,"",'SUB. 11'!B19) ->  | E185: ='SUB. 11'!H19 -> 0 | F185: =IF(G185=0,"",'SUB. 11'!B19) ->  | G185: ='SUB. 11'!J19 -> 0 | H185: ='SUB. 11'!L19 -> 0 | I185: ='SUB. 11'!N19 -> 0 | J185: ='SUB. 11'!R19 -> 0
B186: =IF(C186=0,"",'SUB. 11'!B20) ->  | C186: ='SUB. 11'!P20 -> 0 | D186: =IF(E186=0,"",'SUB. 11'!B20) ->  | E186: ='SUB. 11'!H20 -> 0 | F186: =IF(G186=0,"",'SUB. 11'!B20) ->  | G186: ='SUB. 11'!J20 -> 0 | H186: ='SUB. 11'!L20 -> 0 | I186: ='SUB. 11'!N20 -> 0 | J186: ='SUB. 11'!R20 -> 0
B187: =IF(C187=0,"",'SUB. 11'!B21) ->  | C187: ='SUB. 11'!P21 -> 0 | D187: =IF(E187=0,"",'SUB. 11'!B21) ->  | E187: ='SUB. 11'!H21 -> 0 | F187: =IF(G187=0,"",'SUB. 11'!B21) ->  | G187: ='SUB. 11'!J21 -> 0 | H187: ='SUB. 11'!L21 -> 0 | I187: ='SUB. 11'!N21 -> 0 | J187: ='SUB. 11'!R21 -> 0
B188: =IF(C188=0,"",'SUB. 11'!B22) ->  | C188: ='SUB. 11'!P22 -> 0 | D188: =IF(E188=0,"",'SUB. 11'!B22) ->  | E188: ='SUB. 11'!H22 -> 0 | F188: =IF(G188=0,"",'SUB. 11'!B22) ->  | G188: ='SUB. 11'!J22 -> 0 | H188: ='SUB. 11'!L22 -> 0 | I188: ='SUB. 11'!N22 -> 0 | J188: ='SUB. 11'!R22 -> 0
B189: =IF(C189=0,"",'SUB. 11'!B23) ->  | C189: ='SUB. 11'!P23 -> 0 | D189: =IF(E189=0,"",'SUB. 11'!B23) ->  | E189: ='SUB. 11'!H23 -> 0 | F189: =IF(G189=0,"",'SUB. 11'!B23) ->  | G189: ='SUB. 11'!J23 -> 0 | H189: ='SUB. 11'!L23 -> 0 | I189: ='SUB. 11'!N23 -> 0 | J189: ='SUB. 11'!R23 -> 0
B190: =IF(C190=0,"",'SUB. 11'!B24) ->  | C190: ='SUB. 11'!P24 -> 0 | D190: =IF(E190=0,"",'SUB. 11'!B24) ->  | E190: ='SUB. 11'!H24 -> 0 | F190: =IF(G190=0,"",'SUB. 11'!B24) ->  | G190: ='SUB. 11'!J24 -> 0 | H190: ='SUB. 11'!L24 -> 0 | I190: ='SUB. 11'!N24 -> 0 | J190: ='SUB. 11'!R24 -> 0
B191: =IF(C191=0,"",'SUB. 11'!B25) ->  | C191: ='SUB. 11'!P25 -> 0 | D191: =IF(E191=0,"",'SUB. 11'!B25) ->  | E191: ='SUB. 11'!H25 -> 0 | F191: =IF(G191=0,"",'SUB. 11'!B25) ->  | G191: ='SUB. 11'!J25 -> 0 | H191: ='SUB. 11'!L25 -> 0 | I191: ='SUB. 11'!N25 -> 0 | J191: ='SUB. 11'!R25 -> 0
B192: =IF(C192=0,"",'SUB. 11'!B26) ->  | C192: ='SUB. 11'!P26 -> 0 | D192: =IF(E192=0,"",'SUB. 11'!B26) ->  | E192: ='SUB. 11'!H26 -> 0 | F192: =IF(G192=0,"",'SUB. 11'!B26) ->  | G192: ='SUB. 11'!J26 -> 0 | H192: ='SUB. 11'!L26 -> 0 | I192: ='SUB. 11'!N26 -> 0 | J192: ='SUB. 11'!R26 -> 0
B193: =IF(C193=0,"",'SUB. 11'!B27) ->  | C193: ='SUB. 11'!P27 -> 0 | D193: =IF(E193=0,"",'SUB. 11'!B27) ->  | E193: ='SUB. 11'!H27 -> 0 | F193: =IF(G193=0,"",'SUB. 11'!B27) ->  | G193: ='SUB. 11'!J27 -> 0 | H193: ='SUB. 11'!L27 -> 0 | I193: ='SUB. 11'!N27 -> 0 | J193: ='SUB. 11'!R27 -> 0
B194: =IF(C194=0,"",'SUB. 11'!B28) ->  | C194: ='SUB. 11'!P28 -> 0 | D194: =IF(E194=0,"",'SUB. 11'!B28) ->  | E194: ='SUB. 11'!H28 -> 0 | F194: =IF(G194=0,"",'SUB. 11'!B28) ->  | G194: ='SUB. 11'!J28 -> 0 | H194: ='SUB. 11'!L28 -> 0 | I194: ='SUB. 11'!N28 -> 0 | J194: ='SUB. 11'!R28 -> 0
B195: =IF(C195=0,"",'SUB. 11'!B29) ->  | C195: ='SUB. 11'!P29 -> 0 | D195: =IF(E195=0,"",'SUB. 11'!B29) ->  | E195: ='SUB. 11'!H29 -> 0 | F195: =IF(G195=0,"",'SUB. 11'!B29) ->  | G195: ='SUB. 11'!J29 -> 0 | H195: ='SUB. 11'!L29 -> 0 | I195: ='SUB. 11'!N29 -> 0 | J195: ='SUB. 11'!R29 -> 0
B196: =IF(C196=0,"",'SUB. 11'!B30) ->  | C196: ='SUB. 11'!P30 -> 0 | D196: =IF(E196=0,"",'SUB. 11'!B30) ->  | E196: ='SUB. 11'!H30 -> 0 | F196: =IF(G196=0,"",'SUB. 11'!B30) ->  | G196: ='SUB. 11'!J30 -> 0 | H196: ='SUB. 11'!L30 -> 0 | I196: ='SUB. 11'!N30 -> 0 | J196: ='SUB. 11'!R30 -> 0
B197: =IF(C197=0,"",'SUB. 11'!B31) ->  | C197: ='SUB. 11'!P31 -> 0 | D197: =IF(E197=0,"",'SUB. 11'!B31) ->  | E197: ='SUB. 11'!H31 -> 0 | F197: =IF(G197=0,"",'SUB. 11'!B31) ->  | G197: ='SUB. 11'!J31 -> 0 | H197: ='SUB. 11'!L31 -> 0 | I197: ='SUB. 11'!N31 -> 0 | J197: ='SUB. 11'!R31 -> 0
B198: =IF(C198=0,"",'SUB. 11'!B32) ->  | C198: ='SUB. 11'!P32 -> 0 | D198: =IF(E198=0,"",'SUB. 11'!B32) ->  | E198: ='SUB. 11'!H32 -> 0 | F198: =IF(G198=0,"",'SUB. 11'!B32) ->  | G198: ='SUB. 11'!J32 -> 0 | H198: ='SUB. 11'!L32 -> 0 | I198: ='SUB. 11'!N32 -> 0 | J198: ='SUB. 11'!R32 -> 0
B199: =IF(C199=0,"",'SUB. 11'!B33) ->  | C199: ='SUB. 11'!P33 -> 0 | D199: =IF(E199=0,"",'SUB. 11'!B33) ->  | E199: ='SUB. 11'!H33 -> 0 | F199: =IF(G199=0,"",'SUB. 11'!B33) ->  | G199: ='SUB. 11'!J33 -> 0 | H199: ='SUB. 11'!L33 -> 0 | I199: ='SUB. 11'!N33 -> 0 | J199: ='SUB. 11'!R33 -> 0
B200: =IF(C200=0,"",'SUB. 11'!B34) ->  | C200: ='SUB. 11'!P34 -> 0 | D200: =IF(E200=0,"",'SUB. 11'!B34) ->  | E200: ='SUB. 11'!H34 -> 0 | F200: =IF(G200=0,"",'SUB. 11'!B34) ->  | G200: ='SUB. 11'!J34 -> 0 | H200: ='SUB. 11'!L34 -> 0 | I200: ='SUB. 11'!N34 -> 0 | J200: ='SUB. 11'!R34 -> 0
B201: =IF(C201=0,"",'SUB. 11'!B35) ->  | C201: ='SUB. 11'!P35 -> 0 | D201: =IF(E201=0,"",'SUB. 11'!B35) ->  | E201: ='SUB. 11'!H35 -> 0 | F201: =IF(G201=0,"",'SUB. 11'!B35) ->  | G201: ='SUB. 11'!J35 -> 0 | H201: ='SUB. 11'!L35 -> 0 | I201: ='SUB. 11'!N35 -> 0 | J201: ='SUB. 11'!R35 -> 0
B202: =IF(C202=0,"",'SUB. 11'!B36) ->  | C202: ='SUB. 11'!P36 -> 0 | D202: =IF(E202=0,"",'SUB. 11'!B36) ->  | E202: ='SUB. 11'!H36 -> 0 | F202: =IF(G202=0,"",'SUB. 11'!B36) ->  | G202: ='SUB. 11'!J36 -> 0 | H202: ='SUB. 11'!L36 -> 0 | I202: ='SUB. 11'!N36 -> 0 | J202: ='SUB. 11'!R36 -> 0
... 36 more rows

Sheet TD Produções (hidden)
D3: Dados
A4: Produtos 1 | B4: Produtos 2 | C4: Produtos 3 | D4: Soma de Produções | E4: Soma de Venda | F4: Soma de Autoconsumo | G4: Soma de Doações trocas | H4: Soma de Estoque
D5: 0 | E5: 0 | F5: 0 | G5: 0 | H5: 0
C6: cebolinha | D6: 0 | E6: 0 | F6: 144 | G6: 108 | H6: 0
A7: Leite | B7: Leite | C7: Leite | D7: 8558 | E7: 8236.8 | F7: 211.2 | G7: 110 | H7: 0
A8: vaca (4) | B8: vaca (4) | D8: 9692.307692 | E8: 2000 | F8: 0 | G8: 0 | H8: 7692.307692
A9: porco | B9: porco | C9: porco | D9: 14730 | E9: 7830 | F9: 150 | G9: 150 | H9: 6600
A10: animal | B10: animal | D10: 405 | E10: 180 | F10: 0 | G10: 0 | H10: 225
A11: Galinhas | B11: Galinhas | C11: Galinhas | D11: 2580 | E11: 180 | F11: 1440 | G11: 360 | H11: 600
A12: Pato | C12: Pato | D12: 400 | E12: 0 | F12: 300 | G12: 0 | H12: 100
A13: Peru | D13: 60 | E13: 0 | F13: 0 | G13: 0 | H13: 60
A14: ovo | B14: ovo | C14: ovo | D14: 292.9166667 | E14: 30 | F14: 240 | G14: 16.66666667 | H14: 6.25
A15: jenipapo | C15: jenipapo | D15: 45 | E15: 0 | F15: 45 | G15: 0 | H15: 0
A16: cidreira | C16: cidreira | D16: 96 | E16: 0 | F16: 96 | G16: 0 | H16: 0
A17: açerola | C17: açerola | D17: 96 | E17: 0 | F17: 96 | G17: 0 | H17: 0
A18: pinha | C18: pinha | D18: 60 | E18: 0 | F18: 60 | G18: 0 | H18: 0
A19: coco verde | C19: coco verde | D19: 140 | E19: 0 | F19: 140 | G19: 0 | H19: 0
A20: laranja | C20: laranja | D20: 12 | E20: 0 | F20: 12 | G20: 0 | H20: 0
A21: hortelã de sete dor | C21: hortelã de sete dor | D21: 96 | E21: 0 | F21: 96 | G21: 0 | H21: 0
A22: hortelã | C22: hortelã | D22: 96 | E22: 0 | F22: 96 | G22: 0 | H22: 0
A23: samba caitá | C23: samba caitá | D23: 96 | E23: 0 | F23: 96 | G23: 0 | H23: 0
A24: couve | C24: couve | D24: 336 | E24: 0 | F24: 192 | G24: 144 | H24: 0
A25: pimentão | C25: pimentão | D25: 4 | E25: 0 | F25: 4 | G25: 0 | H25: 0
A26: coentro | C26: coentro | D26: 336 | E26: 0 | F26: 192 | G26: 144 | H26: 0
A27: Millho seco | B27: Millho seco | C27: Millho seco | D27: 270 | E27: 200 | F27: 50 | G27: 20 | H27: 0

Sheet TDG Conj, Produções (hidden)
A1: Produtos 2 | B1: (Vários itens)
A2: Produtos 3 | B2: (Tudo)
B4: Produtos 1
A5: Dados | C5: Leite | D5: vaca (4) | E5: porco | F5: animal | G5: Galinhas | H5: Pato | I5: Peru | J5: ovo | K5: jenipapo | L5: cidreira | M5: açerola | N5: pinha | O5: coco verde | P5: laranja | Q5: hortelã de sete dor | R5: hortelã | S5: samba caitá | T5: couve | U5: pimentão | V5: coentro | W5: Millho seco
A6: Produções. | B6: 0 | C6: 8558 | D6: 9692.307692 | E6: 14730 | F6: 405 | G6: 2580 | H6: 400 | I6: 60 | J6: 292.9166667 | K6: 45 | L6: 96 | M6: 96 | N6: 60 | O6: 140 | P6: 12 | Q6: 96 | R6: 96 | S6: 96 | T6: 336 | U6: 4 | V6: 336 | W6: 270
A7: Vendas. | B7: 0 | C7: 8236.8 | D7: 2000 | E7: 7830 | F7: 180 | G7: 180 | H7: 0 | I7: 0 | J7: 30 | K7: 0 | L7: 0 | M7: 0 | N7: 0 | O7: 0 | P7: 0 | Q7: 0 | R7: 0 | S7: 0 | T7: 0 | U7: 0 | V7: 0 | W7: 200
A8: Autoconsumo. | B8: 144 | C8: 211.2 | D8: 0 | E8: 150 | F8: 0 | G8: 1440 | H8: 300 | I8: 0 | J8: 240 | K8: 45 | L8: 96 | M8: 96 | N8: 60 | O8: 140 | P8: 12 | Q8: 96 | R8: 96 | S8: 96 | T8: 192 | U8: 4 | V8: 192 | W8: 50
A9: Doações trocas. | B9: 108 | C9: 110 | D9: 0 | E9: 150 | F9: 0 | G9: 360 | H9: 0 | I9: 0 | J9: 16.66666667 | K9: 0 | L9: 0 | M9: 0 | N9: 0 | O9: 0 | P9: 0 | Q9: 0 | R9: 0 | S9: 0 | T9: 144 | U9: 0 | V9: 144 | W9: 20
A10: Estoque. | B10: 0 | C10: 0 | D10: 7692.307692 | E10: 6600 | F10: 225 | G10: 600 | H10: 100 | I10: 60 | J10: 6.25 | K10: 0 | L10: 0 | M10: 0 | N10: 0 | O10: 0 | P10: 0 | Q10: 0 | R10: 0 | S10: 0 | T10: 0 | U10: 0 | V10: 0 | W10: 0

Sheet TDG produções (hidden)
A3: Soma de Produções
A4: Produtos 1 | B4: Total
A5: 0 | B5: 0.0001
A6: Leite | B6: 8558
A7: vaca (4) | B7: 9692.307692
A8: porco | B8: 14730
A9: animal | B9: 405
A10: Galinhas | B10: 2580
A11: Pato | B11: 400
A12: Peru | B12: 60
A13: ovo | B13: 292.9166667
A14: jenipapo | B14: 45
A15: cidreira | B15: 96
A16: açerola | B16: 96
A17: pinha | B17: 60
A18: coco verde | B18: 140
A19: laranja | B19: 12
A20: hortelã de sete dor | B20: 96
A21: hortelã | B21: 96
A22: samba caitá | B22: 96
A23: couve | B23: 336
A24: pimentão | B24: 4
A25: coentro | B25: 336
A26: Millho seco | B26: 270
A27: Total Geral | B27: 38401.22446

Sheet TDG Venda (hidden)
A3: Soma de Venda
A4: Produtos 2 | B4: Total
A5: 0 | B5: 0.0001
A6: Leite | B6: 8236.8
A7: vaca (4) | B7: 2000
A8: porco | B8: 7830
A9: animal | B9: 180
A10: ovo | B10: 30
A11: Galinhas | B11: 180
A12: Millho seco | B12: 200
A13: Total Geral | B13: 18656.8001

Sheet TDG Autocons. (hidden)
A3: Soma de Autoconsumo
A4: Produtos 3 | B4: Total
A5: Leite | B5: 211.2
A6: Galinhas | B6: 1440
A7: Pato | B7: 300
A8: ovo | B8: 240
A9: jenipapo | B9: 45
A10: cidreira | B10: 96
A11: açerola | B11: 96
A12: pinha | B12: 60
A13: coco verde | B13: 140
A14: laranja | B14: 12
A15: hortelã de sete dor | B15: 96
A16: hortelã | B16: 96
A17: samba caitá | B17: 96
A18: couve | B18: 192
A19: pimentão | B19: 4
A20: coentro | B20: 192
A21: cebolinha | B21: 144
A22: porco | B22: 150
A23: Millho seco | B23: 50
A24: Total Geral | B24: 3660.2

Sheet Tabela Insumos (hidden)
E2: Produzidos | G2: Consumidos | I2: Estoque período anterior | K2: Estoque Final do período
B3: Produtos | C3: Unidade | D3: Valor Unitário | E3: Quantidade | F3: Produzido | G3: Quantidade | H3: Consumidos | I3: Quantidade | J3: Estoque período anterior | K3: Quantidade | L3: Estoque final período
A4: SUBSISTEMA 1 | B4: =IF(F4=0,"",'SUB. 1'!B19) ->  | C4: =IF(F4=0,"",'SUB. 1'!E19) ->  | D4: =IF(F4=0,"",'SUB. 1'!F19) ->  | E4: ='SUB. 1'!Q19 -> 0 | F4: ='SUB. 1'!R19 -> 0 | H4: =N4 -> 0 | I4: =N4 -> 0 | J4: =N4 -> 0 | K4: =N4 -> 0 | L4: =N4 -> 0
B5: =IF(F5=0,"",'SUB. 1'!B20) ->  | C5: =IF(F5=0,"",'SUB. 1'!E20) ->  | D5: =IF(F5=0,"",'SUB. 1'!F20) ->  | E5: ='SUB. 1'!Q20 -> 0 | F5: ='SUB. 1'!R20 -> 0 | H5: =N5 -> 0 | I5: =N5 -> 0 | J5: =N5 -> 0 | K5: =N5 -> 0 | L5: =N5 -> 0
B6: =IF(F6=0,"",'SUB. 1'!B21) -> esterco | C6: =IF(F6=0,"",'SUB. 1'!E21) -> kg | D6: =IF(F6=0,"",'SUB. 1'!F21) -> 2 | E6: ='SUB. 1'!Q21 -> 1680 | F6: ='SUB. 1'!R21 -> 3360 | H6: 0 | I6: 0 | J6: 0 | K6: 0 | L6: =N6 -> 0
B7: =IF(F7=0,"",'SUB. 1'!B22) ->  | C7: =IF(F7=0,"",'SUB. 1'!E22) ->  | D7: =IF(F7=0,"",'SUB. 1'!F22) ->  | E7: ='SUB. 1'!Q22 -> 0 | F7: ='SUB. 1'!R22 -> 0 | H7: 0 | I7: 0 | J7: 0 | K7: 0 | L7: =N7 -> 0
B8: =IF(F8=0,"",'SUB. 1'!B23) ->  | C8: =IF(F8=0,"",'SUB. 1'!E23) ->  | D8: =IF(F8=0,"",'SUB. 1'!F23) ->  | E8: ='SUB. 1'!Q23 -> 0 | F8: ='SUB. 1'!R23 -> 0 | H8: 0 | I8: 0 | J8: 0 | K8: 0 | L8: 0
B9: =IF(F9=0,"",'SUB. 1'!B24) ->  | C9: =IF(F9=0,"",'SUB. 1'!E24) ->  | D9: =IF(F9=0,"",'SUB. 1'!F24) ->  | E9: ='SUB. 1'!Q24 -> 0 | F9: ='SUB. 1'!R24 -> 0 | H9: 0 | I9: 0 | J9: 0 | K9: 0 | L9: 0
B10: =IF(F10=0,"",'SUB. 1'!B25) ->  | C10: =IF(F10=0,"",'SUB. 1'!E25) ->  | D10: =IF(F10=0,"",'SUB. 1'!F25) ->  | E10: ='SUB. 1'!Q25 -> 0 | F10: ='SUB. 1'!R25 -> 0 | H10: 0 | I10: 0 | J10: 0 | K10: 0 | L10: 0
B11: =IF(F11=0,"",'SUB. 1'!B26) ->  | C11: =IF(F11=0,"",'SUB. 1'!E26) ->  | D11: =IF(F11=0,"",'SUB. 1'!F26) ->  | E11: ='SUB. 1'!Q26 -> 0 | F11: ='SUB. 1'!R26 -> 0 | H11: 0 | I11: 0 | J11: 0 | K11: 0 | L11: 0
B12: =IF(F12=0,"",'SUB. 1'!B27) ->  | C12: =IF(F12=0,"",'SUB. 1'!E27) ->  | D12: =IF(F12=0,"",'SUB. 1'!F27) ->  | E12: ='SUB. 1'!Q27 -> 0 | F12: ='SUB. 1'!R27 -> 0 | H12: 0 | I12: 0 | J12: 0 | K12: 0 | L12: 0
B13: =IF(F13=0,"",'SUB. 1'!B28) ->  | C13: =IF(F13=0,"",'SUB. 1'!E28) ->  | D13: =IF(F13=0,"",'SUB. 1'!F28) ->  | E13: ='SUB. 1'!Q28 -> 0 | F13: ='SUB. 1'!R28 -> 0 | H13: 0 | I13: 0 | J13: 0 | K13: 0 | L13: 0
B14: =IF(F14=0,"",'SUB. 1'!B29) ->  | C14: =IF(F14=0,"",'SUB. 1'!E29) ->  | D14: =IF(F14=0,"",'SUB. 1'!F29) ->  | E14: ='SUB. 1'!Q29 -> 0 | F14: ='SUB. 1'!R29 -> 0 | H14: 0 | I14: 0 | J14: 0 | K14: 0 | L14: 0
B15: =IF(F15=0,"",'SUB. 1'!B30) ->  | C15: =IF(F15=0,"",'SUB. 1'!E30) ->  | D15: =IF(F15=0,"",'SUB. 1'!F30) ->  | E15: ='SUB. 1'!Q30 -> 0 | F15: ='SUB. 1'!R30 -> 0 | H15: 0 | I15: 0 | J15: 0 | K15: 0 | L15: 0
B16: =IF(F16=0,"",'SUB. 1'!B31) ->  | C16: =IF(F16=0,"",'SUB. 1'!E31) ->  | D16: =IF(F16=0,"",'SUB. 1'!F31) ->  | E16: ='SUB. 1'!Q31 -> 0 | F16: ='SUB. 1'!R31 -> 0 | H16: 0 | I16: 0 | J16: 0 | K16: 0 | L16: 0
B17: =IF(F17=0,"",'SUB. 1'!B32) ->  | C17: =IF(F17=0,"",'SUB. 1'!E32) ->  | D17: =IF(F17=0,"",'SUB. 1'!F32) ->  | E17: ='SUB. 1'!Q32 -> 0 | F17: ='SUB. 1'!R32 -> 0 | H17: 0 | I17: 0 | J17: 0 | K17: 0 | L17: 0
B18: =IF(F18=0,"",'SUB. 1'!B33) ->  | C18: =IF(F18=0,"",'SUB. 1'!E33) ->  | D18: =IF(F18=0,"",'SUB. 1'!F33) ->  | E18: ='SUB. 1'!Q33 -> 0 | F18: ='SUB. 1'!R33 -> 0 | H18: 0 | I18: 0 | J18: 0 | K18: 0 | L18: 0
B19: =IF(F19=0,"",'SUB. 1'!B34) ->  | C19: =IF(F19=0,"",'SUB. 1'!E34) ->  | D19: =IF(F19=0,"",'SUB. 1'!F34) ->  | E19: ='SUB. 1'!Q34 -> 0 | F19: ='SUB. 1'!R34 -> 0 | H19: 0 | I19: 0 | J19: 0 | K19: 0 | L19: 0
B20: =IF(F20=0,"",'SUB. 1'!B35) ->  | C20: =IF(F20=0,"",'SUB. 1'!E35) ->  | D20: =IF(F20=0,"",'SUB. 1'!F35) ->  | E20: ='SUB. 1'!Q35 -> 0 | F20: ='SUB. 1'!R35 -> 0 | H20: 0 | I20: 0 | J20: 0 | K20: 0 | L20: 0
B21: =IF(F21=0,"",'SUB. 1'!B36) ->  | C21: =IF(F21=0,"",'SUB. 1'!E36) ->  | D21: =IF(F21=0,"",'SUB. 1'!F36) ->  | E21: ='SUB. 1'!Q36 -> 0 | F21: ='SUB. 1'!R36 -> 0 | H21: 0 | I21: 0 | J21: 0 | K21: 0 | L21: 0
A22: SUBSISTEMA 2 | B22: =IF(F22=0,"",'SUB. 2'!B19:D19) ->  | C22: =IF(F22=0,"",'SUB. 2'!E19) ->  | D22: =IF(F22=0,"",'SUB. 2'!F19) ->  | E22: ='SUB. 2'!Q19 -> 0 | F22: ='SUB. 2'!R19 -> 0 | H22: 0 | I22: 0 | J22: 0 | K22: 0 | L22: 0
B23: =IF(F23=0,"",'SUB. 2'!B20:D20) -> esterco | C23: =IF(F23=0,"",'SUB. 2'!E20) -> kg | D23: =IF(F23=0,"",'SUB. 2'!F20) -> 0.42 | E23: ='SUB. 2'!Q20 -> 365 | F23: ='SUB. 2'!R20 -> 153.3 | H23: 0 | I23: 0 | J23: 0 | K23: 0 | L23: 0
B24: =IF(F24=0,"",'SUB. 2'!B21:D21) ->  | C24: =IF(F24=0,"",'SUB. 2'!E21) ->  | D24: =IF(F24=0,"",'SUB. 2'!F21) ->  | E24: ='SUB. 2'!Q21 -> 0 | F24: ='SUB. 2'!R21 -> 0 | H24: 0 | I24: 0 | J24: 0 | K24: 0 | L24: 0
B25: =IF(F25=0,"",'SUB. 2'!B22:D22) ->  | C25: =IF(F25=0,"",'SUB. 2'!E22) ->  | D25: =IF(F25=0,"",'SUB. 2'!F22) ->  | E25: ='SUB. 2'!Q22 -> 0 | F25: ='SUB. 2'!R22 -> 0 | H25: 0 | I25: 0 | J25: 0 | K25: 0 | L25: 0
B26: =IF(F26=0,"",'SUB. 2'!B23:D23) ->  | C26: =IF(F26=0,"",'SUB. 2'!E23) ->  | D26: =IF(F26=0,"",'SUB. 2'!F23) ->  | E26: ='SUB. 2'!Q23 -> 0 | F26: ='SUB. 2'!R23 -> 0 | H26: 0 | I26: 0 | J26: 0 | K26: 0 | L26: 0
B27: =IF(F27=0,"",'SUB. 2'!B24:D24) ->  | C27: =IF(F27=0,"",'SUB. 2'!E24) ->  | D27: =IF(F27=0,"",'SUB. 2'!F24) ->  | E27: ='SUB. 2'!Q24 -> 0 | F27: ='SUB. 2'!R24 -> 0 | H27: 0 | I27: 0 | J27: 0 | K27: 0 | L27: 0
B28: =IF(F28=0,"",'SUB. 2'!B25:D25) ->  | C28: =IF(F28=0,"",'SUB. 2'!E25) ->  | D28: =IF(F28=0,"",'SUB. 2'!F25) ->  | E28: ='SUB. 2'!Q25 -> 0 | F28: ='SUB. 2'!R25 -> 0 | H28: 0 | I28: 0 | J28: 0 | K28: 0 | L28: 0
B29: =IF(F29=0,"",'SUB. 2'!B26:D26) ->  | C29: =IF(F29=0,"",'SUB. 2'!E26) ->  | D29: =IF(F29=0,"",'SUB. 2'!F26) ->  | E29: ='SUB. 2'!Q26 -> 0 | F29: ='SUB. 2'!R26 -> 0 | H29: 0 | I29: 0 | J29: 0 | K29: 0 | L29: 0
B30: =IF(F30=0,"",'SUB. 2'!B27:D27) ->  | C30: =IF(F30=0,"",'SUB. 2'!E27) ->  | D30: =IF(F30=0,"",'SUB. 2'!F27) ->  | E30: ='SUB. 2'!Q27 -> 0 | F30: ='SUB. 2'!R27 -> 0 | H30: 0 | I30: 0 | J30: 0 | K30: 0 | L30: 0
B31: =IF(F31=0,"",'SUB. 2'!B28:D28) ->  | C31: =IF(F31=0,"",'SUB. 2'!E28) ->  | D31: =IF(F31=0,"",'SUB. 2'!F28) ->  | E31: ='SUB. 2'!Q28 -> 0 | F31: ='SUB. 2'!R28 -> 0 | H31: 0 | I31: 0 | J31: 0 | K31: 0 | L31: 0
B32: =IF(F32=0,"",'SUB. 2'!B29:D29) ->  | C32: =IF(F32=0,"",'SUB. 2'!E29) ->  | D32: =IF(F32=0,"",'SUB. 2'!F29) ->  | E32: ='SUB. 2'!Q29 -> 0 | F32: ='SUB. 2'!R29 -> 0 | H32: 0 | I32: 0 | J32: 0 | K32: 0 | L32: 0
B33: =IF(F33=0,"",'SUB. 2'!B30:D30) ->  | C33: =IF(F33=0,"",'SUB. 2'!E30) ->  | D33: =IF(F33=0,"",'SUB. 2'!F30) ->  | E33: ='SUB. 2'!Q30 -> 0 | F33: ='SUB. 2'!R30 -> 0 | H33: 0 | I33: 0 | J33: 0 | K33: 0 | L33: 0
B34: =IF(F34=0,"",'SUB. 2'!B31:D31) ->  | C34: =IF(F34=0,"",'SUB. 2'!E31) ->  | D34: =IF(F34=0,"",'SUB. 2'!F31) ->  | E34: ='SUB. 2'!Q31 -> 0 | F34: ='SUB. 2'!R31 -> 0 | H34: 0 | I34: 0 | J34: 0 | K34: 0 | L34: 0
B35: =IF(F35=0,"",'SUB. 2'!B32:D32) ->  | C35: =IF(F35=0,"",'SUB. 2'!E32) ->  | D35: =IF(F35=0,"",'SUB. 2'!F32) ->  | E35: ='SUB. 2'!Q32 -> 0 | F35: ='SUB. 2'!R32 -> 0 | H35: 0 | I35: 0 | J35: 0 | K35: 0 | L35: 0
B36: =IF(F36=0,"",'SUB. 2'!B33:D33) ->  | C36: =IF(F36=0,"",'SUB. 2'!E33) ->  | D36: =IF(F36=0,"",'SUB. 2'!F33) ->  | E36: ='SUB. 2'!Q33 -> 0 | F36: ='SUB. 2'!R33 -> 0 | H36: 0 | I36: 0 | J36: 0 | K36: 0 | L36: 0
B37: =IF(F37=0,"",'SUB. 2'!B34:D34) ->  | C37: =IF(F37=0,"",'SUB. 2'!E34) ->  | D37: =IF(F37=0,"",'SUB. 2'!F34) ->  | E37: ='SUB. 2'!Q34 -> 0 | F37: ='SUB. 2'!R34 -> 0 | H37: 0 | I37: 0 | J37: 0 | K37: 0 | L37: 0
B38: =IF(F38=0,"",'SUB. 2'!B35:D35) ->  | C38: =IF(F38=0,"",'SUB. 2'!E35) ->  | D38: =IF(F38=0,"",'SUB. 2'!F35) ->  | E38: ='SUB. 2'!Q35 -> 0 | F38: ='SUB. 2'!R35 -> 0 | H38: 0 | I38: 0 | J38: 0 | K38: 0 | L38: 0
B39: ='SUB. 2'!B36:D36 -> 0 | C39: =IF(F39=0,"",'SUB. 2'!E36) ->  | D39: =IF(F39=0,"",'SUB. 2'!F36) ->  | E39: ='SUB. 2'!Q36 -> 0 | F39: ='SUB. 2'!R36 -> 0 | H39: 0 | I39: 0 | J39: 0 | K39: 0 | L39: 0
A40: SUBSISTEMA 3 | B40: =IF(F40=0,"",'SUB. 3'!B19:D19) ->  | C40: =IF(F40=0,"",'SUB. 3'!E19) ->  | D40: =IF(F40=0,"",'SUB. 3'!F19) ->  | E40: ='SUB. 3'!Q19 -> 0 | F40: ='SUB. 3'!R19 -> 0 | H40: 0 | I40: 0 | J40: 0 | K40: 0 | L40: 0
B41: =IF(F41=0,"",'SUB. 3'!B20:D20) -> esterco | C41: =IF(F41=0,"",'SUB. 3'!E20) -> kg | D41: =IF(F41=0,"",'SUB. 3'!F20) -> 0.42 | E41: ='SUB. 3'!Q20 -> 1500 | F41: ='SUB. 3'!R20 -> 630 | H41: 0 | I41: 0 | J41: 0 | K41: 0 | L41: 0
B42: =IF(F42=0,"",'SUB. 3'!B21:D21) ->  | C42: =IF(F42=0,"",'SUB. 3'!E21) ->  | D42: =IF(F42=0,"",'SUB. 3'!F21) ->  | E42: ='SUB. 3'!Q21 -> 0 | F42: ='SUB. 3'!R21 -> 0 | H42: 0 | I42: 0 | J42: 0 | K42: 0 | L42: 0
B43: =IF(F43=0,"",'SUB. 3'!B22:D22) ->  | C43: =IF(F43=0,"",'SUB. 3'!E22) ->  | D43: =IF(F43=0,"",'SUB. 3'!F22) ->  | E43: ='SUB. 3'!Q22 -> 0 | F43: ='SUB. 3'!R22 -> 0 | H43: 0 | I43: 0 | J43: 0 | K43: 0 | L43: 0
B44: =IF(F44=0,"",'SUB. 3'!B23:D23) ->  | C44: =IF(F44=0,"",'SUB. 3'!E23) ->  | D44: =IF(F44=0,"",'SUB. 3'!F23) ->  | E44: ='SUB. 3'!Q23 -> 0 | F44: ='SUB. 3'!R23 -> 0 | H44: 0 | I44: 0 | J44: 0 | K44: 0 | L44: 0
B45: =IF(F45=0,"",'SUB. 3'!B24:D24) ->  | C45: =IF(F45=0,"",'SUB. 3'!E24) ->  | D45: =IF(F45=0,"",'SUB. 3'!F24) ->  | E45: ='SUB. 3'!Q24 -> 0 | F45: ='SUB. 3'!R24 -> 0 | H45: 0 | I45: 0 | J45: 0 | K45: 0 | L45: 0
B46: =IF(F46=0,"",'SUB. 3'!B25:D25) ->  | C46: =IF(F46=0,"",'SUB. 3'!E25) ->  | D46: =IF(F46=0,"",'SUB. 3'!F25) ->  | E46: ='SUB. 3'!Q25 -> 0 | F46: ='SUB. 3'!R25 -> 0 | H46: 0 | I46: 0 | J46: 0 | K46: 0 | L46: 0
B47: =IF(F47=0,"",'SUB. 3'!B26:D26) ->  | C47: =IF(F47=0,"",'SUB. 3'!E26) ->  | D47: =IF(F47=0,"",'SUB. 3'!F26) ->  | E47: ='SUB. 3'!Q26 -> 0 | F47: ='SUB. 3'!R26 -> 0 | H47: 0 | I47: 0 | J47: 0 | K47: 0 | L47: 0
B48: =IF(F48=0,"",'SUB. 3'!B27:D27) ->  | C48: =IF(F48=0,"",'SUB. 3'!E27) ->  | D48: =IF(F48=0,"",'SUB. 3'!F27) ->  | E48: ='SUB. 3'!Q27 -> 0 | F48: ='SUB. 3'!R27 -> 0 | H48: 0 | I48: 0 | J48: 0 | K48: 0 | L48: 0
B49: =IF(F49=0,"",'SUB. 3'!B28:D28) ->  | C49: =IF(F49=0,"",'SUB. 3'!E28) ->  | D49: =IF(F49=0,"",'SUB. 3'!F28) ->  | E49: ='SUB. 3'!Q28 -> 0 | F49: ='SUB. 3'!R28 -> 0 | H49: 0 | I49: 0 | J49: 0 | K49: 0 | L49: 0
B50: =IF(F50=0,"",'SUB. 3'!B29:D29) ->  | C50: =IF(F50=0,"",'SUB. 3'!E29) ->  | D50: =IF(F50=0,"",'SUB. 3'!F29) ->  | E50: ='SUB. 3'!Q29 -> 0 | F50: ='SUB. 3'!R29 -> 0 | H50: 0 | I50: 0 | J50: 0 | K50: 0 | L50: 0
B51: =IF(F51=0,"",'SUB. 3'!B30:D30) ->  | C51: =IF(F51=0,"",'SUB. 3'!E30) ->  | D51: =IF(F51=0,"",'SUB. 3'!F30) ->  | E51: ='SUB. 3'!Q30 -> 0 | F51: ='SUB. 3'!R30 -> 0 | H51: 0 | I51: 0 | J51: 0 | K51: 0 | L51: 0
B52: =IF(F52=0,"",'SUB. 3'!B31:D31) ->  | C52: =IF(F52=0,"",'SUB. 3'!E31) ->  | D52: =IF(F52=0,"",'SUB. 3'!F31) ->  | E52: ='SUB. 3'!Q31 -> 0 | F52: ='SUB. 3'!R31 -> 0 | H52: 0 | I52: 0 | J52: 0 | K52: 0 | L52: 0
B53: =IF(F53=0,"",'SUB. 3'!B32:D32) ->  | C53: =IF(F53=0,"",'SUB. 3'!E32) ->  | D53: =IF(F53=0,"",'SUB. 3'!F32) ->  | E53: ='SUB. 3'!Q32 -> 0 | F53: ='SUB. 3'!R32 -> 0 | H53: 0 | I53: 0 | J53: 0 | K53: 0 | L53: 0
B54: =IF(F54=0,"",'SUB. 3'!B33:D33) ->  | C54: =IF(F54=0,"",'SUB. 3'!E33) ->  | D54: =IF(F54=0,"",'SUB. 3'!F33) ->  | E54: ='SUB. 3'!Q33 -> 0 | F54: ='SUB. 3'!R33 -> 0 | H54: 0 | I54: 0 | J54: 0 | K54: 0 | L54: 0
B55: =IF(F55=0,"",'SUB. 3'!B34:D34) ->  | C55: =IF(F55=0,"",'SUB. 3'!E34) ->  | D55: =IF(F55=0,"",'SUB. 3'!F34) ->  | E55: ='SUB. 3'!Q34 -> 0 | F55: ='SUB. 3'!R34 -> 0 | H55: 0 | I55: 0 | J55: 0 | K55: 0 | L55: 0
B56: =IF(F56=0,"",'SUB. 3'!B35:D35) ->  | C56: =IF(F56=0,"",'SUB. 3'!E35) ->  | D56: =IF(F56=0,"",'SUB. 3'!F35) ->  | E56: ='SUB. 3'!Q35 -> 0 | F56: ='SUB. 3'!R35 -> 0 | H56: 0 | I56: 0 | J56: 0 | K56: 0 | L56: 0
B57: =IF(F57=0,"",'SUB. 3'!B36:D36) ->  | C57: =IF(F57=0,"",'SUB. 3'!E36) ->  | D57: =IF(F57=0,"",'SUB. 3'!F36) ->  | E57: ='SUB. 3'!Q36 -> 0 | F57: ='SUB. 3'!R36 -> 0 | H57: 0 | I57: 0 | J57: 0 | K57: 0 | L57: 0
A58: SUBSISTEMA 4 | B58: =IF(F58=0,"",'SUB. 4'!B19:D19) ->  | C58: =IF(F58=0,"",'SUB. 4'!E19) ->  | D58: =IF(F58=0,"",'SUB. 4'!F19) ->  | E58: ='SUB. 4'!Q19 -> 0 | F58: ='SUB. 4'!R19 -> 0 | H58: 0 | I58: 0 | J58: 0 | K58: 0 | L58: 0
B59: =IF(F59=0,"",'SUB. 4'!B20:D20) ->  | C59: =IF(F59=0,"",'SUB. 4'!E20) ->  | D59: =IF(F59=0,"",'SUB. 4'!F20) ->  | E59: ='SUB. 4'!Q20 -> 0 | F59: ='SUB. 4'!R20 -> 0 | H59: 0 | I59: 0 | J59: 0 | K59: 0 | L59: 0
B60: =IF(F60=0,"",'SUB. 4'!B21:D21) ->  | C60: =IF(F60=0,"",'SUB. 4'!E21) ->  | D60: =IF(F60=0,"",'SUB. 4'!F21) ->  | E60: ='SUB. 4'!Q21 -> 0 | F60: ='SUB. 4'!R21 -> 0 | H60: 0 | I60: 0 | J60: 0 | K60: 0 | L60: 0
B61: =IF(F61=0,"",'SUB. 4'!B22:D22) ->  | C61: =IF(F61=0,"",'SUB. 4'!E22) ->  | D61: =IF(F61=0,"",'SUB. 4'!F22) ->  | E61: ='SUB. 4'!Q22 -> 0 | F61: ='SUB. 4'!R22 -> 0 | H61: 0 | I61: 0 | J61: 0 | K61: 0 | L61: 0
B62: =IF(F62=0,"",'SUB. 4'!B23:D23) -> esterco | C62: =IF(F62=0,"",'SUB. 4'!E23) -> kg | D62: =IF(F62=0,"",'SUB. 4'!F23) -> 0.4 | E62: ='SUB. 4'!Q23 -> 180 | F62: ='SUB. 4'!R23 -> 72 | H62: 0 | I62: 0 | J62: 0 | K62: 0 | L62: 0
B63: =IF(F63=0,"",'SUB. 4'!B24:D24) ->  | C63: =IF(F63=0,"",'SUB. 4'!E24) ->  | D63: =IF(F63=0,"",'SUB. 4'!F24) ->  | E63: ='SUB. 4'!Q24 -> 0 | F63: ='SUB. 4'!R24 -> 0 | H63: 0 | I63: 0 | J63: 0 | K63: 0 | L63: 0
B64: =IF(F64=0,"",'SUB. 4'!B25:D25) ->  | C64: =IF(F64=0,"",'SUB. 4'!E25) ->  | D64: =IF(F64=0,"",'SUB. 4'!F25) ->  | E64: ='SUB. 4'!Q25 -> 0 | F64: ='SUB. 4'!R25 -> 0 | H64: 0 | I64: 0 | J64: 0 | K64: 0 | L64: 0
B65: =IF(F65=0,"",'SUB. 4'!B26:D26) ->  | C65: =IF(F65=0,"",'SUB. 4'!E26) ->  | D65: =IF(F65=0,"",'SUB. 4'!F26) ->  | E65: ='SUB. 4'!Q26 -> 0 | F65: ='SUB. 4'!R26 -> 0 | H65: 0 | I65: 0 | J65: 0 | K65: 0 | L65: 0
B66: =IF(F66=0,"",'SUB. 4'!B27:D27) ->  | C66: =IF(F66=0,"",'SUB. 4'!E27) ->  | D66: =IF(F66=0,"",'SUB. 4'!F27) ->  | E66: ='SUB. 4'!Q27 -> 0 | F66: ='SUB. 4'!R27 -> 0 | H66: 0 | I66: 0 | J66: 0 | K66: 0 | L66: 0
B67: =IF(F67=0,"",'SUB. 4'!B28:D28) ->  | C67: =IF(F67=0,"",'SUB. 4'!E28) ->  | D67: =IF(F67=0,"",'SUB. 4'!F28) ->  | E67: ='SUB. 4'!Q28 -> 0 | F67: ='SUB. 4'!R28 -> 0 | H67: 0 | I67: 0 | J67: 0 | K67: 0 | L67: 0
B68: =IF(F68=0,"",'SUB. 4'!B29:D29) ->  | C68: =IF(F68=0,"",'SUB. 4'!E29) ->  | D68: =IF(F68=0,"",'SUB. 4'!F29) ->  | E68: ='SUB. 4'!Q29 -> 0 | F68: ='SUB. 4'!R29 -> 0 | H68: 0 | I68: 0 | J68: 0 | K68: 0 | L68: 0
B69: =IF(F69=0,"",'SUB. 4'!B30:D30) ->  | C69: =IF(F69=0,"",'SUB. 4'!E30) ->  | D69: =IF(F69=0,"",'SUB. 4'!F30) ->  | E69: ='SUB. 4'!Q30 -> 0 | F69: ='SUB. 4'!R30 -> 0 | H69: =N69 -> 0 | I69: =N69 -> 0 | J69: =N69 -> 0 | K69: =N69 -> 0 | L69: 0
B70: =IF(F70=0,"",'SUB. 4'!B31:D31) ->  | C70: =IF(F70=0,"",'SUB. 4'!E31) ->  | D70: =IF(F70=0,"",'SUB. 4'!F31) ->  | E70: ='SUB. 4'!Q31 -> 0 | F70: ='SUB. 4'!R31 -> 0 | H70: 0 | I70: 0 | J70: 0 | K70: 0 | L70: 0
B71: =IF(F71=0,"",'SUB. 4'!B32:D32) ->  | C71: =IF(F71=0,"",'SUB. 4'!E32) ->  | D71: =IF(F71=0,"",'SUB. 4'!F32) ->  | E71: ='SUB. 4'!Q32 -> 0 | F71: ='SUB. 4'!R32 -> 0 | H71: 0 | I71: 0 | J71: 0 | K71: 0 | L71: =N71 -> 0
B72: =IF(F72=0,"",'SUB. 4'!B33:D33) ->  | C72: =IF(F72=0,"",'SUB. 4'!E33) ->  | D72: =IF(F72=0,"",'SUB. 4'!F33) ->  | E72: ='SUB. 4'!Q33 -> 0 | F72: ='SUB. 4'!R33 -> 0 | H72: 0 | I72: 0 | J72: 0 | K72: 0 | L72: 0
B73: =IF(F73=0,"",'SUB. 4'!B34:D34) ->  | C73: =IF(F73=0,"",'SUB. 4'!E34) ->  | D73: =IF(F73=0,"",'SUB. 4'!F34) ->  | E73: ='SUB. 4'!Q34 -> 0 | F73: ='SUB. 4'!R34 -> 0 | H73: 0 | I73: 0 | J73: 0 | K73: 0 | L73: 0
B74: =IF(F74=0,"",'SUB. 4'!B35:D35) ->  | C74: =IF(F74=0,"",'SUB. 4'!E35) ->  | D74: =IF(F74=0,"",'SUB. 4'!F35) ->  | E74: ='SUB. 4'!Q35 -> 0 | F74: ='SUB. 4'!R35 -> 0 | H74: 0 | I74: 0 | J74: 0 | K74: 0 | L74: 0
B75: =IF(F75=0,"",'SUB. 4'!B36:D36) ->  | C75: =IF(F75=0,"",'SUB. 4'!E36) ->  | D75: =IF(F75=0,"",'SUB. 4'!F36) ->  | E75: ='SUB. 4'!Q36 -> 0 | F75: ='SUB. 4'!R36 -> 0 | H75: 0 | I75: 0 | J75: 0 | K75: 0 | L75: 0
A76: SUBSISTEMA 5 | B76: =IF(F76=0,"",'SUB. 5'!B19:D19) -> Palma | C76: =IF(F76=0,"",'SUB. 5'!E19) -> kg | D76: =IF(F76=0,"",'SUB. 5'!F19) -> 0.2 | E76: ='SUB. 5'!Q19 -> 20100 | F76: ='SUB. 5'!R19 -> 4020 | H76: 0 | I76: 0 | J76: 0 | K76: 0 | L76: 0
B77: =IF(F77=0,"",'SUB. 5'!B20:D20) ->  | C77: =IF(F77=0,"",'SUB. 5'!E20) ->  | D77: =IF(F77=0,"",'SUB. 5'!F20) ->  | E77: ='SUB. 5'!Q20 -> 0 | F77: ='SUB. 5'!R20 -> 0 | H77: 0 | I77: 0 | J77: 0 | K77: 0 | L77: 0
B78: =IF(F78=0,"",'SUB. 5'!B21:D21) ->  | C78: =IF(F78=0,"",'SUB. 5'!E21) ->  | D78: =IF(F78=0,"",'SUB. 5'!F21) ->  | E78: ='SUB. 5'!Q21 -> 0 | F78: ='SUB. 5'!R21 -> 0 | H78: 0 | I78: 0 | J78: 0 | K78: 0 | L78: 0
B79: =IF(F79=0,"",'SUB. 5'!B22:D22) ->  | C79: =IF(F79=0,"",'SUB. 5'!E22) ->  | D79: =IF(F79=0,"",'SUB. 5'!F22) ->  | E79: ='SUB. 5'!Q22 -> 0 | F79: ='SUB. 5'!R22 -> 0 | H79: 0 | I79: 0 | J79: 0 | K79: 0 | L79: 0
B80: =IF(F80=0,"",'SUB. 5'!B23:D23) ->  | C80: =IF(F80=0,"",'SUB. 5'!E23) ->  | D80: =IF(F80=0,"",'SUB. 5'!F23) ->  | E80: ='SUB. 5'!Q23 -> 0 | F80: ='SUB. 5'!R23 -> 0 | H80: 0 | I80: 0 | J80: 0 | K80: 0 | L80: 0
B81: =IF(F81=0,"",'SUB. 5'!B24:D24) ->  | C81: =IF(F81=0,"",'SUB. 5'!E24) ->  | D81: =IF(F81=0,"",'SUB. 5'!F24) ->  | E81: ='SUB. 5'!Q24 -> 0 | F81: ='SUB. 5'!R24 -> 0 | H81: 0 | I81: 0 | J81: 0 | K81: 0 | L81: 0
B82: =IF(F82=0,"",'SUB. 5'!B25:D25) ->  | C82: =IF(F82=0,"",'SUB. 5'!E25) ->  | D82: =IF(F82=0,"",'SUB. 5'!F25) ->  | E82: ='SUB. 5'!Q25 -> 0 | F82: ='SUB. 5'!R25 -> 0 | H82: 0 | I82: 0 | J82: 0 | K82: 0 | L82: 0
B83: =IF(F83=0,"",'SUB. 5'!B26:D26) ->  | C83: =IF(F83=0,"",'SUB. 5'!E26) ->  | D83: =IF(F83=0,"",'SUB. 5'!F26) ->  | E83: ='SUB. 5'!Q26 -> 0 | F83: ='SUB. 5'!R26 -> 0 | H83: 0 | I83: 0 | J83: 0 | K83: 0 | L83: 0
B84: =IF(F84=0,"",'SUB. 5'!B27:D27) ->  | C84: =IF(F84=0,"",'SUB. 5'!E27) ->  | D84: =IF(F84=0,"",'SUB. 5'!F27) ->  | E84: ='SUB. 5'!Q27 -> 0 | F84: ='SUB. 5'!R27 -> 0 | H84: 0 | I84: 0 | J84: 0 | K84: 0 | L84: 0
B85: =IF(F85=0,"",'SUB. 5'!B28:D28) ->  | C85: =IF(F85=0,"",'SUB. 5'!E28) ->  | D85: =IF(F85=0,"",'SUB. 5'!F28) ->  | E85: ='SUB. 5'!Q28 -> 0 | F85: ='SUB. 5'!R28 -> 0 | H85: 0 | I85: 0 | J85: 0 | K85: 0 | L85: 0
B86: =IF(F86=0,"",'SUB. 5'!B29:D29) ->  | C86: =IF(F86=0,"",'SUB. 5'!E29) ->  | D86: =IF(F86=0,"",'SUB. 5'!F29) ->  | E86: ='SUB. 5'!Q29 -> 0 | F86: ='SUB. 5'!R29 -> 0 | H86: 0 | I86: 0 | J86: 0 | K86: 0 | L86: 0
B87: =IF(F87=0,"",'SUB. 5'!B30:D30) ->  | C87: =IF(F87=0,"",'SUB. 5'!E30) ->  | D87: =IF(F87=0,"",'SUB. 5'!F30) ->  | E87: ='SUB. 5'!Q30 -> 0 | F87: ='SUB. 5'!R30 -> 0 | H87: 0 | I87: 0 | J87: 0 | K87: 0 | L87: 0
B88: =IF(F88=0,"",'SUB. 5'!B31:D31) ->  | C88: =IF(F88=0,"",'SUB. 5'!E31) ->  | D88: =IF(F88=0,"",'SUB. 5'!F31) ->  | E88: ='SUB. 5'!Q31 -> 0 | F88: ='SUB. 5'!R31 -> 0 | H88: 0 | I88: 0 | J88: 0 | K88: 0 | L88: 0
B89: =IF(F89=0,"",'SUB. 5'!B32:D32) ->  | C89: =IF(F89=0,"",'SUB. 5'!E32) ->  | D89: =IF(F89=0,"",'SUB. 5'!F32) ->  | E89: ='SUB. 5'!Q32 -> 0 | F89: ='SUB. 5'!R32 -> 0 | H89: 0 | I89: 0 | J89: 0 | K89: 0 | L89: 0
B90: =IF(F90=0,"",'SUB. 5'!B33:D33) ->  | C90: =IF(F90=0,"",'SUB. 5'!E33) ->  | D90: =IF(F90=0,"",'SUB. 5'!F33) ->  | E90: ='SUB. 5'!Q33 -> 0 | F90: ='SUB. 5'!R33 -> 0 | H90: 0 | I90: 0 | J90: 0 | K90: 0 | L90: 0
B91: =IF(F91=0,"",'SUB. 5'!B34:D34) ->  | C91: =IF(F91=0,"",'SUB. 5'!E34) ->  | D91: =IF(F91=0,"",'SUB. 5'!F34) ->  | E91: ='SUB. 5'!Q34 -> 0 | F91: ='SUB. 5'!R34 -> 0 | H91: 0 | I91: 0 | J91: 0 | K91: 0 | L91: 0
B92: =IF(F92=0,"",'SUB. 5'!B35:D35) ->  | C92: =IF(F92=0,"",'SUB. 5'!E35) ->  | D92: =IF(F92=0,"",'SUB. 5'!F35) ->  | E92: ='SUB. 5'!Q35 -> 0 | F92: ='SUB. 5'!R35 -> 0 | H92: 0 | I92: 0 | J92: 0 | K92: 0 | L92: 0
B93: =IF(F93=0,"",'SUB. 5'!B36:D36) ->  | C93: =IF(F93=0,"",'SUB. 5'!E36) ->  | D93: =IF(F93=0,"",'SUB. 5'!F36) ->  | E93: ='SUB. 5'!Q36 -> 0 | F93: ='SUB. 5'!R36 -> 0 | H93: 0 | I93: 0 | J93: 0 | K93: 0 | L93: 0
A94: SUBSISTEMA 6 | B94: =IF(F94=0,"",'SUB. 6'!B19:D19) -> gliricidea | C94: =IF(F94=0,"",'SUB. 6'!E19) -> kg | D94: =IF(F94=0,"",'SUB. 6'!F19) -> 3 | E94: ='SUB. 6'!Q19 -> 183 | F94: ='SUB. 6'!R19 -> 549 | H94: 0 | I94: 0 | J94: 0 | K94: 0 | L94: 0
B95: =IF(F95=0,"",'SUB. 6'!B20:D20) ->  | C95: =IF(F95=0,"",'SUB. 6'!E20) ->  | D95: =IF(F95=0,"",'SUB. 6'!F20) ->  | E95: ='SUB. 6'!Q20 -> 0 | F95: ='SUB. 6'!R20 -> 0 | H95: 0 | I95: 0 | J95: 0 | K95: 0 | L95: 0
B96: =IF(F96=0,"",'SUB. 6'!B21:D21) ->  | C96: =IF(F96=0,"",'SUB. 6'!E21) ->  | D96: =IF(F96=0,"",'SUB. 6'!F21) ->  | E96: ='SUB. 6'!Q21 -> 0 | F96: ='SUB. 6'!R21 -> 0 | H96: 0 | I96: 0 | J96: 0 | K96: 0 | L96: 0
B97: =IF(F97=0,"",'SUB. 6'!B22:D22) ->  | C97: =IF(F97=0,"",'SUB. 6'!E22) ->  | D97: =IF(F97=0,"",'SUB. 6'!F22) ->  | E97: ='SUB. 6'!Q22 -> 0 | F97: ='SUB. 6'!R22 -> 0 | H97: 0 | I97: 0 | J97: 0 | K97: 0 | L97: 0
